Workbook

Sheet Table-Risk Measures
E4: Value Line
B5: Credit Rating | E5: Safety | F5: Financial
B6: S&P | C6: Moody's | E6: Rank | F6: Strength | G6: Beta
A7: Utility Group | B7: ='Proxy Group Risk Measures'!D30 -> A- | C7: ='Proxy Group Risk Measures'!G30 -> Baa2 | E7: ='Proxy Group Risk Measures'!J30 -> 1.714285714 | F7: ='Proxy Group Risk Measures'!L30 -> A | G7: ='Proxy Group Risk Measures'!O30 -> 0.8714285714
A8: Kentucky Power | B8: ='Proxy Group Risk Measures'!D$12 -> BBB+ | C8: ='Proxy Group Risk Measures'!G$12 -> Baa2 | E8: ='Proxy Group Risk Measures'!J$12 -> 2 | F8: ='Proxy Group Risk Measures'!L$12 -> A | G8: ='Proxy Group Risk Measures'!O$12 -> 0.95
E12: Value Line
B13: Credit Rating | E13: Safety | F13: Financial
B14: S&P | C14: Moody's | E14: Rank | F14: Strength | G14: Beta
A15: Non-Utility Group | B15: ='Proxy Group Risk Measures'!D90 -> A | C15: ='Proxy Group Risk Measures'!G90 -> A2 | E15: ='Proxy Group Risk Measures'!J90 -> 1 | F15: ='Proxy Group Risk Measures'!L90 -> A+ | G15: ='Proxy Group Risk Measures'!O90 -> 0.8333333333
A16: Utility Group | B16: =B7 -> A- | C16: =C7 -> Baa2 | E16: =E7 -> 1.714285714 | F16: =F7 -> A | G16: =G7 -> 0.8714285714
A17: =A8 -> Kentucky Power | B17: ='Proxy Group Risk Measures'!D$11 -> BBB+ | C17: ='Proxy Group Risk Measures'!G$11 -> Baa1 | E17: ='Proxy Group Risk Measures'!J$11 -> 2 | F17: ='Proxy Group Risk Measures'!L$11 -> B++ | G17: ='Proxy Group Risk Measures'!O$11 -> 0.8

Sheet Fig. R-1
F3: High | G3: Low | H3: Average
C4: Allowed ROE (a) | F4: ='13'!G31 -> 0.125 | G4: ='13'!E31 -> 0.087 | H4: ='13'!F33 -> 0.09785079365
C5: Expected Earnings (b) | F5: ='20'!M30 -> 0.1286936755 | G5: ='20'!M31 -> 0.07149220015 | H5: ='20'!H30 -> 0.1044206995
C6: Electric Authorized 2019 (c) | F6: =MAX('Allowed ROEs'!F7:F22) -> 0.1 | G6: =MIN('Allowed ROEs'!F7:F22) -> 0.0875 | H6: =AVERAGE('Allowed ROEs'!F7:F22) -> 0.09600625
C7: Electric Authorized 2020 (d) | F7: =MAX('Allowed ROEs'!F23:F51) -> 0.105 | G7: =MIN('Allowed ROEs'!F23:F51) -> 0.082 | H7: =AVERAGE('Allowed ROEs'!F23:F51) -> 0.09675172414
C41: Range | E41: Baudino Recommended | H41: (a) Allowed ROE for proxy group cos. reported by Value Line.
C42: Average | H42: (b) Expected earned returns for proxy group cos. from Value Line.
H43: (c) Authorized ROEs for 12 mos. ended 9/30/19 reported for integrated elec. utilities by RRA.
H44: (d) Authorized ROEs for 12 mos. ended 9/30/20 reported for integrated elec. utilities by RRA.

Sheet Fig. R-2
C4: From Exh. AMM-14 | E4: Graph Data
B5: =B4+1 -> 1 | C5: ='14'!H44 -> 0 | E5: 1 | F5: 0.08216578186
B6: =B5+1 -> 2 | C6: ='14'!H45 -> 0 | E6: =E5+1 -> 2 | F6: 0.08678323523
B7: 3 | C7: ='14'!H46 -> 0 | E7: =E6+1 -> 3 | F7: 0.08857760674
B8: 4 | C8: ='14'!H47 -> 0 | E8: 4 | F8: 0.08937088802
B9: 5 | C9: ='14'!H48 -> 0 | E9: 5 | F9: 0.0910391707
B10: 6 | C10: ='14'!H49 -> 0 | E10: 6 | F10: 0.09187719518
B11: 7 | C11: ='14'!H50 -> 0 | E11: 7 | F11: 0.0927289
B12: 8 | C12: ='14'!H51 -> 0 | E12: 8 | F12: 0.09312412651
B13: 9 | C13: ='14'!H52 -> 0 | E13: 9 | F13: 0.1009507
B14: 10 | C14: ='14'!H53 -> 0 | E14: 10 | F14: 0.1025085372
B15: 11 | C15: ='14'!H54 -> 0 | E15: 11 | F15: 0.1056190476
B16: 12 | C16: ='14'!H55 -> 0 | E16: 12 | F16: 0.1061395884
B17: 13 | C17: ='14'!H56 -> 0 | E17: 13 | F17: 0.1062390133
B18: 14 | C18: ='14'!H57 -> 0 | E18: 14 | F18: 0.1065238095
B19: 15 | C19: ='14'!H58 -> 0 | E19: 15 | F19: 0.108
B20: 16 | C20: ='14'!H59 -> 0 | E20: 16 | F20: 0.1086666667
B21: 17 | C21: ='14'!H60 -> 0 | E21: 17 | F21: 0.1096190476
B22: 18 | C22: ='14'!H61 -> 0 | E22: 18 | F22: 0.1105

Sheet Table R-1
D9: Average Allowed ROE-RRA
F11: Integrated
D12: Year | F12: Electric
D13: 2017 | F13: 0.098
D14: 2018 | F14: 0.0968
D15: 2019 | F15: 0.0973
D16: 2020* | F16: 0.0954
D17: Average | F17: =AVERAGE(F13:F16) -> 0.096875
D19: *Through September 30, 2020.
D20: Source: S&P Global Market Intelligence, RRA Regulatory Focus, Major Rate Case Decisions – January – September 2020, Regulatory Research Associates (Oct. 20, 2020).

Sheet Table R-2
C3: SUMMARY OF UPDATED RESULTS
E5: Average | F5: Median | G5: Midpoint
C6: DCF
C7: Value Line | E7: ='15 (3)'!E31 -> 0.08703595845 | F7: ='15 (3)'!P34 -> 0.0860933582 | G7: ='15 (3)'!E32 -> 0.09495921777
C8: IBES | E8: ='15 (3)'!G31 -> 0.08955905351 | F8: ='15 (3)'!Q34 -> 0.09241925401 | G8: ='15 (3)'!G32 -> 0.08623301968
C9: Zacks | E9: ='15 (3)'!I31 -> 0.0916470785 | F9: ='15 (3)'!R34 -> 0.09293163118 | G9: ='15 (3)'!I32 -> 0.08673202129
C10: Internal br + sv | E10: ='15 (3)'!L31 -> 0.08216578186 | F10: ='15 (3)'!T34 -> 0.07964743527 | G10: ='15 (3)'!L32 -> 0.08678323523
D11: Average | E11: =AVERAGE(E7:E10) -> 0.08760196808 | F11: =AVERAGE(F7:F10) -> 0.08777291967 | G11: =AVERAGE(G7:G10) -> 0.08867687349
C12: CAPM
C13: Current Bond Yield | E13: ='17 (1)'!L31 -> 0.1056190476 | F13: ='17 (1)'!L44 -> 0.103 | G13: ='17 (1)'!L32 -> 0.108
C14: Projected Bond Yield | E14: ='17 (2)'!L31 -> 0.1065238095 | F14: ='17 (2)'!L45 -> 0.104 | G14: ='17 (2)'!L32 -> 0.1085
D15: Average | E15: =AVERAGE(E13:E14) -> 0.1060714286 | F15: =AVERAGE(F13:F14) -> 0.1035 | G15: =AVERAGE(G13:G14) -> 0.10825
C16: Empirical CAPM
C17: Current Bond Yield | E17: ='18 (1)'!Q31 -> 0.1086666667 | F17: ='18 (1)'!Q44 -> 0.105 | G17: ='18 (1)'!Q32 -> 0.1105
C18: Projected Bond Yield | E18: ='18 (2)'!Q31 -> 0.1096190476 | F18: ='18 (2)'!Q45 -> 0.107 | G18: ='18 (2)'!Q32 -> 0.111
D19: Average | E19: =AVERAGE(E17:E18) -> 0.1091428571 | F19: =AVERAGE(F17:F18) -> 0.106 | G19: =AVERAGE(G17:G18) -> 0.11075
C20: Utility Risk Premium
C21: Current Bond Yields | E21: ='19 (1)'!G22 -> 0.0927289 | F21: =E21 -> 0.0927289 | G21: =F21 -> 0.0927289
C22: Projected Bond Yield | E22: ='19 (2)'!G22 -> 0.1009507 | F22: =E22 -> 0.1009507 | G22: =F22 -> 0.1009507
D23: Average | E23: =AVERAGE(E21:E22) -> 0.0968398 | F23: =AVERAGE(F21:F22) -> 0.0968398 | G23: =AVERAGE(G21:G22) -> 0.0968398
C24: Expected Earnings | E24: ='20'!H30 -> 0.1044206995 | F24: ='20'!M32 -> 0.1080615888 | G24: ='20'!H31 -> 0.1000929378
C25: Indicated ROE | E25: =AVERAGE(E11,E15,E19,E23,E24) -> 0.1008153507 | F25: =AVERAGE(F11,F15,F19,F23,F24) -> 0.1004348617 | G25: =AVERAGE(G11,G15,G19,G23,G24) -> 0.1009219223

Sheet Utility Group Criteria
A1: VALUE LINE ELECTRIC UTILITIES
F4: (a) | I4: (b) | L4: (e) | R4: (d)
F5: S&P | I5: Moody's | L5: Value Line | T5: Override:
F6: Credit | I6: Issuer | L6: Safety | N6: Finaneial | R6: Market | T6: "Y" for Incl.
B7: Included | C7: SYM | D7: Company | F7: Rating | I7: Rating | L7: Rank | N7: Strength | P7: Beta | R7: Cap | T7: "X" for Excl. | U7: Comments
A8: =A7+1 -> 1 | B8: =IF(AND(G8<=$G$62,G8>=$G$63,J8<=$J$62,J8>=$J$63,L8>=$L$62,L8<=$L$63,T8<>"X"),"Y",IF(T8="Y","Y","")) ->  | C8: ='Electric Utility Data'!B8 -> AQN | D8: ='Electric Utility Data'!C8 -> Algonquin Pwr & Util | F8: ='Electric Utility Data'!AA8 -> BBB | G8: =IF(F8="NR",0,VLOOKUP(F8,'Ordinal Ratings'!A$8:B$30,2,FALSE)) -> 9 | I8: ='Electric Utility Data'!AB8 -> NR | J8: =IF(I8="NR",0,VLOOKUP(I8,'Ordinal Ratings'!I$8:J$26,2,FALSE)) -> 0 | L8: ='Electric Utility Data'!W8 -> n/a | N8: ='Electric Utility Data'!Y8 -> n/a | P8: ='Electric Utility Data'!X8 -> 0.9 | R8: ='Electric Utility Data'!AC8 -> 9094.340522
A9: =A8+1 -> 2 | C9: ='Electric Utility Data'!B9 -> ALE | D9: ='Electric Utility Data'!C9 -> ALLETE | F9: ='Electric Utility Data'!AA9 -> BBB | G9: =IF(F9="NR",0,VLOOKUP(F9,'Ordinal Ratings'!A$8:B$30,2,FALSE)) -> 9 | I9: ='Electric Utility Data'!AB9 -> Baa1 | J9: =IF(I9="NR",0,VLOOKUP(I9,'Ordinal Ratings'!I$8:J$26,2,FALSE)) -> 8 | L9: ='Electric Utility Data'!W9 -> 2 | N9: ='Electric Utility Data'!Y9 -> A | P9: ='Electric Utility Data'!X9 -> 0.85 | R9: ='Electric Utility Data'!AC9 -> 2800
A10: 3 | B10: Y | C10: ='Electric Utility Data'!B10 -> LNT | D10: ='Electric Utility Data'!C10 -> Alliant Energy | F10: ='Electric Utility Data'!AA10 -> A- | G10: =IF(F10="NR",0,VLOOKUP(F10,'Ordinal Ratings'!A$8:B$30,2,FALSE)) -> 7 | I10: ='Electric Utility Data'!AB10 -> Baa2 | J10: =IF(I10="NR",0,VLOOKUP(I10,'Ordinal Ratings'!I$8:J$26,2,FALSE)) -> 9 | L10: ='Electric Utility Data'!W10 -> 2 | N10: ='Electric Utility Data'!Y10 -> A | P10: ='Electric Utility Data'!X10 -> 0.85 | R10: ='Electric Utility Data'!AC10 -> 13500
A11: 4 | B11: Y | C11: ='Electric Utility Data'!B11 -> AEE | D11: ='Electric Utility Data'!C11 -> Ameren Corp. | F11: ='Electric Utility Data'!AA11 -> BBB+ | G11: =IF(F11="NR",0,VLOOKUP(F11,'Ordinal Ratings'!A$8:B$30,2,FALSE)) -> 8 | I11: ='Electric Utility Data'!AB11 -> Baa1 | J11: =IF(I11="NR",0,VLOOKUP(I11,'Ordinal Ratings'!I$8:J$26,2,FALSE)) -> 8 | L11: ='Electric Utility Data'!W11 -> 2 | N11: ='Electric Utility Data'!Y11 -> A | P11: ='Electric Utility Data'!X11 -> 0.8 | R11: ='Electric Utility Data'!AC11 -> 20000
A12: 5 | B12: Y | C12: ='Electric Utility Data'!B12 -> AEP | D12: ='Electric Utility Data'!C12 -> American Elec Pwr | F12: ='Electric Utility Data'!AA12 -> A- | G12: =IF(F12="NR",0,VLOOKUP(F12,'Ordinal Ratings'!A$8:B$30,2,FALSE)) -> 7 | I12: ='Electric Utility Data'!AB12 -> Baa2 | J12: =IF(I12="NR",0,VLOOKUP(I12,'Ordinal Ratings'!I$8:J$26,2,FALSE)) -> 9 | L12: ='Electric Utility Data'!W12 -> 1 | N12: ='Electric Utility Data'!Y12 -> A+ | P12: ='Electric Utility Data'!X12 -> 0.75 | R12: ='Electric Utility Data'!AC12 -> 39000
A13: 6 | B13: Y | C13: ='Electric Utility Data'!B13 -> AGR | D13: ='Electric Utility Data'!C13 -> Avangrid, Inc. | F13: ='Electric Utility Data'!AA13 -> BBB+ | G13: =IF(F13="NR",0,VLOOKUP(F13,'Ordinal Ratings'!A$8:B$30,2,FALSE)) -> 8 | I13: ='Electric Utility Data'!AB13 -> Baa1 | J13: =IF(I13="NR",0,VLOOKUP(I13,'Ordinal Ratings'!I$8:J$26,2,FALSE)) -> 8 | L13: ='Electric Utility Data'!W13 -> 2 | N13: ='Electric Utility Data'!Y13 -> B++ | P13: ='Electric Utility Data'!X13 -> 0.8 | R13: ='Electric Utility Data'!AC13 -> 15000
A14: 7 | C14: ='Electric Utility Data'!B14 -> AVA | D14: ='Electric Utility Data'!C14 -> Avista Corp. | F14: ='Electric Utility Data'!AA14 -> BBB | G14: =IF(F14="NR",0,VLOOKUP(F14,'Ordinal Ratings'!A$8:B$30,2,FALSE)) -> 9 | I14: ='Electric Utility Data'!AB14 -> Baa2 | J14: =IF(I14="NR",0,VLOOKUP(I14,'Ordinal Ratings'!I$8:J$26,2,FALSE)) -> 9 | L14: ='Electric Utility Data'!W14 -> 2 | N14: ='Electric Utility Data'!Y14 -> B++ | P14: ='Electric Utility Data'!X14 -> 0.9 | R14: ='Electric Utility Data'!AC14 -> 2400
A15: 8 | B15: Y | C15: ='Electric Utility Data'!B15 -> BKH | D15: ='Electric Utility Data'!C15 -> Black Hills Corp. | F15: ='Electric Utility Data'!AA15 -> BBB+ | G15: =IF(F15="NR",0,VLOOKUP(F15,'Ordinal Ratings'!A$8:B$30,2,FALSE)) -> 8 | I15: ='Electric Utility Data'!AB15 -> Baa2 | J15: =IF(I15="NR",0,VLOOKUP(I15,'Ordinal Ratings'!I$8:J$26,2,FALSE)) -> 9 | L15: ='Electric Utility Data'!W15 -> 2 | N15: ='Electric Utility Data'!Y15 -> A | P15: ='Electric Utility Data'!X15 -> 0.95 | R15: ='Electric Utility Data'!AC15 -> 3800
A16: 9 | C16: ='Electric Utility Data'!B16 -> CNP | D16: ='Electric Utility Data'!C16 -> CenterPoint Energy | F16: ='Electric Utility Data'!AA16 -> BBB+ | G16: =IF(F16="NR",0,VLOOKUP(F16,'Ordinal Ratings'!A$8:B$30,2,FALSE)) -> 8 | I16: ='Electric Utility Data'!AB16 -> Baa2 | J16: =IF(I16="NR",0,VLOOKUP(I16,'Ordinal Ratings'!I$8:J$26,2,FALSE)) -> 9 | L16: ='Electric Utility Data'!W16 -> 3 | N16: ='Electric Utility Data'!Y16 -> B+ | P16: ='Electric Utility Data'!X16 -> 1.1 | R16: ='Electric Utility Data'!AC16 -> 11000
A17: 10 | B17: Y | C17: ='Electric Utility Data'!B17 -> CMS | D17: ='Electric Utility Data'!C17 -> CMS Energy Corp. | F17: ='Electric Utility Data'!AA17 -> BBB+ | G17: =IF(F17="NR",0,VLOOKUP(F17,'Ordinal Ratings'!A$8:B$30,2,FALSE)) -> 8 | I17: ='Electric Utility Data'!AB17 -> Baa1 | J17: =IF(I17="NR",0,VLOOKUP(I17,'Ordinal Ratings'!I$8:J$26,2,FALSE)) -> 8 | L17: ='Electric Utility Data'!W17 -> 2 | N17: ='Electric Utility Data'!Y17 -> B++ | P17: ='Electric Utility Data'!X17 -> 0.8 | R17: ='Electric Utility Data'!AC17 -> 17000
A18: 11 | B18: Y | C18: ='Electric Utility Data'!B18 -> ED | D18: ='Electric Utility Data'!C18 -> Consolidated Edison | F18: ='Electric Utility Data'!AA18 -> A- | G18: =IF(F18="NR",0,VLOOKUP(F18,'Ordinal Ratings'!A$8:B$30,2,FALSE)) -> 7 | I18: ='Electric Utility Data'!AB18 -> Baa2 | J18: =IF(I18="NR",0,VLOOKUP(I18,'Ordinal Ratings'!I$8:J$26,2,FALSE)) -> 9 | L18: ='Electric Utility Data'!W18 -> 1 | N18: ='Electric Utility Data'!Y18 -> A+ | P18: ='Electric Utility Data'!X18 -> 0.75 | R18: ='Electric Utility Data'!AC18 -> 25000
A19: 12 | C19: ='Electric Utility Data'!B19 -> D | D19: ='Electric Utility Data'!C19 -> Dominion Energy | F19: ='Electric Utility Data'!AA19 -> BBB+ | G19: =IF(F19="NR",0,VLOOKUP(F19,'Ordinal Ratings'!A$8:B$30,2,FALSE)) -> 8 | I19: ='Electric Utility Data'!AB19 -> Baa2 | J19: =IF(I19="NR",0,VLOOKUP(I19,'Ordinal Ratings'!I$8:J$26,2,FALSE)) -> 9 | L19: ='Electric Utility Data'!W19 -> 2 | N19: ='Electric Utility Data'!Y19 -> B++ | P19: ='Electric Utility Data'!X19 -> 0.8 | R19: ='Electric Utility Data'!AC19 -> 67000 | T19: X | U19: Dividend cut announced early July 2020; match Baudino group.
A20: 13 | B20: Y | C20: ='Electric Utility Data'!B20 -> DTE | D20: ='Electric Utility Data'!C20 -> DTE Energy Co. | F20: ='Electric Utility Data'!AA20 -> BBB+ | G20: =IF(F20="NR",0,VLOOKUP(F20,'Ordinal Ratings'!A$8:B$30,2,FALSE)) -> 8 | I20: ='Electric Utility Data'!AB20 -> Baa2 | J20: =IF(I20="NR",0,VLOOKUP(I20,'Ordinal Ratings'!I$8:J$26,2,FALSE)) -> 9 | L20: ='Electric Utility Data'!W20 -> 2 | N20: ='Electric Utility Data'!Y20 -> A | P20: ='Electric Utility Data'!X20 -> 0.9 | R20: ='Electric Utility Data'!AC20 -> 23000
A21: 14 | B21: Y | C21: ='Electric Utility Data'!B21 -> DUK | D21: ='Electric Utility Data'!C21 -> Duke Energy Corp. | F21: ='Electric Utility Data'!AA21 -> A- | G21: =IF(F21="NR",0,VLOOKUP(F21,'Ordinal Ratings'!A$8:B$30,2,FALSE)) -> 7 | I21: ='Electric Utility Data'!AB21 -> Baa1 | J21: =IF(I21="NR",0,VLOOKUP(I21,'Ordinal Ratings'!I$8:J$26,2,FALSE)) -> 8 | L21: ='Electric Utility Data'!W21 -> 2 | N21: ='Electric Utility Data'!Y21 -> A | P21: ='Electric Utility Data'!X21 -> 0.85 | R21: ='Electric Utility Data'!AC21 -> 62000
A22: 15 | C22: ='Electric Utility Data'!B22 -> EIX | D22: ='Electric Utility Data'!C22 -> Edison International | F22: ='Electric Utility Data'!AA22 -> BBB | G22: =IF(F22="NR",0,VLOOKUP(F22,'Ordinal Ratings'!A$8:B$30,2,FALSE)) -> 9 | I22: ='Electric Utility Data'!AB22 -> Baa3 | J22: =IF(I22="NR",0,VLOOKUP(I22,'Ordinal Ratings'!I$8:J$26,2,FALSE)) -> 10 | L22: ='Electric Utility Data'!W22 -> 3 | N22: ='Electric Utility Data'!Y22 -> B+ | P22: ='Electric Utility Data'!X22 -> 0.9 | R22: ='Electric Utility Data'!AC22 -> 20000
A23: 16 | C23: ='Electric Utility Data'!B23 -> EMA | D23: ='Electric Utility Data'!C23 -> Emera Inc. | F23: ='Electric Utility Data'!AA23 -> BBB | G23: =IF(F23="NR",0,VLOOKUP(F23,'Ordinal Ratings'!A$8:B$30,2,FALSE)) -> 9 | I23: ='Electric Utility Data'!AB23 -> Baa3 | J23: =IF(I23="NR",0,VLOOKUP(I23,'Ordinal Ratings'!I$8:J$26,2,FALSE)) -> 10 | L23: ='Electric Utility Data'!W23 -> 2 | N23: ='Electric Utility Data'!Y23 -> B+ | P23: ='Electric Utility Data'!X23 -> 0.75 | R23: ='Electric Utility Data'!AC23 -> 13100
A24: 17 | B24: Y | C24: ='Electric Utility Data'!B24 -> ETR | D24: ='Electric Utility Data'!C24 -> Entergy Corp. | F24: ='Electric Utility Data'!AA24 -> BBB+ | G24: =IF(F24="NR",0,VLOOKUP(F24,'Ordinal Ratings'!A$8:B$30,2,FALSE)) -> 8 | I24: ='Electric Utility Data'!AB24 -> Baa2 | J24: =IF(I24="NR",0,VLOOKUP(I24,'Ordinal Ratings'!I$8:J$26,2,FALSE)) -> 9 | L24: ='Electric Utility Data'!W24 -> 2 | N24: ='Electric Utility Data'!Y24 -> B++ | P24: ='Electric Utility Data'!X24 -> 0.95 | R24: ='Electric Utility Data'!AC24 -> 20000
A25: 18 | B25: Y | C25: ='Electric Utility Data'!B25 -> EVRG | D25: ='Electric Utility Data'!C25 -> Evergy Inc. | F25: ='Electric Utility Data'!AA25 -> A- | G25: =IF(F25="NR",0,VLOOKUP(F25,'Ordinal Ratings'!A$8:B$30,2,FALSE)) -> 7 | I25: ='Electric Utility Data'!AB25 -> Baa2 | J25: =IF(I25="NR",0,VLOOKUP(I25,'Ordinal Ratings'!I$8:J$26,2,FALSE)) -> 9 | L25: ='Electric Utility Data'!W25 -> 2 | N25: ='Electric Utility Data'!Y25 -> B++ | P25: ='Electric Utility Data'!X25 -> 1 | R25: ='Electric Utility Data'!AC25 -> 12000
A26: 19 | B26: Y | C26: ='Electric Utility Data'!B26 -> ES | D26: ='Electric Utility Data'!C26 -> Eversource Energy | F26: ='Electric Utility Data'!AA26 -> A- | G26: =IF(F26="NR",0,VLOOKUP(F26,'Ordinal Ratings'!A$8:B$30,2,FALSE)) -> 7 | I26: ='Electric Utility Data'!AB26 -> Baa1 | J26: =IF(I26="NR",0,VLOOKUP(I26,'Ordinal Ratings'!I$8:J$26,2,FALSE)) -> 8 | L26: ='Electric Utility Data'!W26 -> 1 | N26: ='Electric Utility Data'!Y26 -> A | P26: ='Electric Utility Data'!X26 -> 0.9 | R26: ='Electric Utility Data'!AC26 -> 30000
A27: 20 | B27: Y | C27: ='Electric Utility Data'!B27 -> EXC | D27: ='Electric Utility Data'!C27 -> Exelon Corp. | F27: ='Electric Utility Data'!AA27 -> BBB+ | G27: =IF(F27="NR",0,VLOOKUP(F27,'Ordinal Ratings'!A$8:B$30,2,FALSE)) -> 8 | I27: ='Electric Utility Data'!AB27 -> Baa2 | J27: =IF(I27="NR",0,VLOOKUP(I27,'Ordinal Ratings'!I$8:J$26,2,FALSE)) -> 9 | L27: ='Electric Utility Data'!W27 -> 3 | N27: ='Electric Utility Data'!Y27 -> B+ | P27: ='Electric Utility Data'!X27 -> 0.95 | R27: ='Electric Utility Data'!AC27 -> 37000 | T27: Y | U27: Match original/Baudino groups.
A28: 21 | C28: ='Electric Utility Data'!B28 -> FE | D28: ='Electric Utility Data'!C28 -> FirstEnergy Corp. | F28: ='Electric Utility Data'!AA28 -> BBB | G28: =IF(F28="NR",0,VLOOKUP(F28,'Ordinal Ratings'!A$8:B$30,2,FALSE)) -> 9 | I28: ='Electric Utility Data'!AB28 -> Baa3 | J28: =IF(I28="NR",0,VLOOKUP(I28,'Ordinal Ratings'!I$8:J$26,2,FALSE)) -> 10 | L28: ='Electric Utility Data'!W28 -> 3 | N28: ='Electric Utility Data'!Y28 -> B+ | P28: ='Electric Utility Data'!X28 -> 0.85 | R28: ='Electric Utility Data'!AC28 -> 16000
A29: 22 | B29: Y | C29: ='Electric Utility Data'!B29 -> FTS | D29: ='Electric Utility Data'!C29 -> Fortis Inc. | F29: ='Electric Utility Data'!AA29 -> A- | G29: =IF(F29="NR",0,VLOOKUP(F29,'Ordinal Ratings'!A$8:B$30,2,FALSE)) -> 7 | I29: ='Electric Utility Data'!AB29 -> Baa3 | J29: =IF(I29="NR",0,VLOOKUP(I29,'Ordinal Ratings'!I$8:J$26,2,FALSE)) -> 10 | L29: ='Electric Utility Data'!W29 -> 2 | N29: ='Electric Utility Data'!Y29 -> B++ | P29: ='Electric Utility Data'!X29 -> 0.8 | R29: ='Electric Utility Data'!AC29 -> 24000
A30: 23 | C30: ='Electric Utility Data'!B30 -> HE | D30: ='Electric Utility Data'!C30 -> Hawaiian Elec. | F30: ='Electric Utility Data'!AA30 -> BBB- | G30: =IF(F30="NR",0,VLOOKUP(F30,'Ordinal Ratings'!A$8:B$30,2,FALSE)) -> 10 | I30: ='Electric Utility Data'!AB30 -> Baa2 | J30: =IF(I30="NR",0,VLOOKUP(I30,'Ordinal Ratings'!I$8:J$26,2,FALSE)) -> 9 | L30: ='Electric Utility Data'!W30 -> 2 | N30: ='Electric Utility Data'!Y30 -> A | P30: ='Electric Utility Data'!X30 -> 0.8 | R30: ='Electric Utility Data'!AC30 -> 4000
A31: 24 | C31: ='Electric Utility Data'!B31 -> IDA | D31: ='Electric Utility Data'!C31 -> IDACORP, Inc. | F31: ='Electric Utility Data'!AA31 -> BBB | G31: =IF(F31="NR",0,VLOOKUP(F31,'Ordinal Ratings'!A$8:B$30,2,FALSE)) -> 9 | I31: ='Electric Utility Data'!AB31 -> Baa1 | J31: =IF(I31="NR",0,VLOOKUP(I31,'Ordinal Ratings'!I$8:J$26,2,FALSE)) -> 8 | L31: ='Electric Utility Data'!W31 -> 2 | N31: ='Electric Utility Data'!Y31 -> A | P31: ='Electric Utility Data'!X31 -> 0.8 | R31: ='Electric Utility Data'!AC31 -> 4600
A32: 25 | C32: ='Electric Utility Data'!B32 -> MGEE | D32: ='Electric Utility Data'!C32 -> MGE Energy | F32: ='Electric Utility Data'!AA32 -> NR | G32: =IF(F32="NR",0,VLOOKUP(F32,'Ordinal Ratings'!A$8:B$30,2,FALSE)) -> 0 | I32: ='Electric Utility Data'!AB32 -> NR | J32: =IF(I32="NR",0,VLOOKUP(I32,'Ordinal Ratings'!I$8:J$26,2,FALSE)) -> 0 | L32: ='Electric Utility Data'!W32 -> 1 | N32: ='Electric Utility Data'!Y32 -> A+ | P32: ='Electric Utility Data'!X32 -> 0.7 | R32: ='Electric Utility Data'!AC32 -> 2400
A33: 26 | B33: Y | C33: ='Electric Utility Data'!B33 -> NEE | D33: ='Electric Utility Data'!C33 -> NextEra Energy, Inc. | F33: ='Electric Utility Data'!AA33 -> A- | G33: =IF(F33="NR",0,VLOOKUP(F33,'Ordinal Ratings'!A$8:B$30,2,FALSE)) -> 7 | I33: ='Electric Utility Data'!AB33 -> Baa1 | J33: =IF(I33="NR",0,VLOOKUP(I33,'Ordinal Ratings'!I$8:J$26,2,FALSE)) -> 8 | L33: ='Electric Utility Data'!W33 -> 1 | N33: ='Electric Utility Data'!Y33 -> A+ | P33: ='Electric Utility Data'!X33 -> 0.85 | R33: ='Electric Utility Data'!AC33 -> 136000
A34: 27 | C34: ='Electric Utility Data'!B34 -> NWE | D34: ='Electric Utility Data'!C34 -> NorthWestern Corp. | F34: ='Electric Utility Data'!AA34 -> BBB | G34: =IF(F34="NR",0,VLOOKUP(F34,'Ordinal Ratings'!A$8:B$30,2,FALSE)) -> 9 | I34: ='Electric Utility Data'!AB34 -> Baa2 | J34: =IF(I34="NR",0,VLOOKUP(I34,'Ordinal Ratings'!I$8:J$26,2,FALSE)) -> 9 | L34: ='Electric Utility Data'!W34 -> 2 | N34: ='Electric Utility Data'!Y34 -> B++ | P34: ='Electric Utility Data'!X34 -> 0.9 | R34: ='Electric Utility Data'!AC34 -> 2700
A35: 28 | B35: Y | C35: ='Electric Utility Data'!B35 -> OGE | D35: ='Electric Utility Data'!C35 -> OGE Energy Corp. | F35: ='Electric Utility Data'!AA35 -> BBB+ | G35: =IF(F35="NR",0,VLOOKUP(F35,'Ordinal Ratings'!A$8:B$30,2,FALSE)) -> 8 | I35: ='Electric Utility Data'!AB35 -> Baa1 | J35: =IF(I35="NR",0,VLOOKUP(I35,'Ordinal Ratings'!I$8:J$26,2,FALSE)) -> 8 | L35: ='Electric Utility Data'!W35 -> 2 | N35: ='Electric Utility Data'!Y35 -> A | P35: ='Electric Utility Data'!X35 -> 1.05 | R35: ='Electric Utility Data'!AC35 -> 6400
A36: 29 | C36: ='Electric Utility Data'!B36 -> OTTR | D36: ='Electric Utility Data'!C36 -> Otter Tail Corp. | F36: ='Electric Utility Data'!AA36 -> BBB | G36: =IF(F36="NR",0,VLOOKUP(F36,'Ordinal Ratings'!A$8:B$30,2,FALSE)) -> 9 | I36: ='Electric Utility Data'!AB36 -> Baa2 | J36: =IF(I36="NR",0,VLOOKUP(I36,'Ordinal Ratings'!I$8:J$26,2,FALSE)) -> 9 | L36: ='Electric Utility Data'!W36 -> 2 | N36: ='Electric Utility Data'!Y36 -> A | P36: ='Electric Utility Data'!X36 -> 0.85 | R36: ='Electric Utility Data'!AC36 -> 1600
A37: 30 | C37: ='Electric Utility Data'!B37 -> PNW | D37: ='Electric Utility Data'!C37 -> Pinnacle West Capital | F37: ='Electric Utility Data'!AA37 -> A- | G37: =IF(F37="NR",0,VLOOKUP(F37,'Ordinal Ratings'!A$8:B$30,2,FALSE)) -> 7 | I37: ='Electric Utility Data'!AB37 -> A3 | J37: =IF(I37="NR",0,VLOOKUP(I37,'Ordinal Ratings'!I$8:J$26,2,FALSE)) -> 7 | L37: ='Electric Utility Data'!W37 -> 1 | N37: ='Electric Utility Data'!Y37 -> A+ | P37: ='Electric Utility Data'!X37 -> 0.85 | R37: ='Electric Utility Data'!AC37 -> 8900
A38: 31 | C38: ='Electric Utility Data'!B38 -> PNM | D38: ='Electric Utility Data'!C38 -> PNM Resources | F38: ='Electric Utility Data'!AA38 -> BBB | G38: =IF(F38="NR",0,VLOOKUP(F38,'Ordinal Ratings'!A$8:B$30,2,FALSE)) -> 9 | I38: ='Electric Utility Data'!AB38 -> Baa3 | J38: =IF(I38="NR",0,VLOOKUP(I38,'Ordinal Ratings'!I$8:J$26,2,FALSE)) -> 10 | L38: ='Electric Utility Data'!W38 -> 3 | N38: ='Electric Utility Data'!Y38 -> B+ | P38: ='Electric Utility Data'!X38 -> 0.95 | R38: ='Electric Utility Data'!AC38 -> 3100
A39: 32 | C39: ='Electric Utility Data'!B39 -> POR | D39: ='Electric Utility Data'!C39 -> Portland General Elec. | F39: ='Electric Utility Data'!AA39 -> BBB+ | G39: =IF(F39="NR",0,VLOOKUP(F39,'Ordinal Ratings'!A$8:B$30,2,FALSE)) -> 8 | I39: ='Electric Utility Data'!AB39 -> A3 | J39: =IF(I39="NR",0,VLOOKUP(I39,'Ordinal Ratings'!I$8:J$26,2,FALSE)) -> 7 | L39: ='Electric Utility Data'!W39 -> 2 | N39: ='Electric Utility Data'!Y39 -> B++ | P39: ='Electric Utility Data'!X39 -> 0.85 | R39: ='Electric Utility Data'!AC39 -> 3800
A40: 33 | C40: ='Electric Utility Data'!B40 -> PPL | D40: ='Electric Utility Data'!C40 -> PPL Corp. | F40: ='Electric Utility Data'!AA40 -> A- | G40: =IF(F40="NR",0,VLOOKUP(F40,'Ordinal Ratings'!A$8:B$30,2,FALSE)) -> 7 | I40: ='Electric Utility Data'!AB40 -> Baa2 | J40: =IF(I40="NR",0,VLOOKUP(I40,'Ordinal Ratings'!I$8:J$26,2,FALSE)) -> 9 | L40: ='Electric Utility Data'!W40 -> 2 | N40: ='Electric Utility Data'!Y40 -> B++ | P40: ='Electric Utility Data'!X40 -> 1.1 | R40: ='Electric Utility Data'!AC40 -> 20000 | T40: X | U40: Sale of UK utility operations; match Baudino group.
A41: 34 | B41: Y | C41: ='Electric Utility Data'!B41 -> PEG | D41: ='Electric Utility Data'!C41 -> Pub Sv Enterprise Grp. | F41: ='Electric Utility Data'!AA41 -> BBB+ | G41: =IF(F41="NR",0,VLOOKUP(F41,'Ordinal Ratings'!A$8:B$30,2,FALSE)) -> 8 | I41: ='Electric Utility Data'!AB41 -> Baa1 | J41: =IF(I41="NR",0,VLOOKUP(I41,'Ordinal Ratings'!I$8:J$26,2,FALSE)) -> 8 | L41: ='Electric Utility Data'!W41 -> 1 | N41: ='Electric Utility Data'!Y41 -> A++ | P41: ='Electric Utility Data'!X41 -> 0.9 | R41: ='Electric Utility Data'!AC41 -> 28000
A42: 35 | B42: Y | C42: ='Electric Utility Data'!B42 -> SRE | D42: ='Electric Utility Data'!C42 -> Sempra Energy | F42: ='Electric Utility Data'!AA42 -> BBB+ | G42: =IF(F42="NR",0,VLOOKUP(F42,'Ordinal Ratings'!A$8:B$30,2,FALSE)) -> 8 | I42: ='Electric Utility Data'!AB42 -> Baa2 | J42: =IF(I42="NR",0,VLOOKUP(I42,'Ordinal Ratings'!I$8:J$26,2,FALSE)) -> 9 | L42: ='Electric Utility Data'!W42 -> 2 | N42: ='Electric Utility Data'!Y42 -> A | P42: ='Electric Utility Data'!X42 -> 0.95 | R42: ='Electric Utility Data'!AC42 -> 35000
A43: 36 | B43: Y | C43: ='Electric Utility Data'!B43 -> SO | D43: ='Electric Utility Data'!C43 -> Southern Company | F43: ='Electric Utility Data'!AA43 -> A- | G43: =IF(F43="NR",0,VLOOKUP(F43,'Ordinal Ratings'!A$8:B$30,2,FALSE)) -> 7 | I43: ='Electric Utility Data'!AB43 -> Baa2 | J43: =IF(I43="NR",0,VLOOKUP(I43,'Ordinal Ratings'!I$8:J$26,2,FALSE)) -> 9 | L43: ='Electric Utility Data'!W43 -> 2 | N43: ='Electric Utility Data'!Y43 -> A | P43: ='Electric Utility Data'!X43 -> 0.9 | R43: ='Electric Utility Data'!AC43 -> 57000
A44: 37 | B44: Y | C44: ='Electric Utility Data'!B44 -> WEC | D44: ='Electric Utility Data'!C44 -> WEC Energy Group | F44: ='Electric Utility Data'!AA44 -> A- | G44: =IF(F44="NR",0,VLOOKUP(F44,'Ordinal Ratings'!A$8:B$30,2,FALSE)) -> 7 | I44: ='Electric Utility Data'!AB44 -> Baa1 | J44: =IF(I44="NR",0,VLOOKUP(I44,'Ordinal Ratings'!I$8:J$26,2,FALSE)) -> 8 | L44: ='Electric Utility Data'!W44 -> 1 | N44: ='Electric Utility Data'!Y44 -> A+ | P44: ='Electric Utility Data'!X44 -> 0.8 | R44: ='Electric Utility Data'!AC44 -> 30000
A45: 38 | B45: Y | C45: ='Electric Utility Data'!B45 -> XEL | D45: ='Electric Utility Data'!C45 -> Xcel Energy Inc. | F45: ='Electric Utility Data'!AA45 -> A- | G45: =IF(F45="NR",0,VLOOKUP(F45,'Ordinal Ratings'!A$8:B$30,2,FALSE)) -> 7 | I45: ='Electric Utility Data'!AB45 -> Baa1 | J45: =IF(I45="NR",0,VLOOKUP(I45,'Ordinal Ratings'!I$8:J$26,2,FALSE)) -> 8 | L45: ='Electric Utility Data'!W45 -> 1 | N45: ='Electric Utility Data'!Y45 -> A+ | P45: ='Electric Utility Data'!X45 -> 0.8 | R45: ='Electric Utility Data'!AC45 -> 34000
A48: (a) | B48: ='Electric Utility Data'!B51 -> Issuer credit rating from www.standardandpoors.com (retrieved Oct. 5, 2020).
A49: (b) | B49: ='Electric Utility Data'!B52 -> Long-term rating from www.moodys.com (retrieved Oct. 5, 2020).
A50: (c) | B50: ='Electric Utility Data'!B50 -> The Value Line Investment Survey (Jul. 24, Aug. 14 and Sep. 11, 2020).
A51: (d) | B51: ='Electric Utility Data'!B53 -> www.finance.yahoo.com (retreived Oct. 5, 2020).
B53: =COUNTIF(B8:B45,"Y") -> 21 | D53: ="S&P corporate credit rating of "&VLOOKUP(G62,'Ordinal Ratings'!B$8:C$30,2,FALSE)&", "&F61&", or "&VLOOKUP(G63,'Ordinal Ratings'!B$8:C$30,2,FALSE) -> S&P corporate credit rating of BBB+, A-, or A
D54: ="Moody's issure rating of "&VLOOKUP(J62,'Ordinal Ratings'!J$8:K$30,2,FALSE)&", "&I61&", or "&VLOOKUP(J63,'Ordinal Ratings'!J$8:K$30,2,FALSE) -> Moody's issure rating of Baa3, Baa2, or Baa1
D55: Safety Rank of "2" or "3"
D60: Proxy Group Criteria | F60: S&P | I60: Moodys | L60: Safety
D61: Guideline Rating | F61: A- | G61: =IF(F61="NR",0,VLOOKUP(F61,'Ordinal Ratings'!A$8:B$30,2,FALSE)) -> 7 | I61: Baa2 | J61: =IF(I61="NR",0,VLOOKUP(I61,'Ordinal Ratings'!I$8:J$26,2,FALSE)) -> 9 | L61: 1
D62: Low Rating | F62: =VLOOKUP(G62,'Ordinal Ratings'!$B$8:$C$28,2,FALSE) -> BBB+ | G62: =VLOOKUP(F$61,'Ordinal Ratings'!A$8:B$30,2,FALSE)+1 -> 8 | I62: =VLOOKUP(J62,'Ordinal Ratings'!$J$8:$K$28,2,FALSE) -> Baa3 | J62: =VLOOKUP(I$61,'Ordinal Ratings'!I$8:J$26,2,FALSE)+1 -> 10 | L62: =L61 -> 1
D63: High Rating | F63: =VLOOKUP(G63,'Ordinal Ratings'!$B$8:$C$28,2,FALSE) -> A | G63: =VLOOKUP(F$61,'Ordinal Ratings'!A$8:B$30,2,FALSE)-1 -> 6 | I63: =VLOOKUP(J63,'Ordinal Ratings'!$J$8:$K$28,2,FALSE) -> Baa1 | J63: =VLOOKUP(I$61,'Ordinal Ratings'!I$8:J$26,2,FALSE)-1 -> 8 | L63: =L61+1 -> 2
C69: =IF($B8="Y",C8,"zzz") -> zzz | D69: zzz
C70: zzz | D70: zzz
C71: LNT | D71: Alliant Energy
C72: AEE | D72: Ameren Corp.
C73: AEP | D73: American Elec Pwr
C74: AGR | D74: Avangrid, Inc.
C75: zzz | D75: zzz
C76: BKH | D76: Black Hills Corp.
C77: zzz | D77: zzz
C78: CMS | D78: CMS Energy Corp.
C79: ED | D79: Consolidated Edison
C80: zzz | D80: zzz
C81: DTE | D81: DTE Energy Co.
C82: DUK | D82: Duke Energy Corp.
C83: zzz | D83: zzz
C84: zzz | D84: zzz
C85: ETR | D85: Entergy Corp.
C86: EVRG | D86: Evergy Inc.
C87: ES | D87: Eversource Energy
C88: EXC | D88: Exelon Corp.
C89: zzz | D89: zzz
C90: FTS | D90: Fortis Inc.
C91: zzz | D91: zzz
C92: zzz | D92: zzz
C93: zzz | D93: zzz
C94: NEE | D94: NextEra Energy, Inc.
C95: zzz | D95: zzz
C96: OGE | D96: OGE Energy Corp.
C97: zzz | D97: zzz
C98: zzz | D98: zzz
C99: =IF(#REF!="Y",#REF!,"zzz") ->  | D99: =IF(#REF!="Y",#REF!,"zzz") -> 
C100: =IF($B38="Y",C38,"zzz") -> zzz | D100: zzz
C101: zzz | D101: zzz
C102: zzz | D102: zzz
C103: PEG | D103: Pub Sv Enterprise Grp.
C104: SRE | D104: Sempra Energy
C105: =IF(#REF!="Y",#REF!,"zzz") ->  | D105: =IF(#REF!="Y",#REF!,"zzz") -> 
C106: =IF($B43="Y",C43,"zzz") -> SO | D106: =IF($B43="Y",D43,"zzz") -> Southern Company
C107: =IF(#REF!="Y",#REF!,"zzz") ->  | D107: =IF(#REF!="Y",#REF!,"zzz") -> 
C108: =IF($B44="Y",C44,"zzz") -> WEC | D108: =IF($B44="Y",D44,"zzz") -> WEC Energy Group
C109: =IF(#REF!="Y",#REF!,"zzz") ->  | D109: =IF(#REF!="Y",#REF!,"zzz") -> 
C110: =IF($B45="Y",C45,"zzz") -> XEL | D110: =IF($B45="Y",D45,"zzz") -> Xcel Energy Inc.
C111: =IF(#REF!="Y",#REF!,"zzz") ->  | D111: =IF(#REF!="Y",#REF!,"zzz") -> 

Sheet Utility Group
B2: SYM | C2: Company
A3: =A2+1 -> 1 | B3: ='Utility Group Criteria'!C71 -> LNT | C3: ='Utility Group Criteria'!D71 -> Alliant Energy
A4: =A3+1 -> 2 | B4: ='Utility Group Criteria'!C72 -> AEE | C4: ='Utility Group Criteria'!D72 -> Ameren Corp.
A5: 3 | B5: ='Utility Group Criteria'!C73 -> AEP | C5: ='Utility Group Criteria'!D73 -> American Elec Pwr
A6: 4 | B6: ='Utility Group Criteria'!C74 -> AGR | C6: ='Utility Group Criteria'!D74 -> Avangrid, Inc.
A7: 5 | B7: ='Utility Group Criteria'!C76 -> BKH | C7: ='Utility Group Criteria'!D76 -> Black Hills Corp.
A8: 6 | B8: ='Utility Group Criteria'!C78 -> CMS | C8: ='Utility Group Criteria'!D78 -> CMS Energy Corp.
A9: 7 | B9: ='Utility Group Criteria'!C79 -> ED | C9: ='Utility Group Criteria'!D79 -> Consolidated Edison
A10: 8 | B10: ='Utility Group Criteria'!C81 -> DTE | C10: ='Utility Group Criteria'!D81 -> DTE Energy Co.
A11: 9 | B11: ='Utility Group Criteria'!C82 -> DUK | C11: ='Utility Group Criteria'!D82 -> Duke Energy Corp.
A12: 10 | B12: ='Utility Group Criteria'!C85 -> ETR | C12: ='Utility Group Criteria'!D85 -> Entergy Corp.
A13: 11 | B13: ='Utility Group Criteria'!C86 -> EVRG | C13: ='Utility Group Criteria'!D86 -> Evergy Inc.
A14: 12 | B14: ='Utility Group Criteria'!C87 -> ES | C14: ='Utility Group Criteria'!D87 -> Eversource Energy
A15: 13 | B15: ='Utility Group Criteria'!C88 -> EXC | C15: ='Utility Group Criteria'!D88 -> Exelon Corp.
A16: 14 | B16: ='Utility Group Criteria'!C90 -> FTS | C16: ='Utility Group Criteria'!D90 -> Fortis Inc.
A17: 15 | B17: ='Utility Group Criteria'!C94 -> NEE | C17: ='Utility Group Criteria'!D94 -> NextEra Energy, Inc.
A18: 16 | B18: ='Utility Group Criteria'!C96 -> OGE | C18: ='Utility Group Criteria'!D96 -> OGE Energy Corp.
A19: 17 | B19: ='Utility Group Criteria'!C103 -> PEG | C19: ='Utility Group Criteria'!D103 -> Pub Sv Enterprise Grp.
A20: 18 | B20: ='Utility Group Criteria'!C104 -> SRE | C20: ='Utility Group Criteria'!D104 -> Sempra Energy
A21: 19 | B21: ='Utility Group Criteria'!C106 -> SO | C21: ='Utility Group Criteria'!D106 -> Southern Company
A22: 20 | B22: ='Utility Group Criteria'!C108 -> WEC | C22: ='Utility Group Criteria'!D108 -> WEC Energy Group
A23: 21 | B23: ='Utility Group Criteria'!C110 -> XEL | C23: ='Utility Group Criteria'!D110 -> Xcel Energy Inc.
A24: 22 | B24: ='Utility Group Criteria'!C80 -> zzz | C24: ='Utility Group Criteria'!D80 -> zzz
A25: 23 | B25: ='Utility Group Criteria'!C102 -> zzz | C25: ='Utility Group Criteria'!D102 -> zzz
A26: 24 | B26: ='Utility Group Criteria'!C69 -> zzz | C26: ='Utility Group Criteria'!D69 -> zzz
A27: 25 | B27: ='Utility Group Criteria'!C70 -> zzz | C27: ='Utility Group Criteria'!D70 -> zzz
A28: 26 | B28: ='Utility Group Criteria'!C75 -> zzz | C28: ='Utility Group Criteria'!D75 -> zzz
A29: 27 | B29: ='Utility Group Criteria'!C77 -> zzz | C29: ='Utility Group Criteria'!D77 -> zzz
A30: 28 | B30: ='Utility Group Criteria'!C83 -> zzz | C30: ='Utility Group Criteria'!D83 -> zzz
A31: 29 | B31: ='Utility Group Criteria'!C84 -> zzz | C31: ='Utility Group Criteria'!D84 -> zzz
A32: 30 | B32: ='Utility Group Criteria'!C89 -> zzz | C32: ='Utility Group Criteria'!D89 -> zzz
A33: 31 | B33: ='Utility Group Criteria'!C91 -> zzz | C33: ='Utility Group Criteria'!D91 -> zzz
A34: 32 | B34: ='Utility Group Criteria'!C92 -> zzz | C34: ='Utility Group Criteria'!D92 -> zzz
A35: 33 | B35: ='Utility Group Criteria'!C95 -> zzz | C35: ='Utility Group Criteria'!D95 -> zzz
A36: 34 | B36: ='Utility Group Criteria'!C97 -> zzz | C36: ='Utility Group Criteria'!D97 -> zzz
A37: 35 | B37: ='Utility Group Criteria'!C100 -> zzz | C37: ='Utility Group Criteria'!D100 -> zzz
A38: 36 | B38: ='Utility Group Criteria'!C93 -> zzz | C38: ='Utility Group Criteria'!D93 -> zzz
A39: 37 | B39: ='Utility Group Criteria'!C98 -> zzz | C39: ='Utility Group Criteria'!D98 -> zzz
A40: 38 | B40: ='Utility Group Criteria'!C101 -> zzz | C40: ='Utility Group Criteria'!D101 -> zzz
A41: 39 | B41: ='Utility Group Criteria'!C111 ->  | C41: ='Utility Group Criteria'!D111 -> 
A42: 40 | B42: ='Utility Group Criteria'!C99 ->  | C42: ='Utility Group Criteria'!D99 -> 

Sheet Proxy Group Risk Measures
A1: RISK MEASURES
A3: ELECTRIC GROUP
D4: (a) | G4: (b) | J4: (c) | Q4: (d)
J5: Value Line
D6: Credit Ratings | J6: Safety | L6: Financial | Q6: Market
B7: Company | D7: S&P | G7: Moody's | J7: Rank | L7: Strength | O7: Beta | Q7: Cap
A8: =A7+1 -> 1 | B8: =VLOOKUP('Utility Group'!$B3,vldatabase,2,FALSE) -> Alliant Energy | D8: =VLOOKUP('Utility Group'!$B3,vldatabase,26,FALSE) -> A- | E8: =VLOOKUP(D8,'Ordinal Ratings'!A$8:C$30,2,FALSE) -> 7 | G8: =VLOOKUP('Utility Group'!$B3,vldatabase,27,FALSE) -> Baa2 | H8: =VLOOKUP(G8,'Ordinal Ratings'!I$9:K$28,2,FALSE) -> 9 | J8: =VLOOKUP('Utility Group'!$B3,vldatabase,22,FALSE) -> 2 | L8: =VLOOKUP('Utility Group'!$B3,vldatabase,24,FALSE) -> A | M8: =VLOOKUP(L8,'Ordinal Ratings'!E$8:F$18,2,FALSE) -> 3 | O8: =VLOOKUP('Utility Group'!$B3,vldatabase,23,FALSE) -> 0.85 | Q8: =VLOOKUP('Utility Group'!$B3,vldatabase,28,FALSE) -> 13500
A9: =A8+1 -> 2 | B9: =VLOOKUP('Utility Group'!$B4,vldatabase,2,FALSE) -> Ameren Corp. | D9: =VLOOKUP('Utility Group'!$B4,vldatabase,26,FALSE) -> BBB+ | E9: =VLOOKUP(D9,'Ordinal Ratings'!A$8:C$30,2,FALSE) -> 8 | G9: =VLOOKUP('Utility Group'!$B4,vldatabase,27,FALSE) -> Baa1 | H9: =VLOOKUP(G9,'Ordinal Ratings'!I$9:K$28,2,FALSE) -> 8 | J9: =VLOOKUP('Utility Group'!$B4,vldatabase,22,FALSE) -> 2 | L9: =VLOOKUP('Utility Group'!$B4,vldatabase,24,FALSE) -> A | M9: =VLOOKUP(L9,'Ordinal Ratings'!E$8:F$18,2,FALSE) -> 3 | O9: =VLOOKUP('Utility Group'!$B4,vldatabase,23,FALSE) -> 0.8 | Q9: =VLOOKUP('Utility Group'!$B4,vldatabase,28,FALSE) -> 20000
A10: 3 | B10: =VLOOKUP('Utility Group'!$B5,vldatabase,2,FALSE) -> American Elec Pwr | D10: =VLOOKUP('Utility Group'!$B5,vldatabase,26,FALSE) -> A- | E10: =VLOOKUP(D10,'Ordinal Ratings'!A$8:C$30,2,FALSE) -> 7 | G10: =VLOOKUP('Utility Group'!$B5,vldatabase,27,FALSE) -> Baa2 | H10: =VLOOKUP(G10,'Ordinal Ratings'!I$9:K$28,2,FALSE) -> 9 | J10: =VLOOKUP('Utility Group'!$B5,vldatabase,22,FALSE) -> 1 | L10: =VLOOKUP('Utility Group'!$B5,vldatabase,24,FALSE) -> A+ | M10: =VLOOKUP(L10,'Ordinal Ratings'!E$8:F$18,2,FALSE) -> 2 | O10: =VLOOKUP('Utility Group'!$B5,vldatabase,23,FALSE) -> 0.75 | Q10: =VLOOKUP('Utility Group'!$B5,vldatabase,28,FALSE) -> 39000
A11: 4 | B11: =VLOOKUP('Utility Group'!$B6,vldatabase,2,FALSE) -> Avangrid, Inc. | D11: =VLOOKUP('Utility Group'!$B6,vldatabase,26,FALSE) -> BBB+ | E11: =VLOOKUP(D11,'Ordinal Ratings'!A$8:C$30,2,FALSE) -> 8 | G11: =VLOOKUP('Utility Group'!$B6,vldatabase,27,FALSE) -> Baa1 | H11: =VLOOKUP(G11,'Ordinal Ratings'!I$9:K$28,2,FALSE) -> 8 | J11: =VLOOKUP('Utility Group'!$B6,vldatabase,22,FALSE) -> 2 | L11: =VLOOKUP('Utility Group'!$B6,vldatabase,24,FALSE) -> B++ | M11: =VLOOKUP(L11,'Ordinal Ratings'!E$8:F$18,2,FALSE) -> 4 | O11: =VLOOKUP('Utility Group'!$B6,vldatabase,23,FALSE) -> 0.8 | Q11: =VLOOKUP('Utility Group'!$B6,vldatabase,28,FALSE) -> 15000
A12: 5 | B12: =VLOOKUP('Utility Group'!$B7,vldatabase,2,FALSE) -> Black Hills Corp. | D12: =VLOOKUP('Utility Group'!$B7,vldatabase,26,FALSE) -> BBB+ | E12: =VLOOKUP(D12,'Ordinal Ratings'!A$8:C$30,2,FALSE) -> 8 | G12: =VLOOKUP('Utility Group'!$B7,vldatabase,27,FALSE) -> Baa2 | H12: =VLOOKUP(G12,'Ordinal Ratings'!I$9:K$28,2,FALSE) -> 9 | J12: =VLOOKUP('Utility Group'!$B7,vldatabase,22,FALSE) -> 2 | L12: =VLOOKUP('Utility Group'!$B7,vldatabase,24,FALSE) -> A | M12: =VLOOKUP(L12,'Ordinal Ratings'!E$8:F$18,2,FALSE) -> 3 | O12: =VLOOKUP('Utility Group'!$B7,vldatabase,23,FALSE) -> 0.95 | Q12: =VLOOKUP('Utility Group'!$B7,vldatabase,28,FALSE) -> 3800
A13: 6 | B13: =VLOOKUP('Utility Group'!$B8,vldatabase,2,FALSE) -> CMS Energy Corp. | D13: =VLOOKUP('Utility Group'!$B8,vldatabase,26,FALSE) -> BBB+ | E13: =VLOOKUP(D13,'Ordinal Ratings'!A$8:C$30,2,FALSE) -> 8 | G13: =VLOOKUP('Utility Group'!$B8,vldatabase,27,FALSE) -> Baa1 | H13: =VLOOKUP(G13,'Ordinal Ratings'!I$9:K$28,2,FALSE) -> 8 | J13: =VLOOKUP('Utility Group'!$B8,vldatabase,22,FALSE) -> 2 | L13: =VLOOKUP('Utility Group'!$B8,vldatabase,24,FALSE) -> B++ | M13: =VLOOKUP(L13,'Ordinal Ratings'!E$8:F$18,2,FALSE) -> 4 | O13: =VLOOKUP('Utility Group'!$B8,vldatabase,23,FALSE) -> 0.8 | Q13: =VLOOKUP('Utility Group'!$B8,vldatabase,28,FALSE) -> 17000
A14: 7 | B14: =VLOOKUP('Utility Group'!$B9,vldatabase,2,FALSE) -> Consolidated Edison | D14: =VLOOKUP('Utility Group'!$B9,vldatabase,26,FALSE) -> A- | E14: =VLOOKUP(D14,'Ordinal Ratings'!A$8:C$30,2,FALSE) -> 7 | G14: =VLOOKUP('Utility Group'!$B9,vldatabase,27,FALSE) -> Baa2 | H14: =VLOOKUP(G14,'Ordinal Ratings'!I$9:K$28,2,FALSE) -> 9 | J14: =VLOOKUP('Utility Group'!$B9,vldatabase,22,FALSE) -> 1 | L14: =VLOOKUP('Utility Group'!$B9,vldatabase,24,FALSE) -> A+ | M14: =VLOOKUP(L14,'Ordinal Ratings'!E$8:F$18,2,FALSE) -> 2 | O14: =VLOOKUP('Utility Group'!$B9,vldatabase,23,FALSE) -> 0.75 | Q14: =VLOOKUP('Utility Group'!$B9,vldatabase,28,FALSE) -> 25000
A15: 8 | B15: =VLOOKUP('Utility Group'!$B10,vldatabase,2,FALSE) -> DTE Energy Co. | D15: =VLOOKUP('Utility Group'!$B10,vldatabase,26,FALSE) -> BBB+ | E15: =VLOOKUP(D15,'Ordinal Ratings'!A$8:C$30,2,FALSE) -> 8 | G15: =VLOOKUP('Utility Group'!$B10,vldatabase,27,FALSE) -> Baa2 | H15: =VLOOKUP(G15,'Ordinal Ratings'!I$9:K$28,2,FALSE) -> 9 | J15: =VLOOKUP('Utility Group'!$B10,vldatabase,22,FALSE) -> 2 | L15: =VLOOKUP('Utility Group'!$B10,vldatabase,24,FALSE) -> A | M15: =VLOOKUP(L15,'Ordinal Ratings'!E$8:F$18,2,FALSE) -> 3 | O15: =VLOOKUP('Utility Group'!$B10,vldatabase,23,FALSE) -> 0.9 | Q15: =VLOOKUP('Utility Group'!$B10,vldatabase,28,FALSE) -> 23000
A16: 9 | B16: =VLOOKUP('Utility Group'!$B11,vldatabase,2,FALSE) -> Duke Energy Corp. | D16: =VLOOKUP('Utility Group'!$B11,vldatabase,26,FALSE) -> A- | E16: =VLOOKUP(D16,'Ordinal Ratings'!A$8:C$30,2,FALSE) -> 7 | G16: =VLOOKUP('Utility Group'!$B11,vldatabase,27,FALSE) -> Baa1 | H16: =VLOOKUP(G16,'Ordinal Ratings'!I$9:K$28,2,FALSE) -> 8 | J16: =VLOOKUP('Utility Group'!$B11,vldatabase,22,FALSE) -> 2 | L16: =VLOOKUP('Utility Group'!$B11,vldatabase,24,FALSE) -> A | M16: =VLOOKUP(L16,'Ordinal Ratings'!E$8:F$18,2,FALSE) -> 3 | O16: =VLOOKUP('Utility Group'!$B11,vldatabase,23,FALSE) -> 0.85 | Q16: =VLOOKUP('Utility Group'!$B11,vldatabase,28,FALSE) -> 62000
A17: 10 | B17: =VLOOKUP('Utility Group'!$B12,vldatabase,2,FALSE) -> Entergy Corp. | D17: =VLOOKUP('Utility Group'!$B12,vldatabase,26,FALSE) -> BBB+ | E17: =VLOOKUP(D17,'Ordinal Ratings'!A$8:C$30,2,FALSE) -> 8 | G17: =VLOOKUP('Utility Group'!$B12,vldatabase,27,FALSE) -> Baa2 | H17: =VLOOKUP(G17,'Ordinal Ratings'!I$9:K$28,2,FALSE) -> 9 | J17: =VLOOKUP('Utility Group'!$B12,vldatabase,22,FALSE) -> 2 | L17: =VLOOKUP('Utility Group'!$B12,vldatabase,24,FALSE) -> B++ | M17: =VLOOKUP(L17,'Ordinal Ratings'!E$8:F$18,2,FALSE) -> 4 | O17: =VLOOKUP('Utility Group'!$B12,vldatabase,23,FALSE) -> 0.95 | Q17: =VLOOKUP('Utility Group'!$B12,vldatabase,28,FALSE) -> 20000
A18: 11 | B18: =VLOOKUP('Utility Group'!$B13,vldatabase,2,FALSE) -> Evergy Inc. | D18: =VLOOKUP('Utility Group'!$B13,vldatabase,26,FALSE) -> A- | E18: =VLOOKUP(D18,'Ordinal Ratings'!A$8:C$30,2,FALSE) -> 7 | G18: =VLOOKUP('Utility Group'!$B13,vldatabase,27,FALSE) -> Baa2 | H18: =VLOOKUP(G18,'Ordinal Ratings'!I$9:K$28,2,FALSE) -> 9 | J18: =VLOOKUP('Utility Group'!$B13,vldatabase,22,FALSE) -> 2 | L18: =VLOOKUP('Utility Group'!$B13,vldatabase,24,FALSE) -> B++ | M18: =VLOOKUP(L18,'Ordinal Ratings'!E$8:F$18,2,FALSE) -> 4 | O18: =VLOOKUP('Utility Group'!$B13,vldatabase,23,FALSE) -> 1 | Q18: =VLOOKUP('Utility Group'!$B13,vldatabase,28,FALSE) -> 12000
A19: 12 | B19: =VLOOKUP('Utility Group'!$B14,vldatabase,2,FALSE) -> Eversource Energy | D19: =VLOOKUP('Utility Group'!$B14,vldatabase,26,FALSE) -> A- | E19: =VLOOKUP(D19,'Ordinal Ratings'!A$8:C$30,2,FALSE) -> 7 | G19: =VLOOKUP('Utility Group'!$B14,vldatabase,27,FALSE) -> Baa1 | H19: =VLOOKUP(G19,'Ordinal Ratings'!I$9:K$28,2,FALSE) -> 8 | J19: =VLOOKUP('Utility Group'!$B14,vldatabase,22,FALSE) -> 1 | L19: =VLOOKUP('Utility Group'!$B14,vldatabase,24,FALSE) -> A | M19: =VLOOKUP(L19,'Ordinal Ratings'!E$8:F$18,2,FALSE) -> 3 | O19: =VLOOKUP('Utility Group'!$B14,vldatabase,23,FALSE) -> 0.9 | Q19: =VLOOKUP('Utility Group'!$B14,vldatabase,28,FALSE) -> 30000
A20: 13 | B20: =VLOOKUP('Utility Group'!$B15,vldatabase,2,FALSE) -> Exelon Corp. | D20: =VLOOKUP('Utility Group'!$B15,vldatabase,26,FALSE) -> BBB+ | E20: =VLOOKUP(D20,'Ordinal Ratings'!A$8:C$30,2,FALSE) -> 8 | G20: =VLOOKUP('Utility Group'!$B15,vldatabase,27,FALSE) -> Baa2 | H20: =VLOOKUP(G20,'Ordinal Ratings'!I$9:K$28,2,FALSE) -> 9 | J20: =VLOOKUP('Utility Group'!$B15,vldatabase,22,FALSE) -> 3 | L20: =VLOOKUP('Utility Group'!$B15,vldatabase,24,FALSE) -> B+ | M20: =VLOOKUP(L20,'Ordinal Ratings'!E$8:F$18,2,FALSE) -> 5 | O20: =VLOOKUP('Utility Group'!$B15,vldatabase,23,FALSE) -> 0.95 | Q20: =VLOOKUP('Utility Group'!$B15,vldatabase,28,FALSE) -> 37000
A21: 14 | B21: =VLOOKUP('Utility Group'!$B16,vldatabase,2,FALSE) -> Fortis Inc. | D21: =VLOOKUP('Utility Group'!$B16,vldatabase,26,FALSE) -> A- | E21: =VLOOKUP(D21,'Ordinal Ratings'!A$8:C$30,2,FALSE) -> 7 | G21: =VLOOKUP('Utility Group'!$B16,vldatabase,27,FALSE) -> Baa3 | H21: =VLOOKUP(G21,'Ordinal Ratings'!I$9:K$28,2,FALSE) -> 10 | J21: =VLOOKUP('Utility Group'!$B16,vldatabase,22,FALSE) -> 2 | L21: =VLOOKUP('Utility Group'!$B16,vldatabase,24,FALSE) -> B++ | M21: =VLOOKUP(L21,'Ordinal Ratings'!E$8:F$18,2,FALSE) -> 4 | O21: =VLOOKUP('Utility Group'!$B16,vldatabase,23,FALSE) -> 0.8 | Q21: =VLOOKUP('Utility Group'!$B16,vldatabase,28,FALSE) -> 24000
A22: 15 | B22: =VLOOKUP('Utility Group'!$B17,vldatabase,2,FALSE) -> NextEra Energy, Inc. | D22: =VLOOKUP('Utility Group'!$B17,vldatabase,26,FALSE) -> A- | E22: =VLOOKUP(D22,'Ordinal Ratings'!A$8:C$30,2,FALSE) -> 7 | G22: =VLOOKUP('Utility Group'!$B17,vldatabase,27,FALSE) -> Baa1 | H22: =VLOOKUP(G22,'Ordinal Ratings'!I$9:K$28,2,FALSE) -> 8 | J22: =VLOOKUP('Utility Group'!$B17,vldatabase,22,FALSE) -> 1 | L22: =VLOOKUP('Utility Group'!$B17,vldatabase,24,FALSE) -> A+ | M22: =VLOOKUP(L22,'Ordinal Ratings'!E$8:F$18,2,FALSE) -> 2 | O22: =VLOOKUP('Utility Group'!$B17,vldatabase,23,FALSE) -> 0.85 | Q22: =VLOOKUP('Utility Group'!$B17,vldatabase,28,FALSE) -> 136000
A23: 16 | B23: =VLOOKUP('Utility Group'!$B18,vldatabase,2,FALSE) -> OGE Energy Corp. | D23: =VLOOKUP('Utility Group'!$B18,vldatabase,26,FALSE) -> BBB+ | E23: =VLOOKUP(D23,'Ordinal Ratings'!A$8:C$30,2,FALSE) -> 8 | G23: =VLOOKUP('Utility Group'!$B18,vldatabase,27,FALSE) -> Baa1 | H23: =VLOOKUP(G23,'Ordinal Ratings'!I$9:K$28,2,FALSE) -> 8 | J23: =VLOOKUP('Utility Group'!$B18,vldatabase,22,FALSE) -> 2 | L23: =VLOOKUP('Utility Group'!$B18,vldatabase,24,FALSE) -> A | M23: =VLOOKUP(L23,'Ordinal Ratings'!E$8:F$18,2,FALSE) -> 3 | O23: =VLOOKUP('Utility Group'!$B18,vldatabase,23,FALSE) -> 1.05 | Q23: =VLOOKUP('Utility Group'!$B18,vldatabase,28,FALSE) -> 6400
A24: 17 | B24: =VLOOKUP('Utility Group'!$B19,vldatabase,2,FALSE) -> Pub Sv Enterprise Grp. | D24: =VLOOKUP('Utility Group'!$B19,vldatabase,26,FALSE) -> BBB+ | E24: =VLOOKUP(D24,'Ordinal Ratings'!A$8:C$30,2,FALSE) -> 8 | G24: =VLOOKUP('Utility Group'!$B19,vldatabase,27,FALSE) -> Baa1 | H24: =VLOOKUP(G24,'Ordinal Ratings'!I$9:K$28,2,FALSE) -> 8 | J24: =VLOOKUP('Utility Group'!$B19,vldatabase,22,FALSE) -> 1 | L24: =VLOOKUP('Utility Group'!$B19,vldatabase,24,FALSE) -> A++ | M24: =VLOOKUP(L24,'Ordinal Ratings'!E$8:F$18,2,FALSE) -> 1 | O24: =VLOOKUP('Utility Group'!$B19,vldatabase,23,FALSE) -> 0.9 | Q24: =VLOOKUP('Utility Group'!$B19,vldatabase,28,FALSE) -> 28000
A25: 18 | B25: =VLOOKUP('Utility Group'!$B20,vldatabase,2,FALSE) -> Sempra Energy | D25: =VLOOKUP('Utility Group'!$B20,vldatabase,26,FALSE) -> BBB+ | E25: =VLOOKUP(D25,'Ordinal Ratings'!A$8:C$30,2,FALSE) -> 8 | G25: =VLOOKUP('Utility Group'!$B20,vldatabase,27,FALSE) -> Baa2 | H25: =VLOOKUP(G25,'Ordinal Ratings'!I$9:K$28,2,FALSE) -> 9 | J25: =VLOOKUP('Utility Group'!$B20,vldatabase,22,FALSE) -> 2 | L25: =VLOOKUP('Utility Group'!$B20,vldatabase,24,FALSE) -> A | M25: =VLOOKUP(L25,'Ordinal Ratings'!E$8:F$18,2,FALSE) -> 3 | O25: =VLOOKUP('Utility Group'!$B20,vldatabase,23,FALSE) -> 0.95 | Q25: =VLOOKUP('Utility Group'!$B20,vldatabase,28,FALSE) -> 35000
A26: 19 | B26: =VLOOKUP('Utility Group'!$B21,vldatabase,2,FALSE) -> Southern Company | D26: =VLOOKUP('Utility Group'!$B21,vldatabase,26,FALSE) -> A- | E26: =VLOOKUP(D26,'Ordinal Ratings'!A$8:C$30,2,FALSE) -> 7 | G26: =VLOOKUP('Utility Group'!$B21,vldatabase,27,FALSE) -> Baa2 | H26: =VLOOKUP(G26,'Ordinal Ratings'!I$9:K$28,2,FALSE) -> 9 | J26: =VLOOKUP('Utility Group'!$B21,vldatabase,22,FALSE) -> 2 | L26: =VLOOKUP('Utility Group'!$B21,vldatabase,24,FALSE) -> A | M26: =VLOOKUP(L26,'Ordinal Ratings'!E$8:F$18,2,FALSE) -> 3 | O26: =VLOOKUP('Utility Group'!$B21,vldatabase,23,FALSE) -> 0.9 | Q26: =VLOOKUP('Utility Group'!$B21,vldatabase,28,FALSE) -> 57000
A27: 20 | B27: =VLOOKUP('Utility Group'!$B22,vldatabase,2,FALSE) -> WEC Energy Group | D27: =VLOOKUP('Utility Group'!$B22,vldatabase,26,FALSE) -> A- | E27: =VLOOKUP(D27,'Ordinal Ratings'!A$8:C$30,2,FALSE) -> 7 | G27: =VLOOKUP('Utility Group'!$B22,vldatabase,27,FALSE) -> Baa1 | H27: =VLOOKUP(G27,'Ordinal Ratings'!I$9:K$28,2,FALSE) -> 8 | J27: =VLOOKUP('Utility Group'!$B22,vldatabase,22,FALSE) -> 1 | L27: =VLOOKUP('Utility Group'!$B22,vldatabase,24,FALSE) -> A+ | M27: =VLOOKUP(L27,'Ordinal Ratings'!E$8:F$18,2,FALSE) -> 2 | O27: =VLOOKUP('Utility Group'!$B22,vldatabase,23,FALSE) -> 0.8 | Q27: =VLOOKUP('Utility Group'!$B22,vldatabase,28,FALSE) -> 30000
A28: 21 | B28: =VLOOKUP('Utility Group'!$B23,vldatabase,2,FALSE) -> Xcel Energy Inc. | D28: =VLOOKUP('Utility Group'!$B23,vldatabase,26,FALSE) -> A- | E28: =VLOOKUP(D28,'Ordinal Ratings'!A$8:C$30,2,FALSE) -> 7 | G28: =VLOOKUP('Utility Group'!$B23,vldatabase,27,FALSE) -> Baa1 | H28: =VLOOKUP(G28,'Ordinal Ratings'!I$9:K$28,2,FALSE) -> 8 | J28: =VLOOKUP('Utility Group'!$B23,vldatabase,22,FALSE) -> 1 | L28: =VLOOKUP('Utility Group'!$B23,vldatabase,24,FALSE) -> A+ | M28: =VLOOKUP(L28,'Ordinal Ratings'!E$8:F$18,2,FALSE) -> 2 | O28: =VLOOKUP('Utility Group'!$B23,vldatabase,23,FALSE) -> 0.8 | Q28: =VLOOKUP('Utility Group'!$B23,vldatabase,28,FALSE) -> 34000
B30: Average | D30: =VLOOKUP(E30,'Ordinal Ratings'!$B$8:$C$28,2,FALSE) -> A- | E30: =ROUND(AVERAGE(E8:E28),0) -> 7 | G30: =VLOOKUP(H30,'Ordinal Ratings'!$J$8:$K$28,2,FALSE) -> Baa2 | H30: =ROUND(AVERAGE(H8:H28),0) -> 9 | J30: =AVERAGE(J8:J28) -> 1.714285714 | L30: =VLOOKUP(M30,'Ordinal Ratings'!$F$8:$G$17,2,FALSE) -> A | M30: =ROUND(AVERAGE(M8:M28),0) -> 3 | O30: =AVERAGE(O8:O28) -> 0.8714285714 | Q30: =AVERAGE(Q8:Q28) -> 31795.2381
A33: (a) | B33: ='Electric Utility Data'!B51 -> Issuer credit rating from www.standardandpoors.com (retrieved Oct. 5, 2020).
A34: (b) | B34: ='Electric Utility Data'!B52 -> Long-term rating from www.moodys.com (retrieved Oct. 5, 2020).
A35: (c) | B35: ='Utility Group Criteria'!B50 -> The Value Line Investment Survey (Jul. 24, Aug. 14 and Sep. 11, 2020).
A36: (d) | B36: ='Electric Utility Data'!B53 -> www.finance.yahoo.com (retreived Oct. 5, 2020).
A37: RISK MEASURES
A39: NON-UTILITY GROUP
D40: (a) | G40: (b) | J40: (c) | Q40: (c)
J41: Value Line
D42: Credit Ratings | J42: Safety | L42: Financial | Q42: Market
B43: Company | D43: S&P | G43: Moody's | J43: Rank | L43: Strength | O43: Beta | Q43: Cap
A44: 1 | B44: Air Products & Chem. | D44: A | E44: =VLOOKUP(D44,'Ordinal Ratings'!A$8:B$30,2,FALSE) -> 6 | G44: A2 | H44: =VLOOKUP(G44,'Ordinal Ratings'!I$8:J$26,2,FALSE) -> 6 | J44: 1 | L44: A++ | M44: =VLOOKUP(L44,'Ordinal Ratings'!E$8:F$17,2,FALSE) -> 1 | O44: 0.95 | Q44: 64200 | T44: APD
A45: =A44+1 -> 2 | B45: Amdocs Ltd. | D45: BBB | E45: =VLOOKUP(D45,'Ordinal Ratings'!A$8:B$30,2,FALSE) -> 9 | G45: Baa2 | H45: =VLOOKUP(G45,'Ordinal Ratings'!I$8:J$26,2,FALSE) -> 9 | J45: 1 | L45: A | M45: =VLOOKUP(L45,'Ordinal Ratings'!E$8:F$17,2,FALSE) -> 3 | O45: 0.95 | Q45: 8200 | T45: DOX
A46: 3 | B46: Amgen | D46: A- | E46: =VLOOKUP(D46,'Ordinal Ratings'!A$8:B$30,2,FALSE) -> 7 | G46: Baa1 | H46: =VLOOKUP(G46,'Ordinal Ratings'!I$8:J$26,2,FALSE) -> 8 | J46: 1 | L46: A++ | M46: =VLOOKUP(L46,'Ordinal Ratings'!E$8:F$17,2,FALSE) -> 1 | O46: 0.85 | Q46: 145900 | T46: AMGN
A47: 4 | B47: Amphenol Corp. | D47: BBB+ | E47: =VLOOKUP(D47,'Ordinal Ratings'!A$8:B$30,2,FALSE) -> 8 | G47: Baa1 | H47: =VLOOKUP(G47,'Ordinal Ratings'!I$8:J$26,2,FALSE) -> 8 | J47: 1 | L47: A | M47: =VLOOKUP(L47,'Ordinal Ratings'!E$8:F$17,2,FALSE) -> 3 | O47: 0.95 | Q47: 31600 | T47: APH
A48: 5 | B48: Apple Inc. | D48: AA+ | E48: =VLOOKUP(D48,'Ordinal Ratings'!A$8:B$30,2,FALSE) -> 2 | G48: Aa1 | H48: =VLOOKUP(G48,'Ordinal Ratings'!I$8:J$26,2,FALSE) -> 2 | J48: 1 | L48: A++ | M48: =VLOOKUP(L48,'Ordinal Ratings'!E$8:F$17,2,FALSE) -> 1 | O48: 0.95 | Q48: 1643800 | T48: AAPL
A49: 6 | B49: AT&T Inc. | D49: BBB | E49: =VLOOKUP(D49,'Ordinal Ratings'!A$8:B$30,2,FALSE) -> 9 | G49: Baa2 | H49: =VLOOKUP(G49,'Ordinal Ratings'!I$8:J$26,2,FALSE) -> 9 | J49: 1 | L49: A++ | M49: =VLOOKUP(L49,'Ordinal Ratings'!E$8:F$17,2,FALSE) -> 1 | O49: 0.8 | Q49: 210600 | T49: T
A50: 7 | B50: Baxter Int'l Inc. | D50: A- | E50: =VLOOKUP(D50,'Ordinal Ratings'!A$8:B$30,2,FALSE) -> 7 | G50: Baa1 | H50: =VLOOKUP(G50,'Ordinal Ratings'!I$8:J$26,2,FALSE) -> 8 | J50: 1 | L50: A+ | M50: =VLOOKUP(L50,'Ordinal Ratings'!E$8:F$17,2,FALSE) -> 2 | O50: 0.8 | Q50: 42100 | T50: BAX
A51: 8 | B51: Bristol-Myers Squibb | D51: A+ | E51: =VLOOKUP(D51,'Ordinal Ratings'!A$8:B$30,2,FALSE) -> 5 | G51: A2 | H51: =VLOOKUP(G51,'Ordinal Ratings'!I$8:J$26,2,FALSE) -> 6 | J51: 1 | L51: A++ | M51: =VLOOKUP(L51,'Ordinal Ratings'!E$8:F$17,2,FALSE) -> 1 | O51: 0.85 | Q51: 133800 | T51: BMY
A52: 9 | B52: Brown & Brown | D52: BBB- | E52: =VLOOKUP(D52,'Ordinal Ratings'!A$8:B$30,2,FALSE) -> 10 | G52: Baa3 | H52: =VLOOKUP(G52,'Ordinal Ratings'!I$8:J$26,2,FALSE) -> 10 | J52: 1 | L52: A | M52: =VLOOKUP(L52,'Ordinal Ratings'!E$8:F$17,2,FALSE) -> 3 | O52: 0.95 | Q52: 12900 | T52: BRO
A53: 10 | B53: Brown-Forman 'B' | D53: A- | E53: =VLOOKUP(D53,'Ordinal Ratings'!A$8:B$30,2,FALSE) -> 7 | G53: A1 | H53: =VLOOKUP(G53,'Ordinal Ratings'!I$8:J$26,2,FALSE) -> 5 | J53: 1 | L53: A | M53: =VLOOKUP(L53,'Ordinal Ratings'!E$8:F$17,2,FALSE) -> 3 | O53: 0.9 | Q53: 33100 | T53: BF/B
A54: 11 | B54: Church & Dwight | D54: BBB+ | E54: =VLOOKUP(D54,'Ordinal Ratings'!A$8:B$30,2,FALSE) -> 8 | G54: A3 | H54: =VLOOKUP(G54,'Ordinal Ratings'!I$8:J$26,2,FALSE) -> 7 | J54: 1 | L54: A+ | M54: =VLOOKUP(L54,'Ordinal Ratings'!E$8:F$17,2,FALSE) -> 2 | O54: 0.65 | Q54: 21900 | T54: CHD
A55: 12 | B55: Cisco Systems | D55: AA- | E55: =VLOOKUP(D55,'Ordinal Ratings'!A$8:B$30,2,FALSE) -> 4 | G55: A1 | H55: =VLOOKUP(G55,'Ordinal Ratings'!I$8:J$26,2,FALSE) -> 5 | J55: 1 | L55: A++ | M55: =VLOOKUP(L55,'Ordinal Ratings'!E$8:F$17,2,FALSE) -> 1 | O55: 0.95 | Q55: 197100 | T55: CSCO
A56: 13 | B56: Coca-Cola | D56: A+ | E56: =VLOOKUP(D56,'Ordinal Ratings'!A$8:B$30,2,FALSE) -> 5 | G56: A1 | H56: =VLOOKUP(G56,'Ordinal Ratings'!I$8:J$26,2,FALSE) -> 5 | J56: 1 | L56: A++ | M56: =VLOOKUP(L56,'Ordinal Ratings'!E$8:F$17,2,FALSE) -> 1 | O56: 0.9 | Q56: 206200 | T56: KO
A57: 14 | B57: Colgate-Palmolive | D57: AA- | E57: =VLOOKUP(D57,'Ordinal Ratings'!A$8:B$30,2,FALSE) -> 4 | G57: Aa3 | H57: =VLOOKUP(G57,'Ordinal Ratings'!I$8:J$26,2,FALSE) -> 4 | J57: 1 | L57: A+ | M57: =VLOOKUP(L57,'Ordinal Ratings'!E$8:F$17,2,FALSE) -> 2 | O57: 0.75 | Q57: 65300 | T57: CL
A58: 15 | B58: Comcast Corp. | D58: A- | E58: =VLOOKUP(D58,'Ordinal Ratings'!A$8:B$30,2,FALSE) -> 7 | G58: A3 | H58: =VLOOKUP(G58,'Ordinal Ratings'!I$8:J$26,2,FALSE) -> 7 | J58: 1 | L58: A+ | M58: =VLOOKUP(L58,'Ordinal Ratings'!E$8:F$17,2,FALSE) -> 2 | O58: 0.75 | Q58: 199900 | T58: CMCSA
A59: 16 | B59: Commerce Bancshs. | D59: A- | E59: =VLOOKUP(D59,'Ordinal Ratings'!A$8:B$30,2,FALSE) -> 7 | G59: Baa1 | H59: =VLOOKUP(G59,'Ordinal Ratings'!I$8:J$26,2,FALSE) -> 8 | J59: 1 | L59: A | M59: =VLOOKUP(L59,'Ordinal Ratings'!E$8:F$17,2,FALSE) -> 3 | O59: 0.9 | Q59: 6500 | T59: CBSH
A60: 17 | B60: Costco Wholesale | D60: A+ | E60: =VLOOKUP(D60,'Ordinal Ratings'!A$8:B$30,2,FALSE) -> 5 | G60: Aa3 | H60: =VLOOKUP(G60,'Ordinal Ratings'!I$8:J$26,2,FALSE) -> 4 | J60: 1 | L60: A++ | M60: =VLOOKUP(L60,'Ordinal Ratings'!E$8:F$17,2,FALSE) -> 1 | O60: 0.65 | Q60: 144000 | T60: COST
A61: 18 | B61: CVS Health | D61: BBB | E61: =VLOOKUP(D61,'Ordinal Ratings'!A$8:B$30,2,FALSE) -> 9 | G61: Baa2 | H61: =VLOOKUP(G61,'Ordinal Ratings'!I$8:J$26,2,FALSE) -> 9 | J61: 1 | L61: A++ | M61: =VLOOKUP(L61,'Ordinal Ratings'!E$8:F$17,2,FALSE) -> 1 | O61: 0.9 | Q61: 83800 | T61: CVS
A62: 19 | B62: Danaher Corp. | D62: BBB+ | E62: =VLOOKUP(D62,'Ordinal Ratings'!A$8:B$30,2,FALSE) -> 8 | G62: Baa1 | H62: =VLOOKUP(G62,'Ordinal Ratings'!I$8:J$26,2,FALSE) -> 8 | J62: 1 | L62: A+ | M62: =VLOOKUP(L62,'Ordinal Ratings'!E$8:F$17,2,FALSE) -> 2 | O62: 0.85 | Q62: 140900 | T62: DHR
A63: 20 | B63: Gen'l Mills | D63: BBB | E63: =VLOOKUP(D63,'Ordinal Ratings'!A$8:B$30,2,FALSE) -> 9 | G63: Baa2 | H63: =VLOOKUP(G63,'Ordinal Ratings'!I$8:J$26,2,FALSE) -> 9 | J63: 1 | L63: A+ | M63: =VLOOKUP(L63,'Ordinal Ratings'!E$8:F$17,2,FALSE) -> 2 | O63: 0.7 | Q63: 39300 | T63: GIS
A64: 21 | B64: Hormel Foods | D64: A | E64: =VLOOKUP(D64,'Ordinal Ratings'!A$8:B$30,2,FALSE) -> 6 | G64: A1 | H64: =VLOOKUP(G64,'Ordinal Ratings'!I$8:J$26,2,FALSE) -> 5 | J64: 1 | L64: A+ | M64: =VLOOKUP(L64,'Ordinal Ratings'!E$8:F$17,2,FALSE) -> 2 | O64: 0.55 | Q64: 27400 | T64: HRL
A65: 22 | B65: Intel Corp. | D65: A+ | E65: =VLOOKUP(D65,'Ordinal Ratings'!A$8:B$30,2,FALSE) -> 5 | G65: A1 | H65: =VLOOKUP(G65,'Ordinal Ratings'!I$8:J$26,2,FALSE) -> 5 | J65: 1 | L65: A++ | M65: =VLOOKUP(L65,'Ordinal Ratings'!E$8:F$17,2,FALSE) -> 1 | O65: 0.9 | Q65: 204400 | T65: INTC
A66: 23 | B66: Int'l Flavors & Frag. | D66: BBB | E66: =VLOOKUP(D66,'Ordinal Ratings'!A$8:B$30,2,FALSE) -> 9 | G66: Baa3 | H66: =VLOOKUP(G66,'Ordinal Ratings'!I$8:J$26,2,FALSE) -> 10 | J66: 1 | L66: A+ | M66: =VLOOKUP(L66,'Ordinal Ratings'!E$8:F$17,2,FALSE) -> 2 | O66: 0.9 | Q66: 13700 | T66: IFF
A67: 24 | B67: Johnson & Johnson | D67: AAA | E67: =VLOOKUP(D67,'Ordinal Ratings'!A$8:B$30,2,FALSE) -> 1 | G67: Aaa | H67: =VLOOKUP(G67,'Ordinal Ratings'!I$8:J$26,2,FALSE) -> 1 | J67: 1 | L67: A++ | M67: =VLOOKUP(L67,'Ordinal Ratings'!E$8:F$17,2,FALSE) -> 1 | O67: 0.85 | Q67: 388000 | T67: JNJ
A68: 25 | B68: Kellogg | D68: BBB | E68: =VLOOKUP(D68,'Ordinal Ratings'!A$8:B$30,2,FALSE) -> 9 | G68: Baa2 | H68: =VLOOKUP(G68,'Ordinal Ratings'!I$8:J$26,2,FALSE) -> 9 | J68: 1 | L68: A+ | M68: =VLOOKUP(L68,'Ordinal Ratings'!E$8:F$17,2,FALSE) -> 2 | O68: 0.65 | Q68: 24300 | T68: K
A69: 26 | B69: Kimberly-Clark | D69: A | E69: =VLOOKUP(D69,'Ordinal Ratings'!A$8:B$30,2,FALSE) -> 6 | G69: A2 | H69: =VLOOKUP(G69,'Ordinal Ratings'!I$8:J$26,2,FALSE) -> 6 | J69: 1 | L69: A+ | M69: =VLOOKUP(L69,'Ordinal Ratings'!E$8:F$17,2,FALSE) -> 2 | O69: 0.8 | Q69: 51800 | T69: KMB
A70: 27 | B70: Lilly (Eli) | D70: A+ | E70: =VLOOKUP(D70,'Ordinal Ratings'!A$8:B$30,2,FALSE) -> 5 | G70: A2 | H70: =VLOOKUP(G70,'Ordinal Ratings'!I$8:J$26,2,FALSE) -> 6 | J70: 1 | L70: A++ | M70: =VLOOKUP(L70,'Ordinal Ratings'!E$8:F$17,2,FALSE) -> 1 | O70: 0.75 | Q70: 154800 | T70: LLY
A71: 28 | B71: Lockheed Martin | D71: A- | E71: =VLOOKUP(D71,'Ordinal Ratings'!A$8:B$30,2,FALSE) -> 7 | G71: A3 | H71: =VLOOKUP(G71,'Ordinal Ratings'!I$8:J$26,2,FALSE) -> 7 | J71: 1 | L71: A++ | M71: =VLOOKUP(L71,'Ordinal Ratings'!E$8:F$17,2,FALSE) -> 1 | O71: 0.95 | Q71: 108300 | T71: LMT
A72: 29 | B72: Marsh & McLennan | D72: A- | E72: =VLOOKUP(D72,'Ordinal Ratings'!A$8:B$30,2,FALSE) -> 7 | G72: Baa1 | H72: =VLOOKUP(G72,'Ordinal Ratings'!I$8:J$26,2,FALSE) -> 8 | J72: 1 | L72: A | M72: =VLOOKUP(L72,'Ordinal Ratings'!E$8:F$17,2,FALSE) -> 3 | O72: 0.95 | Q72: 58000 | T72: MMC
A73: 30 | B73: McCormick & Co. | D73: BBB | E73: =VLOOKUP(D73,'Ordinal Ratings'!A$8:B$30,2,FALSE) -> 9 | G73: Baa2 | H73: =VLOOKUP(G73,'Ordinal Ratings'!I$8:J$26,2,FALSE) -> 9 | J73: 1 | L73: A+ | M73: =VLOOKUP(L73,'Ordinal Ratings'!E$8:F$17,2,FALSE) -> 2 | O73: 0.85 | Q73: 25900 | T73: MKC
A74: 31 | B74: McDonald's Corp. | D74: BBB+ | E74: =VLOOKUP(D74,'Ordinal Ratings'!A$8:B$30,2,FALSE) -> 8 | G74: Baa1 | H74: =VLOOKUP(G74,'Ordinal Ratings'!I$8:J$26,2,FALSE) -> 8 | J74: 1 | L74: A++ | M74: =VLOOKUP(L74,'Ordinal Ratings'!E$8:F$17,2,FALSE) -> 1 | O74: 0.95 | Q74: 152000 | T74: MCD
A75: 32 | B75: Merck & Co. | D75: AA- | E75: =VLOOKUP(D75,'Ordinal Ratings'!A$8:B$30,2,FALSE) -> 4 | G75: A1 | H75: =VLOOKUP(G75,'Ordinal Ratings'!I$8:J$26,2,FALSE) -> 5 | J75: 1 | L75: A++ | M75: =VLOOKUP(L75,'Ordinal Ratings'!E$8:F$17,2,FALSE) -> 1 | O75: 0.85 | Q75: 200300 | T75: MRK
A76: 33 | B76: Microsoft Corp. | D76: AAA | E76: =VLOOKUP(D76,'Ordinal Ratings'!A$8:B$30,2,FALSE) -> 1 | G76: Aaa | H76: =VLOOKUP(G76,'Ordinal Ratings'!I$8:J$26,2,FALSE) -> 1 | J76: 1 | L76: A++ | M76: =VLOOKUP(L76,'Ordinal Ratings'!E$8:F$17,2,FALSE) -> 1 | O76: 0.95 | Q76: 1543000 | T76: MSFT
A77: 34 | B77: Northrop Grumman | D77: BBB | E77: =VLOOKUP(D77,'Ordinal Ratings'!A$8:B$30,2,FALSE) -> 9 | G77: Baa1 | H77: =VLOOKUP(G77,'Ordinal Ratings'!I$8:J$26,2,FALSE) -> 8 | J77: 1 | L77: A++ | M77: =VLOOKUP(L77,'Ordinal Ratings'!E$8:F$17,2,FALSE) -> 1 | O77: 0.85 | Q77: 52600 | T77: NOC
A78: 35 | B78: Oracle Corp. | D78: A | E78: =VLOOKUP(D78,'Ordinal Ratings'!A$8:B$30,2,FALSE) -> 6 | G78: A3 | H78: =VLOOKUP(G78,'Ordinal Ratings'!I$8:J$26,2,FALSE) -> 7 | J78: 1 | L78: A++ | M78: =VLOOKUP(L78,'Ordinal Ratings'!E$8:F$17,2,FALSE) -> 1 | O78: 0.85 | Q78: 170000 | T78: ORCL
A79: 36 | B79: PepsiCo, Inc. | D79: A+ | E79: =VLOOKUP(D79,'Ordinal Ratings'!A$8:B$30,2,FALSE) -> 5 | G79: A1 | H79: =VLOOKUP(G79,'Ordinal Ratings'!I$8:J$26,2,FALSE) -> 5 | J79: 1 | L79: A++ | M79: =VLOOKUP(L79,'Ordinal Ratings'!E$8:F$17,2,FALSE) -> 1 | O79: 0.85 | Q79: 191000 | T79: PEP
A80: 37 | B80: Pfizer, Inc. | D80: AA- | E80: =VLOOKUP(D80,'Ordinal Ratings'!A$8:B$30,2,FALSE) -> 4 | G80: A1 | H80: =VLOOKUP(G80,'Ordinal Ratings'!I$8:J$26,2,FALSE) -> 5 | J80: 1 | L80: A++ | M80: =VLOOKUP(L80,'Ordinal Ratings'!E$8:F$17,2,FALSE) -> 1 | O80: 0.85 | Q80: 218000 | T80: PFE
A81: 38 | B81: Procter & Gamble | D81: AA- | E81: =VLOOKUP(D81,'Ordinal Ratings'!A$8:B$30,2,FALSE) -> 4 | G81: Aa3 | H81: =VLOOKUP(G81,'Ordinal Ratings'!I$8:J$26,2,FALSE) -> 4 | J81: 1 | L81: A++ | M81: =VLOOKUP(L81,'Ordinal Ratings'!E$8:F$17,2,FALSE) -> 1 | O81: 0.75 | Q81: 317600 | T81: PG
A82: 39 | B82: Public Storage | D82: A | E82: =VLOOKUP(D82,'Ordinal Ratings'!A$8:B$30,2,FALSE) -> 6 | G82: A2 | H82: =VLOOKUP(G82,'Ordinal Ratings'!I$8:J$26,2,FALSE) -> 6 | J82: 1 | L82: A+ | M82: =VLOOKUP(L82,'Ordinal Ratings'!E$8:F$17,2,FALSE) -> 2 | O82: 0.85 | Q82: 34300 | R82: 46176.47 | T82: PSA
A83: 40 | B83: Texas Instruments | D83: A+ | E83: =VLOOKUP(D83,'Ordinal Ratings'!A$8:B$30,2,FALSE) -> 5 | G83: A1 | H83: =VLOOKUP(G83,'Ordinal Ratings'!I$8:J$26,2,FALSE) -> 5 | J83: 1 | L83: A++ | M83: =VLOOKUP(L83,'Ordinal Ratings'!E$8:F$17,2,FALSE) -> 1 | O83: 0.85 | Q83: 120500 | T83: TXN
A84: 41 | B84: Travelers Cos. | D84: A | E84: =VLOOKUP(D84,'Ordinal Ratings'!A$8:B$30,2,FALSE) -> 6 | G84: A2 | H84: =VLOOKUP(G84,'Ordinal Ratings'!I$8:J$26,2,FALSE) -> 6 | J84: 1 | L84: A++ | M84: =VLOOKUP(L84,'Ordinal Ratings'!E$8:F$17,2,FALSE) -> 1 | O84: 0.95 | Q84: 29500 | R84: 140074.2 | T84: TRV
A85: 42 | B85: United Parcel Serv. | D85: A- | E85: =VLOOKUP(D85,'Ordinal Ratings'!A$8:B$30,2,FALSE) -> 7 | G85: A2 | H85: =VLOOKUP(G85,'Ordinal Ratings'!I$8:J$26,2,FALSE) -> 6 | J85: 1 | L85: A+ | M85: =VLOOKUP(L85,'Ordinal Ratings'!E$8:F$17,2,FALSE) -> 2 | O85: 0.8 | Q85: 138000 | T85: UPS
A86: 43 | B86: Verizon Communic. | D86: BBB+ | E86: =VLOOKUP(D86,'Ordinal Ratings'!A$8:B$30,2,FALSE) -> 8 | G86: Baa1 | H86: =VLOOKUP(G86,'Ordinal Ratings'!I$8:J$26,2,FALSE) -> 8 | J86: 1 | L86: A++ | M86: =VLOOKUP(L86,'Ordinal Ratings'!E$8:F$17,2,FALSE) -> 1 | O86: 0.65 | Q86: 237700 | T86: VZ
A87: 44 | B87: Walmart Inc. | D87: AA | E87: =VLOOKUP(D87,'Ordinal Ratings'!A$8:B$30,2,FALSE) -> 3 | G87: Aa2 | H87: =VLOOKUP(G87,'Ordinal Ratings'!I$8:J$26,2,FALSE) -> 3 | J87: 1 | L87: A++ | M87: =VLOOKUP(L87,'Ordinal Ratings'!E$8:F$17,2,FALSE) -> 1 | O87: 0.6 | Q87: 370100 | T87: WMT
A88: 45 | B88: Waste Management | D88: A- | E88: =VLOOKUP(D88,'Ordinal Ratings'!A$8:B$30,2,FALSE) -> 7 | G88: Baa1 | H88: =VLOOKUP(G88,'Ordinal Ratings'!I$8:J$26,2,FALSE) -> 8 | J88: 1 | L88: A | M88: =VLOOKUP(L88,'Ordinal Ratings'!E$8:F$17,2,FALSE) -> 3 | O88: 0.8 | Q88: 47200 | T88: WM
B90: Average | D90: =VLOOKUP(E90,'Ordinal Ratings'!$B$8:$C$28,2,FALSE) -> A | E90: =ROUND(AVERAGE(E44:E88),0) -> 6 | G90: =VLOOKUP(H90,'Ordinal Ratings'!$J$8:$K$28,2,FALSE) -> A2 | H90: =ROUND(AVERAGE(H44:H88),0) -> 6 | J90: =AVERAGE(J44:J88) -> 1 | L90: =VLOOKUP(M90,'Ordinal Ratings'!$F$8:$G$17,2,FALSE) -> A+ | M90: =ROUND(AVERAGE(M44:M88),0) -> 2 | O90: =AVERAGE(O44:O88) -> 0.8333333333 | Q90: =AVERAGE(Q44:Q88) -> 184655.5556
A93: (a) | B93: www.standardandpoors.com (retrieved Aug 21, 2020).
A94: (b) | B94: www.moodys.com (retrieved Aug. 21, 2020).
A95: (c) | B95: The Value Line Investment Survey (various editions as of Aug. 21, 2020).

Sheet Exhibit List
A1: Tab | B1: Designation | C1: Title I | D1: Title II
A2: 13 | B2: Exh. AMM-13 | C2: STATE ALLOWED ROEs | D2: BAUDINO PROXY GROUP
A3: 14 | B3: Exh. AMM-14 | C3: ROE ANALYSIS | D3: SUMMARY OF UPDATED RESULTS
A4: 15 (1) | B4: Exh. AMM-15 | C4: DCF MODEL | D4: DIVIDEND YIELD
A5: 15 (2) | B5: Exh. AMM-15 | C5: DCF MODEL | D5: GROWTH RATES
A6: 15 (3) | B6: Exh. AMM-15 | C6: DCF MODEL | D6: DCF COST OF EQUITY ESTIMATES
A7: 15 (4) | B7: Exh. AMM-15 | C7: DCF MODEL | D7: LOW-END THRESHOLD ADJUSTMENTS
A8: 16 | B8: Exh. AMM-16 | C8: DCF MODEL | D8: BR+SV GROWTH RATE
A9: 17 (1) | B9: Exh. AMM-17 | C9: CAPM | D9: CURRENT BOND YIELD
A10: 17 (2) | B10: Exh. AMM-17 | C10: CAPM | D10: PROJECTED BOND YIELD
A11: 18 (1) | B11: Exh. AMM-18 | C11: EMPIRICAL CAPM | D11: CURRENT BOND YIELD
A12: 18 (2) | B12: Exh. AMM-18 | C12: EMPIRICAL CAPM | D12: PROJECTED BOND YIELD
A13: 19 (1) | B13: Exh. AMM-19 | C13: ELECTRIC UTILITY RISK PREMIUM | D13: CURRENT BOND YIELD
A14: 19 (2) | B14: Exh. AMM-19 | C14: ELECTRIC UTILITY RISK PREMIUM | D14: PROJECTED BOND YIELD
A15: 19 (3) | B15: Exh. AMM-19 | C15: ELECTRIC UTILITY RISK PREMIUM | D15: AUTHORIZED RETURNS
A16: 19 (4) | B16: Exh. AMM-19 | C16: ELECTRIC UTILITY RISK PREMIUM | D16: REGRESSION RESULTS
A17: 20 | B17: Exh. AMM-20 | C17: EXPECTED EARNINGS APPROACH | D17: UPDATED UTILITY GROUP
A18: 21 (1) | B18: Exh. AMM-21 | C18: DCF MODEL - NON-UTILITY GROUP | D18: DIVIDEND YIELD
A19: 21 (2) | B19: Exh. AMM-21 | C19: DCF MODEL - NON-UTILITY GROUP | D19: GROWTH RATES
A20: 21 (3) | B20: Exh. AMM-21 | C20: DCF MODEL - NON-UTILITY GROUP | D20: DCF COST OF EQUITY ESTIMATES

Sheet 13
A1: ='Exhibit List'!C2 -> STATE ALLOWED ROEs | G1: ='Exhibit List'!B2 -> Exh. AMM-13
G2: Page 1 of 1
A3: ='Exhibit List'!D2 -> BAUDINO PROXY GROUP
F5: (a)
F7: Allowed
B8: Company | F8: ROE
A9: 1 | B9: ='Utility Group'!C3 -> Alliant Energy | F9: =VLOOKUP('Utility Group'!B3,vldatabase,25,FALSE) -> 0.1
A10: =A9+1 -> 2 | B10: ='Utility Group'!C4 -> Ameren Corp. | F10: =VLOOKUP('Utility Group'!B4,vldatabase,25,FALSE) -> 0.087
A11: =A10+1 -> 3 | B11: ='Utility Group'!C5 -> American Elec Pwr | F11: =VLOOKUP('Utility Group'!B5,vldatabase,25,FALSE) -> 0.101
A12: 4 | B12: ='Utility Group'!C6 -> Avangrid, Inc. | F12: =VLOOKUP('Utility Group'!B6,vldatabase,25,FALSE) -> 0.08783333333
A13: 5 | B13: ='Utility Group'!C7 -> Black Hills Corp. | F13: =VLOOKUP('Utility Group'!B7,vldatabase,25,FALSE) -> 0.0937
A14: 6 | B14: ='Utility Group'!C8 -> CMS Energy Corp. | F14: =VLOOKUP('Utility Group'!B8,vldatabase,25,FALSE) -> 0.1
A15: 7 | B15: ='Utility Group'!C9 -> Consolidated Edison | F15: =VLOOKUP('Utility Group'!B9,vldatabase,25,FALSE) -> 0.089
A16: 8 | B16: ='Utility Group'!C10 -> DTE Energy Co. | F16: =VLOOKUP('Utility Group'!B10,vldatabase,25,FALSE) -> 0.099
A17: 9 | B17: ='Utility Group'!C11 -> Duke Energy Corp. | F17: =VLOOKUP('Utility Group'!B11,vldatabase,25,FALSE) -> 0.101
A18: 10 | B18: ='Utility Group'!C12 -> Entergy Corp. | F18: =VLOOKUP('Utility Group'!B12,vldatabase,25,FALSE) -> 0.0995
A19: 11 | B19: ='Utility Group'!C13 -> Evergy Inc. | F19: =VLOOKUP('Utility Group'!B13,vldatabase,25,FALSE) -> 0.093
A20: 12 | B20: ='Utility Group'!C14 -> Eversource Energy | F20: =VLOOKUP('Utility Group'!B14,vldatabase,25,FALSE) -> 0.0964
A21: 13 | B21: ='Utility Group'!C15 -> Exelon Corp. | F21: =VLOOKUP('Utility Group'!B15,vldatabase,25,FALSE) -> 0.09583333333
A22: 14 | B22: ='Utility Group'!C16 -> Fortis Inc. | F22: =VLOOKUP('Utility Group'!B16,vldatabase,25,FALSE) -> 0.0931
A23: 15 | B23: ='Utility Group'!C17 -> NextEra Energy, Inc. | F23: =VLOOKUP('Utility Group'!B17,vldatabase,25,FALSE) -> 0.106
A24: 16 | B24: ='Utility Group'!C18 -> OGE Energy Corp. | F24: =VLOOKUP('Utility Group'!B18,vldatabase,25,FALSE) -> 0.095
A25: 17 | B25: ='Utility Group'!C19 -> Pub Sv Enterprise Grp. | F25: =VLOOKUP('Utility Group'!B19,vldatabase,25,FALSE) -> 0.096
A26: 18 | B26: ='Utility Group'!C20 -> Sempra Energy | F26: =VLOOKUP('Utility Group'!B20,vldatabase,25,FALSE) -> 0.1035
A27: 19 | B27: ='Utility Group'!C21 -> Southern Company | F27: =VLOOKUP('Utility Group'!B21,vldatabase,25,FALSE) -> 0.125
A28: 20 | B28: ='Utility Group'!C22 -> WEC Energy Group | F28: =VLOOKUP('Utility Group'!B22,vldatabase,25,FALSE) -> 0.097
A29: 21 | B29: ='Utility Group'!C23 -> Xcel Energy Inc. | F29: =VLOOKUP('Utility Group'!B23,vldatabase,25,FALSE) -> 0.096
B31: Range of Reasonableness | E31: =MIN(F9:F29) -> 0.087 | F31: -- | G31: =MAX(F9:F29) -> 0.125
B32: Midpoint | F32: =AVERAGE(E31,G31) -> 0.106
B33: Average | F33: =AVERAGE(F9:F29) -> 0.09785079365
A36: (a) | B36: ='Electric Utility Data'!B50 -> The Value Line Investment Survey (Jul. 24, Aug. 14 and Sep. 11, 2020).

Sheet 14
A1: ='Exhibit List'!C3 -> ROE ANALYSIS | J1: ='Exhibit List'!B3 -> Exh. AMM-14
J2: Page 1 of 1
A3: ='Exhibit List'!D3 -> SUMMARY OF UPDATED RESULTS
B5: Method | F5: Average | H5: Midpoint
B6: DCF
C7: Value Line | F7: ='15 (3)'!E31 -> 0.08703595845 | H7: ='15 (3)'!E32 -> 0.09495921777
C8: IBES | F8: ='15 (3)'!G31 -> 0.08955905351 | H8: ='15 (3)'!G32 -> 0.08623301968
C9: Zacks | F9: ='15 (3)'!I31 -> 0.0916470785 | H9: ='15 (3)'!I32 -> 0.08673202129
C10: Internal br + sv | F10: ='15 (3)'!L31 -> 0.08216578186 | H10: ='15 (3)'!L32 -> 0.08678323523
B12: CAPM
C13: Current Bond Yield | F13: ='17 (1)'!L31 -> 0.1056190476 | H13: ='17 (1)'!L32 -> 0.108
C14: Projected Bond Yield | F14: ='17 (2)'!L31 -> 0.1065238095 | H14: ='17 (2)'!L32 -> 0.1085
B16: Empirical CAPM
C17: Current Bond Yield | F17: ='18 (1)'!Q31 -> 0.1086666667 | H17: ='18 (1)'!Q32 -> 0.1105
C18: Projected Bond Yield | F18: ='18 (2)'!Q31 -> 0.1096190476 | H18: ='18 (2)'!Q32 -> 0.111
B20: Utility Risk Premium
C21: Current Bond Yield | G21: ='19 (1)'!G22 -> 0.0927289
C22: Projected Bond Yield | G22: ='19 (2)'!G22 -> 0.1009507
B24: Expected Earnings | F24: ='20'!H30 -> 0.1044206995 | H24: ='20'!H31 -> 0.1000929378
B27: ROE Recommendation
C28: Cost of Equity Range | F28: 0.093 | G28: -- | H28: 0.104
C30: Flotation Cost Adjustment
D31: Dividend Yield | G31: ='15 (1)'!H30 -> 0.03698993564
D32: Flotation Cost Percentage | G32: 0.029
E33: Adjustment | G33: =G31*G32 -> 0.001072708134
C36: Recommended ROE Range | F36: =F28+G33 -> 0.09407270813 | G36: -- | H36: =H28+G33 -> 0.1050727081
E37: Midpoint | G37: =AVERAGE(F36,H36) -> 0.09957270813
N41: UTILITY | T41: NON-UTILITY
O42: Cost of Equity | U42: Cost of Equity
N43: Growth Rate | O43: Average | Q43: Midpoint | T43: Growth Rate | U43: Average | W43: Midpoint
N44: Value Line | O44: =F7 -> 0.08703595845 | Q44: =H7 -> 0.09495921777 | T44: Value Line | U44: ='21 (3)'!E54 -> 0.1004756584 | W44: ='21 (3)'!E55 -> 0.09388230265
N45: IBES | O45: =F8 -> 0.08955905351 | Q45: =H8 -> 0.08623301968 | T45: IBES | U45: ='21 (3)'!G54 -> 0.08811780818 | W45: ='21 (3)'!G55 -> 0.0913042578
N46: Zacks | O46: =F9 -> 0.0916470785 | Q46: =H9 -> 0.08673202129 | T46: Zacks | U46: ='21 (3)'!I54 -> 0.09637859576 | W46: ='21 (3)'!I55 -> 0.09892347251
N47: br + sv | O47: =F10 -> 0.08216578186 | Q47: =H10 -> 0.08678323523
G67: DCF | H67: =AVERAGE(F7:F10) -> 0.08760196808
G68: CAPM | H68: =F13 -> 0.1056190476
G69: ECAPM | H69: =F17 -> 0.1086666667
G70: RP | H70: =G21 -> 0.0927289
G71: RP | H71: =G22 -> 0.1009507
G72: EE | H72: =F24 -> 0.1044206995
H74: =MEDIAN(H67:H72) -> 0.1026856997
H75: =AVERAGE(H67:H72) -> 0.09999799697

Sheet 15 (1)
A1: ='Exhibit List'!C4 -> DCF MODEL | I1: ='Exhibit List'!B4 -> Exh. AMM-15
I2: Page 1 of 4
A3: ='Exhibit List'!D4 -> DIVIDEND YIELD
D6: (a) | F6: (b)
B7: Company | D7: Price | F7: Dividends | H7: Yield
A8: =A7+1 -> 1 | B8: =VLOOKUP('Utility Group'!$B3,vldatabase,2,FALSE) -> Alliant Energy | D8: =HLOOKUP('Utility Group'!$B3,stockprice,33,FALSE) -> 52.572 | F8: =VLOOKUP('Utility Group'!$B3,vldatabase,4,FALSE) -> 1.52 | H8: =F8/D8 -> 0.02891272921
A9: =A8+1 -> 2 | B9: =VLOOKUP('Utility Group'!$B4,vldatabase,2,FALSE) -> Ameren Corp. | D9: =HLOOKUP('Utility Group'!$B4,stockprice,33,FALSE) -> 78.32033333 | F9: =VLOOKUP('Utility Group'!$B4,vldatabase,4,FALSE) -> 2.08 | H9: =F9/D9 -> 0.02655759892
A10: 3 | B10: =VLOOKUP('Utility Group'!$B5,vldatabase,2,FALSE) -> American Elec Pwr | D10: =HLOOKUP('Utility Group'!$B5,stockprice,33,FALSE) -> 79.93166667 | F10: =VLOOKUP('Utility Group'!$B5,vldatabase,4,FALSE) -> 2.96 | H10: 0.03703163118
A11: 4 | B11: =VLOOKUP('Utility Group'!$B6,vldatabase,2,FALSE) -> Avangrid, Inc. | D11: =HLOOKUP('Utility Group'!$B6,stockprice,33,FALSE) -> 49.142 | F11: =VLOOKUP('Utility Group'!$B6,vldatabase,4,FALSE) -> 1.76 | H11: 0.03581457816
A12: 5 | B12: =VLOOKUP('Utility Group'!$B7,vldatabase,2,FALSE) -> Black Hills Corp. | D12: =HLOOKUP('Utility Group'!$B7,stockprice,33,FALSE) -> 54.69566667 | F12: =VLOOKUP('Utility Group'!$B7,vldatabase,4,FALSE) -> 2.23 | H12: 0.04077105438
A13: 6 | B13: =VLOOKUP('Utility Group'!$B8,vldatabase,2,FALSE) -> CMS Energy Corp. | D13: =HLOOKUP('Utility Group'!$B8,stockprice,33,FALSE) -> 60.863 | F13: =VLOOKUP('Utility Group'!$B8,vldatabase,4,FALSE) -> 1.71 | H13: 0.02809588749
A14: 7 | B14: =VLOOKUP('Utility Group'!$B9,vldatabase,2,FALSE) -> Consolidated Edison | D14: =HLOOKUP('Utility Group'!$B9,stockprice,33,FALSE) -> 73.861 | F14: =VLOOKUP('Utility Group'!$B9,vldatabase,4,FALSE) -> 3.11 | H14: 0.04210611825
A15: 8 | B15: =VLOOKUP('Utility Group'!$B10,vldatabase,2,FALSE) -> DTE Energy Co. | D15: =HLOOKUP('Utility Group'!$B10,stockprice,33,FALSE) -> 116.402 | F15: =VLOOKUP('Utility Group'!$B10,vldatabase,4,FALSE) -> 4.34 | H15: 0.03728458274
A16: 9 | B16: =VLOOKUP('Utility Group'!$B11,vldatabase,2,FALSE) -> Duke Energy Corp. | D16: =HLOOKUP('Utility Group'!$B11,stockprice,33,FALSE) -> 82.69933333 | F16: =VLOOKUP('Utility Group'!$B11,vldatabase,4,FALSE) -> 3.88 | H16: 0.04691694411
A17: 10 | B17: =VLOOKUP('Utility Group'!$B12,vldatabase,2,FALSE) -> Entergy Corp. | D17: =HLOOKUP('Utility Group'!$B12,stockprice,33,FALSE) -> 97.567 | F17: =VLOOKUP('Utility Group'!$B12,vldatabase,4,FALSE) -> 3.8 | H17: 0.03894759499
A18: 11 | B18: =VLOOKUP('Utility Group'!$B13,vldatabase,2,FALSE) -> Evergy Inc. | D18: =HLOOKUP('Utility Group'!$B13,stockprice,33,FALSE) -> 51.50533333 | F18: =VLOOKUP('Utility Group'!$B13,vldatabase,4,FALSE) -> 2.14 | H18: 0.04154909524
A19: 12 | B19: =VLOOKUP('Utility Group'!$B14,vldatabase,2,FALSE) -> Eversource Energy | D19: =HLOOKUP('Utility Group'!$B14,stockprice,33,FALSE) -> 83.51400073 | F19: =VLOOKUP('Utility Group'!$B14,vldatabase,4,FALSE) -> 2.34 | H19: 0.02801925401
A20: 13 | B20: =VLOOKUP('Utility Group'!$B15,vldatabase,2,FALSE) -> Exelon Corp. | D20: =HLOOKUP('Utility Group'!$B15,stockprice,33,FALSE) -> 36.2 | F20: =VLOOKUP('Utility Group'!$B15,vldatabase,4,FALSE) -> 1.57 | H20: 0.04337016575
A21: 14 | B21: =VLOOKUP('Utility Group'!$B16,vldatabase,2,FALSE) -> Fortis Inc. | D21: =HLOOKUP('Utility Group'!$B16,stockprice,33,FALSE) -> 40.19266667 | F21: =VLOOKUP('Utility Group'!$B16,vldatabase,4,FALSE) -> 2.02 | H21: 0.05025792433
A22: 15 | B22: =VLOOKUP('Utility Group'!$B17,vldatabase,2,FALSE) -> NextEra Energy, Inc. | D22: =HLOOKUP('Utility Group'!$B17,stockprice,33,FALSE) -> 280.3893333 | F22: =VLOOKUP('Utility Group'!$B17,vldatabase,4,FALSE) -> 5.88 | H22: 0.02097084055
A23: 16 | B23: =VLOOKUP('Utility Group'!$B18,vldatabase,2,FALSE) -> OGE Energy Corp. | D23: =HLOOKUP('Utility Group'!$B18,stockprice,33,FALSE) -> 30.53333333 | F23: =VLOOKUP('Utility Group'!$B18,vldatabase,4,FALSE) -> 1.64 | H23: 0.05371179039
A24: 17 | B24: =VLOOKUP('Utility Group'!$B19,vldatabase,2,FALSE) -> Pub Sv Enterprise Grp. | D24: =HLOOKUP('Utility Group'!$B19,stockprice,33,FALSE) -> 52.915 | F24: =VLOOKUP('Utility Group'!$B19,vldatabase,4,FALSE) -> 2 | H24: 0.03779646603
A25: 18 | B25: =VLOOKUP('Utility Group'!$B20,vldatabase,2,FALSE) -> Sempra Energy | D25: =HLOOKUP('Utility Group'!$B20,stockprice,33,FALSE) -> 120.3233333 | F25: =VLOOKUP('Utility Group'!$B20,vldatabase,4,FALSE) -> 4.34 | H25: 0.03606947946
A26: 19 | B26: =VLOOKUP('Utility Group'!$B21,vldatabase,2,FALSE) -> Southern Company | D26: =HLOOKUP('Utility Group'!$B21,stockprice,33,FALSE) -> 52.95433333 | F26: =VLOOKUP('Utility Group'!$B21,vldatabase,4,FALSE) -> 2.6 | H26: 0.04909890912
A27: 20 | B27: =VLOOKUP('Utility Group'!$B22,vldatabase,2,FALSE) -> WEC Energy Group | D27: =HLOOKUP('Utility Group'!$B22,stockprice,33,FALSE) -> 95.44866667 | F27: =VLOOKUP('Utility Group'!$B22,vldatabase,4,FALSE) -> 2.66 | H27: 0.02786838301
A28: 21 | B28: =VLOOKUP('Utility Group'!$B23,vldatabase,2,FALSE) -> Xcel Energy Inc. | D28: =HLOOKUP('Utility Group'!$B23,stockprice,33,FALSE) -> 69.03916667 | F28: =VLOOKUP('Utility Group'!$B23,vldatabase,4,FALSE) -> 1.77 | H28: 0.02563762116
B30: Average | H30: =AVERAGE(H8:H28) -> 0.03698993564
A33: (a) | B33: ='Stock Price (Utility)'!B37 -> Average of closing prices for 30 trading days ended Oct. 2, 2020.
A34: (b) | B34: ='Electric Utility Data'!B49 -> The Value Line Investment Survey, Summary & Index (Oct. 2, 2020).
H35: =MIN(H8:H28) -> 0.02097084055
H36: =MAX(H8:H28) -> 0.05371179039

Sheet 15 (2)
A1: ='Exhibit List'!C5 -> DCF MODEL | L1: ='Exhibit List'!B5 -> Exh. AMM-15
L2: Page 2 of 4
A3: ='Exhibit List'!D5 -> GROWTH RATES
E5: (a) | G5: (b) | I5: (c) | K5: (d)
D6: Earnings Growth | K6: br+sv
B7: Company | E7: Value Line | G7: IBES | I7: Zacks | K7: Growth
A8: =A7+1 -> 1 | B8: =VLOOKUP('Utility Group'!$B3,vldatabase,2,FALSE) -> Alliant Energy | E8: =VLOOKUP('Utility Group'!$B3,vldatabase,19,FALSE) -> 0.055 | G8: =VLOOKUP('Utility Group'!$B3,vldatabase,30,FALSE) -> 0.053 | I8: =VLOOKUP('Utility Group'!$B3,vldatabase,31,FALSE) -> 0.0554 | K8: ='16'!Q8 -> 0.0466952071
A9: =A8+1 -> 2 | B9: =VLOOKUP('Utility Group'!$B4,vldatabase,2,FALSE) -> Ameren Corp. | E9: =VLOOKUP('Utility Group'!$B4,vldatabase,19,FALSE) -> 0.06 | G9: =VLOOKUP('Utility Group'!$B4,vldatabase,30,FALSE) -> 0.06 | I9: =VLOOKUP('Utility Group'!$B4,vldatabase,31,FALSE) -> 0.0689 | K9: ='16'!Q9 -> 0.05962118209
A10: 3 | B10: =VLOOKUP('Utility Group'!$B5,vldatabase,2,FALSE) -> American Elec Pwr | E10: =VLOOKUP('Utility Group'!$B5,vldatabase,19,FALSE) -> 0.06 | G10: =VLOOKUP('Utility Group'!$B5,vldatabase,30,FALSE) -> 0.0563 | I10: =VLOOKUP('Utility Group'!$B5,vldatabase,31,FALSE) -> 0.0559 | K10: ='16'!Q10 -> 0.05688542182
A11: 4 | B11: =VLOOKUP('Utility Group'!$B6,vldatabase,2,FALSE) -> Avangrid, Inc. | E11: =VLOOKUP('Utility Group'!$B6,vldatabase,19,FALSE) -> 0.04 | G11: =VLOOKUP('Utility Group'!$B6,vldatabase,30,FALSE) -> 0.046 | I11: =VLOOKUP('Utility Group'!$B6,vldatabase,31,FALSE) -> 0.0531 | K11: ='16'!Q11 -> 0.01359269496
A12: 5 | B12: =VLOOKUP('Utility Group'!$B7,vldatabase,2,FALSE) -> Black Hills Corp. | E12: =VLOOKUP('Utility Group'!$B7,vldatabase,19,FALSE) -> 0.035 | G12: =VLOOKUP('Utility Group'!$B7,vldatabase,30,FALSE) -> 0.0469 | I12: =VLOOKUP('Utility Group'!$B7,vldatabase,31,FALSE) -> 0.0576 | K12: ='16'!Q12 -> 0.0381347832
A13: 6 | B13: =VLOOKUP('Utility Group'!$B8,vldatabase,2,FALSE) -> CMS Energy Corp. | E13: =VLOOKUP('Utility Group'!$B8,vldatabase,19,FALSE) -> 0.075 | G13: =VLOOKUP('Utility Group'!$B8,vldatabase,30,FALSE) -> 0.0708 | I13: =VLOOKUP('Utility Group'!$B8,vldatabase,31,FALSE) -> 0.0701 | K13: ='16'!Q13 -> 0.07243823919
A14: 7 | B14: =VLOOKUP('Utility Group'!$B9,vldatabase,2,FALSE) -> Consolidated Edison | E14: =VLOOKUP('Utility Group'!$B9,vldatabase,19,FALSE) -> 0.03 | G14: =VLOOKUP('Utility Group'!$B9,vldatabase,30,FALSE) -> 0.0255 | I14: =VLOOKUP('Utility Group'!$B9,vldatabase,31,FALSE) -> 0.02 | K14: ='16'!Q14 -> 0.03344926198
A15: 8 | B15: =VLOOKUP('Utility Group'!$B10,vldatabase,2,FALSE) -> DTE Energy Co. | E15: =VLOOKUP('Utility Group'!$B10,vldatabase,19,FALSE) -> 0.06 | G15: =VLOOKUP('Utility Group'!$B10,vldatabase,30,FALSE) -> 0.0595 | I15: =VLOOKUP('Utility Group'!$B10,vldatabase,31,FALSE) -> 0.0567 | K15: ='16'!Q15 -> 0.05293953456
A16: 9 | B16: =VLOOKUP('Utility Group'!$B11,vldatabase,2,FALSE) -> Duke Energy Corp. | E16: =VLOOKUP('Utility Group'!$B11,vldatabase,19,FALSE) -> 0.05 | G16: =VLOOKUP('Utility Group'!$B11,vldatabase,30,FALSE) -> 0.016 | I16: =VLOOKUP('Utility Group'!$B11,vldatabase,31,FALSE) -> 0.0427 | K16: ='16'!Q16 -> 0.03127977182
A17: 10 | B17: =VLOOKUP('Utility Group'!$B12,vldatabase,2,FALSE) -> Entergy Corp. | E17: =VLOOKUP('Utility Group'!$B12,vldatabase,19,FALSE) -> 0.03 | G17: =VLOOKUP('Utility Group'!$B12,vldatabase,30,FALSE) -> 0.054 | I17: =VLOOKUP('Utility Group'!$B12,vldatabase,31,FALSE) -> 0.0543 | K17: ='16'!Q17 -> 0.04905237842
A18: 11 | B18: =VLOOKUP('Utility Group'!$B13,vldatabase,2,FALSE) -> Evergy Inc. | E18: =VLOOKUP('Utility Group'!$B13,vldatabase,19,FALSE) -> 0.045 | G18: =VLOOKUP('Utility Group'!$B13,vldatabase,30,FALSE) -> 0.068 | I18: =VLOOKUP('Utility Group'!$B13,vldatabase,31,FALSE) -> 0.0641 | K18: ='16'!Q18 -> 0.0229345023
A19: 12 | B19: =VLOOKUP('Utility Group'!$B14,vldatabase,2,FALSE) -> Eversource Energy | E19: =VLOOKUP('Utility Group'!$B14,vldatabase,19,FALSE) -> 0.055 | G19: =VLOOKUP('Utility Group'!$B14,vldatabase,30,FALSE) -> 0.0644 | I19: =VLOOKUP('Utility Group'!$B14,vldatabase,31,FALSE) -> 0.0659 | K19: ='16'!Q19 -> 0.04726046846
A20: 13 | B20: =VLOOKUP('Utility Group'!$B15,vldatabase,2,FALSE) -> Exelon Corp. | E20: =VLOOKUP('Utility Group'!$B15,vldatabase,19,FALSE) -> 0.05 | G20: =VLOOKUP('Utility Group'!$B15,vldatabase,30,FALSE) -> -0.0348 | I20: =VLOOKUP('Utility Group'!$B15,vldatabase,31,FALSE) -> 0.04 | K20: ='16'!Q20 -> 0.04146579101
A21: 14 | B21: =VLOOKUP('Utility Group'!$B16,vldatabase,2,FALSE) -> Fortis Inc. | E21: =VLOOKUP('Utility Group'!$B16,vldatabase,19,FALSE) -> 0.025 | G21: =VLOOKUP('Utility Group'!$B16,vldatabase,30,FALSE) -> 0.054 | I21: =VLOOKUP('Utility Group'!$B16,vldatabase,31,FALSE) -> 0.0611 | K21: ='16'!Q21 -> 0.01507414181
A22: 15 | B22: =VLOOKUP('Utility Group'!$B17,vldatabase,2,FALSE) -> NextEra Energy, Inc. | E22: =VLOOKUP('Utility Group'!$B17,vldatabase,19,FALSE) -> 0.1 | G22: =VLOOKUP('Utility Group'!$B17,vldatabase,30,FALSE) -> 0.0814 | I22: =VLOOKUP('Utility Group'!$B17,vldatabase,31,FALSE) -> 0.0794 | K22: ='16'!Q22 -> 0.05489917096
A23: 16 | B23: =VLOOKUP('Utility Group'!$B18,vldatabase,2,FALSE) -> OGE Energy Corp. | E23: =VLOOKUP('Utility Group'!$B18,vldatabase,19,FALSE) -> 0.03 | G23: =VLOOKUP('Utility Group'!$B18,vldatabase,30,FALSE) -> 0.024 | I23: =VLOOKUP('Utility Group'!$B18,vldatabase,31,FALSE) -> 0.0369 | K23: ='16'!Q23 -> 0.02667724258
A24: 17 | B24: =VLOOKUP('Utility Group'!$B19,vldatabase,2,FALSE) -> Pub Sv Enterprise Grp. | E24: =VLOOKUP('Utility Group'!$B19,vldatabase,19,FALSE) -> 0.05 | G24: =VLOOKUP('Utility Group'!$B19,vldatabase,30,FALSE) -> 0.0147 | I24: =VLOOKUP('Utility Group'!$B19,vldatabase,31,FALSE) -> 0.0346 | K24: ='16'!Q24 -> 0.05213361229
A25: 18 | B25: =VLOOKUP('Utility Group'!$B20,vldatabase,2,FALSE) -> Sempra Energy | E25: =VLOOKUP('Utility Group'!$B20,vldatabase,19,FALSE) -> 0.1 | G25: =VLOOKUP('Utility Group'!$B20,vldatabase,30,FALSE) -> 0.0627 | I25: =VLOOKUP('Utility Group'!$B20,vldatabase,31,FALSE) -> 0.0736 | K25: ='16'!Q25 -> 0.07301339347
A26: 19 | B26: =VLOOKUP('Utility Group'!$B21,vldatabase,2,FALSE) -> Southern Company | E26: =VLOOKUP('Utility Group'!$B21,vldatabase,19,FALSE) -> 0.03 | G26: =VLOOKUP('Utility Group'!$B21,vldatabase,30,FALSE) -> 0.0455 | I26: =VLOOKUP('Utility Group'!$B21,vldatabase,31,FALSE) -> 0.04 | K26: ='16'!Q26 -> 0.03637733376
A27: 20 | B27: =VLOOKUP('Utility Group'!$B22,vldatabase,2,FALSE) -> WEC Energy Group | E27: =VLOOKUP('Utility Group'!$B22,vldatabase,19,FALSE) -> 0.06 | G27: =VLOOKUP('Utility Group'!$B22,vldatabase,30,FALSE) -> 0.0595 | I27: =VLOOKUP('Utility Group'!$B22,vldatabase,31,FALSE) -> 0.0594 | K27: ='16'!Q27 -> 0.04155008575
A28: 21 | B28: =VLOOKUP('Utility Group'!$B23,vldatabase,2,FALSE) -> Xcel Energy Inc. | E28: =VLOOKUP('Utility Group'!$B23,vldatabase,19,FALSE) -> 0.06 | G28: =VLOOKUP('Utility Group'!$B23,vldatabase,30,FALSE) -> 0.0585 | I28: =VLOOKUP('Utility Group'!$B23,vldatabase,31,FALSE) -> 0.0581 | K28: ='16'!Q28 -> 0.05046004427
A32: (a) | B32: ='Proxy Group Risk Measures'!B35 -> The Value Line Investment Survey (Jul. 24, Aug. 14 and Sep. 11, 2020).
A33: (b) | B33: ='Electric Utility Data'!B53 -> www.finance.yahoo.com (retreived Oct. 5, 2020).
A34: (c) | B34: ='Electric Utility Data'!B54 -> www.zacks.com (retrieved Oct. 5, 2020).
A35: (d) | B35: ="See " & 'Exhibit List'!B9 &"." -> See Exh. AMM-17.

Sheet 15 (3)
A1: ='Exhibit List'!C6 -> DCF MODEL | M1: ='Exhibit List'!B6 -> Exh. AMM-15
M2: Page 3 of 4
A3: ='Exhibit List'!D6 -> DCF COST OF EQUITY ESTIMATES
E5: (a) | G5: (a) | I5: (a) | L5: (a)
D6: Earnings Growth | L6: br+sv
B7: Company | E7: Value Line | G7: IBES | I7: Zacks | L7: Growth
A9: =A7+1 -> 1 | B9: =VLOOKUP('Utility Group'!$B3,vldatabase,2,FALSE) -> Alliant Energy | E9: =IF('15 (2)'!E8="n/a","n/a",'15 (1)'!$H8+'15 (2)'!E8) -> 0.08391272921 | G9: =IF('15 (2)'!G8="n/a","n/a",'15 (1)'!$H8+'15 (2)'!G8) -> 0.08191272921 | I9: =IF('15 (2)'!I8="n/a","n/a",'15 (1)'!$H8+'15 (2)'!I8) -> 0.08431272921 | L9: =IF('15 (2)'!K8="n/a","n/a",'15 (1)'!$H8+'15 (2)'!K8) -> 0.07560793631 | P9: =IF(E9="n/a","n/a",IF(E9<$E$42,"nmf",IF(E9>$E$43,"nmf",E9))) -> 0.08391272921 | Q9: =IF(G9="n/a","n/a",IF(G9<$E$42,"nmf",IF(G9>$E$43,"nmf",G9))) -> 0.08191272921 | R9: =IF(I9="n/a","n/a",IF(I9<$E$42,"nmf",IF(I9>$E$43,"nmf",I9))) -> 0.08431272921 | T9: =IF(L9="n/a","n/a",IF(L9<$E$42,"nmf",IF(L9>$E$43,"nmf",L9))) -> 0.07560793631
A10: =A9+1 -> 2 | B10: =VLOOKUP('Utility Group'!$B4,vldatabase,2,FALSE) -> Ameren Corp. | E10: =IF('15 (2)'!E9="n/a","n/a",'15 (1)'!$H9+'15 (2)'!E9) -> 0.08655759892 | G10: =IF('15 (2)'!G9="n/a","n/a",'15 (1)'!$H9+'15 (2)'!G9) -> 0.08655759892 | I10: =IF('15 (2)'!I9="n/a","n/a",'15 (1)'!$H9+'15 (2)'!I9) -> 0.09545759892 | L10: =IF('15 (2)'!K9="n/a","n/a",'15 (1)'!$H9+'15 (2)'!K9) -> 0.08617878101 | P10: 0.08655759892 | Q10: 0.08655759892 | R10: 0.09545759892 | T10: 0.08617878101
A11: 3 | B11: =VLOOKUP('Utility Group'!$B5,vldatabase,2,FALSE) -> American Elec Pwr | E11: =IF('15 (2)'!E10="n/a","n/a",'15 (1)'!$H10+'15 (2)'!E10) -> 0.09703163118 | G11: =IF('15 (2)'!G10="n/a","n/a",'15 (1)'!$H10+'15 (2)'!G10) -> 0.09333163118 | I11: =IF('15 (2)'!I10="n/a","n/a",'15 (1)'!$H10+'15 (2)'!I10) -> 0.09293163118 | L11: =IF('15 (2)'!K10="n/a","n/a",'15 (1)'!$H10+'15 (2)'!K10) -> 0.09391705301 | P11: 0.09703163118 | Q11: 0.09333163118 | R11: 0.09293163118 | T11: 0.09391705301
A12: 4 | B12: =VLOOKUP('Utility Group'!$B6,vldatabase,2,FALSE) -> Avangrid, Inc. | E12: =IF('15 (2)'!E11="n/a","n/a",'15 (1)'!$H11+'15 (2)'!E11) -> 0.07581457816 | G12: =IF('15 (2)'!G11="n/a","n/a",'15 (1)'!$H11+'15 (2)'!G11) -> 0.08181457816 | I12: =IF('15 (2)'!I11="n/a","n/a",'15 (1)'!$H11+'15 (2)'!I11) -> 0.08891457816 | L12: =IF('15 (2)'!K11="n/a","n/a",'15 (1)'!$H11+'15 (2)'!K11) -> 0.04940727312 | P12: 0.07581457816 | Q12: 0.08181457816 | R12: 0.08891457816 | T12: nmf
A13: 5 | B13: =VLOOKUP('Utility Group'!$B7,vldatabase,2,FALSE) -> Black Hills Corp. | E13: =IF('15 (2)'!E12="n/a","n/a",'15 (1)'!$H12+'15 (2)'!E12) -> 0.07577105438 | G13: =IF('15 (2)'!G12="n/a","n/a",'15 (1)'!$H12+'15 (2)'!G12) -> 0.08767105438 | I13: =IF('15 (2)'!I12="n/a","n/a",'15 (1)'!$H12+'15 (2)'!I12) -> 0.09837105438 | L13: =IF('15 (2)'!K12="n/a","n/a",'15 (1)'!$H12+'15 (2)'!K12) -> 0.07890583758 | P13: 0.07577105438 | Q13: 0.08767105438 | R13: 0.09837105438 | T13: 0.07890583758
A14: 6 | B14: =VLOOKUP('Utility Group'!$B8,vldatabase,2,FALSE) -> CMS Energy Corp. | E14: =IF('15 (2)'!E13="n/a","n/a",'15 (1)'!$H13+'15 (2)'!E13) -> 0.1030958875 | G14: =IF('15 (2)'!G13="n/a","n/a",'15 (1)'!$H13+'15 (2)'!G13) -> 0.09889588749 | I14: =IF('15 (2)'!I13="n/a","n/a",'15 (1)'!$H13+'15 (2)'!I13) -> 0.09819588749 | L14: =IF('15 (2)'!K13="n/a","n/a",'15 (1)'!$H13+'15 (2)'!K13) -> 0.1005341267 | P14: 0.1030958875 | Q14: 0.09889588749 | R14: 0.09819588749 | T14: 0.1005341267
A15: 7 | B15: =VLOOKUP('Utility Group'!$B9,vldatabase,2,FALSE) -> Consolidated Edison | E15: =IF('15 (2)'!E14="n/a","n/a",'15 (1)'!$H14+'15 (2)'!E14) -> 0.07210611825 | G15: =IF('15 (2)'!G14="n/a","n/a",'15 (1)'!$H14+'15 (2)'!G14) -> 0.06760611825 | I15: =IF('15 (2)'!I14="n/a","n/a",'15 (1)'!$H14+'15 (2)'!I14) -> 0.06210611825 | L15: =IF('15 (2)'!K14="n/a","n/a",'15 (1)'!$H14+'15 (2)'!K14) -> 0.07555538023 | P15: 0.07210611825 | Q15: 0.06760611825 | R15: 0.06210611825 | T15: 0.07555538023
A16: 8 | B16: =VLOOKUP('Utility Group'!$B10,vldatabase,2,FALSE) -> DTE Energy Co. | E16: =IF('15 (2)'!E15="n/a","n/a",'15 (1)'!$H15+'15 (2)'!E15) -> 0.09728458274 | G16: =IF('15 (2)'!G15="n/a","n/a",'15 (1)'!$H15+'15 (2)'!G15) -> 0.09678458274 | I16: =IF('15 (2)'!I15="n/a","n/a",'15 (1)'!$H15+'15 (2)'!I15) -> 0.09398458274 | L16: =IF('15 (2)'!K15="n/a","n/a",'15 (1)'!$H15+'15 (2)'!K15) -> 0.0902241173 | P16: 0.09728458274 | Q16: 0.09678458274 | R16: 0.09398458274 | T16: 0.0902241173
A17: 9 | B17: =VLOOKUP('Utility Group'!$B11,vldatabase,2,FALSE) -> Duke Energy Corp. | E17: =IF('15 (2)'!E16="n/a","n/a",'15 (1)'!$H16+'15 (2)'!E16) -> 0.09691694411 | G17: =IF('15 (2)'!G16="n/a","n/a",'15 (1)'!$H16+'15 (2)'!G16) -> 0.06291694411 | I17: =IF('15 (2)'!I16="n/a","n/a",'15 (1)'!$H16+'15 (2)'!I16) -> 0.08961694411 | L17: =IF('15 (2)'!K16="n/a","n/a",'15 (1)'!$H16+'15 (2)'!K16) -> 0.07819671593 | P17: 0.09691694411 | Q17: 0.06291694411 | R17: 0.08961694411 | T17: 0.07819671593
A18: 10 | B18: =VLOOKUP('Utility Group'!$B12,vldatabase,2,FALSE) -> Entergy Corp. | E18: =IF('15 (2)'!E17="n/a","n/a",'15 (1)'!$H17+'15 (2)'!E17) -> 0.06894759499 | G18: =IF('15 (2)'!G17="n/a","n/a",'15 (1)'!$H17+'15 (2)'!G17) -> 0.09294759499 | I18: =IF('15 (2)'!I17="n/a","n/a",'15 (1)'!$H17+'15 (2)'!I17) -> 0.09324759499 | L18: =IF('15 (2)'!K17="n/a","n/a",'15 (1)'!$H17+'15 (2)'!K17) -> 0.08799997341 | P18: 0.06894759499 | Q18: 0.09294759499 | R18: 0.09324759499 | T18: 0.08799997341
A19: 11 | B19: =VLOOKUP('Utility Group'!$B13,vldatabase,2,FALSE) -> Evergy Inc. | E19: =IF('15 (2)'!E18="n/a","n/a",'15 (1)'!$H18+'15 (2)'!E18) -> 0.08654909524 | G19: =IF('15 (2)'!G18="n/a","n/a",'15 (1)'!$H18+'15 (2)'!G18) -> 0.1095490952 | I19: =IF('15 (2)'!I18="n/a","n/a",'15 (1)'!$H18+'15 (2)'!I18) -> 0.1056490952 | L19: =IF('15 (2)'!K18="n/a","n/a",'15 (1)'!$H18+'15 (2)'!K18) -> 0.06448359754 | P19: 0.08654909524 | Q19: 0.1095490952 | R19: 0.1056490952 | T19: 0.06448359754
A20: 12 | B20: =VLOOKUP('Utility Group'!$B14,vldatabase,2,FALSE) -> Eversource Energy | E20: =IF('15 (2)'!E19="n/a","n/a",'15 (1)'!$H19+'15 (2)'!E19) -> 0.08301925401 | G20: =IF('15 (2)'!G19="n/a","n/a",'15 (1)'!$H19+'15 (2)'!G19) -> 0.09241925401 | I20: =IF('15 (2)'!I19="n/a","n/a",'15 (1)'!$H19+'15 (2)'!I19) -> 0.09391925401 | L20: =IF('15 (2)'!K19="n/a","n/a",'15 (1)'!$H19+'15 (2)'!K19) -> 0.07527972247 | P20: 0.08301925401 | Q20: 0.09241925401 | R20: 0.09391925401 | T20: 0.07527972247
A21: 13 | B21: =VLOOKUP('Utility Group'!$B15,vldatabase,2,FALSE) -> Exelon Corp. | E21: =IF('15 (2)'!E20="n/a","n/a",'15 (1)'!$H20+'15 (2)'!E20) -> 0.09337016575 | G21: =IF('15 (2)'!G20="n/a","n/a",'15 (1)'!$H20+'15 (2)'!G20) -> 0.008570165746 | I21: =IF('15 (2)'!I20="n/a","n/a",'15 (1)'!$H20+'15 (2)'!I20) -> 0.08337016575 | L21: =IF('15 (2)'!K20="n/a","n/a",'15 (1)'!$H20+'15 (2)'!K20) -> 0.08483595675 | P21: 0.09337016575 | Q21: nmf | R21: 0.08337016575 | T21: 0.08483595675
A22: 14 | B22: =VLOOKUP('Utility Group'!$B16,vldatabase,2,FALSE) -> Fortis Inc. | E22: =IF('15 (2)'!E21="n/a","n/a",'15 (1)'!$H21+'15 (2)'!E21) -> 0.07525792433 | G22: =IF('15 (2)'!G21="n/a","n/a",'15 (1)'!$H21+'15 (2)'!G21) -> 0.1042579243 | I22: =IF('15 (2)'!I21="n/a","n/a",'15 (1)'!$H21+'15 (2)'!I21) -> 0.1113579243 | L22: =IF('15 (2)'!K21="n/a","n/a",'15 (1)'!$H21+'15 (2)'!K21) -> 0.06533206614 | P22: 0.07525792433 | Q22: 0.1042579243 | R22: 0.1113579243 | T22: 0.06533206614
A23: 15 | B23: =VLOOKUP('Utility Group'!$B17,vldatabase,2,FALSE) -> NextEra Energy, Inc. | E23: =IF('15 (2)'!E22="n/a","n/a",'15 (1)'!$H22+'15 (2)'!E22) -> 0.1209708405 | G23: =IF('15 (2)'!G22="n/a","n/a",'15 (1)'!$H22+'15 (2)'!G22) -> 0.1023708405 | I23: =IF('15 (2)'!I22="n/a","n/a",'15 (1)'!$H22+'15 (2)'!I22) -> 0.1003708405 | L23: =IF('15 (2)'!K22="n/a","n/a",'15 (1)'!$H22+'15 (2)'!K22) -> 0.0758700115 | P23: 0.1209708405 | Q23: 0.1023708405 | R23: 0.1003708405 | T23: 0.0758700115
A24: 16 | B24: =VLOOKUP('Utility Group'!$B18,vldatabase,2,FALSE) -> OGE Energy Corp. | E24: =IF('15 (2)'!E23="n/a","n/a",'15 (1)'!$H23+'15 (2)'!E23) -> 0.08371179039 | G24: =IF('15 (2)'!G23="n/a","n/a",'15 (1)'!$H23+'15 (2)'!G23) -> 0.07771179039 | I24: =IF('15 (2)'!I23="n/a","n/a",'15 (1)'!$H23+'15 (2)'!I23) -> 0.09061179039 | L24: =IF('15 (2)'!K23="n/a","n/a",'15 (1)'!$H23+'15 (2)'!K23) -> 0.08038903297 | P24: 0.08371179039 | Q24: 0.07771179039 | R24: 0.09061179039 | T24: 0.08038903297
A25: 17 | B25: =VLOOKUP('Utility Group'!$B19,vldatabase,2,FALSE) -> Pub Sv Enterprise Grp. | E25: =IF('15 (2)'!E24="n/a","n/a",'15 (1)'!$H24+'15 (2)'!E24) -> 0.08779646603 | G25: =IF('15 (2)'!G24="n/a","n/a",'15 (1)'!$H24+'15 (2)'!G24) -> 0.05249646603 | I25: =IF('15 (2)'!I24="n/a","n/a",'15 (1)'!$H24+'15 (2)'!I24) -> 0.07239646603 | L25: =IF('15 (2)'!K24="n/a","n/a",'15 (1)'!$H24+'15 (2)'!K24) -> 0.08993007832 | P25: 0.08779646603 | Q25: nmf | R25: 0.07239646603 | T25: 0.08993007832
A26: 18 | B26: =VLOOKUP('Utility Group'!$B20,vldatabase,2,FALSE) -> Sempra Energy | E26: =IF('15 (2)'!E25="n/a","n/a",'15 (1)'!$H25+'15 (2)'!E25) -> 0.1360694795 | G26: =IF('15 (2)'!G25="n/a","n/a",'15 (1)'!$H25+'15 (2)'!G25) -> 0.09876947946 | I26: =IF('15 (2)'!I25="n/a","n/a",'15 (1)'!$H25+'15 (2)'!I25) -> 0.1096694795 | L26: =IF('15 (2)'!K25="n/a","n/a",'15 (1)'!$H25+'15 (2)'!K25) -> 0.1090828729 | P26: nmf | Q26: 0.09876947946 | R26: 0.1096694795 | T26: 0.1090828729
A27: 19 | B27: =VLOOKUP('Utility Group'!$B21,vldatabase,2,FALSE) -> Southern Company | E27: =IF('15 (2)'!E26="n/a","n/a",'15 (1)'!$H26+'15 (2)'!E26) -> 0.07909890912 | G27: =IF('15 (2)'!G26="n/a","n/a",'15 (1)'!$H26+'15 (2)'!G26) -> 0.09459890912 | I27: =IF('15 (2)'!I26="n/a","n/a",'15 (1)'!$H26+'15 (2)'!I26) -> 0.08909890912 | L27: =IF('15 (2)'!K26="n/a","n/a",'15 (1)'!$H26+'15 (2)'!K26) -> 0.08547624289 | P27: 0.07909890912 | Q27: 0.09459890912 | R27: 0.08909890912 | T27: 0.08547624289
A28: 20 | B28: =VLOOKUP('Utility Group'!$B22,vldatabase,2,FALSE) -> WEC Energy Group | E28: =IF('15 (2)'!E27="n/a","n/a",'15 (1)'!$H27+'15 (2)'!E27) -> 0.08786838301 | G28: =IF('15 (2)'!G27="n/a","n/a",'15 (1)'!$H27+'15 (2)'!G27) -> 0.08736838301 | I28: =IF('15 (2)'!I27="n/a","n/a",'15 (1)'!$H27+'15 (2)'!I27) -> 0.08726838301 | L28: =IF('15 (2)'!K27="n/a","n/a",'15 (1)'!$H27+'15 (2)'!K27) -> 0.06941846876 | P28: 0.08786838301 | Q28: 0.08736838301 | R28: 0.08726838301 | T28: 0.06941846876
A29: 21 | B29: =VLOOKUP('Utility Group'!$B23,vldatabase,2,FALSE) -> Xcel Energy Inc. | E29: =IF('15 (2)'!E28="n/a","n/a",'15 (1)'!$H28+'15 (2)'!E28) -> 0.08563762116 | G29: =IF('15 (2)'!G28="n/a","n/a",'15 (1)'!$H28+'15 (2)'!G28) -> 0.08413762116 | I29: =IF('15 (2)'!I28="n/a","n/a",'15 (1)'!$H28+'15 (2)'!I28) -> 0.08373762116 | L29: =IF('15 (2)'!K28="n/a","n/a",'15 (1)'!$H28+'15 (2)'!K28) -> 0.07609766543 | P29: 0.08563762116 | Q29: 0.08413762116 | R29: 0.08373762116 | T29: 0.07609766543
B31: Average (b) | E31: =P33 -> 0.08703595845 | G31: =Q33 -> 0.08955905351 | I31: =R33 -> 0.0916470785 | L31: =T33 -> 0.08216578186 | O31: Max | P31: =MAX(P9:P29) -> 0.1209708405 | Q31: =MAX(Q9:Q29) -> 0.1095490952 | R31: =MAX(R9:R29) -> 0.1113579243 | T31: =MAX(T9:T29) -> 0.1090828729
B32: Midpoint (b,c) | E32: =AVERAGE(P31:P32) -> 0.09495921777 | G32: =AVERAGE(Q31:Q32) -> 0.08623301968 | I32: =AVERAGE(R31:R32) -> 0.08673202129 | L32: =AVERAGE(T31:T32) -> 0.08678323523 | O32: Min | P32: =MIN(P9:P29) -> 0.06894759499 | Q32: =MIN(Q9:Q29) -> 0.06291694411 | R32: =MIN(R9:R29) -> 0.06210611825 | T32: =MIN(T9:T29) -> 0.06448359754
O33: Average | P33: =AVERAGE(P9:P29) -> 0.08703595845 | Q33: =AVERAGE(Q9:Q29) -> 0.08955905351 | R33: =AVERAGE(R9:R29) -> 0.0916470785 | T33: =AVERAGE(T9:T29) -> 0.08216578186
O34: Median | P34: =MEDIAN(P9:P29) -> 0.0860933582 | Q34: =MEDIAN(Q9:Q29) -> 0.09241925401 | R34: 0.09293163118 | T34: 0.07964743527
A35: (a) | B35: ="Sum of dividend yield (" & M1 & ", p. 1) and respective growth rate (" & M1 & ", p. 2)." -> Sum of dividend yield (Exh. AMM-15, p. 1) and respective growth rate (Exh. AMM-15, p. 2).
A36: (b) | B36: Excludes highlighted figures.
A37: (c) | B37: Average of low and high values.
B42: Min | E42: 0.054
B43: Max | E43: 0.13

Sheet 15 (4)
A1: ='Exhibit List'!C7 -> DCF MODEL | J1: ='Exhibit List'!B7 -> Exh. AMM-15
J2: Page 4 of 4
A3: ='Exhibit List'!D7 -> LOW-END THRESHOLD ADJUSTMENTS
B6: Atlantic Path 15 / Startrans / So. Cal Edison | G6: Pioneer Transmission
D7: Baa Yield | H7: Baa Yield
C8: 2007-06-19 | D8: 0.0654 | G8: 2008-04-14 | H8: 0.0681
C9: 2007-07-19 | D9: 0.0649 | G9: 2008-05-14 | H9: 0.0679
C10: 2007-08-18 | D10: 0.0651 | G10: 2008-06-13 | H10: 0.0693
C11: 2007-09-17 | D11: 0.0645 | G11: 2008-07-13 | H11: 0.0697
C12: 2007-10-17 | D12: 0.0636 | G12: 2008-08-12 | H12: 0.0698
C13: 2007-11-16 | D13: 0.0627 | G13: 2008-09-11 | H13: 0.0715
G15: Current | I15: Projected
B16: Historical Baa Bond Yield | G16: =I16 -> 0.066875 | H16: (a) | I16: =AVERAGE(D8:D13,H8:H13) -> 0.066875 | J16: (a)
B17: Current Baa Bond Yield | G17: ='Bond Yields'!C16 -> 0.0337 | H17: (b) | I17: ='Bond Yields'!E39 -> 0.0479 | J17: (c)
C18: Change in Bond Yield | G18: =G17-G16 -> -0.033175 | I18: =I17-I16 -> -0.018975
B20: Risk Premium/Interest Rate Relationship | G20: ='19 (4)'!B46 -> -0.4210266906 | H20: (d) | I20: =G20 -> -0.4210266906 | J20: (d)
C21: Adjustment to Low-end Threshold | G21: =G20*G18 -> 0.01396756046 | I21: =I20*I18 -> 0.007988981454
B24: Current Baa Bond Yield | G24: =G17 -> 0.0337 | I24: =I17 -> 0.0479
B25: Original Threshold | G25: 0.01 | I25: 0.01
B26: Adjustment | G26: =G21 -> 0.01396756046 | I26: =I21 -> 0.007988981454
B27: Adjusted Low-end Threshold | G27: =SUM(G24:G26) -> 0.05766756046 | I27: =SUM(I24:I26) -> 0.06588898145
B29: Low-end Test -- FERC Opinion No. 569-A
B30: =B17 -> Current Baa Bond Yield | G30: =G17 -> 0.0337
B32: CAPM Market Risk Premium (e) | G32: ='17 (1)'!G9 -> 0.1017
B33: Risk Premium Factor (f) | G33: 0.2
C34: =C21 -> Adjustment to Low-end Threshold | G34: =G32*G33 -> 0.02034
B36: =B27 -> Adjusted Low-end Threshold | G36: =G30+G34 -> 0.05404
A38: (a) | B38: Average Baa utility bond yield for 6-mo. periods ending Nov. 2007 and Sep. 2008.
A39: (b) | B39: ="Average Baa utility bond yield for 6-months ended "&'Bond Yields'!B14&"." -> Average Baa utility bond yield for 6-months ended Sep. 2020.
A40: (c) | B40: ="Average Baa utility bond yield for 2021-25 based on data from "&'Bond Yields'!B73& "; "&'Bond Yields'!B74&", Moody's Investors Service at www.credittrends.com." -> Average Baa utility bond yield for 2021-25 based on data from IHS Markit, Long-Term Macro Forecast - Baseline (May 28, 2020); Energy Information Administration, Annual Energy Outlook 2020 (Jan. 29, 2020), Moody's Investors Service at www.credittrends.com.
A43: (d) | B43: ='19 (4)'!I1&", page 4." -> Exh. AMM-19, page 4.
A44: (e) | B44: ='17 (1)'!M1&", page 1." -> Exh. AMM-17, page 1.
A45: (f) | B45: 171 FERC ¶ 61,154, Docket Nos. EL14-12-004 and EL15-45-013, Opinion No. 569-A, Order on Rehearing (issued May 21, 2020).

Sheet 16
A1: ='Exhibit List'!$C$8 -> DCF MODEL | Q1: ='Exhibit List'!$B$8 -> Exh. AMM-16 | R1: =A1 -> DCF MODEL | AH1: =Q1 -> Exh. AMM-16
Q2: Page 1 of 2 | AH2: Page 2 of 2
A3: ='Exhibit List'!$D$8 -> BR+SV GROWTH RATE | R3: =A3 -> BR+SV GROWTH RATE
C5: (a) | D5: (a) | E5: (a) | I5: (b) | J5: (c) | M5: (d) | N5: (e) | T5: (a) | U5: (a) | V5: (f) | X5: (a) | Y5: (a) | Z5: (f) | AA5: (g) | AB5: (a) | AC5: (a) | AE5: (h) | AF5: (a) | AG5: (a) | AH5: (g)
C6: 2024 | I6: Adjustment | M6: "sv" Factor | T6: 2019 | X6: 2024 | AA6: Chg | AB6: 2024 | AF6: Common Shares
B7: Company | C7: EPS | D7: DPS | E7: BVPS | G7: b | H7: r | I7: Factor | J7: Adjusted r | K7: br | M7: s | N7: v | O7: sv | Q7: br + sv | S7: Company | T7: Eq Ratio | U7: Tot Cap | V7: Com Eq | X7: Eq Ratio | Y7: Tot Cap | Z7: Com Eq | AA7: Equity | AB7: High | AC7: Low | AD7: Avg. | AE7: M/B | AF7: 2019 | AG7: 2024 | AH7: Growth
A8: =A7+1 -> 1 | B8: =VLOOKUP('Utility Group'!$B3,vldatabase,2,FALSE) -> Alliant Energy | C8: =VLOOKUP('Utility Group'!$B3,vldatabase,7,FALSE) -> 3 | D8: =VLOOKUP('Utility Group'!$B3,vldatabase,8,FALSE) -> 2 | E8: =VLOOKUP('Utility Group'!$B3,vldatabase,9,FALSE) -> 28.25 | G8: =IF(E8="n/a", "n/a",+(C8-D8)/C8) -> 0.3333333333 | H8: =IF(E8="n/a","n/a",C8/E8) -> 0.1061946903 | I8: =IF(AA8="n/a","n/a",2*(1+AA8)/(2+AA8)) -> 1.01495992 | J8: =IF(H8="n/a","n/a",H8*I8) -> 0.1077833544 | K8: =IF(G8="n/a","n/a",G8*J8) -> 0.03592778479 | M8: =IF(AE8="n/a","n/a",AE8*AH8) -> 0.02656896413 | N8: =IF(AE8="n/a","n/a",1-1/AE8) -> 0.4052631579 | O8: =IF(M8="n/a","n/a",M8*N8) -> 0.0107674223 | Q8: =IF(K8="n/a","n/a",K8+O8) -> 0.0466952071 | R8: =A8 -> 1 | S8: =B8 -> Alliant Energy | T8: =VLOOKUP('Utility Group'!$B3,vldatabase,14,FALSE) -> 0.485 | U8: =VLOOKUP('Utility Group'!$B3,vldatabase,16,FALSE) -> 10226 | V8: =IF(U8="n/a","n/a",T8*U8) -> 4959.61 | X8: =VLOOKUP('Utility Group'!$B3,vldatabase,15,FALSE) -> 0.48 | Y8: =VLOOKUP('Utility Group'!$B3,vldatabase,17,FALSE) -> 12000 | Z8: =IF(Y8="n/a","n/a",X8*Y8) -> 5760 | AA8: =IF(V8="n/a","n/a",(+Z8/V8)^(1/5)-1) -> 0.03037423708 | AB8: =VLOOKUP('Utility Group'!$B3,vldatabase,5,FALSE) -> 55 | AC8: =VLOOKUP('Utility Group'!$B3,vldatabase,6,FALSE) -> 40 | AD8: =IF(AB8="n/a","n/a",AVERAGE(AB8:AC8)) -> 47.5 | AE8: =IF(AD8="n/a","n/a",AD8/E8) -> 1.681415929 | AF8: =VLOOKUP('Utility Group'!$B3,vldatabase,10,FALSE) -> 245.02 | AG8: =VLOOKUP('Utility Group'!$B3,vldatabase,11,FALSE) -> 265 | AH8: =IF(AF8="n/a","n/a",(+AG8/AF8)^(1/5)-1) -> 0.01580154182
A9: =A8+1 -> 2 | B9: =VLOOKUP('Utility Group'!$B4,vldatabase,2,FALSE) -> Ameren Corp. | C9: =VLOOKUP('Utility Group'!$B4,vldatabase,7,FALSE) -> 4.5 | D9: =VLOOKUP('Utility Group'!$B4,vldatabase,8,FALSE) -> 2.45 | E9: =VLOOKUP('Utility Group'!$B4,vldatabase,9,FALSE) -> 44.5 | G9: =IF(E9="n/a", "n/a",+(C9-D9)/C9) -> 0.4555555556 | H9: =IF(E9="n/a","n/a",C9/E9) -> 0.1011235955 | I9: =IF(AA9="n/a","n/a",2*(1+AA9)/(2+AA9)) -> 1.039799637 | J9: =IF(H9="n/a","n/a",H9*I9) -> 0.1051482779 | K9: =IF(G9="n/a","n/a",G9*J9) -> 0.04790088217 | M9: =IF(AE9="n/a","n/a",AE9*AH9) -> 0.03034720515 | N9: =IF(AE9="n/a","n/a",1-1/AE9) -> 0.3862068966 | O9: =IF(M9="n/a","n/a",M9*N9) -> 0.01172029992 | Q9: =IF(K9="n/a","n/a",K9+O9) -> 0.05962118209 | R9: =A9 -> 2 | S9: =B9 -> Ameren Corp. | T9: =VLOOKUP('Utility Group'!$B4,vldatabase,14,FALSE) -> 0.471 | U9: =VLOOKUP('Utility Group'!$B4,vldatabase,16,FALSE) -> 17116 | V9: =IF(U9="n/a","n/a",T9*U9) -> 8061.636 | X9: =VLOOKUP('Utility Group'!$B4,vldatabase,15,FALSE) -> 0.49 | Y9: =VLOOKUP('Utility Group'!$B4,vldatabase,17,FALSE) -> 24500 | Z9: =IF(Y9="n/a","n/a",X9*Y9) -> 12005 | AA9: =IF(V9="n/a","n/a",(+Z9/V9)^(1/5)-1) -> 0.08289860909 | AB9: =VLOOKUP('Utility Group'!$B4,vldatabase,5,FALSE) -> 85 | AC9: =VLOOKUP('Utility Group'!$B4,vldatabase,6,FALSE) -> 60 | AD9: =IF(AB9="n/a","n/a",AVERAGE(AB9:AC9)) -> 72.5 | AE9: =IF(AD9="n/a","n/a",AD9/E9) -> 1.629213483 | AF9: =VLOOKUP('Utility Group'!$B4,vldatabase,10,FALSE) -> 246.2 | AG9: =VLOOKUP('Utility Group'!$B4,vldatabase,11,FALSE) -> 270 | AH9: =IF(AF9="n/a","n/a",(+AG9/AF9)^(1/5)-1) -> 0.01862690523
A10: 3 | B10: =VLOOKUP('Utility Group'!$B5,vldatabase,2,FALSE) -> American Elec Pwr | C10: =VLOOKUP('Utility Group'!$B5,vldatabase,7,FALSE) -> 5.5 | D10: =VLOOKUP('Utility Group'!$B5,vldatabase,8,FALSE) -> 3.55 | E10: =VLOOKUP('Utility Group'!$B5,vldatabase,9,FALSE) -> 53 | G10: 0.3545454545 | H10: 0.1037735849 | I10: 1.04019247 | J10: 0.1079445016 | K10: 0.03827123239 | M10: 0.04210352372 | N10: 0.4421052632 | O10: 0.01861418943 | Q10: 0.05688542182 | R10: 3 | S10: American Elec Pwr | T10: =VLOOKUP('Utility Group'!$B5,vldatabase,14,FALSE) -> 0.439 | U10: =VLOOKUP('Utility Group'!$B5,vldatabase,16,FALSE) -> 44759 | V10: 19649.201 | X10: =VLOOKUP('Utility Group'!$B5,vldatabase,15,FALSE) -> 0.48 | Y10: =VLOOKUP('Utility Group'!$B5,vldatabase,17,FALSE) -> 61200 | Z10: 29376 | AA10: 0.0837511039 | AB10: =VLOOKUP('Utility Group'!$B5,vldatabase,5,FALSE) -> 105 | AC10: =VLOOKUP('Utility Group'!$B5,vldatabase,6,FALSE) -> 85 | AD10: 95 | AE10: 1.79245283 | AF10: =VLOOKUP('Utility Group'!$B5,vldatabase,10,FALSE) -> 494.17 | AG10: =VLOOKUP('Utility Group'!$B5,vldatabase,11,FALSE) -> 555 | AH10: 0.02348933429
A11: 4 | B11: =VLOOKUP('Utility Group'!$B6,vldatabase,2,FALSE) -> Avangrid, Inc. | C11: =VLOOKUP('Utility Group'!$B6,vldatabase,7,FALSE) -> 2.5 | D11: =VLOOKUP('Utility Group'!$B6,vldatabase,8,FALSE) -> 1.8 | E11: =VLOOKUP('Utility Group'!$B6,vldatabase,9,FALSE) -> 51.75 | G11: 0.28 | H11: 0.04830917874 | I11: 1.004802993 | J11: 0.04854120738 | K11: 0.01359153807 | M11: -5.315469853e-06 | N11: -0.2176470588 | O11: 1.15689638e-06 | Q11: 0.01359269496 | R11: 4 | S11: Avangrid, Inc. | T11: =VLOOKUP('Utility Group'!$B6,vldatabase,14,FALSE) -> 0.694 | U11: =VLOOKUP('Utility Group'!$B6,vldatabase,16,FALSE) -> 21953 | V11: 15235.382 | X11: =VLOOKUP('Utility Group'!$B6,vldatabase,15,FALSE) -> 0.575 | Y11: =VLOOKUP('Utility Group'!$B6,vldatabase,17,FALSE) -> 27800 | Z11: 15985 | AA11: 0.009652345588 | AB11: =VLOOKUP('Utility Group'!$B6,vldatabase,5,FALSE) -> 50 | AC11: =VLOOKUP('Utility Group'!$B6,vldatabase,6,FALSE) -> 35 | AD11: 42.5 | AE11: 0.8212560386 | AF11: =VLOOKUP('Utility Group'!$B6,vldatabase,10,FALSE) -> 309.01 | AG11: =VLOOKUP('Utility Group'!$B6,vldatabase,11,FALSE) -> 309 | AH11: -6.472366233e-06
A12: 5 | B12: =VLOOKUP('Utility Group'!$B7,vldatabase,2,FALSE) -> Black Hills Corp. | C12: =VLOOKUP('Utility Group'!$B7,vldatabase,7,FALSE) -> 4.25 | D12: =VLOOKUP('Utility Group'!$B7,vldatabase,8,FALSE) -> 2.75 | E12: =VLOOKUP('Utility Group'!$B7,vldatabase,9,FALSE) -> 46.75 | G12: 0.3529411765 | H12: 0.09090909091 | I12: 1.023168899 | J12: 0.0930153545 | K12: 0.03282894865 | M12: 0.01337242855 | N12: 0.3967741935 | O12: 0.005305834553 | Q12: 0.0381347832 | R12: 5 | S12: Black Hills Corp. | T12: =VLOOKUP('Utility Group'!$B7,vldatabase,14,FALSE) -> 0.429 | U12: =VLOOKUP('Utility Group'!$B7,vldatabase,16,FALSE) -> 5502.2 | V12: 2360.4438 | X12: =VLOOKUP('Utility Group'!$B7,vldatabase,15,FALSE) -> 0.48 | Y12: =VLOOKUP('Utility Group'!$B7,vldatabase,17,FALSE) -> 6200 | Z12: 2976 | AA12: 0.04743685875 | AB12: =VLOOKUP('Utility Group'!$B7,vldatabase,5,FALSE) -> 90 | AC12: =VLOOKUP('Utility Group'!$B7,vldatabase,6,FALSE) -> 65 | AD12: 77.5 | AE12: 1.657754011 | AF12: =VLOOKUP('Utility Group'!$B7,vldatabase,10,FALSE) -> 61.48 | AG12: =VLOOKUP('Utility Group'!$B7,vldatabase,11,FALSE) -> 64 | AH12: 0.008066593995
A13: 6 | B13: =VLOOKUP('Utility Group'!$B8,vldatabase,2,FALSE) -> CMS Energy Corp. | C13: =VLOOKUP('Utility Group'!$B8,vldatabase,7,FALSE) -> 3.5 | D13: =VLOOKUP('Utility Group'!$B8,vldatabase,8,FALSE) -> 2.15 | E13: =VLOOKUP('Utility Group'!$B8,vldatabase,9,FALSE) -> 25.5 | G13: 0.3857142857 | H13: 0.137254902 | I13: 1.042866494 | J13: 0.1431385384 | K13: 0.05521057909 | M13: 0.0283493141 | N13: 0.6076923077 | O13: 0.0172276601 | Q13: 0.07243823919 | R13: 6 | S13: CMS Energy Corp. | T13: =VLOOKUP('Utility Group'!$B8,vldatabase,14,FALSE) -> 0.294 | U13: =VLOOKUP('Utility Group'!$B8,vldatabase,16,FALSE) -> 17082 | V13: 5022.108 | X13: =VLOOKUP('Utility Group'!$B8,vldatabase,15,FALSE) -> 0.32 | Y13: =VLOOKUP('Utility Group'!$B8,vldatabase,17,FALSE) -> 24100 | Z13: 7712 | AA13: 0.08957265342 | AB13: =VLOOKUP('Utility Group'!$B8,vldatabase,5,FALSE) -> 75 | AC13: =VLOOKUP('Utility Group'!$B8,vldatabase,6,FALSE) -> 55 | AD13: 65 | AE13: 2.549019608 | AF13: =VLOOKUP('Utility Group'!$B8,vldatabase,10,FALSE) -> 283.86 | AG13: =VLOOKUP('Utility Group'!$B8,vldatabase,11,FALSE) -> 300 | AH13: 0.01112165399
A14: 7 | B14: =VLOOKUP('Utility Group'!$B9,vldatabase,2,FALSE) -> Consolidated Edison | C14: =VLOOKUP('Utility Group'!$B9,vldatabase,7,FALSE) -> 5 | D14: =VLOOKUP('Utility Group'!$B9,vldatabase,8,FALSE) -> 3.5 | E14: =VLOOKUP('Utility Group'!$B9,vldatabase,9,FALSE) -> 62.5 | G14: 0.3 | H14: 0.08 | I14: 1.023311518 | J14: 0.08186492147 | K14: 0.02455947644 | M14: 0.02741017207 | N14: 0.3243243243 | O14: 0.008889785537 | Q14: 0.03344926198 | R14: 7 | S14: Consolidated Edison | T14: =VLOOKUP('Utility Group'!$B9,vldatabase,14,FALSE) -> 0.493 | U14: =VLOOKUP('Utility Group'!$B9,vldatabase,16,FALSE) -> 36549 | V14: 18018.657 | X14: =VLOOKUP('Utility Group'!$B9,vldatabase,15,FALSE) -> 0.5 | Y14: =VLOOKUP('Utility Group'!$B9,vldatabase,17,FALSE) -> 45500 | Z14: 22750 | AA14: 0.04773583141 | AB14: =VLOOKUP('Utility Group'!$B9,vldatabase,5,FALSE) -> 100 | AC14: =VLOOKUP('Utility Group'!$B9,vldatabase,6,FALSE) -> 85 | AD14: 92.5 | AE14: 1.48 | AF14: =VLOOKUP('Utility Group'!$B9,vldatabase,10,FALSE) -> 333 | AG14: =VLOOKUP('Utility Group'!$B9,vldatabase,11,FALSE) -> 365 | AH14: 0.01852038654
A15: 8 | B15: =VLOOKUP('Utility Group'!$B10,vldatabase,2,FALSE) -> DTE Energy Co. | C15: =VLOOKUP('Utility Group'!$B10,vldatabase,7,FALSE) -> 8.5 | D15: =VLOOKUP('Utility Group'!$B10,vldatabase,8,FALSE) -> 5.2 | E15: =VLOOKUP('Utility Group'!$B10,vldatabase,9,FALSE) -> 79.25 | G15: 0.3882352941 | H15: 0.1072555205 | I15: 1.032628276 | J15: 0.1107550833 | K15: 0.04299903232 | M15: 0.02290815331 | N15: 0.4339285714 | O15: 0.009940502238 | Q15: 0.05293953456 | R15: 8 | S15: DTE Energy Co. | T15: =VLOOKUP('Utility Group'!$B10,vldatabase,14,FALSE) -> 0.423 | U15: =VLOOKUP('Utility Group'!$B10,vldatabase,16,FALSE) -> 27607 | V15: 11677.761 | X15: =VLOOKUP('Utility Group'!$B10,vldatabase,15,FALSE) -> 0.415 | Y15: =VLOOKUP('Utility Group'!$B10,vldatabase,17,FALSE) -> 39000 | Z15: 16185 | AA15: 0.06745757689 | AB15: =VLOOKUP('Utility Group'!$B10,vldatabase,5,FALSE) -> 160 | AC15: =VLOOKUP('Utility Group'!$B10,vldatabase,6,FALSE) -> 120 | AD15: 140 | AE15: 1.766561514 | AF15: =VLOOKUP('Utility Group'!$B10,vldatabase,10,FALSE) -> 192.21 | AG15: =VLOOKUP('Utility Group'!$B10,vldatabase,11,FALSE) -> 205 | AH15: 0.01296765107
A16: 9 | B16: =VLOOKUP('Utility Group'!$B11,vldatabase,2,FALSE) -> Duke Energy Corp. | C16: =VLOOKUP('Utility Group'!$B11,vldatabase,7,FALSE) -> 6 | D16: =VLOOKUP('Utility Group'!$B11,vldatabase,8,FALSE) -> 4.15 | E16: =VLOOKUP('Utility Group'!$B11,vldatabase,9,FALSE) -> 71 | G16: 0.3083333333 | H16: 0.08450704225 | I16: 1.021414165 | J16: 0.08631668997 | K16: 0.02661431274 | M16: 0.0184674422 | N16: 0.2526315789 | O16: 0.004665459083 | Q16: 0.03127977182 | R16: 9 | S16: Duke Energy Corp. | T16: =VLOOKUP('Utility Group'!$B11,vldatabase,14,FALSE) -> 0.441 | U16: =VLOOKUP('Utility Group'!$B11,vldatabase,16,FALSE) -> 101807 | V16: 44896.887 | X16: =VLOOKUP('Utility Group'!$B11,vldatabase,15,FALSE) -> 0.45 | Y16: =VLOOKUP('Utility Group'!$B11,vldatabase,17,FALSE) -> 123600 | Z16: 55620 | AA16: 0.04376553162 | AB16: =VLOOKUP('Utility Group'!$B11,vldatabase,5,FALSE) -> 110 | AC16: =VLOOKUP('Utility Group'!$B11,vldatabase,6,FALSE) -> 80 | AD16: 95 | AE16: 1.338028169 | AF16: =VLOOKUP('Utility Group'!$B11,vldatabase,10,FALSE) -> 733 | AG16: =VLOOKUP('Utility Group'!$B11,vldatabase,11,FALSE) -> 785 | AH16: 0.01380198312
A17: 10 | B17: =VLOOKUP('Utility Group'!$B12,vldatabase,2,FALSE) -> Entergy Corp. | C17: =VLOOKUP('Utility Group'!$B12,vldatabase,7,FALSE) -> 7 | D17: =VLOOKUP('Utility Group'!$B12,vldatabase,8,FALSE) -> 4.55 | E17: =VLOOKUP('Utility Group'!$B12,vldatabase,9,FALSE) -> 64 | G17: 0.35 | H17: 0.109375 | I17: 1.026682457 | J17: 0.1122933937 | K17: 0.0393026878 | M17: 0.02041601882 | N17: 0.4775510204 | O17: 0.009749690621 | Q17: 0.04905237842 | R17: 10 | S17: Entergy Corp. | T17: =VLOOKUP('Utility Group'!$B12,vldatabase,14,FALSE) -> 0.371 | U17: =VLOOKUP('Utility Group'!$B12,vldatabase,16,FALSE) -> 27557 | V17: 10223.647 | X17: =VLOOKUP('Utility Group'!$B12,vldatabase,15,FALSE) -> 0.395 | Y17: =VLOOKUP('Utility Group'!$B12,vldatabase,17,FALSE) -> 33800 | Z17: 13351 | AA17: 0.05482785563 | AB17: =VLOOKUP('Utility Group'!$B12,vldatabase,5,FALSE) -> 140 | AC17: =VLOOKUP('Utility Group'!$B12,vldatabase,6,FALSE) -> 105 | AD17: 122.5 | AE17: 1.9140625 | AF17: =VLOOKUP('Utility Group'!$B12,vldatabase,10,FALSE) -> 199.15 | AG17: =VLOOKUP('Utility Group'!$B12,vldatabase,11,FALSE) -> 210 | AH17: 0.0106663282
A18: 11 | B18: =VLOOKUP('Utility Group'!$B13,vldatabase,2,FALSE) -> Evergy Inc. | C18: =VLOOKUP('Utility Group'!$B13,vldatabase,7,FALSE) -> 3.5 | D18: =VLOOKUP('Utility Group'!$B13,vldatabase,8,FALSE) -> 2.55 | E18: =VLOOKUP('Utility Group'!$B13,vldatabase,9,FALSE) -> 42.25 | G18: 0.2714285714 | H18: 0.08284023669 | I18: 1.010707974 | J18: 0.08372728775 | K18: 0.0227259781 | M18: 0.0005260069708 | N18: 0.3964285714 | O18: 0.000208524192 | Q18: 0.0229345023 | R18: 11 | S18: Evergy Inc. | T18: =VLOOKUP('Utility Group'!$B13,vldatabase,14,FALSE) -> 0.494 | U18: =VLOOKUP('Utility Group'!$B13,vldatabase,16,FALSE) -> 17337 | V18: 8564.478 | X18: =VLOOKUP('Utility Group'!$B13,vldatabase,15,FALSE) -> 0.465 | Y18: =VLOOKUP('Utility Group'!$B13,vldatabase,17,FALSE) -> 20500 | Z18: 9532.5 | AA18: 0.02164775067 | AB18: =VLOOKUP('Utility Group'!$B13,vldatabase,5,FALSE) -> 80 | AC18: =VLOOKUP('Utility Group'!$B13,vldatabase,6,FALSE) -> 60 | AD18: 70 | AE18: 1.656804734 | AF18: =VLOOKUP('Utility Group'!$B13,vldatabase,10,FALSE) -> 226.64 | AG18: =VLOOKUP('Utility Group'!$B13,vldatabase,11,FALSE) -> 227 | AH18: 0.0003174827788
A19: 12 | B19: =VLOOKUP('Utility Group'!$B14,vldatabase,2,FALSE) -> Eversource Energy | C19: =VLOOKUP('Utility Group'!$B14,vldatabase,7,FALSE) -> 4.5 | D19: =VLOOKUP('Utility Group'!$B14,vldatabase,8,FALSE) -> 2.85 | E19: =VLOOKUP('Utility Group'!$B14,vldatabase,9,FALSE) -> 49 | G19: 0.3666666667 | H19: 0.09183673469 | I19: 1.034113185 | J19: 0.09496957819 | K19: 0.03482217867 | M19: 0.03063160919 | N19: 0.4060606061 | O19: 0.01243828979 | Q19: 0.04726046846 | R19: 12 | S19: Eversource Energy | T19: =VLOOKUP('Utility Group'!$B14,vldatabase,14,FALSE) -> 0.466 | U19: =VLOOKUP('Utility Group'!$B14,vldatabase,16,FALSE) -> 27097 | V19: 12627.202 | X19: =VLOOKUP('Utility Group'!$B14,vldatabase,15,FALSE) -> 0.465 | Y19: =VLOOKUP('Utility Group'!$B14,vldatabase,17,FALSE) -> 38200 | Z19: 17763 | AA19: 0.07063598808 | AB19: =VLOOKUP('Utility Group'!$B14,vldatabase,5,FALSE) -> 90 | AC19: =VLOOKUP('Utility Group'!$B14,vldatabase,6,FALSE) -> 75 | AD19: 82.5 | AE19: 1.683673469 | AF19: =VLOOKUP('Utility Group'!$B14,vldatabase,10,FALSE) -> 329.88 | AG19: =VLOOKUP('Utility Group'!$B14,vldatabase,11,FALSE) -> 361 | AH19: 0.0181933194
A20: 13 | B20: =VLOOKUP('Utility Group'!$B15,vldatabase,2,FALSE) -> Exelon Corp. | C20: =VLOOKUP('Utility Group'!$B15,vldatabase,7,FALSE) -> 3.5 | D20: =VLOOKUP('Utility Group'!$B15,vldatabase,8,FALSE) -> 1.9 | E20: =VLOOKUP('Utility Group'!$B15,vldatabase,9,FALSE) -> 40.25 | G20: 0.4571428571 | H20: 0.08695652174 | I20: 1.0219774 | J20: 0.08886759996 | K20: 0.04062518855 | M20: 0.004310781823 | N20: 0.195 | O20: 0.0008406024555 | Q20: 0.04146579101 | R20: 13 | S20: Exelon Corp. | T20: =VLOOKUP('Utility Group'!$B15,vldatabase,14,FALSE) -> 0.504 | U20: =VLOOKUP('Utility Group'!$B15,vldatabase,16,FALSE) -> 63943 | V20: 32227.272 | X20: =VLOOKUP('Utility Group'!$B15,vldatabase,15,FALSE) -> 0.5 | Y20: =VLOOKUP('Utility Group'!$B15,vldatabase,17,FALSE) -> 80300 | Z20: 40150 | AA20: 0.04494251879 | AB20: =VLOOKUP('Utility Group'!$B15,vldatabase,5,FALSE) -> 60 | AC20: =VLOOKUP('Utility Group'!$B15,vldatabase,6,FALSE) -> 40 | AD20: 50 | AE20: 1.242236025 | AF20: =VLOOKUP('Utility Group'!$B15,vldatabase,10,FALSE) -> 973 | AG20: =VLOOKUP('Utility Group'!$B15,vldatabase,11,FALSE) -> 990 | AH20: 0.003470179368
A21: 14 | B21: =VLOOKUP('Utility Group'!$B16,vldatabase,2,FALSE) -> Fortis Inc. | C21: =VLOOKUP('Utility Group'!$B16,vldatabase,7,FALSE) -> 3 | D21: =VLOOKUP('Utility Group'!$B16,vldatabase,8,FALSE) -> 2.5 | E21: =VLOOKUP('Utility Group'!$B16,vldatabase,9,FALSE) -> 43.75 | G21: 0.1666666667 | H21: 0.06857142857 | I21: 1.021317145 | J21: 0.07003317566 | K21: 0.01167219594 | M21: 0.009668688261 | N21: 0.3518518519 | O21: 0.00340194587 | Q21: 0.01507414181 | R21: 14 | S21: Fortis Inc. | T21: =VLOOKUP('Utility Group'!$B16,vldatabase,14,FALSE) -> 0.418 | U21: =VLOOKUP('Utility Group'!$B16,vldatabase,16,FALSE) -> 40445 | V21: 16906.01 | X21: =VLOOKUP('Utility Group'!$B16,vldatabase,15,FALSE) -> 0.435 | Y21: =VLOOKUP('Utility Group'!$B16,vldatabase,17,FALSE) -> 48100 | Z21: 20923.5 | AA21: 0.04356292735 | AB21: =VLOOKUP('Utility Group'!$B16,vldatabase,5,FALSE) -> 80 | AC21: =VLOOKUP('Utility Group'!$B16,vldatabase,6,FALSE) -> 55 | AD21: 67.5 | AE21: 1.542857143 | AF21: =VLOOKUP('Utility Group'!$B16,vldatabase,10,FALSE) -> 463.3 | AG21: =VLOOKUP('Utility Group'!$B16,vldatabase,11,FALSE) -> 478 | AH21: 0.006266742392
A22: 15 | B22: =VLOOKUP('Utility Group'!$B17,vldatabase,2,FALSE) -> NextEra Energy, Inc. | C22: =VLOOKUP('Utility Group'!$B17,vldatabase,7,FALSE) -> 12.25 | D22: =VLOOKUP('Utility Group'!$B17,vldatabase,8,FALSE) -> 8.2 | E22: =VLOOKUP('Utility Group'!$B17,vldatabase,9,FALSE) -> 98.75 | G22: 0.3306122449 | H22: 0.1240506329 | I22: 1.029549404 | J22: 0.1277162552 | K22: 0.04222455785 | M22: 0.01913457721 | N22: 0.6623931624 | O22: 0.01267461311 | Q22: 0.05489917096 | R22: 15 | S22: NextEra Energy, Inc. | T22: =VLOOKUP('Utility Group'!$B17,vldatabase,14,FALSE) -> 0.496 | U22: =VLOOKUP('Utility Group'!$B17,vldatabase,16,FALSE) -> 74548 | V22: 36975.808 | X22: =VLOOKUP('Utility Group'!$B17,vldatabase,15,FALSE) -> 0.505 | Y22: =VLOOKUP('Utility Group'!$B17,vldatabase,17,FALSE) -> 98400 | Z22: 49692 | AA22: 0.06089831762 | AB22: =VLOOKUP('Utility Group'!$B17,vldatabase,5,FALSE) -> 320 | AC22: =VLOOKUP('Utility Group'!$B17,vldatabase,6,FALSE) -> 265 | AD22: 292.5 | AE22: 2.962025316 | AF22: =VLOOKUP('Utility Group'!$B17,vldatabase,10,FALSE) -> 489 | AG22: =VLOOKUP('Utility Group'!$B17,vldatabase,11,FALSE) -> 505 | AH22: 0.006459964101
A23: 16 | B23: =VLOOKUP('Utility Group'!$B18,vldatabase,2,FALSE) -> OGE Energy Corp. | C23: =VLOOKUP('Utility Group'!$B18,vldatabase,7,FALSE) -> 2.5 | D23: =VLOOKUP('Utility Group'!$B18,vldatabase,8,FALSE) -> 1.95 | E23: =VLOOKUP('Utility Group'!$B18,vldatabase,9,FALSE) -> 20.5 | G23: 0.22 | H23: 0.1219512195 | I23: 0.9992412056 | J23: 0.1218586836 | K23: 0.02680891039 | M23: -0.0002316378304 | N23: 0.5684210526 | O23: -0.0001316678194 | Q23: 0.02667724258 | R23: 16 | S23: OGE Energy Corp. | T23: =VLOOKUP('Utility Group'!$B18,vldatabase,14,FALSE) -> 0.564 | U23: =VLOOKUP('Utility Group'!$B18,vldatabase,16,FALSE) -> 7334.7 | V23: 4136.7708 | X23: =VLOOKUP('Utility Group'!$B18,vldatabase,15,FALSE) -> 0.51 | Y23: =VLOOKUP('Utility Group'!$B18,vldatabase,17,FALSE) -> 8050 | Z23: 4105.5 | AA23: -0.001516438106 | AB23: =VLOOKUP('Utility Group'!$B18,vldatabase,5,FALSE) -> 55 | AC23: =VLOOKUP('Utility Group'!$B18,vldatabase,6,FALSE) -> 40 | AD23: 47.5 | AE23: 2.317073171 | AF23: =VLOOKUP('Utility Group'!$B18,vldatabase,10,FALSE) -> 200.1 | AG23: =VLOOKUP('Utility Group'!$B18,vldatabase,11,FALSE) -> 200 | AH23: -9.9970011e-05
A24: 17 | B24: =VLOOKUP('Utility Group'!$B19,vldatabase,2,FALSE) -> Pub Sv Enterprise Grp. | C24: =VLOOKUP('Utility Group'!$B19,vldatabase,7,FALSE) -> 4.25 | D24: =VLOOKUP('Utility Group'!$B19,vldatabase,8,FALSE) -> 2.3 | E24: =VLOOKUP('Utility Group'!$B19,vldatabase,9,FALSE) -> 38.5 | G24: 0.4588235294 | H24: 0.1103896104 | I24: 1.024932867 | J24: 0.1131419399 | K24: 0.05191218417 | M24: 0.0006179389565 | N24: 0.3583333333 | O24: 0.0002214281261 | Q24: 0.05213361229 | R24: 17 | S24: Pub Sv Enterprise Grp. | T24: =VLOOKUP('Utility Group'!$B19,vldatabase,14,FALSE) -> 0.523 | U24: =VLOOKUP('Utility Group'!$B19,vldatabase,16,FALSE) -> 28832 | V24: 15079.136 | X24: =VLOOKUP('Utility Group'!$B19,vldatabase,15,FALSE) -> 0.5 | Y24: =VLOOKUP('Utility Group'!$B19,vldatabase,17,FALSE) -> 38700 | Z24: 19350 | AA24: 0.05114082105 | AB24: =VLOOKUP('Utility Group'!$B19,vldatabase,5,FALSE) -> 65 | AC24: =VLOOKUP('Utility Group'!$B19,vldatabase,6,FALSE) -> 55 | AD24: 60 | AE24: 1.558441558 | AF24: =VLOOKUP('Utility Group'!$B19,vldatabase,10,FALSE) -> 504 | AG24: =VLOOKUP('Utility Group'!$B19,vldatabase,11,FALSE) -> 505 | AH24: 0.0003965108304
A25: 18 | B25: =VLOOKUP('Utility Group'!$B20,vldatabase,2,FALSE) -> Sempra Energy | C25: =VLOOKUP('Utility Group'!$B20,vldatabase,7,FALSE) -> 9.5 | D25: =VLOOKUP('Utility Group'!$B20,vldatabase,8,FALSE) -> 5.6 | E25: =VLOOKUP('Utility Group'!$B20,vldatabase,9,FALSE) -> 88.75 | G25: 0.4105263158 | H25: 0.1070422535 | I25: 1.053258159 | J25: 0.1127431269 | K25: 0.04628402052 | M25: 0.05784061031 | N25: 0.4621212121 | O25: 0.02672937295 | Q25: 0.07301339347 | R25: 18 | S25: Sempra Energy | T25: =VLOOKUP('Utility Group'!$B20,vldatabase,14,FALSE) -> 0.434 | U25: =VLOOKUP('Utility Group'!$B20,vldatabase,16,FALSE) -> 40734 | V25: 17678.556 | X25: =VLOOKUP('Utility Group'!$B20,vldatabase,15,FALSE) -> 0.515 | Y25: =VLOOKUP('Utility Group'!$B20,vldatabase,17,FALSE) -> 58500 | Z25: 30127.5 | AA25: 0.1125083039 | AB25: =VLOOKUP('Utility Group'!$B20,vldatabase,5,FALSE) -> 190 | AC25: =VLOOKUP('Utility Group'!$B20,vldatabase,6,FALSE) -> 140 | AD25: 165 | AE25: 1.85915493 | AF25: =VLOOKUP('Utility Group'!$B20,vldatabase,10,FALSE) -> 291.71 | AG25: =VLOOKUP('Utility Group'!$B20,vldatabase,11,FALSE) -> 340 | AH25: 0.03111123736
A26: 19 | B26: =VLOOKUP('Utility Group'!$B21,vldatabase,2,FALSE) -> Southern Company | C26: =VLOOKUP('Utility Group'!$B21,vldatabase,7,FALSE) -> 3.75 | D26: =VLOOKUP('Utility Group'!$B21,vldatabase,8,FALSE) -> 2.86 | E26: =VLOOKUP('Utility Group'!$B21,vldatabase,9,FALSE) -> 30.5 | G26: 0.2373333333 | H26: 0.1229508197 | I26: 1.018811625 | J26: 0.1252637244 | K26: 0.02972925725 | M26: 0.01352151156 | N26: 0.4916666667 | O26: 0.006648076517 | Q26: 0.03637733376 | R26: 19 | S26: Southern Company | T26: =VLOOKUP('Utility Group'!$B21,vldatabase,14,FALSE) -> 0.395 | U26: =VLOOKUP('Utility Group'!$B21,vldatabase,16,FALSE) -> 69594 | V26: 27489.63 | X26: =VLOOKUP('Utility Group'!$B21,vldatabase,15,FALSE) -> 0.395 | Y26: =VLOOKUP('Utility Group'!$B21,vldatabase,17,FALSE) -> 84000 | Z26: 33180 | AA26: 0.0383445732 | AB26: =VLOOKUP('Utility Group'!$B21,vldatabase,5,FALSE) -> 70 | AC26: =VLOOKUP('Utility Group'!$B21,vldatabase,6,FALSE) -> 50 | AD26: 60 | AE26: 1.967213115 | AF26: =VLOOKUP('Utility Group'!$B21,vldatabase,10,FALSE) -> 1053.3 | AG26: =VLOOKUP('Utility Group'!$B21,vldatabase,11,FALSE) -> 1090 | AH26: 0.006873435043
A27: 20 | B27: =VLOOKUP('Utility Group'!$B22,vldatabase,2,FALSE) -> WEC Energy Group | C27: =VLOOKUP('Utility Group'!$B22,vldatabase,7,FALSE) -> 4.75 | D27: =VLOOKUP('Utility Group'!$B22,vldatabase,8,FALSE) -> 3.2 | E27: =VLOOKUP('Utility Group'!$B22,vldatabase,9,FALSE) -> 38 | G27: 0.3263157895 | H27: 0.125 | I27: 1.017015228 | J27: 0.1271269035 | K27: 0.04148351588 | M27: 0.0001109497941 | N27: 0.6 | O27: 6.656987644e-05 | Q27: 0.04155008575 | R27: 20 | S27: WEC Energy Group | T27: =VLOOKUP('Utility Group'!$B22,vldatabase,14,FALSE) -> 0.474 | U27: =VLOOKUP('Utility Group'!$B22,vldatabase,16,FALSE) -> 21355 | V27: 10122.27 | X27: =VLOOKUP('Utility Group'!$B22,vldatabase,15,FALSE) -> 0.48 | Y27: =VLOOKUP('Utility Group'!$B22,vldatabase,17,FALSE) -> 25000 | Z27: 12000 | AA27: 0.03461951478 | AB27: =VLOOKUP('Utility Group'!$B22,vldatabase,5,FALSE) -> 105 | AC27: =VLOOKUP('Utility Group'!$B22,vldatabase,6,FALSE) -> 85 | AD27: 95 | AE27: 2.5 | AF27: =VLOOKUP('Utility Group'!$B22,vldatabase,10,FALSE) -> 315.43 | AG27: =VLOOKUP('Utility Group'!$B22,vldatabase,11,FALSE) -> 315.5 | AH27: 4.437991763e-05
A28: 21 | B28: =VLOOKUP('Utility Group'!$B23,vldatabase,2,FALSE) -> Xcel Energy Inc. | C28: =VLOOKUP('Utility Group'!$B23,vldatabase,7,FALSE) -> 3.5 | D28: =VLOOKUP('Utility Group'!$B23,vldatabase,8,FALSE) -> 2.15 | E28: =VLOOKUP('Utility Group'!$B23,vldatabase,9,FALSE) -> 32.35 | G28: 0.3857142857 | H28: 0.1081916538 | I28: 1.029157989 | J28: 0.1113463048 | K28: 0.04294786042 | M28: 0.0163013031 | N28: 0.4608333333 | O28: 0.007512183847 | Q28: 0.05046004427 | R28: 21 | S28: Xcel Energy Inc. | T28: =VLOOKUP('Utility Group'!$B23,vldatabase,14,FALSE) -> 0.432 | U28: =VLOOKUP('Utility Group'!$B23,vldatabase,16,FALSE) -> 30646 | V28: 13239.072 | X28: =VLOOKUP('Utility Group'!$B23,vldatabase,15,FALSE) -> 0.425 | Y28: =VLOOKUP('Utility Group'!$B23,vldatabase,17,FALSE) -> 41700 | Z28: 17722.5 | AA28: 0.06006742253 | AB28: =VLOOKUP('Utility Group'!$B23,vldatabase,5,FALSE) -> 65 | AC28: =VLOOKUP('Utility Group'!$B23,vldatabase,6,FALSE) -> 55 | AD28: 60 | AE28: 1.854714065 | AF28: =VLOOKUP('Utility Group'!$B23,vldatabase,10,FALSE) -> 524.54 | AG28: =VLOOKUP('Utility Group'!$B23,vldatabase,11,FALSE) -> 548 | AH28: 0.008789119257
R30: (a) | S30: ='Proxy Group Risk Measures'!B35 -> The Value Line Investment Survey (Jul. 24, Aug. 14 and Sep. 11, 2020).
R31: (h) | S31: Average of High and Low expected market prices divided by 2024 BVPS.
R32: (e) | S32: Computed as 1 - B/M Ratio.
R33: (b) | S33: Computed using the formula 2*(1+5-Yr. Change in Equity)/(2+5 Yr. Change in Equity).
R34: (g) | S34: Five-year compound rate of change.
R35: (c) | S35: Product of average year-end "r" for 2024 and Adjustment Factor.
R36: (d) | S36: Product of change in common shares outstanding and M/B Ratio.
R37: (f) | S37: Product of total capital and equity ratio.

Sheet 17 (1)
A1: ='Exhibit List'!C9 -> CAPM | M1: ='Exhibit List'!B9 -> Exh. AMM-17
M2: Page 1 of 2
A3: ='Exhibit List'!D9 -> CURRENT BOND YIELD
C5: (a) | D5: (b) | F5: (c) | H5: (d) | J5: (d) | K5: (e)
C6: Market Return (Rm) | L6: Size
C7: Div | D7: Proj. | E7: Cost of | F7: Risk-Free | G7: Risk | I7: Unadjusted | J7: Market | K7: Size | L7: Adjusted
B8: Company | C8: Yield | D8: Growth | E8: Equity | F8: Rate | G8: Premium | H8: Beta | I8: CAPM | J8: Cap | K8: Adjustment | L8: CAPM
A9: =A8+1 -> 1 | B9: =VLOOKUP('Utility Group'!$B3,vldatabase,2,FALSE) -> Alliant Energy | C9: ='2020 10 Market DCF'!$J$385 -> 0.0233 | D9: ='2020 10 Market DCF'!$P$386 -> 0.0924 | E9: =C9+D9 -> 0.1157 | F9: =ROUND('Bond Yields'!$K$16,3) -> 0.014 | G9: =E9-F9 -> 0.1017 | H9: =VLOOKUP('Utility Group'!$B3,vldatabase,23,FALSE) -> 0.85 | I9: =IF(H9="n/a","n/a",H9*G9+F9) -> 0.100445 | J9: =VLOOKUP('Utility Group'!$B3,vldatabase,28,FALSE) -> 13500 | K9: =IF(J9>'Size Premium'!$A$5,'Size Premium'!$B$5,IF(J9>'Size Premium'!$A$6,'Size Premium'!$B$6,IF(J9>'Size Premium'!$A$7,'Size Premium'!$B$7,IF(J9>'Size Premium'!$A$8,'Size Premium'!$B$8,IF(J9>'Size Premium'!$A$9,'Size Premium'!$B$9,IF(J9>'Size Premium'!$A$10,'Size Premium'!$B$10,IF(J9>'Size Premium'!$A$11,'Size Premium'!$B$11,IF(J9>'Size Premium'!$A$12,'Size Premium'!$B$12,"ERROR")))))))) -> 0.005 | L9: =IF(I9="n/a","n/a",ROUND(I9+K9,3)) -> 0.105
A10: =A9+1 -> 2 | B10: =VLOOKUP('Utility Group'!$B4,vldatabase,2,FALSE) -> Ameren Corp. | C10: ='2020 10 Market DCF'!$J$385 -> 0.0233 | D10: ='2020 10 Market DCF'!$P$386 -> 0.0924 | E10: 0.1157 | F10: =ROUND('Bond Yields'!$K$16,3) -> 0.014 | G10: =E10-F10 -> 0.1017 | H10: =VLOOKUP('Utility Group'!$B4,vldatabase,23,FALSE) -> 0.8 | I10: =IF(H10="n/a","n/a",H10*G10+F10) -> 0.09536 | J10: =VLOOKUP('Utility Group'!$B4,vldatabase,28,FALSE) -> 20000 | K10: =IF(J10>'Size Premium'!$A$5,'Size Premium'!$B$5,IF(J10>'Size Premium'!$A$6,'Size Premium'!$B$6,IF(J10>'Size Premium'!$A$7,'Size Premium'!$B$7,IF(J10>'Size Premium'!$A$8,'Size Premium'!$B$8,IF(J10>'Size Premium'!$A$9,'Size Premium'!$B$9,IF(J10>'Size Premium'!$A$10,'Size Premium'!$B$10,IF(J10>'Size Premium'!$A$11,'Size Premium'!$B$11,IF(J10>'Size Premium'!$A$12,'Size Premium'!$B$12,"ERROR")))))))) -> 0.005 | L10: =IF(I10="n/a","n/a",ROUND(I10+K10,3)) -> 0.1
A11: 3 | B11: =VLOOKUP('Utility Group'!$B5,vldatabase,2,FALSE) -> American Elec Pwr | C11: ='2020 10 Market DCF'!$J$385 -> 0.0233 | D11: ='2020 10 Market DCF'!$P$386 -> 0.0924 | E11: 0.1157 | F11: =ROUND('Bond Yields'!$K$16,3) -> 0.014 | G11: 0.1017 | H11: =VLOOKUP('Utility Group'!$B5,vldatabase,23,FALSE) -> 0.75 | I11: 0.090275 | J11: =VLOOKUP('Utility Group'!$B5,vldatabase,28,FALSE) -> 39000 | K11: =IF(J11>'Size Premium'!$A$5,'Size Premium'!$B$5,IF(J11>'Size Premium'!$A$6,'Size Premium'!$B$6,IF(J11>'Size Premium'!$A$7,'Size Premium'!$B$7,IF(J11>'Size Premium'!$A$8,'Size Premium'!$B$8,IF(J11>'Size Premium'!$A$9,'Size Premium'!$B$9,IF(J11>'Size Premium'!$A$10,'Size Premium'!$B$10,IF(J11>'Size Premium'!$A$11,'Size Premium'!$B$11,IF(J11>'Size Premium'!$A$12,'Size Premium'!$B$12,"ERROR")))))))) -> -0.0028 | L11: 0.087
A12: 4 | B12: =VLOOKUP('Utility Group'!$B6,vldatabase,2,FALSE) -> Avangrid, Inc. | C12: ='2020 10 Market DCF'!$J$385 -> 0.0233 | D12: ='2020 10 Market DCF'!$P$386 -> 0.0924 | E12: 0.1157 | F12: =ROUND('Bond Yields'!$K$16,3) -> 0.014 | G12: 0.1017 | H12: =VLOOKUP('Utility Group'!$B6,vldatabase,23,FALSE) -> 0.8 | I12: 0.09536 | J12: =VLOOKUP('Utility Group'!$B6,vldatabase,28,FALSE) -> 15000 | K12: =IF(J12>'Size Premium'!$A$5,'Size Premium'!$B$5,IF(J12>'Size Premium'!$A$6,'Size Premium'!$B$6,IF(J12>'Size Premium'!$A$7,'Size Premium'!$B$7,IF(J12>'Size Premium'!$A$8,'Size Premium'!$B$8,IF(J12>'Size Premium'!$A$9,'Size Premium'!$B$9,IF(J12>'Size Premium'!$A$10,'Size Premium'!$B$10,IF(J12>'Size Premium'!$A$11,'Size Premium'!$B$11,IF(J12>'Size Premium'!$A$12,'Size Premium'!$B$12,"ERROR")))))))) -> 0.005 | L12: 0.1
A13: 5 | B13: =VLOOKUP('Utility Group'!$B7,vldatabase,2,FALSE) -> Black Hills Corp. | C13: ='2020 10 Market DCF'!$J$385 -> 0.0233 | D13: ='2020 10 Market DCF'!$P$386 -> 0.0924 | E13: 0.1157 | F13: =ROUND('Bond Yields'!$K$16,3) -> 0.014 | G13: 0.1017 | H13: =VLOOKUP('Utility Group'!$B7,vldatabase,23,FALSE) -> 0.95 | I13: 0.110615 | J13: =VLOOKUP('Utility Group'!$B7,vldatabase,28,FALSE) -> 3800 | K13: =IF(J13>'Size Premium'!$A$5,'Size Premium'!$B$5,IF(J13>'Size Premium'!$A$6,'Size Premium'!$B$6,IF(J13>'Size Premium'!$A$7,'Size Premium'!$B$7,IF(J13>'Size Premium'!$A$8,'Size Premium'!$B$8,IF(J13>'Size Premium'!$A$9,'Size Premium'!$B$9,IF(J13>'Size Premium'!$A$10,'Size Premium'!$B$10,IF(J13>'Size Premium'!$A$11,'Size Premium'!$B$11,IF(J13>'Size Premium'!$A$12,'Size Premium'!$B$12,"ERROR")))))))) -> 0.011 | L13: 0.122
A14: 6 | B14: =VLOOKUP('Utility Group'!$B8,vldatabase,2,FALSE) -> CMS Energy Corp. | C14: ='2020 10 Market DCF'!$J$385 -> 0.0233 | D14: ='2020 10 Market DCF'!$P$386 -> 0.0924 | E14: 0.1157 | F14: =ROUND('Bond Yields'!$K$16,3) -> 0.014 | G14: 0.1017 | H14: =VLOOKUP('Utility Group'!$B8,vldatabase,23,FALSE) -> 0.8 | I14: 0.09536 | J14: =VLOOKUP('Utility Group'!$B8,vldatabase,28,FALSE) -> 17000 | K14: =IF(J14>'Size Premium'!$A$5,'Size Premium'!$B$5,IF(J14>'Size Premium'!$A$6,'Size Premium'!$B$6,IF(J14>'Size Premium'!$A$7,'Size Premium'!$B$7,IF(J14>'Size Premium'!$A$8,'Size Premium'!$B$8,IF(J14>'Size Premium'!$A$9,'Size Premium'!$B$9,IF(J14>'Size Premium'!$A$10,'Size Premium'!$B$10,IF(J14>'Size Premium'!$A$11,'Size Premium'!$B$11,IF(J14>'Size Premium'!$A$12,'Size Premium'!$B$12,"ERROR")))))))) -> 0.005 | L14: 0.1
A15: 7 | B15: =VLOOKUP('Utility Group'!$B9,vldatabase,2,FALSE) -> Consolidated Edison | C15: ='2020 10 Market DCF'!$J$385 -> 0.0233 | D15: ='2020 10 Market DCF'!$P$386 -> 0.0924 | E15: 0.1157 | F15: =ROUND('Bond Yields'!$K$16,3) -> 0.014 | G15: 0.1017 | H15: =VLOOKUP('Utility Group'!$B9,vldatabase,23,FALSE) -> 0.75 | I15: 0.090275 | J15: =VLOOKUP('Utility Group'!$B9,vldatabase,28,FALSE) -> 25000 | K15: =IF(J15>'Size Premium'!$A$5,'Size Premium'!$B$5,IF(J15>'Size Premium'!$A$6,'Size Premium'!$B$6,IF(J15>'Size Premium'!$A$7,'Size Premium'!$B$7,IF(J15>'Size Premium'!$A$8,'Size Premium'!$B$8,IF(J15>'Size Premium'!$A$9,'Size Premium'!$B$9,IF(J15>'Size Premium'!$A$10,'Size Premium'!$B$10,IF(J15>'Size Premium'!$A$11,'Size Premium'!$B$11,IF(J15>'Size Premium'!$A$12,'Size Premium'!$B$12,"ERROR")))))))) -> 0.005 | L15: 0.095
A16: 8 | B16: =VLOOKUP('Utility Group'!$B10,vldatabase,2,FALSE) -> DTE Energy Co. | C16: ='2020 10 Market DCF'!$J$385 -> 0.0233 | D16: ='2020 10 Market DCF'!$P$386 -> 0.0924 | E16: 0.1157 | F16: =ROUND('Bond Yields'!$K$16,3) -> 0.014 | G16: 0.1017 | H16: =VLOOKUP('Utility Group'!$B10,vldatabase,23,FALSE) -> 0.9 | I16: 0.10553 | J16: =VLOOKUP('Utility Group'!$B10,vldatabase,28,FALSE) -> 23000 | K16: =IF(J16>'Size Premium'!$A$5,'Size Premium'!$B$5,IF(J16>'Size Premium'!$A$6,'Size Premium'!$B$6,IF(J16>'Size Premium'!$A$7,'Size Premium'!$B$7,IF(J16>'Size Premium'!$A$8,'Size Premium'!$B$8,IF(J16>'Size Premium'!$A$9,'Size Premium'!$B$9,IF(J16>'Size Premium'!$A$10,'Size Premium'!$B$10,IF(J16>'Size Premium'!$A$11,'Size Premium'!$B$11,IF(J16>'Size Premium'!$A$12,'Size Premium'!$B$12,"ERROR")))))))) -> 0.005 | L16: 0.111
A17: 9 | B17: =VLOOKUP('Utility Group'!$B11,vldatabase,2,FALSE) -> Duke Energy Corp. | C17: ='2020 10 Market DCF'!$J$385 -> 0.0233 | D17: ='2020 10 Market DCF'!$P$386 -> 0.0924 | E17: 0.1157 | F17: =ROUND('Bond Yields'!$K$16,3) -> 0.014 | G17: 0.1017 | H17: =VLOOKUP('Utility Group'!$B11,vldatabase,23,FALSE) -> 0.85 | I17: 0.100445 | J17: =VLOOKUP('Utility Group'!$B11,vldatabase,28,FALSE) -> 62000 | K17: =IF(J17>'Size Premium'!$A$5,'Size Premium'!$B$5,IF(J17>'Size Premium'!$A$6,'Size Premium'!$B$6,IF(J17>'Size Premium'!$A$7,'Size Premium'!$B$7,IF(J17>'Size Premium'!$A$8,'Size Premium'!$B$8,IF(J17>'Size Premium'!$A$9,'Size Premium'!$B$9,IF(J17>'Size Premium'!$A$10,'Size Premium'!$B$10,IF(J17>'Size Premium'!$A$11,'Size Premium'!$B$11,IF(J17>'Size Premium'!$A$12,'Size Premium'!$B$12,"ERROR")))))))) -> -0.0028 | L17: 0.098
A18: 10 | B18: =VLOOKUP('Utility Group'!$B12,vldatabase,2,FALSE) -> Entergy Corp. | C18: ='2020 10 Market DCF'!$J$385 -> 0.0233 | D18: ='2020 10 Market DCF'!$P$386 -> 0.0924 | E18: 0.1157 | F18: =ROUND('Bond Yields'!$K$16,3) -> 0.014 | G18: 0.1017 | H18: =VLOOKUP('Utility Group'!$B12,vldatabase,23,FALSE) -> 0.95 | I18: 0.110615 | J18: =VLOOKUP('Utility Group'!$B12,vldatabase,28,FALSE) -> 20000 | K18: =IF(J18>'Size Premium'!$A$5,'Size Premium'!$B$5,IF(J18>'Size Premium'!$A$6,'Size Premium'!$B$6,IF(J18>'Size Premium'!$A$7,'Size Premium'!$B$7,IF(J18>'Size Premium'!$A$8,'Size Premium'!$B$8,IF(J18>'Size Premium'!$A$9,'Size Premium'!$B$9,IF(J18>'Size Premium'!$A$10,'Size Premium'!$B$10,IF(J18>'Size Premium'!$A$11,'Size Premium'!$B$11,IF(J18>'Size Premium'!$A$12,'Size Premium'!$B$12,"ERROR")))))))) -> 0.005 | L18: 0.116
A19: 11 | B19: =VLOOKUP('Utility Group'!$B13,vldatabase,2,FALSE) -> Evergy Inc. | C19: ='2020 10 Market DCF'!$J$385 -> 0.0233 | D19: ='2020 10 Market DCF'!$P$386 -> 0.0924 | E19: 0.1157 | F19: =ROUND('Bond Yields'!$K$16,3) -> 0.014 | G19: 0.1017 | H19: =VLOOKUP('Utility Group'!$B13,vldatabase,23,FALSE) -> 1 | I19: 0.1157 | J19: =VLOOKUP('Utility Group'!$B13,vldatabase,28,FALSE) -> 12000 | K19: =IF(J19>'Size Premium'!$A$5,'Size Premium'!$B$5,IF(J19>'Size Premium'!$A$6,'Size Premium'!$B$6,IF(J19>'Size Premium'!$A$7,'Size Premium'!$B$7,IF(J19>'Size Premium'!$A$8,'Size Premium'!$B$8,IF(J19>'Size Premium'!$A$9,'Size Premium'!$B$9,IF(J19>'Size Premium'!$A$10,'Size Premium'!$B$10,IF(J19>'Size Premium'!$A$11,'Size Premium'!$B$11,IF(J19>'Size Premium'!$A$12,'Size Premium'!$B$12,"ERROR")))))))) -> 0.0073 | L19: 0.123
A20: 12 | B20: =VLOOKUP('Utility Group'!$B14,vldatabase,2,FALSE) -> Eversource Energy | C20: ='2020 10 Market DCF'!$J$385 -> 0.0233 | D20: ='2020 10 Market DCF'!$P$386 -> 0.0924 | E20: 0.1157 | F20: =ROUND('Bond Yields'!$K$16,3) -> 0.014 | G20: 0.1017 | H20: =VLOOKUP('Utility Group'!$B14,vldatabase,23,FALSE) -> 0.9 | I20: 0.10553 | J20: =VLOOKUP('Utility Group'!$B14,vldatabase,28,FALSE) -> 30000 | K20: =IF(J20>'Size Premium'!$A$5,'Size Premium'!$B$5,IF(J20>'Size Premium'!$A$6,'Size Premium'!$B$6,IF(J20>'Size Premium'!$A$7,'Size Premium'!$B$7,IF(J20>'Size Premium'!$A$8,'Size Premium'!$B$8,IF(J20>'Size Premium'!$A$9,'Size Premium'!$B$9,IF(J20>'Size Premium'!$A$10,'Size Premium'!$B$10,IF(J20>'Size Premium'!$A$11,'Size Premium'!$B$11,IF(J20>'Size Premium'!$A$12,'Size Premium'!$B$12,"ERROR")))))))) -> 0.005 | L20: 0.111
A21: 13 | B21: =VLOOKUP('Utility Group'!$B15,vldatabase,2,FALSE) -> Exelon Corp. | C21: ='2020 10 Market DCF'!$J$385 -> 0.0233 | D21: ='2020 10 Market DCF'!$P$386 -> 0.0924 | E21: 0.1157 | F21: =ROUND('Bond Yields'!$K$16,3) -> 0.014 | G21: 0.1017 | H21: =VLOOKUP('Utility Group'!$B15,vldatabase,23,FALSE) -> 0.95 | I21: 0.110615 | J21: =VLOOKUP('Utility Group'!$B15,vldatabase,28,FALSE) -> 37000 | K21: =IF(J21>'Size Premium'!$A$5,'Size Premium'!$B$5,IF(J21>'Size Premium'!$A$6,'Size Premium'!$B$6,IF(J21>'Size Premium'!$A$7,'Size Premium'!$B$7,IF(J21>'Size Premium'!$A$8,'Size Premium'!$B$8,IF(J21>'Size Premium'!$A$9,'Size Premium'!$B$9,IF(J21>'Size Premium'!$A$10,'Size Premium'!$B$10,IF(J21>'Size Premium'!$A$11,'Size Premium'!$B$11,IF(J21>'Size Premium'!$A$12,'Size Premium'!$B$12,"ERROR")))))))) -> -0.0028 | L21: 0.108
A22: 14 | B22: =VLOOKUP('Utility Group'!$B16,vldatabase,2,FALSE) -> Fortis Inc. | C22: ='2020 10 Market DCF'!$J$385 -> 0.0233 | D22: ='2020 10 Market DCF'!$P$386 -> 0.0924 | E22: 0.1157 | F22: =ROUND('Bond Yields'!$K$16,3) -> 0.014 | G22: 0.1017 | H22: =VLOOKUP('Utility Group'!$B16,vldatabase,23,FALSE) -> 0.8 | I22: 0.09536 | J22: =VLOOKUP('Utility Group'!$B16,vldatabase,28,FALSE) -> 24000 | K22: =IF(J22>'Size Premium'!$A$5,'Size Premium'!$B$5,IF(J22>'Size Premium'!$A$6,'Size Premium'!$B$6,IF(J22>'Size Premium'!$A$7,'Size Premium'!$B$7,IF(J22>'Size Premium'!$A$8,'Size Premium'!$B$8,IF(J22>'Size Premium'!$A$9,'Size Premium'!$B$9,IF(J22>'Size Premium'!$A$10,'Size Premium'!$B$10,IF(J22>'Size Premium'!$A$11,'Size Premium'!$B$11,IF(J22>'Size Premium'!$A$12,'Size Premium'!$B$12,"ERROR")))))))) -> 0.005 | L22: 0.1
A23: 15 | B23: =VLOOKUP('Utility Group'!$B17,vldatabase,2,FALSE) -> NextEra Energy, Inc. | C23: ='2020 10 Market DCF'!$J$385 -> 0.0233 | D23: ='2020 10 Market DCF'!$P$386 -> 0.0924 | E23: 0.1157 | F23: =ROUND('Bond Yields'!$K$16,3) -> 0.014 | G23: 0.1017 | H23: =VLOOKUP('Utility Group'!$B17,vldatabase,23,FALSE) -> 0.85 | I23: 0.100445 | J23: =VLOOKUP('Utility Group'!$B17,vldatabase,28,FALSE) -> 136000 | K23: =IF(J23>'Size Premium'!$A$5,'Size Premium'!$B$5,IF(J23>'Size Premium'!$A$6,'Size Premium'!$B$6,IF(J23>'Size Premium'!$A$7,'Size Premium'!$B$7,IF(J23>'Size Premium'!$A$8,'Size Premium'!$B$8,IF(J23>'Size Premium'!$A$9,'Size Premium'!$B$9,IF(J23>'Size Premium'!$A$10,'Size Premium'!$B$10,IF(J23>'Size Premium'!$A$11,'Size Premium'!$B$11,IF(J23>'Size Premium'!$A$12,'Size Premium'!$B$12,"ERROR")))))))) -> -0.0028 | L23: 0.098
A24: 16 | B24: =VLOOKUP('Utility Group'!$B18,vldatabase,2,FALSE) -> OGE Energy Corp. | C24: ='2020 10 Market DCF'!$J$385 -> 0.0233 | D24: ='2020 10 Market DCF'!$P$386 -> 0.0924 | E24: 0.1157 | F24: =ROUND('Bond Yields'!$K$16,3) -> 0.014 | G24: 0.1017 | H24: =VLOOKUP('Utility Group'!$B18,vldatabase,23,FALSE) -> 1.05 | I24: 0.120785 | J24: =VLOOKUP('Utility Group'!$B18,vldatabase,28,FALSE) -> 6400 | K24: =IF(J24>'Size Premium'!$A$5,'Size Premium'!$B$5,IF(J24>'Size Premium'!$A$6,'Size Premium'!$B$6,IF(J24>'Size Premium'!$A$7,'Size Premium'!$B$7,IF(J24>'Size Premium'!$A$8,'Size Premium'!$B$8,IF(J24>'Size Premium'!$A$9,'Size Premium'!$B$9,IF(J24>'Size Premium'!$A$10,'Size Premium'!$B$10,IF(J24>'Size Premium'!$A$11,'Size Premium'!$B$11,IF(J24>'Size Premium'!$A$12,'Size Premium'!$B$12,"ERROR")))))))) -> 0.0079 | L24: 0.129
A25: 17 | B25: =VLOOKUP('Utility Group'!$B19,vldatabase,2,FALSE) -> Pub Sv Enterprise Grp. | C25: ='2020 10 Market DCF'!$J$385 -> 0.0233 | D25: ='2020 10 Market DCF'!$P$386 -> 0.0924 | E25: 0.1157 | F25: =ROUND('Bond Yields'!$K$16,3) -> 0.014 | G25: 0.1017 | H25: =VLOOKUP('Utility Group'!$B19,vldatabase,23,FALSE) -> 0.9 | I25: 0.10553 | J25: =VLOOKUP('Utility Group'!$B19,vldatabase,28,FALSE) -> 28000 | K25: =IF(J25>'Size Premium'!$A$5,'Size Premium'!$B$5,IF(J25>'Size Premium'!$A$6,'Size Premium'!$B$6,IF(J25>'Size Premium'!$A$7,'Size Premium'!$B$7,IF(J25>'Size Premium'!$A$8,'Size Premium'!$B$8,IF(J25>'Size Premium'!$A$9,'Size Premium'!$B$9,IF(J25>'Size Premium'!$A$10,'Size Premium'!$B$10,IF(J25>'Size Premium'!$A$11,'Size Premium'!$B$11,IF(J25>'Size Premium'!$A$12,'Size Premium'!$B$12,"ERROR")))))))) -> 0.005 | L25: 0.111
A26: 18 | B26: =VLOOKUP('Utility Group'!$B20,vldatabase,2,FALSE) -> Sempra Energy | C26: ='2020 10 Market DCF'!$J$385 -> 0.0233 | D26: ='2020 10 Market DCF'!$P$386 -> 0.0924 | E26: 0.1157 | F26: =ROUND('Bond Yields'!$K$16,3) -> 0.014 | G26: 0.1017 | H26: =VLOOKUP('Utility Group'!$B20,vldatabase,23,FALSE) -> 0.95 | I26: 0.110615 | J26: =VLOOKUP('Utility Group'!$B20,vldatabase,28,FALSE) -> 35000 | K26: =IF(J26>'Size Premium'!$A$5,'Size Premium'!$B$5,IF(J26>'Size Premium'!$A$6,'Size Premium'!$B$6,IF(J26>'Size Premium'!$A$7,'Size Premium'!$B$7,IF(J26>'Size Premium'!$A$8,'Size Premium'!$B$8,IF(J26>'Size Premium'!$A$9,'Size Premium'!$B$9,IF(J26>'Size Premium'!$A$10,'Size Premium'!$B$10,IF(J26>'Size Premium'!$A$11,'Size Premium'!$B$11,IF(J26>'Size Premium'!$A$12,'Size Premium'!$B$12,"ERROR")))))))) -> -0.0028 | L26: 0.108
A27: 19 | B27: =VLOOKUP('Utility Group'!$B21,vldatabase,2,FALSE) -> Southern Company | C27: ='2020 10 Market DCF'!$J$385 -> 0.0233 | D27: ='2020 10 Market DCF'!$P$386 -> 0.0924 | E27: 0.1157 | F27: =ROUND('Bond Yields'!$K$16,3) -> 0.014 | G27: 0.1017 | H27: =VLOOKUP('Utility Group'!$B21,vldatabase,23,FALSE) -> 0.9 | I27: 0.10553 | J27: =VLOOKUP('Utility Group'!$B21,vldatabase,28,FALSE) -> 57000 | K27: =IF(J27>'Size Premium'!$A$5,'Size Premium'!$B$5,IF(J27>'Size Premium'!$A$6,'Size Premium'!$B$6,IF(J27>'Size Premium'!$A$7,'Size Premium'!$B$7,IF(J27>'Size Premium'!$A$8,'Size Premium'!$B$8,IF(J27>'Size Premium'!$A$9,'Size Premium'!$B$9,IF(J27>'Size Premium'!$A$10,'Size Premium'!$B$10,IF(J27>'Size Premium'!$A$11,'Size Premium'!$B$11,IF(J27>'Size Premium'!$A$12,'Size Premium'!$B$12,"ERROR")))))))) -> -0.0028 | L27: 0.103
A28: 20 | B28: =VLOOKUP('Utility Group'!$B22,vldatabase,2,FALSE) -> WEC Energy Group | C28: ='2020 10 Market DCF'!$J$385 -> 0.0233 | D28: ='2020 10 Market DCF'!$P$386 -> 0.0924 | E28: 0.1157 | F28: =ROUND('Bond Yields'!$K$16,3) -> 0.014 | G28: 0.1017 | H28: =VLOOKUP('Utility Group'!$B22,vldatabase,23,FALSE) -> 0.8 | I28: 0.09536 | J28: =VLOOKUP('Utility Group'!$B22,vldatabase,28,FALSE) -> 30000 | K28: =IF(J28>'Size Premium'!$A$5,'Size Premium'!$B$5,IF(J28>'Size Premium'!$A$6,'Size Premium'!$B$6,IF(J28>'Size Premium'!$A$7,'Size Premium'!$B$7,IF(J28>'Size Premium'!$A$8,'Size Premium'!$B$8,IF(J28>'Size Premium'!$A$9,'Size Premium'!$B$9,IF(J28>'Size Premium'!$A$10,'Size Premium'!$B$10,IF(J28>'Size Premium'!$A$11,'Size Premium'!$B$11,IF(J28>'Size Premium'!$A$12,'Size Premium'!$B$12,"ERROR")))))))) -> 0.005 | L28: 0.1
A29: 21 | B29: =VLOOKUP('Utility Group'!$B23,vldatabase,2,FALSE) -> Xcel Energy Inc. | C29: ='2020 10 Market DCF'!$J$385 -> 0.0233 | D29: ='2020 10 Market DCF'!$P$386 -> 0.0924 | E29: 0.1157 | F29: =ROUND('Bond Yields'!$K$16,3) -> 0.014 | G29: 0.1017 | H29: =VLOOKUP('Utility Group'!$B23,vldatabase,23,FALSE) -> 0.8 | I29: 0.09536 | J29: =VLOOKUP('Utility Group'!$B23,vldatabase,28,FALSE) -> 34000 | K29: =IF(J29>'Size Premium'!$A$5,'Size Premium'!$B$5,IF(J29>'Size Premium'!$A$6,'Size Premium'!$B$6,IF(J29>'Size Premium'!$A$7,'Size Premium'!$B$7,IF(J29>'Size Premium'!$A$8,'Size Premium'!$B$8,IF(J29>'Size Premium'!$A$9,'Size Premium'!$B$9,IF(J29>'Size Premium'!$A$10,'Size Premium'!$B$10,IF(J29>'Size Premium'!$A$11,'Size Premium'!$B$11,IF(J29>'Size Premium'!$A$12,'Size Premium'!$B$12,"ERROR")))))))) -> -0.0028 | L29: 0.093
B31: Average | H31: =AVERAGE(H9:H29) -> 0.8714285714 | I31: =AVERAGE(I9:I29) -> 0.1026242857 | L31: =AVERAGE(L9:L29) -> 0.1056190476
B32: Midpoint (f) | I32: =AVERAGE(I42:I43) -> 0.10553 | L32: =AVERAGE(L42:L43) -> 0.108
A34: (a) | B34: ="Weighted average for "&'2020 10 Market DCF'!B394&"." -> Weighted average for www.valueline.com (retrieved Oct. 1, 2020).
A35: (b) | B35: ="Average of weighted average earnings growth rates from IBES, Value Line Investment Survey, and Zacks for dividend-paying stocks in the S&P 500 based on data from "&'2020 10 Market DCF'!B395&", "&'2020 10 Market DCF'!B394&", and "&'2020 10 Market DCF'!B396&"." -> Average of weighted average earnings growth rates from IBES, Value Line Investment Survey, and Zacks for dividend-paying stocks in the S&P 500 based on data from http://finance.yahoo.com (retrieved Oct. 2, 2020), www.valueline.com (retrieved Oct. 1, 2020), and www.zacks.com (retrieved Oct. 6, 2020).
A37: (c) | B37: ="Average yield on 30-year Treasury bonds for the six-months ending "&'Bond Yields'!B14&" based on data from the Federal Reserve at "&'Bond Yields'!B21 -> Average yield on 30-year Treasury bonds for the six-months ending Sep. 2020 based on data from the Federal Reserve at https://fred.stlouisfed.org/.
A38: (d) | B38: ='Proxy Group Risk Measures'!B35 -> The Value Line Investment Survey (Jul. 24, Aug. 14 and Sep. 11, 2020).
A39: (e) | B39: ='Size Premium'!A18 -> Duff & Phelps, 2020 CRSP Deciles Size Study -- Supplementary Data Exhibits, Cost of Capital Navigator.
A40: (f) | B40: Average of low and high values.
H42: Min | I42: =MIN(I9:I29) -> 0.090275 | K42: Min | L42: =MIN(L9:L29) -> 0.087
H43: Max | I43: =MAX(I9:I29) -> 0.120785 | K43: Max | L43: =MAX(L9:L29) -> 0.129
K44: Median | L44: =MEDIAN(L9:L29) -> 0.103
L46: ='15 (3)'!E42 -> 0.054

Sheet 17 (2)
A1: ='Exhibit List'!C10 -> CAPM | M1: ='Exhibit List'!B10 -> Exh. AMM-17
M2: Page 2 of 2
A3: ='Exhibit List'!D10 -> PROJECTED BOND YIELD
C5: (a) | D5: (b) | F5: (c) | H5: (d) | J5: (d) | K5: (e)
C6: Market Return (Rm) | L6: Size
C7: Div | D7: Proj. | E7: Cost of | F7: Risk-Free | G7: Risk | I7: Unadjusted | J7: Market | K7: Size | L7: Adjusted
B8: Company | C8: Yield | D8: Growth | E8: Equity | F8: Rate | G8: Premium | H8: Beta | I8: CAPM | J8: Cap | K8: Adjustment | L8: CAPM
A9: =A8+1 -> 1 | B9: =VLOOKUP('Utility Group'!$B3,vldatabase,2,FALSE) -> Alliant Energy | C9: ='2020 10 Market DCF'!$J$385 -> 0.0233 | D9: ='2020 10 Market DCF'!$P$386 -> 0.0924 | E9: =C9+D9 -> 0.1157 | F9: =ROUND('Bond Yields'!O60,3) -> 0.022 | G9: =E9-F9 -> 0.0937 | H9: =VLOOKUP('Utility Group'!$B3,vldatabase,23,FALSE) -> 0.85 | I9: =IF(H9="n/a","n/a",H9*G9+F9) -> 0.101645 | J9: =VLOOKUP('Utility Group'!$B3,vldatabase,28,FALSE) -> 13500 | K9: =IF(J9>'Size Premium'!$A$5,'Size Premium'!$B$5,IF(J9>'Size Premium'!$A$6,'Size Premium'!$B$6,IF(J9>'Size Premium'!$A$7,'Size Premium'!$B$7,IF(J9>'Size Premium'!$A$8,'Size Premium'!$B$8,IF(J9>'Size Premium'!$A$9,'Size Premium'!$B$9,IF(J9>'Size Premium'!$A$10,'Size Premium'!$B$10,IF(J9>'Size Premium'!$A$11,'Size Premium'!$B$11,IF(J9>'Size Premium'!$A$12,'Size Premium'!$B$12,"ERROR")))))))) -> 0.005 | L9: =IF(I9="n/a","n/a",ROUND(I9+K9,3)) -> 0.107
A10: =A9+1 -> 2 | B10: =VLOOKUP('Utility Group'!$B4,vldatabase,2,FALSE) -> Ameren Corp. | C10: ='2020 10 Market DCF'!$J$385 -> 0.0233 | D10: ='2020 10 Market DCF'!$P$386 -> 0.0924 | E10: 0.1157 | F10: =F9 -> 0.022 | G10: =E10-F10 -> 0.0937 | H10: =VLOOKUP('Utility Group'!$B4,vldatabase,23,FALSE) -> 0.8 | I10: =IF(H10="n/a","n/a",H10*G10+F10) -> 0.09696 | J10: =VLOOKUP('Utility Group'!$B4,vldatabase,28,FALSE) -> 20000 | K10: =IF(J10>'Size Premium'!$A$5,'Size Premium'!$B$5,IF(J10>'Size Premium'!$A$6,'Size Premium'!$B$6,IF(J10>'Size Premium'!$A$7,'Size Premium'!$B$7,IF(J10>'Size Premium'!$A$8,'Size Premium'!$B$8,IF(J10>'Size Premium'!$A$9,'Size Premium'!$B$9,IF(J10>'Size Premium'!$A$10,'Size Premium'!$B$10,IF(J10>'Size Premium'!$A$11,'Size Premium'!$B$11,IF(J10>'Size Premium'!$A$12,'Size Premium'!$B$12,"ERROR")))))))) -> 0.005 | L10: =IF(I10="n/a","n/a",ROUND(I10+K10,3)) -> 0.102
A11: 3 | B11: =VLOOKUP('Utility Group'!$B5,vldatabase,2,FALSE) -> American Elec Pwr | C11: ='2020 10 Market DCF'!$J$385 -> 0.0233 | D11: ='2020 10 Market DCF'!$P$386 -> 0.0924 | E11: 0.1157 | F11: =F10 -> 0.022 | G11: 0.0937 | H11: =VLOOKUP('Utility Group'!$B5,vldatabase,23,FALSE) -> 0.75 | I11: 0.092275 | J11: =VLOOKUP('Utility Group'!$B5,vldatabase,28,FALSE) -> 39000 | K11: =IF(J11>'Size Premium'!$A$5,'Size Premium'!$B$5,IF(J11>'Size Premium'!$A$6,'Size Premium'!$B$6,IF(J11>'Size Premium'!$A$7,'Size Premium'!$B$7,IF(J11>'Size Premium'!$A$8,'Size Premium'!$B$8,IF(J11>'Size Premium'!$A$9,'Size Premium'!$B$9,IF(J11>'Size Premium'!$A$10,'Size Premium'!$B$10,IF(J11>'Size Premium'!$A$11,'Size Premium'!$B$11,IF(J11>'Size Premium'!$A$12,'Size Premium'!$B$12,"ERROR")))))))) -> -0.0028 | L11: 0.089
A12: 4 | B12: =VLOOKUP('Utility Group'!$B6,vldatabase,2,FALSE) -> Avangrid, Inc. | C12: ='2020 10 Market DCF'!$J$385 -> 0.0233 | D12: ='2020 10 Market DCF'!$P$386 -> 0.0924 | E12: 0.1157 | F12: 0.022 | G12: 0.0937 | H12: =VLOOKUP('Utility Group'!$B6,vldatabase,23,FALSE) -> 0.8 | I12: 0.09696 | J12: =VLOOKUP('Utility Group'!$B6,vldatabase,28,FALSE) -> 15000 | K12: =IF(J12>'Size Premium'!$A$5,'Size Premium'!$B$5,IF(J12>'Size Premium'!$A$6,'Size Premium'!$B$6,IF(J12>'Size Premium'!$A$7,'Size Premium'!$B$7,IF(J12>'Size Premium'!$A$8,'Size Premium'!$B$8,IF(J12>'Size Premium'!$A$9,'Size Premium'!$B$9,IF(J12>'Size Premium'!$A$10,'Size Premium'!$B$10,IF(J12>'Size Premium'!$A$11,'Size Premium'!$B$11,IF(J12>'Size Premium'!$A$12,'Size Premium'!$B$12,"ERROR")))))))) -> 0.005 | L12: 0.102
A13: 5 | B13: =VLOOKUP('Utility Group'!$B7,vldatabase,2,FALSE) -> Black Hills Corp. | C13: ='2020 10 Market DCF'!$J$385 -> 0.0233 | D13: ='2020 10 Market DCF'!$P$386 -> 0.0924 | E13: 0.1157 | F13: 0.022 | G13: 0.0937 | H13: =VLOOKUP('Utility Group'!$B7,vldatabase,23,FALSE) -> 0.95 | I13: 0.111015 | J13: =VLOOKUP('Utility Group'!$B7,vldatabase,28,FALSE) -> 3800 | K13: =IF(J13>'Size Premium'!$A$5,'Size Premium'!$B$5,IF(J13>'Size Premium'!$A$6,'Size Premium'!$B$6,IF(J13>'Size Premium'!$A$7,'Size Premium'!$B$7,IF(J13>'Size Premium'!$A$8,'Size Premium'!$B$8,IF(J13>'Size Premium'!$A$9,'Size Premium'!$B$9,IF(J13>'Size Premium'!$A$10,'Size Premium'!$B$10,IF(J13>'Size Premium'!$A$11,'Size Premium'!$B$11,IF(J13>'Size Premium'!$A$12,'Size Premium'!$B$12,"ERROR")))))))) -> 0.011 | L13: 0.122
A14: 6 | B14: =VLOOKUP('Utility Group'!$B8,vldatabase,2,FALSE) -> CMS Energy Corp. | C14: ='2020 10 Market DCF'!$J$385 -> 0.0233 | D14: ='2020 10 Market DCF'!$P$386 -> 0.0924 | E14: 0.1157 | F14: 0.022 | G14: 0.0937 | H14: =VLOOKUP('Utility Group'!$B8,vldatabase,23,FALSE) -> 0.8 | I14: 0.09696 | J14: =VLOOKUP('Utility Group'!$B8,vldatabase,28,FALSE) -> 17000 | K14: =IF(J14>'Size Premium'!$A$5,'Size Premium'!$B$5,IF(J14>'Size Premium'!$A$6,'Size Premium'!$B$6,IF(J14>'Size Premium'!$A$7,'Size Premium'!$B$7,IF(J14>'Size Premium'!$A$8,'Size Premium'!$B$8,IF(J14>'Size Premium'!$A$9,'Size Premium'!$B$9,IF(J14>'Size Premium'!$A$10,'Size Premium'!$B$10,IF(J14>'Size Premium'!$A$11,'Size Premium'!$B$11,IF(J14>'Size Premium'!$A$12,'Size Premium'!$B$12,"ERROR")))))))) -> 0.005 | L14: 0.102
A15: 7 | B15: =VLOOKUP('Utility Group'!$B9,vldatabase,2,FALSE) -> Consolidated Edison | C15: ='2020 10 Market DCF'!$J$385 -> 0.0233 | D15: ='2020 10 Market DCF'!$P$386 -> 0.0924 | E15: 0.1157 | F15: 0.022 | G15: 0.0937 | H15: =VLOOKUP('Utility Group'!$B9,vldatabase,23,FALSE) -> 0.75 | I15: 0.092275 | J15: =VLOOKUP('Utility Group'!$B9,vldatabase,28,FALSE) -> 25000 | K15: =IF(J15>'Size Premium'!$A$5,'Size Premium'!$B$5,IF(J15>'Size Premium'!$A$6,'Size Premium'!$B$6,IF(J15>'Size Premium'!$A$7,'Size Premium'!$B$7,IF(J15>'Size Premium'!$A$8,'Size Premium'!$B$8,IF(J15>'Size Premium'!$A$9,'Size Premium'!$B$9,IF(J15>'Size Premium'!$A$10,'Size Premium'!$B$10,IF(J15>'Size Premium'!$A$11,'Size Premium'!$B$11,IF(J15>'Size Premium'!$A$12,'Size Premium'!$B$12,"ERROR")))))))) -> 0.005 | L15: 0.097
A16: 8 | B16: =VLOOKUP('Utility Group'!$B10,vldatabase,2,FALSE) -> DTE Energy Co. | C16: ='2020 10 Market DCF'!$J$385 -> 0.0233 | D16: ='2020 10 Market DCF'!$P$386 -> 0.0924 | E16: 0.1157 | F16: 0.022 | G16: 0.0937 | H16: =VLOOKUP('Utility Group'!$B10,vldatabase,23,FALSE) -> 0.9 | I16: 0.10633 | J16: =VLOOKUP('Utility Group'!$B10,vldatabase,28,FALSE) -> 23000 | K16: =IF(J16>'Size Premium'!$A$5,'Size Premium'!$B$5,IF(J16>'Size Premium'!$A$6,'Size Premium'!$B$6,IF(J16>'Size Premium'!$A$7,'Size Premium'!$B$7,IF(J16>'Size Premium'!$A$8,'Size Premium'!$B$8,IF(J16>'Size Premium'!$A$9,'Size Premium'!$B$9,IF(J16>'Size Premium'!$A$10,'Size Premium'!$B$10,IF(J16>'Size Premium'!$A$11,'Size Premium'!$B$11,IF(J16>'Size Premium'!$A$12,'Size Premium'!$B$12,"ERROR")))))))) -> 0.005 | L16: 0.111
A17: 9 | B17: =VLOOKUP('Utility Group'!$B11,vldatabase,2,FALSE) -> Duke Energy Corp. | C17: ='2020 10 Market DCF'!$J$385 -> 0.0233 | D17: ='2020 10 Market DCF'!$P$386 -> 0.0924 | E17: 0.1157 | F17: 0.022 | G17: 0.0937 | H17: =VLOOKUP('Utility Group'!$B11,vldatabase,23,FALSE) -> 0.85 | I17: 0.101645 | J17: =VLOOKUP('Utility Group'!$B11,vldatabase,28,FALSE) -> 62000 | K17: =IF(J17>'Size Premium'!$A$5,'Size Premium'!$B$5,IF(J17>'Size Premium'!$A$6,'Size Premium'!$B$6,IF(J17>'Size Premium'!$A$7,'Size Premium'!$B$7,IF(J17>'Size Premium'!$A$8,'Size Premium'!$B$8,IF(J17>'Size Premium'!$A$9,'Size Premium'!$B$9,IF(J17>'Size Premium'!$A$10,'Size Premium'!$B$10,IF(J17>'Size Premium'!$A$11,'Size Premium'!$B$11,IF(J17>'Size Premium'!$A$12,'Size Premium'!$B$12,"ERROR")))))))) -> -0.0028 | L17: 0.099
A18: 10 | B18: =VLOOKUP('Utility Group'!$B12,vldatabase,2,FALSE) -> Entergy Corp. | C18: ='2020 10 Market DCF'!$J$385 -> 0.0233 | D18: ='2020 10 Market DCF'!$P$386 -> 0.0924 | E18: 0.1157 | F18: 0.022 | G18: 0.0937 | H18: =VLOOKUP('Utility Group'!$B12,vldatabase,23,FALSE) -> 0.95 | I18: 0.111015 | J18: =VLOOKUP('Utility Group'!$B12,vldatabase,28,FALSE) -> 20000 | K18: =IF(J18>'Size Premium'!$A$5,'Size Premium'!$B$5,IF(J18>'Size Premium'!$A$6,'Size Premium'!$B$6,IF(J18>'Size Premium'!$A$7,'Size Premium'!$B$7,IF(J18>'Size Premium'!$A$8,'Size Premium'!$B$8,IF(J18>'Size Premium'!$A$9,'Size Premium'!$B$9,IF(J18>'Size Premium'!$A$10,'Size Premium'!$B$10,IF(J18>'Size Premium'!$A$11,'Size Premium'!$B$11,IF(J18>'Size Premium'!$A$12,'Size Premium'!$B$12,"ERROR")))))))) -> 0.005 | L18: 0.116
A19: 11 | B19: =VLOOKUP('Utility Group'!$B13,vldatabase,2,FALSE) -> Evergy Inc. | C19: ='2020 10 Market DCF'!$J$385 -> 0.0233 | D19: ='2020 10 Market DCF'!$P$386 -> 0.0924 | E19: 0.1157 | F19: 0.022 | G19: 0.0937 | H19: =VLOOKUP('Utility Group'!$B13,vldatabase,23,FALSE) -> 1 | I19: 0.1157 | J19: =VLOOKUP('Utility Group'!$B13,vldatabase,28,FALSE) -> 12000 | K19: =IF(J19>'Size Premium'!$A$5,'Size Premium'!$B$5,IF(J19>'Size Premium'!$A$6,'Size Premium'!$B$6,IF(J19>'Size Premium'!$A$7,'Size Premium'!$B$7,IF(J19>'Size Premium'!$A$8,'Size Premium'!$B$8,IF(J19>'Size Premium'!$A$9,'Size Premium'!$B$9,IF(J19>'Size Premium'!$A$10,'Size Premium'!$B$10,IF(J19>'Size Premium'!$A$11,'Size Premium'!$B$11,IF(J19>'Size Premium'!$A$12,'Size Premium'!$B$12,"ERROR")))))))) -> 0.0073 | L19: 0.123
A20: 12 | B20: =VLOOKUP('Utility Group'!$B14,vldatabase,2,FALSE) -> Eversource Energy | C20: ='2020 10 Market DCF'!$J$385 -> 0.0233 | D20: ='2020 10 Market DCF'!$P$386 -> 0.0924 | E20: 0.1157 | F20: 0.022 | G20: 0.0937 | H20: =VLOOKUP('Utility Group'!$B14,vldatabase,23,FALSE) -> 0.9 | I20: 0.10633 | J20: =VLOOKUP('Utility Group'!$B14,vldatabase,28,FALSE) -> 30000 | K20: =IF(J20>'Size Premium'!$A$5,'Size Premium'!$B$5,IF(J20>'Size Premium'!$A$6,'Size Premium'!$B$6,IF(J20>'Size Premium'!$A$7,'Size Premium'!$B$7,IF(J20>'Size Premium'!$A$8,'Size Premium'!$B$8,IF(J20>'Size Premium'!$A$9,'Size Premium'!$B$9,IF(J20>'Size Premium'!$A$10,'Size Premium'!$B$10,IF(J20>'Size Premium'!$A$11,'Size Premium'!$B$11,IF(J20>'Size Premium'!$A$12,'Size Premium'!$B$12,"ERROR")))))))) -> 0.005 | L20: 0.111
A21: 13 | B21: =VLOOKUP('Utility Group'!$B15,vldatabase,2,FALSE) -> Exelon Corp. | C21: ='2020 10 Market DCF'!$J$385 -> 0.0233 | D21: ='2020 10 Market DCF'!$P$386 -> 0.0924 | E21: 0.1157 | F21: 0.022 | G21: 0.0937 | H21: =VLOOKUP('Utility Group'!$B15,vldatabase,23,FALSE) -> 0.95 | I21: 0.111015 | J21: =VLOOKUP('Utility Group'!$B15,vldatabase,28,FALSE) -> 37000 | K21: =IF(J21>'Size Premium'!$A$5,'Size Premium'!$B$5,IF(J21>'Size Premium'!$A$6,'Size Premium'!$B$6,IF(J21>'Size Premium'!$A$7,'Size Premium'!$B$7,IF(J21>'Size Premium'!$A$8,'Size Premium'!$B$8,IF(J21>'Size Premium'!$A$9,'Size Premium'!$B$9,IF(J21>'Size Premium'!$A$10,'Size Premium'!$B$10,IF(J21>'Size Premium'!$A$11,'Size Premium'!$B$11,IF(J21>'Size Premium'!$A$12,'Size Premium'!$B$12,"ERROR")))))))) -> -0.0028 | L21: 0.108
A22: 14 | B22: =VLOOKUP('Utility Group'!$B16,vldatabase,2,FALSE) -> Fortis Inc. | C22: ='2020 10 Market DCF'!$J$385 -> 0.0233 | D22: ='2020 10 Market DCF'!$P$386 -> 0.0924 | E22: 0.1157 | F22: 0.022 | G22: 0.0937 | H22: =VLOOKUP('Utility Group'!$B16,vldatabase,23,FALSE) -> 0.8 | I22: 0.09696 | J22: =VLOOKUP('Utility Group'!$B16,vldatabase,28,FALSE) -> 24000 | K22: =IF(J22>'Size Premium'!$A$5,'Size Premium'!$B$5,IF(J22>'Size Premium'!$A$6,'Size Premium'!$B$6,IF(J22>'Size Premium'!$A$7,'Size Premium'!$B$7,IF(J22>'Size Premium'!$A$8,'Size Premium'!$B$8,IF(J22>'Size Premium'!$A$9,'Size Premium'!$B$9,IF(J22>'Size Premium'!$A$10,'Size Premium'!$B$10,IF(J22>'Size Premium'!$A$11,'Size Premium'!$B$11,IF(J22>'Size Premium'!$A$12,'Size Premium'!$B$12,"ERROR")))))))) -> 0.005 | L22: 0.102
A23: 15 | B23: =VLOOKUP('Utility Group'!$B17,vldatabase,2,FALSE) -> NextEra Energy, Inc. | C23: ='2020 10 Market DCF'!$J$385 -> 0.0233 | D23: ='2020 10 Market DCF'!$P$386 -> 0.0924 | E23: 0.1157 | F23: 0.022 | G23: 0.0937 | H23: =VLOOKUP('Utility Group'!$B17,vldatabase,23,FALSE) -> 0.85 | I23: 0.101645 | J23: =VLOOKUP('Utility Group'!$B17,vldatabase,28,FALSE) -> 136000 | K23: =IF(J23>'Size Premium'!$A$5,'Size Premium'!$B$5,IF(J23>'Size Premium'!$A$6,'Size Premium'!$B$6,IF(J23>'Size Premium'!$A$7,'Size Premium'!$B$7,IF(J23>'Size Premium'!$A$8,'Size Premium'!$B$8,IF(J23>'Size Premium'!$A$9,'Size Premium'!$B$9,IF(J23>'Size Premium'!$A$10,'Size Premium'!$B$10,IF(J23>'Size Premium'!$A$11,'Size Premium'!$B$11,IF(J23>'Size Premium'!$A$12,'Size Premium'!$B$12,"ERROR")))))))) -> -0.0028 | L23: 0.099
A24: 16 | B24: =VLOOKUP('Utility Group'!$B18,vldatabase,2,FALSE) -> OGE Energy Corp. | C24: ='2020 10 Market DCF'!$J$385 -> 0.0233 | D24: ='2020 10 Market DCF'!$P$386 -> 0.0924 | E24: 0.1157 | F24: 0.022 | G24: 0.0937 | H24: =VLOOKUP('Utility Group'!$B18,vldatabase,23,FALSE) -> 1.05 | I24: 0.120385 | J24: =VLOOKUP('Utility Group'!$B18,vldatabase,28,FALSE) -> 6400 | K24: =IF(J24>'Size Premium'!$A$5,'Size Premium'!$B$5,IF(J24>'Size Premium'!$A$6,'Size Premium'!$B$6,IF(J24>'Size Premium'!$A$7,'Size Premium'!$B$7,IF(J24>'Size Premium'!$A$8,'Size Premium'!$B$8,IF(J24>'Size Premium'!$A$9,'Size Premium'!$B$9,IF(J24>'Size Premium'!$A$10,'Size Premium'!$B$10,IF(J24>'Size Premium'!$A$11,'Size Premium'!$B$11,IF(J24>'Size Premium'!$A$12,'Size Premium'!$B$12,"ERROR")))))))) -> 0.0079 | L24: 0.128
A25: 17 | B25: =VLOOKUP('Utility Group'!$B19,vldatabase,2,FALSE) -> Pub Sv Enterprise Grp. | C25: ='2020 10 Market DCF'!$J$385 -> 0.0233 | D25: ='2020 10 Market DCF'!$P$386 -> 0.0924 | E25: 0.1157 | F25: 0.022 | G25: 0.0937 | H25: =VLOOKUP('Utility Group'!$B19,vldatabase,23,FALSE) -> 0.9 | I25: 0.10633 | J25: =VLOOKUP('Utility Group'!$B19,vldatabase,28,FALSE) -> 28000 | K25: =IF(J25>'Size Premium'!$A$5,'Size Premium'!$B$5,IF(J25>'Size Premium'!$A$6,'Size Premium'!$B$6,IF(J25>'Size Premium'!$A$7,'Size Premium'!$B$7,IF(J25>'Size Premium'!$A$8,'Size Premium'!$B$8,IF(J25>'Size Premium'!$A$9,'Size Premium'!$B$9,IF(J25>'Size Premium'!$A$10,'Size Premium'!$B$10,IF(J25>'Size Premium'!$A$11,'Size Premium'!$B$11,IF(J25>'Size Premium'!$A$12,'Size Premium'!$B$12,"ERROR")))))))) -> 0.005 | L25: 0.111
A26: 18 | B26: =VLOOKUP('Utility Group'!$B20,vldatabase,2,FALSE) -> Sempra Energy | C26: ='2020 10 Market DCF'!$J$385 -> 0.0233 | D26: ='2020 10 Market DCF'!$P$386 -> 0.0924 | E26: 0.1157 | F26: 0.022 | G26: 0.0937 | H26: =VLOOKUP('Utility Group'!$B20,vldatabase,23,FALSE) -> 0.95 | I26: 0.111015 | J26: =VLOOKUP('Utility Group'!$B20,vldatabase,28,FALSE) -> 35000 | K26: =IF(J26>'Size Premium'!$A$5,'Size Premium'!$B$5,IF(J26>'Size Premium'!$A$6,'Size Premium'!$B$6,IF(J26>'Size Premium'!$A$7,'Size Premium'!$B$7,IF(J26>'Size Premium'!$A$8,'Size Premium'!$B$8,IF(J26>'Size Premium'!$A$9,'Size Premium'!$B$9,IF(J26>'Size Premium'!$A$10,'Size Premium'!$B$10,IF(J26>'Size Premium'!$A$11,'Size Premium'!$B$11,IF(J26>'Size Premium'!$A$12,'Size Premium'!$B$12,"ERROR")))))))) -> -0.0028 | L26: 0.108
A27: 19 | B27: =VLOOKUP('Utility Group'!$B21,vldatabase,2,FALSE) -> Southern Company | C27: ='2020 10 Market DCF'!$J$385 -> 0.0233 | D27: ='2020 10 Market DCF'!$P$386 -> 0.0924 | E27: 0.1157 | F27: 0.022 | G27: 0.0937 | H27: =VLOOKUP('Utility Group'!$B21,vldatabase,23,FALSE) -> 0.9 | I27: 0.10633 | J27: =VLOOKUP('Utility Group'!$B21,vldatabase,28,FALSE) -> 57000 | K27: =IF(J27>'Size Premium'!$A$5,'Size Premium'!$B$5,IF(J27>'Size Premium'!$A$6,'Size Premium'!$B$6,IF(J27>'Size Premium'!$A$7,'Size Premium'!$B$7,IF(J27>'Size Premium'!$A$8,'Size Premium'!$B$8,IF(J27>'Size Premium'!$A$9,'Size Premium'!$B$9,IF(J27>'Size Premium'!$A$10,'Size Premium'!$B$10,IF(J27>'Size Premium'!$A$11,'Size Premium'!$B$11,IF(J27>'Size Premium'!$A$12,'Size Premium'!$B$12,"ERROR")))))))) -> -0.0028 | L27: 0.104
A28: 20 | B28: =VLOOKUP('Utility Group'!$B22,vldatabase,2,FALSE) -> WEC Energy Group | C28: ='2020 10 Market DCF'!$J$385 -> 0.0233 | D28: ='2020 10 Market DCF'!$P$386 -> 0.0924 | E28: 0.1157 | F28: 0.022 | G28: 0.0937 | H28: =VLOOKUP('Utility Group'!$B22,vldatabase,23,FALSE) -> 0.8 | I28: 0.09696 | J28: =VLOOKUP('Utility Group'!$B22,vldatabase,28,FALSE) -> 30000 | K28: =IF(J28>'Size Premium'!$A$5,'Size Premium'!$B$5,IF(J28>'Size Premium'!$A$6,'Size Premium'!$B$6,IF(J28>'Size Premium'!$A$7,'Size Premium'!$B$7,IF(J28>'Size Premium'!$A$8,'Size Premium'!$B$8,IF(J28>'Size Premium'!$A$9,'Size Premium'!$B$9,IF(J28>'Size Premium'!$A$10,'Size Premium'!$B$10,IF(J28>'Size Premium'!$A$11,'Size Premium'!$B$11,IF(J28>'Size Premium'!$A$12,'Size Premium'!$B$12,"ERROR")))))))) -> 0.005 | L28: 0.102
A29: 21 | B29: =VLOOKUP('Utility Group'!$B23,vldatabase,2,FALSE) -> Xcel Energy Inc. | C29: ='2020 10 Market DCF'!$J$385 -> 0.0233 | D29: ='2020 10 Market DCF'!$P$386 -> 0.0924 | E29: 0.1157 | F29: 0.022 | G29: 0.0937 | H29: =VLOOKUP('Utility Group'!$B23,vldatabase,23,FALSE) -> 0.8 | I29: 0.09696 | J29: =VLOOKUP('Utility Group'!$B23,vldatabase,28,FALSE) -> 34000 | K29: =IF(J29>'Size Premium'!$A$5,'Size Premium'!$B$5,IF(J29>'Size Premium'!$A$6,'Size Premium'!$B$6,IF(J29>'Size Premium'!$A$7,'Size Premium'!$B$7,IF(J29>'Size Premium'!$A$8,'Size Premium'!$B$8,IF(J29>'Size Premium'!$A$9,'Size Premium'!$B$9,IF(J29>'Size Premium'!$A$10,'Size Premium'!$B$10,IF(J29>'Size Premium'!$A$11,'Size Premium'!$B$11,IF(J29>'Size Premium'!$A$12,'Size Premium'!$B$12,"ERROR")))))))) -> -0.0028 | L29: 0.094
B31: Average | I31: =AVERAGE(I9:I29) -> 0.1036528571 | L31: =AVERAGE(L9:L29) -> 0.1065238095
B32: Midpoint (f) | I32: =AVERAGE(I43:I44) -> 0.10633 | L32: =AVERAGE(L43:L44) -> 0.1085
A34: (a) | B34: ="Weighted average for "&'2020 10 Market DCF'!B394&"." -> Weighted average for www.valueline.com (retrieved Oct. 1, 2020).
A35: (b) | B35: ="Average of weighted average earnings growth rates from IBES, Value Line Investment Survey, and Zacks for dividend-paying stocks in the S&P 500 based on data from "&'2020 10 Market DCF'!B395&", "&'2020 10 Market DCF'!B394&", and "&'2020 10 Market DCF'!B396&"." -> Average of weighted average earnings growth rates from IBES, Value Line Investment Survey, and Zacks for dividend-paying stocks in the S&P 500 based on data from http://finance.yahoo.com (retrieved Oct. 2, 2020), www.valueline.com (retrieved Oct. 1, 2020), and www.zacks.com (retrieved Oct. 6, 2020).
A37: (c) | B37: ="Average yield on 30-year Treasury bonds for "&'Bond Yields'!O50&" based on data from the "&'Bond Yields'!B72&"; "&'Bond Yields'!B73&"; & "&'Bond Yields'!B75&"." -> Average yield on 30-year Treasury bonds for 2021-25 based on data from the Value Line Investment Survey, Forecast for the U.S. Economy (Aug. 28, 2020); IHS Markit, Long-Term Macro Forecast - Baseline (May 28, 2020); & Wolters Kluwer, Blue Chip Financial Forecasts (Jun. 1, 2020).
A39: (d) | B39: ='Proxy Group Risk Measures'!B35 -> The Value Line Investment Survey (Jul. 24, Aug. 14 and Sep. 11, 2020).
A40: (e) | B40: ='Size Premium'!A18 -> Duff & Phelps, 2020 CRSP Deciles Size Study -- Supplementary Data Exhibits, Cost of Capital Navigator.
A41: (f) | B41: Average of low and high values.
H43: Min | I43: =MIN(I9:I29) -> 0.092275 | K43: Min | L43: =MIN(L9:L29) -> 0.089
H44: Max | I44: =MAX(I9:I29) -> 0.120385 | K44: Max | L44: =MAX(L9:L29) -> 0.128
K45: Median | L45: =MEDIAN(L9:L29) -> 0.104
L47: ='15 (3)'!E42 -> 0.054

Sheet 18 (1)
A1: ='Exhibit List'!C11 -> EMPIRICAL CAPM | R1: ='Exhibit List'!B11 -> Exh. AMM-18
R2: Page 1 of 1
A3: ='Exhibit List'!D11 -> CURRENT BOND YIELD
C5: (a) | D5: (b) | F5: (c) | H5: (d) | J5: (e) | K5: (d) | O5: (e) | P5: (f)
C6: Market Return (Rm) | Q6: Size
C7: Div | D7: Proj. | E7: Cost of | F7: Risk-Free | G7: Risk | H7: Unadjusted RP | J7: Beta Adjusted RP | M7: Total | N7: Unadjusted | O7: Market | P7: Size | Q7: Adjusted
B8: Company | C8: Yield | D8: Growth | E8: Equity | F8: Rate | G8: Premium | H8: Weight | I8: RP1 | J8: Beta | K8: Weight | L8: RP2 | M8: RP | N8: Ke | O8: Cap | P8: Adjustment | Q8: Ke
A9: =A8+1 -> 1 | B9: =VLOOKUP('Utility Group'!$B3,vldatabase,2,FALSE) -> Alliant Energy | C9: ='17 (1)'!C9 -> 0.0233 | D9: ='17 (1)'!D9 -> 0.0924 | E9: =C9+D9 -> 0.1157 | F9: ='17 (1)'!F9 -> 0.014 | G9: =E9-F9 -> 0.1017 | H9: 0.25 | I9: =G9*H9 -> 0.025425 | J9: =VLOOKUP('Utility Group'!$B3,vldatabase,23,FALSE) -> 0.85 | K9: 0.75 | L9: =IF(J9="n/a","n/a",G9*J9*K9) -> 0.06483375 | M9: =IF(L9="n/a","n/a",L9+I9) -> 0.09025875 | N9: =IF(M9="n/a","n/a",M9+F9) -> 0.10425875 | O9: =VLOOKUP('Utility Group'!$B3,vldatabase,28,FALSE) -> 13500 | P9: =IF(O9>'Size Premium'!$A$5,'Size Premium'!$B$5,IF(O9>'Size Premium'!$A$6,'Size Premium'!$B$6,IF(O9>'Size Premium'!$A$7,'Size Premium'!$B$7,IF(O9>'Size Premium'!$A$8,'Size Premium'!$B$8,IF(O9>'Size Premium'!$A$9,'Size Premium'!$B$9,IF(O9>'Size Premium'!$A$10,'Size Premium'!$B$10,IF(O9>'Size Premium'!$A$11,'Size Premium'!$B$11,IF(O9>'Size Premium'!$A$12,'Size Premium'!$B$12,"ERROR")))))))) -> 0.005 | Q9: =IF(N9="n/a","n/a",ROUND(N9+P9,3)) -> 0.109
A10: =A9+1 -> 2 | B10: =VLOOKUP('Utility Group'!$B4,vldatabase,2,FALSE) -> Ameren Corp. | C10: ='17 (1)'!C10 -> 0.0233 | D10: ='17 (1)'!D10 -> 0.0924 | E10: =C10+D10 -> 0.1157 | F10: ='17 (1)'!F10 -> 0.014 | G10: =E10-F10 -> 0.1017 | H10: 0.25 | I10: =G10*H10 -> 0.025425 | J10: =VLOOKUP('Utility Group'!$B4,vldatabase,23,FALSE) -> 0.8 | K10: 0.75 | L10: 0.06102 | M10: 0.086445 | N10: 0.100445 | O10: =VLOOKUP('Utility Group'!$B4,vldatabase,28,FALSE) -> 20000 | P10: =IF(O10>'Size Premium'!$A$5,'Size Premium'!$B$5,IF(O10>'Size Premium'!$A$6,'Size Premium'!$B$6,IF(O10>'Size Premium'!$A$7,'Size Premium'!$B$7,IF(O10>'Size Premium'!$A$8,'Size Premium'!$B$8,IF(O10>'Size Premium'!$A$9,'Size Premium'!$B$9,IF(O10>'Size Premium'!$A$10,'Size Premium'!$B$10,IF(O10>'Size Premium'!$A$11,'Size Premium'!$B$11,IF(O10>'Size Premium'!$A$12,'Size Premium'!$B$12,"ERROR")))))))) -> 0.005 | Q10: =IF(N10="n/a","n/a",ROUND(N10+P10,3)) -> 0.105
A11: 3 | B11: =VLOOKUP('Utility Group'!$B5,vldatabase,2,FALSE) -> American Elec Pwr | C11: ='17 (1)'!C11 -> 0.0233 | D11: ='17 (1)'!D11 -> 0.0924 | E11: 0.1157 | F11: ='17 (1)'!F11 -> 0.014 | G11: 0.1017 | H11: 0.25 | I11: 0.025425 | J11: =VLOOKUP('Utility Group'!$B5,vldatabase,23,FALSE) -> 0.75 | K11: 0.75 | L11: 0.05720625 | M11: 0.08263125 | N11: 0.09663125 | O11: =VLOOKUP('Utility Group'!$B5,vldatabase,28,FALSE) -> 39000 | P11: =IF(O11>'Size Premium'!$A$5,'Size Premium'!$B$5,IF(O11>'Size Premium'!$A$6,'Size Premium'!$B$6,IF(O11>'Size Premium'!$A$7,'Size Premium'!$B$7,IF(O11>'Size Premium'!$A$8,'Size Premium'!$B$8,IF(O11>'Size Premium'!$A$9,'Size Premium'!$B$9,IF(O11>'Size Premium'!$A$10,'Size Premium'!$B$10,IF(O11>'Size Premium'!$A$11,'Size Premium'!$B$11,IF(O11>'Size Premium'!$A$12,'Size Premium'!$B$12,"ERROR")))))))) -> -0.0028 | Q11: 0.094
A12: 4 | B12: =VLOOKUP('Utility Group'!$B6,vldatabase,2,FALSE) -> Avangrid, Inc. | C12: ='17 (1)'!C12 -> 0.0233 | D12: ='17 (1)'!D12 -> 0.0924 | E12: 0.1157 | F12: ='17 (1)'!F12 -> 0.014 | G12: 0.1017 | H12: 0.25 | I12: 0.025425 | J12: =VLOOKUP('Utility Group'!$B6,vldatabase,23,FALSE) -> 0.8 | K12: 0.75 | L12: 0.06102 | M12: 0.086445 | N12: 0.100445 | O12: =VLOOKUP('Utility Group'!$B6,vldatabase,28,FALSE) -> 15000 | P12: =IF(O12>'Size Premium'!$A$5,'Size Premium'!$B$5,IF(O12>'Size Premium'!$A$6,'Size Premium'!$B$6,IF(O12>'Size Premium'!$A$7,'Size Premium'!$B$7,IF(O12>'Size Premium'!$A$8,'Size Premium'!$B$8,IF(O12>'Size Premium'!$A$9,'Size Premium'!$B$9,IF(O12>'Size Premium'!$A$10,'Size Premium'!$B$10,IF(O12>'Size Premium'!$A$11,'Size Premium'!$B$11,IF(O12>'Size Premium'!$A$12,'Size Premium'!$B$12,"ERROR")))))))) -> 0.005 | Q12: 0.105
A13: 5 | B13: =VLOOKUP('Utility Group'!$B7,vldatabase,2,FALSE) -> Black Hills Corp. | C13: ='17 (1)'!C13 -> 0.0233 | D13: ='17 (1)'!D13 -> 0.0924 | E13: 0.1157 | F13: ='17 (1)'!F13 -> 0.014 | G13: 0.1017 | H13: 0.25 | I13: 0.025425 | J13: =VLOOKUP('Utility Group'!$B7,vldatabase,23,FALSE) -> 0.95 | K13: 0.75 | L13: 0.07246125 | M13: 0.09788625 | N13: 0.11188625 | O13: =VLOOKUP('Utility Group'!$B7,vldatabase,28,FALSE) -> 3800 | P13: =IF(O13>'Size Premium'!$A$5,'Size Premium'!$B$5,IF(O13>'Size Premium'!$A$6,'Size Premium'!$B$6,IF(O13>'Size Premium'!$A$7,'Size Premium'!$B$7,IF(O13>'Size Premium'!$A$8,'Size Premium'!$B$8,IF(O13>'Size Premium'!$A$9,'Size Premium'!$B$9,IF(O13>'Size Premium'!$A$10,'Size Premium'!$B$10,IF(O13>'Size Premium'!$A$11,'Size Premium'!$B$11,IF(O13>'Size Premium'!$A$12,'Size Premium'!$B$12,"ERROR")))))))) -> 0.011 | Q13: 0.123
A14: 6 | B14: =VLOOKUP('Utility Group'!$B8,vldatabase,2,FALSE) -> CMS Energy Corp. | C14: ='17 (1)'!C14 -> 0.0233 | D14: ='17 (1)'!D14 -> 0.0924 | E14: 0.1157 | F14: ='17 (1)'!F14 -> 0.014 | G14: 0.1017 | H14: 0.25 | I14: 0.025425 | J14: =VLOOKUP('Utility Group'!$B8,vldatabase,23,FALSE) -> 0.8 | K14: 0.75 | L14: 0.06102 | M14: 0.086445 | N14: 0.100445 | O14: =VLOOKUP('Utility Group'!$B8,vldatabase,28,FALSE) -> 17000 | P14: =IF(O14>'Size Premium'!$A$5,'Size Premium'!$B$5,IF(O14>'Size Premium'!$A$6,'Size Premium'!$B$6,IF(O14>'Size Premium'!$A$7,'Size Premium'!$B$7,IF(O14>'Size Premium'!$A$8,'Size Premium'!$B$8,IF(O14>'Size Premium'!$A$9,'Size Premium'!$B$9,IF(O14>'Size Premium'!$A$10,'Size Premium'!$B$10,IF(O14>'Size Premium'!$A$11,'Size Premium'!$B$11,IF(O14>'Size Premium'!$A$12,'Size Premium'!$B$12,"ERROR")))))))) -> 0.005 | Q14: 0.105
A15: 7 | B15: =VLOOKUP('Utility Group'!$B9,vldatabase,2,FALSE) -> Consolidated Edison | C15: ='17 (1)'!C15 -> 0.0233 | D15: ='17 (1)'!D15 -> 0.0924 | E15: 0.1157 | F15: ='17 (1)'!F15 -> 0.014 | G15: 0.1017 | H15: 0.25 | I15: 0.025425 | J15: =VLOOKUP('Utility Group'!$B9,vldatabase,23,FALSE) -> 0.75 | K15: 0.75 | L15: 0.05720625 | M15: 0.08263125 | N15: 0.09663125 | O15: =VLOOKUP('Utility Group'!$B9,vldatabase,28,FALSE) -> 25000 | P15: =IF(O15>'Size Premium'!$A$5,'Size Premium'!$B$5,IF(O15>'Size Premium'!$A$6,'Size Premium'!$B$6,IF(O15>'Size Premium'!$A$7,'Size Premium'!$B$7,IF(O15>'Size Premium'!$A$8,'Size Premium'!$B$8,IF(O15>'Size Premium'!$A$9,'Size Premium'!$B$9,IF(O15>'Size Premium'!$A$10,'Size Premium'!$B$10,IF(O15>'Size Premium'!$A$11,'Size Premium'!$B$11,IF(O15>'Size Premium'!$A$12,'Size Premium'!$B$12,"ERROR")))))))) -> 0.005 | Q15: 0.102
A16: 8 | B16: =VLOOKUP('Utility Group'!$B10,vldatabase,2,FALSE) -> DTE Energy Co. | C16: ='17 (1)'!C16 -> 0.0233 | D16: ='17 (1)'!D16 -> 0.0924 | E16: 0.1157 | F16: ='17 (1)'!F16 -> 0.014 | G16: 0.1017 | H16: 0.25 | I16: 0.025425 | J16: =VLOOKUP('Utility Group'!$B10,vldatabase,23,FALSE) -> 0.9 | K16: 0.75 | L16: 0.0686475 | M16: 0.0940725 | N16: 0.1080725 | O16: =VLOOKUP('Utility Group'!$B10,vldatabase,28,FALSE) -> 23000 | P16: =IF(O16>'Size Premium'!$A$5,'Size Premium'!$B$5,IF(O16>'Size Premium'!$A$6,'Size Premium'!$B$6,IF(O16>'Size Premium'!$A$7,'Size Premium'!$B$7,IF(O16>'Size Premium'!$A$8,'Size Premium'!$B$8,IF(O16>'Size Premium'!$A$9,'Size Premium'!$B$9,IF(O16>'Size Premium'!$A$10,'Size Premium'!$B$10,IF(O16>'Size Premium'!$A$11,'Size Premium'!$B$11,IF(O16>'Size Premium'!$A$12,'Size Premium'!$B$12,"ERROR")))))))) -> 0.005 | Q16: 0.113
A17: 9 | B17: =VLOOKUP('Utility Group'!$B11,vldatabase,2,FALSE) -> Duke Energy Corp. | C17: ='17 (1)'!C17 -> 0.0233 | D17: ='17 (1)'!D17 -> 0.0924 | E17: 0.1157 | F17: ='17 (1)'!F17 -> 0.014 | G17: 0.1017 | H17: 0.25 | I17: 0.025425 | J17: =VLOOKUP('Utility Group'!$B11,vldatabase,23,FALSE) -> 0.85 | K17: 0.75 | L17: 0.06483375 | M17: 0.09025875 | N17: 0.10425875 | O17: =VLOOKUP('Utility Group'!$B11,vldatabase,28,FALSE) -> 62000 | P17: =IF(O17>'Size Premium'!$A$5,'Size Premium'!$B$5,IF(O17>'Size Premium'!$A$6,'Size Premium'!$B$6,IF(O17>'Size Premium'!$A$7,'Size Premium'!$B$7,IF(O17>'Size Premium'!$A$8,'Size Premium'!$B$8,IF(O17>'Size Premium'!$A$9,'Size Premium'!$B$9,IF(O17>'Size Premium'!$A$10,'Size Premium'!$B$10,IF(O17>'Size Premium'!$A$11,'Size Premium'!$B$11,IF(O17>'Size Premium'!$A$12,'Size Premium'!$B$12,"ERROR")))))))) -> -0.0028 | Q17: 0.101
A18: 10 | B18: =VLOOKUP('Utility Group'!$B12,vldatabase,2,FALSE) -> Entergy Corp. | C18: ='17 (1)'!C18 -> 0.0233 | D18: ='17 (1)'!D18 -> 0.0924 | E18: 0.1157 | F18: ='17 (1)'!F18 -> 0.014 | G18: 0.1017 | H18: 0.25 | I18: 0.025425 | J18: =VLOOKUP('Utility Group'!$B12,vldatabase,23,FALSE) -> 0.95 | K18: 0.75 | L18: 0.07246125 | M18: 0.09788625 | N18: 0.11188625 | O18: =VLOOKUP('Utility Group'!$B12,vldatabase,28,FALSE) -> 20000 | P18: =IF(O18>'Size Premium'!$A$5,'Size Premium'!$B$5,IF(O18>'Size Premium'!$A$6,'Size Premium'!$B$6,IF(O18>'Size Premium'!$A$7,'Size Premium'!$B$7,IF(O18>'Size Premium'!$A$8,'Size Premium'!$B$8,IF(O18>'Size Premium'!$A$9,'Size Premium'!$B$9,IF(O18>'Size Premium'!$A$10,'Size Premium'!$B$10,IF(O18>'Size Premium'!$A$11,'Size Premium'!$B$11,IF(O18>'Size Premium'!$A$12,'Size Premium'!$B$12,"ERROR")))))))) -> 0.005 | Q18: 0.117
A19: 11 | B19: =VLOOKUP('Utility Group'!$B13,vldatabase,2,FALSE) -> Evergy Inc. | C19: ='17 (1)'!C19 -> 0.0233 | D19: ='17 (1)'!D19 -> 0.0924 | E19: 0.1157 | F19: ='17 (1)'!F19 -> 0.014 | G19: 0.1017 | H19: 0.25 | I19: 0.025425 | J19: =VLOOKUP('Utility Group'!$B13,vldatabase,23,FALSE) -> 1 | K19: 0.75 | L19: 0.076275 | M19: 0.1017 | N19: 0.1157 | O19: =VLOOKUP('Utility Group'!$B13,vldatabase,28,FALSE) -> 12000 | P19: =IF(O19>'Size Premium'!$A$5,'Size Premium'!$B$5,IF(O19>'Size Premium'!$A$6,'Size Premium'!$B$6,IF(O19>'Size Premium'!$A$7,'Size Premium'!$B$7,IF(O19>'Size Premium'!$A$8,'Size Premium'!$B$8,IF(O19>'Size Premium'!$A$9,'Size Premium'!$B$9,IF(O19>'Size Premium'!$A$10,'Size Premium'!$B$10,IF(O19>'Size Premium'!$A$11,'Size Premium'!$B$11,IF(O19>'Size Premium'!$A$12,'Size Premium'!$B$12,"ERROR")))))))) -> 0.0073 | Q19: 0.123
A20: 12 | B20: =VLOOKUP('Utility Group'!$B14,vldatabase,2,FALSE) -> Eversource Energy | C20: ='17 (1)'!C20 -> 0.0233 | D20: ='17 (1)'!D20 -> 0.0924 | E20: 0.1157 | F20: ='17 (1)'!F20 -> 0.014 | G20: 0.1017 | H20: 0.25 | I20: 0.025425 | J20: =VLOOKUP('Utility Group'!$B14,vldatabase,23,FALSE) -> 0.9 | K20: 0.75 | L20: 0.0686475 | M20: 0.0940725 | N20: 0.1080725 | O20: =VLOOKUP('Utility Group'!$B14,vldatabase,28,FALSE) -> 30000 | P20: =IF(O20>'Size Premium'!$A$5,'Size Premium'!$B$5,IF(O20>'Size Premium'!$A$6,'Size Premium'!$B$6,IF(O20>'Size Premium'!$A$7,'Size Premium'!$B$7,IF(O20>'Size Premium'!$A$8,'Size Premium'!$B$8,IF(O20>'Size Premium'!$A$9,'Size Premium'!$B$9,IF(O20>'Size Premium'!$A$10,'Size Premium'!$B$10,IF(O20>'Size Premium'!$A$11,'Size Premium'!$B$11,IF(O20>'Size Premium'!$A$12,'Size Premium'!$B$12,"ERROR")))))))) -> 0.005 | Q20: 0.113
A21: 13 | B21: =VLOOKUP('Utility Group'!$B15,vldatabase,2,FALSE) -> Exelon Corp. | C21: ='17 (1)'!C21 -> 0.0233 | D21: ='17 (1)'!D21 -> 0.0924 | E21: 0.1157 | F21: ='17 (1)'!F21 -> 0.014 | G21: 0.1017 | H21: 0.25 | I21: 0.025425 | J21: =VLOOKUP('Utility Group'!$B15,vldatabase,23,FALSE) -> 0.95 | K21: 0.75 | L21: 0.07246125 | M21: 0.09788625 | N21: 0.11188625 | O21: =VLOOKUP('Utility Group'!$B15,vldatabase,28,FALSE) -> 37000 | P21: =IF(O21>'Size Premium'!$A$5,'Size Premium'!$B$5,IF(O21>'Size Premium'!$A$6,'Size Premium'!$B$6,IF(O21>'Size Premium'!$A$7,'Size Premium'!$B$7,IF(O21>'Size Premium'!$A$8,'Size Premium'!$B$8,IF(O21>'Size Premium'!$A$9,'Size Premium'!$B$9,IF(O21>'Size Premium'!$A$10,'Size Premium'!$B$10,IF(O21>'Size Premium'!$A$11,'Size Premium'!$B$11,IF(O21>'Size Premium'!$A$12,'Size Premium'!$B$12,"ERROR")))))))) -> -0.0028 | Q21: 0.109
A22: 14 | B22: =VLOOKUP('Utility Group'!$B16,vldatabase,2,FALSE) -> Fortis Inc. | C22: ='17 (1)'!C22 -> 0.0233 | D22: ='17 (1)'!D22 -> 0.0924 | E22: 0.1157 | F22: ='17 (1)'!F22 -> 0.014 | G22: 0.1017 | H22: 0.25 | I22: 0.025425 | J22: =VLOOKUP('Utility Group'!$B16,vldatabase,23,FALSE) -> 0.8 | K22: 0.75 | L22: 0.06102 | M22: 0.086445 | N22: 0.100445 | O22: =VLOOKUP('Utility Group'!$B16,vldatabase,28,FALSE) -> 24000 | P22: =IF(O22>'Size Premium'!$A$5,'Size Premium'!$B$5,IF(O22>'Size Premium'!$A$6,'Size Premium'!$B$6,IF(O22>'Size Premium'!$A$7,'Size Premium'!$B$7,IF(O22>'Size Premium'!$A$8,'Size Premium'!$B$8,IF(O22>'Size Premium'!$A$9,'Size Premium'!$B$9,IF(O22>'Size Premium'!$A$10,'Size Premium'!$B$10,IF(O22>'Size Premium'!$A$11,'Size Premium'!$B$11,IF(O22>'Size Premium'!$A$12,'Size Premium'!$B$12,"ERROR")))))))) -> 0.005 | Q22: 0.105
A23: 15 | B23: =VLOOKUP('Utility Group'!$B17,vldatabase,2,FALSE) -> NextEra Energy, Inc. | C23: ='17 (1)'!C23 -> 0.0233 | D23: ='17 (1)'!D23 -> 0.0924 | E23: 0.1157 | F23: ='17 (1)'!F23 -> 0.014 | G23: 0.1017 | H23: 0.25 | I23: 0.025425 | J23: =VLOOKUP('Utility Group'!$B17,vldatabase,23,FALSE) -> 0.85 | K23: 0.75 | L23: 0.06483375 | M23: 0.09025875 | N23: 0.10425875 | O23: =VLOOKUP('Utility Group'!$B17,vldatabase,28,FALSE) -> 136000 | P23: =IF(O23>'Size Premium'!$A$5,'Size Premium'!$B$5,IF(O23>'Size Premium'!$A$6,'Size Premium'!$B$6,IF(O23>'Size Premium'!$A$7,'Size Premium'!$B$7,IF(O23>'Size Premium'!$A$8,'Size Premium'!$B$8,IF(O23>'Size Premium'!$A$9,'Size Premium'!$B$9,IF(O23>'Size Premium'!$A$10,'Size Premium'!$B$10,IF(O23>'Size Premium'!$A$11,'Size Premium'!$B$11,IF(O23>'Size Premium'!$A$12,'Size Premium'!$B$12,"ERROR")))))))) -> -0.0028 | Q23: 0.101
A24: 16 | B24: =VLOOKUP('Utility Group'!$B18,vldatabase,2,FALSE) -> OGE Energy Corp. | C24: ='17 (1)'!C24 -> 0.0233 | D24: ='17 (1)'!D24 -> 0.0924 | E24: 0.1157 | F24: ='17 (1)'!F24 -> 0.014 | G24: 0.1017 | H24: 0.25 | I24: 0.025425 | J24: =VLOOKUP('Utility Group'!$B18,vldatabase,23,FALSE) -> 1.05 | K24: 0.75 | L24: 0.08008875 | M24: 0.10551375 | N24: 0.11951375 | O24: =VLOOKUP('Utility Group'!$B18,vldatabase,28,FALSE) -> 6400 | P24: =IF(O24>'Size Premium'!$A$5,'Size Premium'!$B$5,IF(O24>'Size Premium'!$A$6,'Size Premium'!$B$6,IF(O24>'Size Premium'!$A$7,'Size Premium'!$B$7,IF(O24>'Size Premium'!$A$8,'Size Premium'!$B$8,IF(O24>'Size Premium'!$A$9,'Size Premium'!$B$9,IF(O24>'Size Premium'!$A$10,'Size Premium'!$B$10,IF(O24>'Size Premium'!$A$11,'Size Premium'!$B$11,IF(O24>'Size Premium'!$A$12,'Size Premium'!$B$12,"ERROR")))))))) -> 0.0079 | Q24: 0.127
A25: 17 | B25: =VLOOKUP('Utility Group'!$B19,vldatabase,2,FALSE) -> Pub Sv Enterprise Grp. | C25: ='17 (1)'!C25 -> 0.0233 | D25: ='17 (1)'!D25 -> 0.0924 | E25: 0.1157 | F25: ='17 (1)'!F25 -> 0.014 | G25: 0.1017 | H25: 0.25 | I25: 0.025425 | J25: =VLOOKUP('Utility Group'!$B19,vldatabase,23,FALSE) -> 0.9 | K25: 0.75 | L25: 0.0686475 | M25: 0.0940725 | N25: 0.1080725 | O25: =VLOOKUP('Utility Group'!$B19,vldatabase,28,FALSE) -> 28000 | P25: =IF(O25>'Size Premium'!$A$5,'Size Premium'!$B$5,IF(O25>'Size Premium'!$A$6,'Size Premium'!$B$6,IF(O25>'Size Premium'!$A$7,'Size Premium'!$B$7,IF(O25>'Size Premium'!$A$8,'Size Premium'!$B$8,IF(O25>'Size Premium'!$A$9,'Size Premium'!$B$9,IF(O25>'Size Premium'!$A$10,'Size Premium'!$B$10,IF(O25>'Size Premium'!$A$11,'Size Premium'!$B$11,IF(O25>'Size Premium'!$A$12,'Size Premium'!$B$12,"ERROR")))))))) -> 0.005 | Q25: 0.113
A26: 18 | B26: =VLOOKUP('Utility Group'!$B20,vldatabase,2,FALSE) -> Sempra Energy | C26: ='17 (1)'!C26 -> 0.0233 | D26: ='17 (1)'!D26 -> 0.0924 | E26: 0.1157 | F26: ='17 (1)'!F26 -> 0.014 | G26: 0.1017 | H26: 0.25 | I26: 0.025425 | J26: =VLOOKUP('Utility Group'!$B20,vldatabase,23,FALSE) -> 0.95 | K26: 0.75 | L26: 0.07246125 | M26: 0.09788625 | N26: 0.11188625 | O26: =VLOOKUP('Utility Group'!$B20,vldatabase,28,FALSE) -> 35000 | P26: =IF(O26>'Size Premium'!$A$5,'Size Premium'!$B$5,IF(O26>'Size Premium'!$A$6,'Size Premium'!$B$6,IF(O26>'Size Premium'!$A$7,'Size Premium'!$B$7,IF(O26>'Size Premium'!$A$8,'Size Premium'!$B$8,IF(O26>'Size Premium'!$A$9,'Size Premium'!$B$9,IF(O26>'Size Premium'!$A$10,'Size Premium'!$B$10,IF(O26>'Size Premium'!$A$11,'Size Premium'!$B$11,IF(O26>'Size Premium'!$A$12,'Size Premium'!$B$12,"ERROR")))))))) -> -0.0028 | Q26: 0.109
A27: 19 | B27: =VLOOKUP('Utility Group'!$B21,vldatabase,2,FALSE) -> Southern Company | C27: ='17 (1)'!C27 -> 0.0233 | D27: ='17 (1)'!D27 -> 0.0924 | E27: 0.1157 | F27: ='17 (1)'!F27 -> 0.014 | G27: 0.1017 | H27: 0.25 | I27: 0.025425 | J27: =VLOOKUP('Utility Group'!$B21,vldatabase,23,FALSE) -> 0.9 | K27: 0.75 | L27: 0.0686475 | M27: 0.0940725 | N27: 0.1080725 | O27: =VLOOKUP('Utility Group'!$B21,vldatabase,28,FALSE) -> 57000 | P27: =IF(O27>'Size Premium'!$A$5,'Size Premium'!$B$5,IF(O27>'Size Premium'!$A$6,'Size Premium'!$B$6,IF(O27>'Size Premium'!$A$7,'Size Premium'!$B$7,IF(O27>'Size Premium'!$A$8,'Size Premium'!$B$8,IF(O27>'Size Premium'!$A$9,'Size Premium'!$B$9,IF(O27>'Size Premium'!$A$10,'Size Premium'!$B$10,IF(O27>'Size Premium'!$A$11,'Size Premium'!$B$11,IF(O27>'Size Premium'!$A$12,'Size Premium'!$B$12,"ERROR")))))))) -> -0.0028 | Q27: 0.105
A28: 20 | B28: =VLOOKUP('Utility Group'!$B22,vldatabase,2,FALSE) -> WEC Energy Group | C28: ='17 (1)'!C28 -> 0.0233 | D28: ='17 (1)'!D28 -> 0.0924 | E28: 0.1157 | F28: ='17 (1)'!F28 -> 0.014 | G28: 0.1017 | H28: 0.25 | I28: 0.025425 | J28: =VLOOKUP('Utility Group'!$B22,vldatabase,23,FALSE) -> 0.8 | K28: 0.75 | L28: 0.06102 | M28: 0.086445 | N28: 0.100445 | O28: =VLOOKUP('Utility Group'!$B22,vldatabase,28,FALSE) -> 30000 | P28: =IF(O28>'Size Premium'!$A$5,'Size Premium'!$B$5,IF(O28>'Size Premium'!$A$6,'Size Premium'!$B$6,IF(O28>'Size Premium'!$A$7,'Size Premium'!$B$7,IF(O28>'Size Premium'!$A$8,'Size Premium'!$B$8,IF(O28>'Size Premium'!$A$9,'Size Premium'!$B$9,IF(O28>'Size Premium'!$A$10,'Size Premium'!$B$10,IF(O28>'Size Premium'!$A$11,'Size Premium'!$B$11,IF(O28>'Size Premium'!$A$12,'Size Premium'!$B$12,"ERROR")))))))) -> 0.005 | Q28: 0.105
A29: 21 | B29: =VLOOKUP('Utility Group'!$B23,vldatabase,2,FALSE) -> Xcel Energy Inc. | C29: ='17 (1)'!C29 -> 0.0233 | D29: ='17 (1)'!D29 -> 0.0924 | E29: 0.1157 | F29: ='17 (1)'!F29 -> 0.014 | G29: 0.1017 | H29: 0.25 | I29: 0.025425 | J29: =VLOOKUP('Utility Group'!$B23,vldatabase,23,FALSE) -> 0.8 | K29: 0.75 | L29: 0.06102 | M29: 0.086445 | N29: 0.100445 | O29: =VLOOKUP('Utility Group'!$B23,vldatabase,28,FALSE) -> 34000 | P29: =IF(O29>'Size Premium'!$A$5,'Size Premium'!$B$5,IF(O29>'Size Premium'!$A$6,'Size Premium'!$B$6,IF(O29>'Size Premium'!$A$7,'Size Premium'!$B$7,IF(O29>'Size Premium'!$A$8,'Size Premium'!$B$8,IF(O29>'Size Premium'!$A$9,'Size Premium'!$B$9,IF(O29>'Size Premium'!$A$10,'Size Premium'!$B$10,IF(O29>'Size Premium'!$A$11,'Size Premium'!$B$11,IF(O29>'Size Premium'!$A$12,'Size Premium'!$B$12,"ERROR")))))))) -> -0.0028 | Q29: 0.098
K30: 0.75
B31: Average | N31: =AVERAGE(N9:N29) -> 0.1058932143 | Q31: =AVERAGE(Q9:Q29) -> 0.1086666667
B32: Midpoint (g) | N32: =AVERAGE(N42:N43) -> 0.1080725 | Q32: =AVERAGE(Q42:Q43) -> 0.1105
A34: (a) | B34: ='17 (1)'!B34 -> Weighted average for www.valueline.com (retrieved Oct. 1, 2020).
A35: (b) | B35: ='17 (1)'!B35 -> Average of weighted average earnings growth rates from IBES, Value Line Investment Survey, and Zacks for dividend-paying stocks in the S&P 500 based on data from http://finance.yahoo.com (retrieved Oct. 2, 2020), www.valueline.com (retrieved Oct. 1, 2020), and www.zacks.com (retrieved Oct. 6, 2020).
A37: (c) | B37: ='17 (1)'!B37 -> Average yield on 30-year Treasury bonds for the six-months ending Sep. 2020 based on data from the Federal Reserve at https://fred.stlouisfed.org/.
A38: (d) | B38: Roger A. Morin, New Regulatory Finance, Pub. Util. Reports, Inc. (2006) at 190.
A39: (e) | B39: ='17 (1)'!B38 -> The Value Line Investment Survey (Jul. 24, Aug. 14 and Sep. 11, 2020).
A40: (f) | B40: ='17 (1)'!B39 -> Duff & Phelps, 2020 CRSP Deciles Size Study -- Supplementary Data Exhibits, Cost of Capital Navigator.
A41: (g) | B41: Average of low and high values.
M42: Min | N42: =MIN(N9:N29) -> 0.09663125 | P42: Min | Q42: =MIN(Q9:Q29) -> 0.094
M43: Max | N43: =MAX(N9:N29) -> 0.11951375 | P43: Max | Q43: =MAX(Q9:Q29) -> 0.127
P44: Median | Q44: =MEDIAN(Q9:Q29) -> 0.105

Sheet 18 (2)
A1: ='Exhibit List'!C12 -> EMPIRICAL CAPM | R1: ='Exhibit List'!B11 -> Exh. AMM-18
R2: Page 2 of 2
A3: ='Exhibit List'!D12 -> PROJECTED BOND YIELD
C5: (a) | D5: (b) | F5: (c) | H5: (d) | J5: (e) | K5: (d) | O5: (e) | P5: (f)
C6: Market Return (Rm) | Q6: Size
C7: Div | D7: Proj. | E7: Cost of | F7: Risk-Free | G7: Risk | H7: Unadjusted RP | J7: Beta Adjusted RP | M7: Total | N7: Unadjusted | O7: Market | P7: Size | Q7: Adjusted
B8: Company | C8: Yield | D8: Growth | E8: Equity | F8: Rate | G8: Premium | H8: Weight | I8: RP1 | J8: Beta | K8: Weight | L8: RP2 | M8: RP | N8: Ke | O8: Cap | P8: Adjustment | Q8: Ke
A9: =A8+1 -> 1 | B9: =VLOOKUP('Utility Group'!$B3,vldatabase,2,FALSE) -> Alliant Energy | C9: ='17 (1)'!C9 -> 0.0233 | D9: ='17 (1)'!D9 -> 0.0924 | E9: =C9+D9 -> 0.1157 | F9: =ROUND('Bond Yields'!O60,3) -> 0.022 | G9: =E9-F9 -> 0.0937 | H9: 0.25 | I9: =G9*H9 -> 0.023425 | J9: =VLOOKUP('Utility Group'!$B3,vldatabase,23,FALSE) -> 0.85 | K9: 0.75 | L9: =IF(J9="n/a","n/a",G9*J9*K9) -> 0.05973375 | M9: =IF(L9="n/a","n/a",L9+I9) -> 0.08315875 | N9: =IF(M9="n/a","n/a",M9+F9) -> 0.10515875 | O9: =VLOOKUP('Utility Group'!$B3,vldatabase,28,FALSE) -> 13500 | P9: =IF(O9>'Size Premium'!$A$5,'Size Premium'!$B$5,IF(O9>'Size Premium'!$A$6,'Size Premium'!$B$6,IF(O9>'Size Premium'!$A$7,'Size Premium'!$B$7,IF(O9>'Size Premium'!$A$8,'Size Premium'!$B$8,IF(O9>'Size Premium'!$A$9,'Size Premium'!$B$9,IF(O9>'Size Premium'!$A$10,'Size Premium'!$B$10,IF(O9>'Size Premium'!$A$11,'Size Premium'!$B$11,IF(O9>'Size Premium'!$A$12,'Size Premium'!$B$12,"ERROR")))))))) -> 0.005 | Q9: =IF(N9="n/a","n/a",ROUND(N9+P9,3)) -> 0.11
A10: =A9+1 -> 2 | B10: =VLOOKUP('Utility Group'!$B4,vldatabase,2,FALSE) -> Ameren Corp. | C10: ='17 (1)'!C10 -> 0.0233 | D10: ='17 (1)'!D10 -> 0.0924 | E10: =C10+D10 -> 0.1157 | F10: =F9 -> 0.022 | G10: =E10-F10 -> 0.0937 | H10: 0.25 | I10: =G10*H10 -> 0.023425 | J10: =VLOOKUP('Utility Group'!$B4,vldatabase,23,FALSE) -> 0.8 | K10: 0.75 | L10: 0.05622 | M10: 0.079645 | N10: 0.101645 | O10: =VLOOKUP('Utility Group'!$B4,vldatabase,28,FALSE) -> 20000 | P10: =IF(O10>'Size Premium'!$A$5,'Size Premium'!$B$5,IF(O10>'Size Premium'!$A$6,'Size Premium'!$B$6,IF(O10>'Size Premium'!$A$7,'Size Premium'!$B$7,IF(O10>'Size Premium'!$A$8,'Size Premium'!$B$8,IF(O10>'Size Premium'!$A$9,'Size Premium'!$B$9,IF(O10>'Size Premium'!$A$10,'Size Premium'!$B$10,IF(O10>'Size Premium'!$A$11,'Size Premium'!$B$11,IF(O10>'Size Premium'!$A$12,'Size Premium'!$B$12,"ERROR")))))))) -> 0.005 | Q10: =IF(N10="n/a","n/a",ROUND(N10+P10,3)) -> 0.107
A11: 3 | B11: =VLOOKUP('Utility Group'!$B5,vldatabase,2,FALSE) -> American Elec Pwr | C11: ='17 (1)'!C11 -> 0.0233 | D11: ='17 (1)'!D11 -> 0.0924 | E11: 0.1157 | F11: =F10 -> 0.022 | G11: 0.0937 | H11: 0.25 | I11: 0.023425 | J11: =VLOOKUP('Utility Group'!$B5,vldatabase,23,FALSE) -> 0.75 | K11: 0.75 | L11: 0.05270625 | M11: 0.07613125 | N11: 0.09813125 | O11: =VLOOKUP('Utility Group'!$B5,vldatabase,28,FALSE) -> 39000 | P11: =IF(O11>'Size Premium'!$A$5,'Size Premium'!$B$5,IF(O11>'Size Premium'!$A$6,'Size Premium'!$B$6,IF(O11>'Size Premium'!$A$7,'Size Premium'!$B$7,IF(O11>'Size Premium'!$A$8,'Size Premium'!$B$8,IF(O11>'Size Premium'!$A$9,'Size Premium'!$B$9,IF(O11>'Size Premium'!$A$10,'Size Premium'!$B$10,IF(O11>'Size Premium'!$A$11,'Size Premium'!$B$11,IF(O11>'Size Premium'!$A$12,'Size Premium'!$B$12,"ERROR")))))))) -> -0.0028 | Q11: 0.095
A12: 4 | B12: =VLOOKUP('Utility Group'!$B6,vldatabase,2,FALSE) -> Avangrid, Inc. | C12: ='17 (1)'!C12 -> 0.0233 | D12: ='17 (1)'!D12 -> 0.0924 | E12: 0.1157 | F12: 0.022 | G12: 0.0937 | H12: 0.25 | I12: 0.023425 | J12: =VLOOKUP('Utility Group'!$B6,vldatabase,23,FALSE) -> 0.8 | K12: 0.75 | L12: 0.05622 | M12: 0.079645 | N12: 0.101645 | O12: =VLOOKUP('Utility Group'!$B6,vldatabase,28,FALSE) -> 15000 | P12: =IF(O12>'Size Premium'!$A$5,'Size Premium'!$B$5,IF(O12>'Size Premium'!$A$6,'Size Premium'!$B$6,IF(O12>'Size Premium'!$A$7,'Size Premium'!$B$7,IF(O12>'Size Premium'!$A$8,'Size Premium'!$B$8,IF(O12>'Size Premium'!$A$9,'Size Premium'!$B$9,IF(O12>'Size Premium'!$A$10,'Size Premium'!$B$10,IF(O12>'Size Premium'!$A$11,'Size Premium'!$B$11,IF(O12>'Size Premium'!$A$12,'Size Premium'!$B$12,"ERROR")))))))) -> 0.005 | Q12: 0.107
A13: 5 | B13: =VLOOKUP('Utility Group'!$B7,vldatabase,2,FALSE) -> Black Hills Corp. | C13: ='17 (1)'!C13 -> 0.0233 | D13: ='17 (1)'!D13 -> 0.0924 | E13: 0.1157 | F13: 0.022 | G13: 0.0937 | H13: 0.25 | I13: 0.023425 | J13: =VLOOKUP('Utility Group'!$B7,vldatabase,23,FALSE) -> 0.95 | K13: 0.75 | L13: 0.06676125 | M13: 0.09018625 | N13: 0.11218625 | O13: =VLOOKUP('Utility Group'!$B7,vldatabase,28,FALSE) -> 3800 | P13: =IF(O13>'Size Premium'!$A$5,'Size Premium'!$B$5,IF(O13>'Size Premium'!$A$6,'Size Premium'!$B$6,IF(O13>'Size Premium'!$A$7,'Size Premium'!$B$7,IF(O13>'Size Premium'!$A$8,'Size Premium'!$B$8,IF(O13>'Size Premium'!$A$9,'Size Premium'!$B$9,IF(O13>'Size Premium'!$A$10,'Size Premium'!$B$10,IF(O13>'Size Premium'!$A$11,'Size Premium'!$B$11,IF(O13>'Size Premium'!$A$12,'Size Premium'!$B$12,"ERROR")))))))) -> 0.011 | Q13: 0.123
A14: 6 | B14: =VLOOKUP('Utility Group'!$B8,vldatabase,2,FALSE) -> CMS Energy Corp. | C14: ='17 (1)'!C14 -> 0.0233 | D14: ='17 (1)'!D14 -> 0.0924 | E14: 0.1157 | F14: 0.022 | G14: 0.0937 | H14: 0.25 | I14: 0.023425 | J14: =VLOOKUP('Utility Group'!$B8,vldatabase,23,FALSE) -> 0.8 | K14: 0.75 | L14: 0.05622 | M14: 0.079645 | N14: 0.101645 | O14: =VLOOKUP('Utility Group'!$B8,vldatabase,28,FALSE) -> 17000 | P14: =IF(O14>'Size Premium'!$A$5,'Size Premium'!$B$5,IF(O14>'Size Premium'!$A$6,'Size Premium'!$B$6,IF(O14>'Size Premium'!$A$7,'Size Premium'!$B$7,IF(O14>'Size Premium'!$A$8,'Size Premium'!$B$8,IF(O14>'Size Premium'!$A$9,'Size Premium'!$B$9,IF(O14>'Size Premium'!$A$10,'Size Premium'!$B$10,IF(O14>'Size Premium'!$A$11,'Size Premium'!$B$11,IF(O14>'Size Premium'!$A$12,'Size Premium'!$B$12,"ERROR")))))))) -> 0.005 | Q14: 0.107
A15: 7 | B15: =VLOOKUP('Utility Group'!$B9,vldatabase,2,FALSE) -> Consolidated Edison | C15: ='17 (1)'!C15 -> 0.0233 | D15: ='17 (1)'!D15 -> 0.0924 | E15: 0.1157 | F15: 0.022 | G15: 0.0937 | H15: 0.25 | I15: 0.023425 | J15: =VLOOKUP('Utility Group'!$B9,vldatabase,23,FALSE) -> 0.75 | K15: 0.75 | L15: 0.05270625 | M15: 0.07613125 | N15: 0.09813125 | O15: =VLOOKUP('Utility Group'!$B9,vldatabase,28,FALSE) -> 25000 | P15: =IF(O15>'Size Premium'!$A$5,'Size Premium'!$B$5,IF(O15>'Size Premium'!$A$6,'Size Premium'!$B$6,IF(O15>'Size Premium'!$A$7,'Size Premium'!$B$7,IF(O15>'Size Premium'!$A$8,'Size Premium'!$B$8,IF(O15>'Size Premium'!$A$9,'Size Premium'!$B$9,IF(O15>'Size Premium'!$A$10,'Size Premium'!$B$10,IF(O15>'Size Premium'!$A$11,'Size Premium'!$B$11,IF(O15>'Size Premium'!$A$12,'Size Premium'!$B$12,"ERROR")))))))) -> 0.005 | Q15: 0.103
A16: 8 | B16: =VLOOKUP('Utility Group'!$B10,vldatabase,2,FALSE) -> DTE Energy Co. | C16: ='17 (1)'!C16 -> 0.0233 | D16: ='17 (1)'!D16 -> 0.0924 | E16: 0.1157 | F16: 0.022 | G16: 0.0937 | H16: 0.25 | I16: 0.023425 | J16: =VLOOKUP('Utility Group'!$B10,vldatabase,23,FALSE) -> 0.9 | K16: 0.75 | L16: 0.0632475 | M16: 0.0866725 | N16: 0.1086725 | O16: =VLOOKUP('Utility Group'!$B10,vldatabase,28,FALSE) -> 23000 | P16: =IF(O16>'Size Premium'!$A$5,'Size Premium'!$B$5,IF(O16>'Size Premium'!$A$6,'Size Premium'!$B$6,IF(O16>'Size Premium'!$A$7,'Size Premium'!$B$7,IF(O16>'Size Premium'!$A$8,'Size Premium'!$B$8,IF(O16>'Size Premium'!$A$9,'Size Premium'!$B$9,IF(O16>'Size Premium'!$A$10,'Size Premium'!$B$10,IF(O16>'Size Premium'!$A$11,'Size Premium'!$B$11,IF(O16>'Size Premium'!$A$12,'Size Premium'!$B$12,"ERROR")))))))) -> 0.005 | Q16: 0.114
A17: 9 | B17: =VLOOKUP('Utility Group'!$B11,vldatabase,2,FALSE) -> Duke Energy Corp. | C17: ='17 (1)'!C17 -> 0.0233 | D17: ='17 (1)'!D17 -> 0.0924 | E17: 0.1157 | F17: 0.022 | G17: 0.0937 | H17: 0.25 | I17: 0.023425 | J17: =VLOOKUP('Utility Group'!$B11,vldatabase,23,FALSE) -> 0.85 | K17: 0.75 | L17: 0.05973375 | M17: 0.08315875 | N17: 0.10515875 | O17: =VLOOKUP('Utility Group'!$B11,vldatabase,28,FALSE) -> 62000 | P17: =IF(O17>'Size Premium'!$A$5,'Size Premium'!$B$5,IF(O17>'Size Premium'!$A$6,'Size Premium'!$B$6,IF(O17>'Size Premium'!$A$7,'Size Premium'!$B$7,IF(O17>'Size Premium'!$A$8,'Size Premium'!$B$8,IF(O17>'Size Premium'!$A$9,'Size Premium'!$B$9,IF(O17>'Size Premium'!$A$10,'Size Premium'!$B$10,IF(O17>'Size Premium'!$A$11,'Size Premium'!$B$11,IF(O17>'Size Premium'!$A$12,'Size Premium'!$B$12,"ERROR")))))))) -> -0.0028 | Q17: 0.102
A18: 10 | B18: =VLOOKUP('Utility Group'!$B12,vldatabase,2,FALSE) -> Entergy Corp. | C18: ='17 (1)'!C18 -> 0.0233 | D18: ='17 (1)'!D18 -> 0.0924 | E18: 0.1157 | F18: 0.022 | G18: 0.0937 | H18: 0.25 | I18: 0.023425 | J18: =VLOOKUP('Utility Group'!$B12,vldatabase,23,FALSE) -> 0.95 | K18: 0.75 | L18: 0.06676125 | M18: 0.09018625 | N18: 0.11218625 | O18: =VLOOKUP('Utility Group'!$B12,vldatabase,28,FALSE) -> 20000 | P18: =IF(O18>'Size Premium'!$A$5,'Size Premium'!$B$5,IF(O18>'Size Premium'!$A$6,'Size Premium'!$B$6,IF(O18>'Size Premium'!$A$7,'Size Premium'!$B$7,IF(O18>'Size Premium'!$A$8,'Size Premium'!$B$8,IF(O18>'Size Premium'!$A$9,'Size Premium'!$B$9,IF(O18>'Size Premium'!$A$10,'Size Premium'!$B$10,IF(O18>'Size Premium'!$A$11,'Size Premium'!$B$11,IF(O18>'Size Premium'!$A$12,'Size Premium'!$B$12,"ERROR")))))))) -> 0.005 | Q18: 0.117
A19: 11 | B19: =VLOOKUP('Utility Group'!$B13,vldatabase,2,FALSE) -> Evergy Inc. | C19: ='17 (1)'!C19 -> 0.0233 | D19: ='17 (1)'!D19 -> 0.0924 | E19: 0.1157 | F19: 0.022 | G19: 0.0937 | H19: 0.25 | I19: 0.023425 | J19: =VLOOKUP('Utility Group'!$B13,vldatabase,23,FALSE) -> 1 | K19: 0.75 | L19: 0.070275 | M19: 0.0937 | N19: 0.1157 | O19: =VLOOKUP('Utility Group'!$B13,vldatabase,28,FALSE) -> 12000 | P19: =IF(O19>'Size Premium'!$A$5,'Size Premium'!$B$5,IF(O19>'Size Premium'!$A$6,'Size Premium'!$B$6,IF(O19>'Size Premium'!$A$7,'Size Premium'!$B$7,IF(O19>'Size Premium'!$A$8,'Size Premium'!$B$8,IF(O19>'Size Premium'!$A$9,'Size Premium'!$B$9,IF(O19>'Size Premium'!$A$10,'Size Premium'!$B$10,IF(O19>'Size Premium'!$A$11,'Size Premium'!$B$11,IF(O19>'Size Premium'!$A$12,'Size Premium'!$B$12,"ERROR")))))))) -> 0.0073 | Q19: 0.123
A20: 12 | B20: =VLOOKUP('Utility Group'!$B14,vldatabase,2,FALSE) -> Eversource Energy | C20: ='17 (1)'!C20 -> 0.0233 | D20: ='17 (1)'!D20 -> 0.0924 | E20: 0.1157 | F20: 0.022 | G20: 0.0937 | H20: 0.25 | I20: 0.023425 | J20: =VLOOKUP('Utility Group'!$B14,vldatabase,23,FALSE) -> 0.9 | K20: 0.75 | L20: 0.0632475 | M20: 0.0866725 | N20: 0.1086725 | O20: =VLOOKUP('Utility Group'!$B14,vldatabase,28,FALSE) -> 30000 | P20: =IF(O20>'Size Premium'!$A$5,'Size Premium'!$B$5,IF(O20>'Size Premium'!$A$6,'Size Premium'!$B$6,IF(O20>'Size Premium'!$A$7,'Size Premium'!$B$7,IF(O20>'Size Premium'!$A$8,'Size Premium'!$B$8,IF(O20>'Size Premium'!$A$9,'Size Premium'!$B$9,IF(O20>'Size Premium'!$A$10,'Size Premium'!$B$10,IF(O20>'Size Premium'!$A$11,'Size Premium'!$B$11,IF(O20>'Size Premium'!$A$12,'Size Premium'!$B$12,"ERROR")))))))) -> 0.005 | Q20: 0.114
A21: 13 | B21: =VLOOKUP('Utility Group'!$B15,vldatabase,2,FALSE) -> Exelon Corp. | C21: ='17 (1)'!C21 -> 0.0233 | D21: ='17 (1)'!D21 -> 0.0924 | E21: 0.1157 | F21: 0.022 | G21: 0.0937 | H21: 0.25 | I21: 0.023425 | J21: =VLOOKUP('Utility Group'!$B15,vldatabase,23,FALSE) -> 0.95 | K21: 0.75 | L21: 0.06676125 | M21: 0.09018625 | N21: 0.11218625 | O21: =VLOOKUP('Utility Group'!$B15,vldatabase,28,FALSE) -> 37000 | P21: =IF(O21>'Size Premium'!$A$5,'Size Premium'!$B$5,IF(O21>'Size Premium'!$A$6,'Size Premium'!$B$6,IF(O21>'Size Premium'!$A$7,'Size Premium'!$B$7,IF(O21>'Size Premium'!$A$8,'Size Premium'!$B$8,IF(O21>'Size Premium'!$A$9,'Size Premium'!$B$9,IF(O21>'Size Premium'!$A$10,'Size Premium'!$B$10,IF(O21>'Size Premium'!$A$11,'Size Premium'!$B$11,IF(O21>'Size Premium'!$A$12,'Size Premium'!$B$12,"ERROR")))))))) -> -0.0028 | Q21: 0.109
A22: 14 | B22: =VLOOKUP('Utility Group'!$B16,vldatabase,2,FALSE) -> Fortis Inc. | C22: ='17 (1)'!C22 -> 0.0233 | D22: ='17 (1)'!D22 -> 0.0924 | E22: 0.1157 | F22: 0.022 | G22: 0.0937 | H22: 0.25 | I22: 0.023425 | J22: =VLOOKUP('Utility Group'!$B16,vldatabase,23,FALSE) -> 0.8 | K22: 0.75 | L22: 0.05622 | M22: 0.079645 | N22: 0.101645 | O22: =VLOOKUP('Utility Group'!$B16,vldatabase,28,FALSE) -> 24000 | P22: =IF(O22>'Size Premium'!$A$5,'Size Premium'!$B$5,IF(O22>'Size Premium'!$A$6,'Size Premium'!$B$6,IF(O22>'Size Premium'!$A$7,'Size Premium'!$B$7,IF(O22>'Size Premium'!$A$8,'Size Premium'!$B$8,IF(O22>'Size Premium'!$A$9,'Size Premium'!$B$9,IF(O22>'Size Premium'!$A$10,'Size Premium'!$B$10,IF(O22>'Size Premium'!$A$11,'Size Premium'!$B$11,IF(O22>'Size Premium'!$A$12,'Size Premium'!$B$12,"ERROR")))))))) -> 0.005 | Q22: 0.107
A23: 15 | B23: =VLOOKUP('Utility Group'!$B17,vldatabase,2,FALSE) -> NextEra Energy, Inc. | C23: ='17 (1)'!C23 -> 0.0233 | D23: ='17 (1)'!D23 -> 0.0924 | E23: 0.1157 | F23: 0.022 | G23: 0.0937 | H23: 0.25 | I23: 0.023425 | J23: =VLOOKUP('Utility Group'!$B17,vldatabase,23,FALSE) -> 0.85 | K23: 0.75 | L23: 0.05973375 | M23: 0.08315875 | N23: 0.10515875 | O23: =VLOOKUP('Utility Group'!$B17,vldatabase,28,FALSE) -> 136000 | P23: =IF(O23>'Size Premium'!$A$5,'Size Premium'!$B$5,IF(O23>'Size Premium'!$A$6,'Size Premium'!$B$6,IF(O23>'Size Premium'!$A$7,'Size Premium'!$B$7,IF(O23>'Size Premium'!$A$8,'Size Premium'!$B$8,IF(O23>'Size Premium'!$A$9,'Size Premium'!$B$9,IF(O23>'Size Premium'!$A$10,'Size Premium'!$B$10,IF(O23>'Size Premium'!$A$11,'Size Premium'!$B$11,IF(O23>'Size Premium'!$A$12,'Size Premium'!$B$12,"ERROR")))))))) -> -0.0028 | Q23: 0.102
A24: 16 | B24: =VLOOKUP('Utility Group'!$B18,vldatabase,2,FALSE) -> OGE Energy Corp. | C24: ='17 (1)'!C24 -> 0.0233 | D24: ='17 (1)'!D24 -> 0.0924 | E24: 0.1157 | F24: 0.022 | G24: 0.0937 | H24: 0.25 | I24: 0.023425 | J24: =VLOOKUP('Utility Group'!$B18,vldatabase,23,FALSE) -> 1.05 | K24: 0.75 | L24: 0.07378875 | M24: 0.09721375 | N24: 0.11921375 | O24: =VLOOKUP('Utility Group'!$B18,vldatabase,28,FALSE) -> 6400 | P24: =IF(O24>'Size Premium'!$A$5,'Size Premium'!$B$5,IF(O24>'Size Premium'!$A$6,'Size Premium'!$B$6,IF(O24>'Size Premium'!$A$7,'Size Premium'!$B$7,IF(O24>'Size Premium'!$A$8,'Size Premium'!$B$8,IF(O24>'Size Premium'!$A$9,'Size Premium'!$B$9,IF(O24>'Size Premium'!$A$10,'Size Premium'!$B$10,IF(O24>'Size Premium'!$A$11,'Size Premium'!$B$11,IF(O24>'Size Premium'!$A$12,'Size Premium'!$B$12,"ERROR")))))))) -> 0.0079 | Q24: 0.127
A25: 17 | B25: =VLOOKUP('Utility Group'!$B19,vldatabase,2,FALSE) -> Pub Sv Enterprise Grp. | C25: ='17 (1)'!C25 -> 0.0233 | D25: ='17 (1)'!D25 -> 0.0924 | E25: 0.1157 | F25: 0.022 | G25: 0.0937 | H25: 0.25 | I25: 0.023425 | J25: =VLOOKUP('Utility Group'!$B19,vldatabase,23,FALSE) -> 0.9 | K25: 0.75 | L25: 0.0632475 | M25: 0.0866725 | N25: 0.1086725 | O25: =VLOOKUP('Utility Group'!$B19,vldatabase,28,FALSE) -> 28000 | P25: =IF(O25>'Size Premium'!$A$5,'Size Premium'!$B$5,IF(O25>'Size Premium'!$A$6,'Size Premium'!$B$6,IF(O25>'Size Premium'!$A$7,'Size Premium'!$B$7,IF(O25>'Size Premium'!$A$8,'Size Premium'!$B$8,IF(O25>'Size Premium'!$A$9,'Size Premium'!$B$9,IF(O25>'Size Premium'!$A$10,'Size Premium'!$B$10,IF(O25>'Size Premium'!$A$11,'Size Premium'!$B$11,IF(O25>'Size Premium'!$A$12,'Size Premium'!$B$12,"ERROR")))))))) -> 0.005 | Q25: 0.114
A26: 18 | B26: =VLOOKUP('Utility Group'!$B20,vldatabase,2,FALSE) -> Sempra Energy | C26: ='17 (1)'!C26 -> 0.0233 | D26: ='17 (1)'!D26 -> 0.0924 | E26: 0.1157 | F26: 0.022 | G26: 0.0937 | H26: 0.25 | I26: 0.023425 | J26: =VLOOKUP('Utility Group'!$B20,vldatabase,23,FALSE) -> 0.95 | K26: 0.75 | L26: 0.06676125 | M26: 0.09018625 | N26: 0.11218625 | O26: =VLOOKUP('Utility Group'!$B20,vldatabase,28,FALSE) -> 35000 | P26: =IF(O26>'Size Premium'!$A$5,'Size Premium'!$B$5,IF(O26>'Size Premium'!$A$6,'Size Premium'!$B$6,IF(O26>'Size Premium'!$A$7,'Size Premium'!$B$7,IF(O26>'Size Premium'!$A$8,'Size Premium'!$B$8,IF(O26>'Size Premium'!$A$9,'Size Premium'!$B$9,IF(O26>'Size Premium'!$A$10,'Size Premium'!$B$10,IF(O26>'Size Premium'!$A$11,'Size Premium'!$B$11,IF(O26>'Size Premium'!$A$12,'Size Premium'!$B$12,"ERROR")))))))) -> -0.0028 | Q26: 0.109
A27: 19 | B27: =VLOOKUP('Utility Group'!$B21,vldatabase,2,FALSE) -> Southern Company | C27: ='17 (1)'!C27 -> 0.0233 | D27: ='17 (1)'!D27 -> 0.0924 | E27: 0.1157 | F27: 0.022 | G27: 0.0937 | H27: 0.25 | I27: 0.023425 | J27: =VLOOKUP('Utility Group'!$B21,vldatabase,23,FALSE) -> 0.9 | K27: 0.75 | L27: 0.0632475 | M27: 0.0866725 | N27: 0.1086725 | O27: =VLOOKUP('Utility Group'!$B21,vldatabase,28,FALSE) -> 57000 | P27: =IF(O27>'Size Premium'!$A$5,'Size Premium'!$B$5,IF(O27>'Size Premium'!$A$6,'Size Premium'!$B$6,IF(O27>'Size Premium'!$A$7,'Size Premium'!$B$7,IF(O27>'Size Premium'!$A$8,'Size Premium'!$B$8,IF(O27>'Size Premium'!$A$9,'Size Premium'!$B$9,IF(O27>'Size Premium'!$A$10,'Size Premium'!$B$10,IF(O27>'Size Premium'!$A$11,'Size Premium'!$B$11,IF(O27>'Size Premium'!$A$12,'Size Premium'!$B$12,"ERROR")))))))) -> -0.0028 | Q27: 0.106
A28: 20 | B28: =VLOOKUP('Utility Group'!$B22,vldatabase,2,FALSE) -> WEC Energy Group | C28: ='17 (1)'!C28 -> 0.0233 | D28: ='17 (1)'!D28 -> 0.0924 | E28: 0.1157 | F28: 0.022 | G28: 0.0937 | H28: 0.25 | I28: 0.023425 | J28: =VLOOKUP('Utility Group'!$B22,vldatabase,23,FALSE) -> 0.8 | K28: 0.75 | L28: 0.05622 | M28: 0.079645 | N28: 0.101645 | O28: =VLOOKUP('Utility Group'!$B22,vldatabase,28,FALSE) -> 30000 | P28: =IF(O28>'Size Premium'!$A$5,'Size Premium'!$B$5,IF(O28>'Size Premium'!$A$6,'Size Premium'!$B$6,IF(O28>'Size Premium'!$A$7,'Size Premium'!$B$7,IF(O28>'Size Premium'!$A$8,'Size Premium'!$B$8,IF(O28>'Size Premium'!$A$9,'Size Premium'!$B$9,IF(O28>'Size Premium'!$A$10,'Size Premium'!$B$10,IF(O28>'Size Premium'!$A$11,'Size Premium'!$B$11,IF(O28>'Size Premium'!$A$12,'Size Premium'!$B$12,"ERROR")))))))) -> 0.005 | Q28: 0.107
A29: 21 | B29: =VLOOKUP('Utility Group'!$B23,vldatabase,2,FALSE) -> Xcel Energy Inc. | C29: ='17 (1)'!C29 -> 0.0233 | D29: ='17 (1)'!D29 -> 0.0924 | E29: 0.1157 | F29: 0.022 | G29: 0.0937 | H29: 0.25 | I29: 0.023425 | J29: =VLOOKUP('Utility Group'!$B23,vldatabase,23,FALSE) -> 0.8 | K29: 0.75 | L29: 0.05622 | M29: 0.079645 | N29: 0.101645 | O29: =VLOOKUP('Utility Group'!$B23,vldatabase,28,FALSE) -> 34000 | P29: =IF(O29>'Size Premium'!$A$5,'Size Premium'!$B$5,IF(O29>'Size Premium'!$A$6,'Size Premium'!$B$6,IF(O29>'Size Premium'!$A$7,'Size Premium'!$B$7,IF(O29>'Size Premium'!$A$8,'Size Premium'!$B$8,IF(O29>'Size Premium'!$A$9,'Size Premium'!$B$9,IF(O29>'Size Premium'!$A$10,'Size Premium'!$B$10,IF(O29>'Size Premium'!$A$11,'Size Premium'!$B$11,IF(O29>'Size Premium'!$A$12,'Size Premium'!$B$12,"ERROR")))))))) -> -0.0028 | Q29: 0.099
K30: 0.75
B31: Average | N31: =AVERAGE(N9:N29) -> 0.1066646429 | Q31: =AVERAGE(Q9:Q29) -> 0.1096190476
B32: Midpoint (g) | N32: =AVERAGE(N43:N44) -> 0.1086725 | Q32: =AVERAGE(Q43:Q44) -> 0.111
A34: (a) | B34: ='17 (1)'!B34 -> Weighted average for www.valueline.com (retrieved Oct. 1, 2020).
A35: (b) | B35: ='17 (1)'!B35 -> Average of weighted average earnings growth rates from IBES, Value Line Investment Survey, and Zacks for dividend-paying stocks in the S&P 500 based on data from http://finance.yahoo.com (retrieved Oct. 2, 2020), www.valueline.com (retrieved Oct. 1, 2020), and www.zacks.com (retrieved Oct. 6, 2020).
A37: (c) | B37: ='17 (2)'!B37:M38 -> Average yield on 30-year Treasury bonds for 2021-25 based on data from the Value Line Investment Survey, Forecast for the U.S. Economy (Aug. 28, 2020); IHS Markit, Long-Term Macro Forecast - Baseline (May 28, 2020); & Wolters Kluwer, Blue Chip Financial Forecasts (Jun. 1, 2020).
A39: (d) | B39: Roger A. Morin, New Regulatory Finance, Pub. Util. Reports, Inc. (2006) at 190.
A40: (e) | B40: ='17 (1)'!B38 -> The Value Line Investment Survey (Jul. 24, Aug. 14 and Sep. 11, 2020).
A41: (f) | B41: ='17 (1)'!B39 -> Duff & Phelps, 2020 CRSP Deciles Size Study -- Supplementary Data Exhibits, Cost of Capital Navigator.
A42: (g) | B42: Average of low and high values.
M43: Min | N43: =MIN(N9:N29) -> 0.09813125 | P43: Min | Q43: =MIN(Q9:Q29) -> 0.095
M44: Max | N44: =MAX(N9:N29) -> 0.11921375 | P44: Max | Q44: =MAX(Q9:Q29) -> 0.127
P45: Median | Q45: =MEDIAN(Q9:Q29) -> 0.107

Sheet 19 (1)
A1: ='Exhibit List'!C13 -> ELECTRIC UTILITY RISK PREMIUM | G1: ='Exhibit List'!B13 -> Exh. AMM-19
G2: Page 1 of 4
A3: ='Exhibit List'!D13 -> CURRENT BOND YIELD
A6: Current Equity Risk Premium
A7: (a) | B7: Avg. Yield over Study Period | G7: =ROUND(+'19 (3)'!G53,4) -> 0.081
A8: (b) | B8: Average Utility Bond Yield | G8: ='Bond Yields'!I16 -> 0.0301
C9: Change in Bond Yield | G9: =-G7+G8 -> -0.0509
A11: (c) | B11: Risk Premium/Interest Rate Relationship | G11: =ROUND('19 (4)'!B46,4) -> -0.421
C12: Adjustment to Average Risk Premium | G12: =G9*G11 -> 0.0214289
A14: (a) | B14: Average Risk Premium over Study Period | G14: =ROUND('19 (3)'!J53,4) -> 0.0376
C15: Adjusted Risk Premium | G15: =G12+G14 -> 0.0590289
A18: Implied Cost of Equity
A19: (b) | B19: Baa Utility Bond Yield | G19: ='Bond Yields'!C16 -> 0.0337
B20: Adjusted Equity Risk Premium | G20: =G15 -> 0.0590289
B22: Risk Premium Cost of Equity | G22: =G19+G20 -> 0.0927289
A26: (a) | B26: =G1 & ", page 3." -> Exh. AMM-19, page 3.
A27: (b) | B27: ="Average bond yield on all utility bonds and Baa subset for the six-months ending "&'Bond Yields'!B14&" based on data from Moody's Investors Service at www.credittrends.com." -> Average bond yield on all utility bonds and Baa subset for the six-months ending Sep. 2020 based on data from Moody's Investors Service at www.credittrends.com.
A29: (c) | B29: =G1 & ", page 4." -> Exh. AMM-19, page 4.

Sheet 19 (2)
A1: ='Exhibit List'!C14 -> ELECTRIC UTILITY RISK PREMIUM | G1: ='Exhibit List'!B14 -> Exh. AMM-19
G2: Page 2 of 4
A3: ='Exhibit List'!D14 -> PROJECTED BOND YIELD
A6: Current Equity Risk Premium
A7: (a) | B7: Avg. Yield over Study Period | G7: =ROUND(+'19 (3)'!G53,4) -> 0.081
A8: (b) | B8: Average Utility Bond Yield 2021-2025 | G8: ='Bond Yields'!O39 -> 0.0443
C9: Change in Bond Yield | G9: =-G7+G8 -> -0.0367
A11: (c) | B11: Risk Premium/Interest Rate Relationship | G11: =ROUND('19 (4)'!B46,4) -> -0.421
C12: Adjustment to Average Risk Premium | G12: =G9*G11 -> 0.0154507
A14: (a) | B14: Average Risk Premium over Study Period | G14: =ROUND('19 (3)'!J53,4) -> 0.0376
C15: Adjusted Risk Premium | G15: =G12+G14 -> 0.0530507
A18: Implied Cost of Equity
A19: (b) | B19: Baa Utility Bond Yield 2021-2025 | G19: ='Bond Yields'!E39 -> 0.0479
B20: Adjusted Equity Risk Premium | G20: =G15 -> 0.0530507
B22: Risk Premium Cost of Equity | G22: =G19+G20 -> 0.1009507
A26: (a) | B26: =G1 & ", page 3." -> Exh. AMM-19, page 3.
A27: (b) | B27: ="Yields on all utility bonds and Baa subset based on data from " &'Bond Yields'!B73&"; " & 'Bond Yields'!B74 & "; & Moody's Investors Service at www.credittrends.com." -> Yields on all utility bonds and Baa subset based on data from IHS Markit, Long-Term Macro Forecast - Baseline (May 28, 2020); Energy Information Administration, Annual Energy Outlook 2020 (Jan. 29, 2020); & Moody's Investors Service at www.credittrends.com.
A30: (c) | B30: =G1 & ", page 4." -> Exh. AMM-19, page 4.

Sheet 19 (3)
A1: ='Exhibit List'!C15 -> ELECTRIC UTILITY RISK PREMIUM | K1: ='Exhibit List'!B15 -> Exh. AMM-19
K2: Page 3 of 4
A3: ='Exhibit List'!D15 -> AUTHORIZED RETURNS
D4: (a) | G4: (b)
D5: Allowed | G5: Average Utility | J5: Risk
B6: Year | D6: ROE | G6: Bond Yield | J6: Premium
B7: 1974 | D7: 0.131 | G7: 0.0927 | J7: =D7-G7 -> 0.0383
B8: =B7+1 -> 1975 | D8: 0.132 | G8: 0.0988 | J8: 0.0332
B9: 1976 | D9: 0.131 | G9: 0.0917 | J9: 0.0393
B10: 1977 | D10: 0.133 | G10: 0.0858 | J10: 0.0472
B11: 1978 | D11: 0.132 | G11: 0.0922 | J11: 0.0398
B12: 1979 | D12: 0.135 | G12: 0.1039 | J12: 0.0311
B13: 1980 | D13: 0.1423 | G13: 0.1315 | J13: 0.0108
B14: 1981 | D14: 0.1522 | G14: 0.1562 | J14: -0.004
B15: 1982 | D15: 0.1578 | G15: 0.1533 | J15: 0.0045
B16: 1983 | D16: 0.1536 | G16: 0.1331 | J16: 0.0205
B17: 1984 | D17: 0.1532 | G17: 0.1403 | J17: 0.0129
B18: 1985 | D18: 0.152 | G18: 0.1229 | J18: 0.0291
B19: 1986 | D19: 0.1393 | G19: 0.0946 | J19: 0.0447
B20: 1987 | D20: 0.1299 | G20: 0.0998 | J20: 0.0301
B21: 1988 | D21: 0.1279 | G21: 0.1045 | J21: 0.0234
B22: 1989 | D22: 0.1297 | G22: 0.0966 | J22: 0.0331
B23: 1990 | D23: 0.127 | G23: 0.0976 | J23: 0.0294
B24: 1991 | D24: 0.1255 | G24: 0.0921 | J24: 0.0334
B25: 1992 | D25: 0.1209 | G25: 0.0857 | J25: 0.0352
B26: 1993 | D26: 0.1141 | G26: 0.0756 | J26: 0.0385
B27: 1994 | D27: 0.1134 | G27: 0.083 | J27: 0.0304
B28: 1995 | D28: 0.1155 | G28: 0.0791 | J28: 0.0364
B29: 1996 | D29: 0.1139 | G29: 0.0774 | J29: 0.0365
B30: 1997 | D30: 0.114 | G30: 0.0763 | J30: 0.0377
B31: 1998 | D31: 0.1166 | G31: 0.07 | J31: 0.0466
B32: 1999 | D32: 0.1077 | G32: 0.0755 | J32: 0.0322
B33: 2000 | D33: 0.1143 | G33: 0.0809 | J33: 0.0334
B34: 2001 | D34: 0.1109 | G34: 0.0772 | J34: 0.0337
B35: 2002 | D35: 0.1116 | G35: 0.0753 | J35: 0.0363
B36: 2003 | D36: 0.1097 | G36: 0.0661 | J36: 0.0436
B37: 2004 | D37: 0.1075 | G37: 0.062 | J37: 0.0455
B38: 2005 | D38: 0.1054 | G38: 0.0567 | J38: 0.0487
B39: 2006 | D39: 0.1034 | G39: 0.0608 | J39: 0.0426
B40: 2007 | D40: 0.1032 | G40: 0.0611 | J40: 0.0421
B41: 2008 | D41: 0.1037 | G41: 0.0665 | J41: 0.0372
B42: 2009 | D42: 0.1052 | G42: 0.0628 | J42: 0.0424
B43: 2010 | D43: 0.1029 | G43: 0.0556 | J43: 0.0473
B44: 2011 | D44: 0.1019 | G44: 0.0513 | J44: 0.0506
B45: 2012 | D45: 0.1002 | G45: 0.0426 | J45: 0.0576
B46: 2013 | D46: 0.0982 | G46: 0.0455 | J46: 0.0527
B47: 2014 | D47: 0.0976 | G47: 0.0441 | J47: =D47-G47 -> 0.0535
B48: 2015 | D48: 0.096 | G48: 0.0437 | J48: 0.0523
B49: 2016 | D49: 0.096 | G49: 0.0411 | J49: 0.0549
B50: 2017 | D50: 0.0968 | G50: 0.0407 | J50: 0.0561
B51: 2018 | D51: 0.0956 | G51: 0.0434 | J51: 0.0522
B52: 2019 | D52: 0.0964 | G52: 0.0386 | J52: 0.0578
B53: Average | D53: =AVERAGE(D7:D52) -> 0.1186304348 | G53: =AVERAGE(G7:G52) -> 0.08100434783 | J53: =AVERAGE(J7:J52) -> 0.03762608696
A55: (a) | B55: Major Rate Case Decisions, Regulatory Focus, Regulatory Research Associates ("RRA"); UtilityScope Regulatory Service, Argus. Data for "general" rate cases (excluding limited-issue rider cases) beginning in 2006 (the first year such data presented by RRA).
A58: (b) | B58: Moody's Investors Service.

Sheet 19 (4)
A1: ='Exhibit List'!C16 -> ELECTRIC UTILITY RISK PREMIUM | I1: ='Exhibit List'!B16 -> Exh. AMM-19
I2: Page 4 of 4
A3: ='Exhibit List'!D16 -> REGRESSION RESULTS
A29: SUMMARY OUTPUT
A31: Regression Statistics
A32: Multiple R | B32: 0.9366297666
A33: R Square | B33: 0.8772753196
A34: Adjusted R Square | B34: 0.8744861223
A35: Standard Error | B35: 0.004786234034
A36: Observations | B36: 46
A38: ANOVA
B39: df | C39: SS | D39: MS | E39: F | F39: Significance F
A40: Regression | B40: 1 | C40: 0.007205175101 | D40: 0.007205175101 | E40: 314.5260916 | F40: 1.151778767e-21
A41: Residual | B41: 44 | C41: 0.001007953594 | D41: 2.290803623e-05
A42: Total | B42: 45 | C42: 0.008213128696
B44: Coefficients | C44: Standard Error | D44: t Stat | E44: P-value | F44: Lower 95% | G44: Upper 95% | H44: Lower 95.0% | I44: Upper 95.0%
A45: Intercept | B45: 0.07173107944 | C45: 0.002048439843 | D45: 35.01742055 | E45: 9.029994426e-34 | F45: 0.06760272021 | G45: 0.07585943868 | H45: 0.06760272021 | I45: 0.07585943868
A46: X Variable 1 | B46: -0.4210266906 | C46: 0.02374003141 | D46: -17.73488347 | E46: 1.151778767e-21 | F46: -0.4688715801 | G46: -0.373181801 | H46: -0.4688715801 | I46: -0.373181801

Sheet 20
A1: ='Exhibit List'!C17 -> EXPECTED EARNINGS APPROACH | J1: ='Exhibit List'!B17 -> Exh. AMM-20
J2: Page 1 of 1
A3: ='Exhibit List'!D17 -> UPDATED UTILITY GROUP
D5: (a) | F5: (b) | H5: (c)
D6: Expected Return | F6: Adjustment | H6: Adjusted Return
B7: Company | D7: on Common Equity | F7: Factor | H7: on Common Equity
A9: =A8+1 -> 1 | B9: =VLOOKUP('Utility Group'!$B3,vldatabase,2,FALSE) -> Alliant Energy | D9: =VLOOKUP('Utility Group'!$B3,vldatabase,18,FALSE) -> 0.105 | F9: ='16'!I8 -> 1.01495992 | H9: =IF(D9="n/a","n/a ",D9*F9) -> 0.1065707916 | M9: =IF(H9="n/a","n/a",IF(H9<$M$42,"nmf",IF(H9>$M$43,"nmf",H9))) -> 0.1065707916
A10: =A9+1 -> 2 | B10: =VLOOKUP('Utility Group'!$B4,vldatabase,2,FALSE) -> Ameren Corp. | D10: =VLOOKUP('Utility Group'!$B4,vldatabase,18,FALSE) -> 0.1 | F10: ='16'!I9 -> 1.039799637 | H10: =IF(D10="n/a","n/a ",D10*F10) -> 0.1039799637 | M10: 0.1039799637
A11: 3 | B11: =VLOOKUP('Utility Group'!$B5,vldatabase,2,FALSE) -> American Elec Pwr | D11: =VLOOKUP('Utility Group'!$B5,vldatabase,18,FALSE) -> 0.105 | F11: ='16'!I10 -> 1.04019247 | H11: 0.1092202094 | M11: 0.1092202094
A12: 4 | B12: =VLOOKUP('Utility Group'!$B6,vldatabase,2,FALSE) -> Avangrid, Inc. | D12: =VLOOKUP('Utility Group'!$B6,vldatabase,18,FALSE) -> 0.05 | F12: ='16'!I11 -> 1.004802993 | H12: 0.05024014964 | M12: nmf
A13: 5 | B13: =VLOOKUP('Utility Group'!$B7,vldatabase,2,FALSE) -> Black Hills Corp. | D13: =VLOOKUP('Utility Group'!$B7,vldatabase,18,FALSE) -> 0.09 | F13: ='16'!I12 -> 1.023168899 | H13: 0.09208520095 | M13: 0.09208520095
A14: 6 | B14: =VLOOKUP('Utility Group'!$B8,vldatabase,2,FALSE) -> CMS Energy Corp. | D14: =VLOOKUP('Utility Group'!$B8,vldatabase,18,FALSE) -> 0.135 | F14: ='16'!I13 -> 1.042866494 | H14: 0.1407869767 | M14: nmf
A15: 7 | B15: =VLOOKUP('Utility Group'!$B9,vldatabase,2,FALSE) -> Consolidated Edison | D15: =VLOOKUP('Utility Group'!$B9,vldatabase,18,FALSE) -> 0.08 | F15: ='16'!I14 -> 1.023311518 | H15: 0.08186492147 | M15: 0.08186492147
A16: 8 | B16: =VLOOKUP('Utility Group'!$B10,vldatabase,2,FALSE) -> DTE Energy Co. | D16: =VLOOKUP('Utility Group'!$B10,vldatabase,18,FALSE) -> 0.11 | F16: ='16'!I15 -> 1.032628276 | H16: 0.1135891104 | M16: 0.1135891104
A17: 9 | B17: =VLOOKUP('Utility Group'!$B11,vldatabase,2,FALSE) -> Duke Energy Corp. | D17: =VLOOKUP('Utility Group'!$B11,vldatabase,18,FALSE) -> 0.085 | F17: ='16'!I16 -> 1.021414165 | H17: 0.086820204 | M17: 0.086820204
A18: 10 | B18: =VLOOKUP('Utility Group'!$B12,vldatabase,2,FALSE) -> Entergy Corp. | D18: =VLOOKUP('Utility Group'!$B12,vldatabase,18,FALSE) -> 0.11 | F18: ='16'!I17 -> 1.026682457 | H18: 0.1129350703 | M18: 0.1129350703
A19: 11 | B19: =VLOOKUP('Utility Group'!$B13,vldatabase,2,FALSE) -> Evergy Inc. | D19: =VLOOKUP('Utility Group'!$B13,vldatabase,18,FALSE) -> 0.085 | F19: ='16'!I18 -> 1.010707974 | H19: 0.08591017775 | M19: 0.08591017775
A20: 12 | B20: =VLOOKUP('Utility Group'!$B14,vldatabase,2,FALSE) -> Eversource Energy | D20: =VLOOKUP('Utility Group'!$B14,vldatabase,18,FALSE) -> 0.09 | F20: ='16'!I19 -> 1.034113185 | H20: 0.09307018663 | M20: 0.09307018663
A21: 13 | B21: =VLOOKUP('Utility Group'!$B15,vldatabase,2,FALSE) -> Exelon Corp. | D21: =VLOOKUP('Utility Group'!$B15,vldatabase,18,FALSE) -> 0.09 | F21: ='16'!I20 -> 1.0219774 | H21: 0.09197796596 | M21: 0.09197796596
A22: 14 | B22: =VLOOKUP('Utility Group'!$B16,vldatabase,2,FALSE) -> Fortis Inc. | D22: =VLOOKUP('Utility Group'!$B16,vldatabase,18,FALSE) -> 0.07 | F22: ='16'!I21 -> 1.021317145 | H22: 0.07149220015 | M22: 0.07149220015
A23: 15 | B23: =VLOOKUP('Utility Group'!$B17,vldatabase,2,FALSE) -> NextEra Energy, Inc. | D23: =VLOOKUP('Utility Group'!$B17,vldatabase,18,FALSE) -> 0.125 | F23: ='16'!I22 -> 1.029549404 | H23: 0.1286936755 | M23: 0.1286936755
A24: 16 | B24: =VLOOKUP('Utility Group'!$B18,vldatabase,2,FALSE) -> OGE Energy Corp. | D24: =VLOOKUP('Utility Group'!$B18,vldatabase,18,FALSE) -> 0.12 | F24: ='16'!I23 -> 0.9992412056 | H24: 0.1199089447 | M24: 0.1199089447
A25: 17 | B25: =VLOOKUP('Utility Group'!$B19,vldatabase,2,FALSE) -> Pub Sv Enterprise Grp. | D25: =VLOOKUP('Utility Group'!$B19,vldatabase,18,FALSE) -> 0.11 | F25: ='16'!I24 -> 1.024932867 | H25: 0.1127426154 | M25: 0.1127426154
A26: 18 | B26: =VLOOKUP('Utility Group'!$B20,vldatabase,2,FALSE) -> Sempra Energy | D26: =VLOOKUP('Utility Group'!$B20,vldatabase,18,FALSE) -> 0.105 | F26: ='16'!I25 -> 1.053258159 | H26: 0.1105921067 | M26: 0.1105921067
A27: 19 | B27: =VLOOKUP('Utility Group'!$B21,vldatabase,2,FALSE) -> Southern Company | D27: =VLOOKUP('Utility Group'!$B21,vldatabase,18,FALSE) -> 0.125 | F27: ='16'!I26 -> 1.018811625 | H27: 0.1273514531 | M27: 0.1273514531
A28: 20 | B28: =VLOOKUP('Utility Group'!$B22,vldatabase,2,FALSE) -> WEC Energy Group | D28: =VLOOKUP('Utility Group'!$B22,vldatabase,18,FALSE) -> 0.125 | F28: ='16'!I27 -> 1.017015228 | H28: 0.1271269035 | M28: 0.1271269035
A29: 21 | B29: =VLOOKUP('Utility Group'!$B23,vldatabase,2,FALSE) -> Xcel Energy Inc. | D29: =VLOOKUP('Utility Group'!$B23,vldatabase,18,FALSE) -> 0.105 | F29: ='16'!I28 -> 1.029157989 | H29: 0.1080615888 | M29: 0.1080615888
B30: Average (d) | H30: =AVERAGE(M9:M29) -> 0.1044206995 | L30: Max | M30: =MAX(M9:M29) -> 0.1286936755
B31: Midpoint (d,e) | H31: =AVERAGE(M30:M31) -> 0.1000929378 | L31: Min | M31: =MIN(M9:M29) -> 0.07149220015
L32: Median | M32: =MEDIAN(M9:M29) -> 0.1080615888
A34: (a) | B34: ='Proxy Group Risk Measures'!B35 -> The Value Line Investment Survey (Jul. 24, Aug. 14 and Sep. 11, 2020).
A35: (b) | B35: ="Adjustment to convert year-end return to an average rate of return from " & 'Exhibit List'!B9 & "." -> Adjustment to convert year-end return to an average rate of return from Exh. AMM-17.
A36: (c) | B36: (a) x (b).
A37: (d) | B37: Excludes highlighted values.
A38: (e) | B38: Average of low and high values.
K42: Criteria Min | M42: ='15 (3)'!E42 -> 0.054
K43: Criteria Max | M43: ='15 (3)'!E43 -> 0.13

Sheet 21 (1)
A1: ='Exhibit List'!C18 -> DCF MODEL - NON-UTILITY GROUP | J1: ='Exhibit List'!B18 -> Exh. AMM-21
J2: Page 1 of 3
A3: ='Exhibit List'!D18 -> DIVIDEND YIELD
E4: (a) | G4: (b)
B5: Company | C5: Industry Group | E5: Price | G5: Dividends | I5: Yield
A6: =A5+1 -> 1 | B6: ='Proxy Group Risk Measures'!B44 -> Air Products & Chem. | C6: Chemical (Diversified) | E6: =TRANSPOSE('Stock Price (Non-Utility)'!C34:AU34) -> 286.4446667 | G6: 5.36 | I6: =G6/E6 -> 0.01871216547
A7: =A6+1 -> 2 | B7: ='Proxy Group Risk Measures'!B45 -> Amdocs Ltd. | C7: IT Services | E7: 60.7285 | G7: 1.31 | I7: 0.02157142034
A8: 3 | B8: ='Proxy Group Risk Measures'!B46 -> Amgen | C8: Biotechnology | E8: 246.8493333 | G8: 6.7 | I8: 0.02714206236
A9: 4 | B9: ='Proxy Group Risk Measures'!B47 -> Amphenol Corp. | C9: Electronics | E9: 105.6923333 | G9: 1 | I9: 0.009461424197
A10: 5 | B10: ='Proxy Group Risk Measures'!B48 -> Apple Inc. | C10: Computers/Peripherals | E10: 420.5313333 | G10: 3.33 | I10: 0.00791855383
A11: 6 | B11: ='Proxy Group Risk Measures'!B49 -> AT&T Inc. | C11: Telecom. Services | E11: 29.87866667 | G11: 2.1 | I11: 0.07028426079
A12: 7 | B12: ='Proxy Group Risk Measures'!B50 -> Baxter Int'l Inc. | C12: Med Supp Invasive | E12: 85.166 | G12: 0.98 | I12: 0.01150693939
A13: 8 | B13: ='Proxy Group Risk Measures'!B51 -> Bristol-Myers Squibb | C13: Drug | E13: 60.512 | G13: 1.8 | I13: 0.02974616605
A14: 9 | B14: ='Proxy Group Risk Measures'!B52 -> Brown & Brown | C14: Financial Svcs. (Div.) | E14: 44.92366667 | G14: 0.34 | I14: 0.007568393794
A15: 10 | B15: ='Proxy Group Risk Measures'!B53 -> Brown-Forman 'B' | C15: Beverage | E15: 68.98033333 | G15: 0.72 | I15: 0.01043775762
A16: 11 | B16: ='Proxy Group Risk Measures'!B54 -> Church & Dwight | C16: Household Products | E16: 90.85533333 | G16: 0.96 | I16: 0.01056624817
A17: 12 | B17: ='Proxy Group Risk Measures'!B55 -> Cisco Systems | C17: Telecom. Equipment | E17: 45.85466667 | G17: 1.44 | I17: 0.03140356489
A18: 13 | B18: ='Proxy Group Risk Measures'!B56 -> Coca-Cola | C18: Beverage | E18: 47.45666667 | G18: 1.68 | I18: 0.03540071644
A19: 14 | B19: ='Proxy Group Risk Measures'!B57 -> Colgate-Palmolive | C19: Household Products | E19: 75.99966667 | G19: 1.76 | I19: 0.02315799631
A20: 15 | B20: ='Proxy Group Risk Measures'!B58 -> Comcast Corp. | C20: Cable TV | E20: 42.84566667 | G20: 0.92 | I20: 0.0214724165
A21: 16 | B21: ='Proxy Group Risk Measures'!B59 -> Commerce Bancshs. | C21: Bank (Midwest) | E21: 58.375 | G21: 1.08 | I21: 0.01850107066
A22: 17 | B22: ='Proxy Group Risk Measures'!B60 -> Costco Wholesale | C22: Retail Store | E22: 332.5446667 | G22: 2.8 | I22: 0.008419921534
A23: 18 | B23: ='Proxy Group Risk Measures'!B61 -> CVS Health | C23: Pharmacy Services | E23: 64.30866667 | G23: 2 | I23: 0.03110000726
A24: 19 | B24: ='Proxy Group Risk Measures'!B62 -> Danaher Corp. | C24: Diversified Co. | E24: 200.0896667 | G24: 0.72 | I24: 0.003598386723
A25: 20 | B25: ='Proxy Group Risk Measures'!B63 -> Gen'l Mills | C25: Automotive | E25: 64.152 | G25: 1.96 | I25: 0.03055243796
A26: 21 | B26: ='Proxy Group Risk Measures'!B64 -> Hormel Foods | C26: Food Processing | E26: 50.906 | G26: 1 | I26: 0.01964404982
A27: 22 | B27: ='Proxy Group Risk Measures'!B65 -> Intel Corp. | C27: Hotel/Gaming | E27: 52.11933333 | G27: 1.32 | I27: 0.02532649433
A28: 23 | B28: ='Proxy Group Risk Measures'!B66 -> Int'l Flavors & Frag. | C28: Wireless Networking | E28: 126.2053333 | G28: 3.12 | I28: 0.02472161768
A29: 24 | B29: ='Proxy Group Risk Measures'!B67 -> Johnson & Johnson | C29: Med Supp Non-Invasive | E29: 148.463 | G29: 4.04 | I29: 0.02721216734
A30: 25 | B30: ='Proxy Group Risk Measures'!B68 -> Kellogg | C30: Food Processing | E30: 68.97466667 | G30: 2.3 | I30: 0.03334557615
A31: 26 | B31: ='Proxy Group Risk Measures'!B69 -> Kimberly-Clark | C31: Household Products | E31: 151.7206667 | G31: 4.28 | I31: 0.02820973631
A32: 27 | B32: ='Proxy Group Risk Measures'!B70 -> Lilly (Eli) | C32: Drug | E32: 157.03 | G32: 2.96 | I32: 0.01884990129
A33: 28 | B33: ='Proxy Group Risk Measures'!B71 -> Lockheed Martin | C33: Aerospace/Defense | E33: 381.265 | G33: 10 | I33: 0.02622847626
A34: 29 | B34: ='Proxy Group Risk Measures'!B72 -> Marsh & McLennan | C34: Financial Svcs. (Div.) | E34: 115.2703333 | G34: 1.86 | I34: 0.01613598179
A35: 30 | B35: ='Proxy Group Risk Measures'!B73 -> McCormick & Co. | C35: Food Processing | E35: 196.4396667 | G35: 2.5 | I35: 0.01272655387
A36: 31 | B36: ='Proxy Group Risk Measures'!B74 -> McDonald's Corp. | C36: Restaurant | E36: 199.7363333 | G36: 5 | I36: 0.02503300184
A37: 32 | B37: ='Proxy Group Risk Measures'!B75 -> Merck & Co. | C37: Drug | E37: 80.91833333 | G37: 2.44 | I37: 0.03015385883
A38: 33 | B38: ='Proxy Group Risk Measures'!B76 -> Microsoft Corp. | C38: Computer Software | E38: 208.471 | G38: 2.04 | I38: 0.009785533719
A39: 34 | B39: ='Proxy Group Risk Measures'!B77 -> Northrop Grumman | C39: Aerospace/Defense | E39: 321.971 | G39: 5.8 | I39: 0.01801404474
A40: 35 | B40: ='Proxy Group Risk Measures'!B78 -> Oracle Corp. | C40: Drug | E40: 55.426 | G40: 0.96 | I40: 0.01732039115
A41: 36 | B41: ='Proxy Group Risk Measures'!B79 -> PepsiCo, Inc. | C41: Beverage | E41: 136.364 | G41: 4.09 | I41: 0.02999325335
A42: 37 | B42: ='Proxy Group Risk Measures'!B80 -> Pfizer, Inc. | C42: Drug | E42: 37.803 | G42: 1.52 | I42: 0.04020844906
A43: 38 | B43: ='Proxy Group Risk Measures'!B81 -> Procter & Gamble | C43: Household Products | E43: 130.6056667 | G43: 3.16 | I43: 0.02419496857
A44: 39 | B44: ='Proxy Group Risk Measures'!B82 -> Public Storage | C44: R.E.I.T. | E44: 195.484 | G44: 8 | I44: 0.0409240654
A45: 40 | B45: ='Proxy Group Risk Measures'!B83 -> Texas Instruments | C45: Environmental | E45: 133.7876667 | G45: 3.6 | I45: 0.02690830993
A46: 41 | B46: ='Proxy Group Risk Measures'!B84 -> Travelers Cos. | C46: Insurance (Prop/Cas.) | E46: 116.8873333 | G46: 3.4 | I46: 0.02908783957
A47: 42 | B47: ='Proxy Group Risk Measures'!B85 -> United Parcel Serv. | C47: Air Transport | E47: 138.4846667 | G47: 4.04 | I47: 0.02917290482
A48: 43 | B48: ='Proxy Group Risk Measures'!B86 -> Verizon Communic. | C48: Telecom. Services | E48: 57.373 | G48: 2.49 | I48: 0.04340020567
A49: 44 | B49: ='Proxy Group Risk Measures'!B87 -> Walmart Inc. | C49: Retail Store | E49: 131.4466667 | G49: 2.18 | I49: 0.01658467312
A50: 45 | B50: ='Proxy Group Risk Measures'!B88 -> Waste Management | C50: Environmental | E50: 109.213 | G50: 2.18 | I50: 0.01996099365
B52: Average | I52: =AVERAGE(I6:I50) -> 0.02359255464
A54: (a) | B54: ='Stock Price (Non-Utility)'!B37 -> Average of closing prices for 30 trading days ended Aug. 21, 2020.
A55: (b) | B55: The Value Line Investment Survey, Summary & Index (Aug. 21, 2020).

Sheet 21 (2)
A1: ='Exhibit List'!C19 -> DCF MODEL - NON-UTILITY GROUP | I1: ='Exhibit List'!B19 -> Exh. AMM-21
I2: Page 2 of 3
A3: ='Exhibit List'!D19 -> GROWTH RATES
D4: (a) | F4: (b) | H4: (c)
C5: Earnings Growth
B6: Company | D6: Value Line | F6: IBES | H6: Zacks
A7: =A6+1 -> 1 | B7: ='21 (1)'!B6 -> Air Products & Chem. | D7: 0.12 | F7: 0.1033 | H7: 0.0877
A8: 2 | B8: ='21 (1)'!B7 -> Amdocs Ltd. | D8: 0.095 | F8: 0.044 | H8: 0.085
A9: 3 | B9: ='21 (1)'!B8 -> Amgen | D9: 0.065 | F9: 0.0687 | H9: 0.0753
A10: 4 | B10: ='21 (1)'!B9 -> Amphenol Corp. | D10: 0.09 | F10: 0.03 | H10: 0.0751
A11: 5 | B11: ='21 (1)'!B10 -> Apple Inc. | D11: 0.14 | F11: 0.1246 | H11: 0.1067
A12: 6 | B12: ='21 (1)'!B11 -> AT&T Inc. | D12: 0.055 | F12: 0.0029 | H12: 0.0553
A13: 7 | B13: ='21 (1)'!B12 -> Baxter Int'l Inc. | D13: 0.09 | F13: 0.1 | H13: 0.0975
A14: 8 | B14: ='21 (1)'!B13 -> Bristol-Myers Squibb | D14: 0.125 | F14: 0.184 | H14: 0.0863
A15: 9 | B15: ='21 (1)'!B14 -> Brown & Brown | D15: 0.105 | F15: 0.0893 | H15: n/a
A16: 10 | B16: ='21 (1)'!B15 -> Brown-Forman 'B' | D16: 0.11 | F16: 0.0333 | H16: n/a
A17: 11 | B17: ='21 (1)'!B16 -> Church & Dwight | D17: 0.08 | F17: 0.0948 | H17: 0.0886
A18: 12 | B18: ='21 (1)'!B17 -> Cisco Systems | D18: 0.07 | F18: 0.0618 | H18: 0.054
A19: 13 | B19: ='21 (1)'!B18 -> Coca-Cola | D19: 0.065 | F19: 0.0294 | H19: 0.0481
A20: 14 | B20: ='21 (1)'!B19 -> Colgate-Palmolive | D20: 0.05 | F20: 0.0591 | H20: 0.0589
A21: 15 | B21: ='21 (1)'!B20 -> Comcast Corp. | D21: 0.135 | F21: 0.0495 | H21: 0.097
A22: 16 | B22: ='21 (1)'!B21 -> Commerce Bancshs. | D22: 0.05 | F22: -0.087 | H22: n/a
A23: 17 | B23: ='21 (1)'!B22 -> Costco Wholesale | D23: 0.09 | F23: 0.0715 | H23: 0.084
A24: 18 | B24: ='21 (1)'!B23 -> CVS Health | D24: 0.06 | F24: 0.0634 | H24: 0.0559
A25: 19 | B25: ='21 (1)'!B24 -> Danaher Corp. | D25: 0.15 | F25: 0.1302 | H25: 0.1164
A26: 20 | B26: ='21 (1)'!B25 -> Gen'l Mills | D26: 0.03 | F26: 0.049 | H26: 0.075
A27: 21 | B27: ='21 (1)'!B26 -> Hormel Foods | D27: 0.085 | F27: 0.029 | H27: 0.075
A28: 22 | B28: ='21 (1)'!B27 -> Intel Corp. | D28: 0.07 | F28: 0.0862 | H28: 0.075
A29: 23 | B29: ='21 (1)'!B28 -> Int'l Flavors & Frag. | D29: 0.08 | F29: 0.0038 | H29: n/a
A30: 24 | B30: ='21 (1)'!B29 -> Johnson & Johnson | D30: 0.1 | F30: 0.0508 | H30: 0.0575
A31: 25 | B31: ='21 (1)'!B30 -> Kellogg | D31: 0.03 | F31: 0.0175 | H31: 0.06
A32: 26 | B32: ='21 (1)'!B31 -> Kimberly-Clark | D32: 0.07 | F32: 0.062 | H32: 0.0545
A33: 27 | B33: ='21 (1)'!B32 -> Lilly (Eli) | D33: 0.1 | F33: 0.1317 | H33: 0.1565
A34: 28 | B34: ='21 (1)'!B33 -> Lockheed Martin | D34: 0.085 | F34: 0.0911 | H34: 0.0693
A35: 29 | B35: ='21 (1)'!B34 -> Marsh & McLennan | D35: 0.09 | F35: 0.0487 | H35: 0.06
A36: 30 | B36: ='21 (1)'!B35 -> McCormick & Co. | D36: 0.065 | F36: 0.05 | H36: 0.0578
A37: 31 | B37: ='21 (1)'!B36 -> McDonald's Corp. | D37: 0.08 | F37: 0.0388 | H37: 0.0768
A38: 32 | B38: ='21 (1)'!B37 -> Merck & Co. | D38: 0.09 | F38: 0.0625 | H38: 0.0674
A39: 33 | B39: ='21 (1)'!B38 -> Microsoft Corp. | D39: 0.15 | F39: 0.15 | H39: 0.1371
A40: 34 | B40: ='21 (1)'!B39 -> Northrop Grumman | D40: 0.105 | F40: 0.0862 | H40: n/a
A41: 35 | B41: ='21 (1)'!B40 -> Oracle Corp. | D41: 0.105 | F41: 0.0904 | H41: 0.11
A42: 36 | B42: ='21 (1)'!B41 -> PepsiCo, Inc. | D42: 0.06 | F42: 0.0548 | H42: 0.0561
A43: 37 | B43: ='21 (1)'!B42 -> Pfizer, Inc. | D43: 0.085 | F43: 0.0537 | H43: 0.0429
A44: 38 | B44: ='21 (1)'!B43 -> Procter & Gamble | D44: 0.085 | F44: 0.0772 | H44: 0.0741
A45: 39 | B45: ='21 (1)'!B44 -> Public Storage | D45: n/a | F45: 0.17 | H45: 0.0345
A46: 40 | B46: ='21 (1)'!B45 -> Texas Instruments | D46: 0.025 | F46: 0.1 | H46: 0.0933
A47: 41 | B47: ='21 (1)'!B46 -> Travelers Cos. | D47: 0.095 | F47: 0.0305 | H47: 0.0666
A48: 42 | B48: ='21 (1)'!B47 -> United Parcel Serv. | D48: 0.06 | F48: 0.059 | H48: 0.0777
A49: 43 | B49: ='21 (1)'!B48 -> Verizon Communic. | D49: 0.04 | F49: 0.0123 | H49: 0.0341
A50: 44 | B50: ='21 (1)'!B49 -> Walmart Inc. | D50: 0.075 | F50: 0.0641 | H50: 0.0563
A51: 45 | B51: ='21 (1)'!B50 -> Waste Management | D51: 0.055 | F51: -0.0126 | H51: 0.0629
A53: (a) | B53: The Value Line Investment Survey (various editions as of Aug. 21, 2020).
A54: (b) | B54: www.finance.yahoo.com (retrieved Aug. 24, 2020).
A55: (c) | B55: www.zacks.com (retrieved Aug. 24, 2020).

Sheet 21 (3)
A1: ='Exhibit List'!C20 -> DCF MODEL - NON-UTILITY GROUP | J1: ='Exhibit List'!B20 -> Exh. AMM-21
J2: Page 3 of 3
A3: ='Exhibit List'!D20 -> DCF COST OF EQUITY ESTIMATES
E5: (a) | G5: (a) | I5: (a)
D6: Earnings Growth
B7: Company | E7: Value Line | G7: IBES | I7: Zacks
A8: =A7+1 -> 1 | B8: ='21 (1)'!B6 -> Air Products & Chem. | E8: =IF('21 (2)'!D7="n/a","n/a",'21 (1)'!$I6+'21 (2)'!D7) -> 0.1387121655 | G8: =IF('21 (2)'!F7="n/a","n/a",'21 (1)'!$I6+'21 (2)'!F7) -> 0.1220121655 | I8: =IF('21 (2)'!H7="n/a","n/a",'21 (1)'!$I6+'21 (2)'!H7) -> 0.1064121655 | M8: =IF(E8="n/a","n/a",IF(E8<$E$64,"nmf",IF(E8>$E$65,"nmf",E8))) -> nmf | N8: =IF(G8="n/a","n/a",IF(G8<$E$64,"nmf",IF(G8>$E$65,"nmf",G8))) -> 0.1220121655 | O8: =IF(I8="n/a","n/a",IF(I8<$E$64,"nmf",IF(I8>$E$65,"nmf",I8))) -> 0.1064121655
A9: 2 | B9: ='21 (1)'!B7 -> Amdocs Ltd. | E9: =IF('21 (2)'!D8="n/a","n/a",'21 (1)'!$I7+'21 (2)'!D8) -> 0.1165714203 | G9: =IF('21 (2)'!F8="n/a","n/a",'21 (1)'!$I7+'21 (2)'!F8) -> 0.06557142034 | I9: =IF('21 (2)'!H8="n/a","n/a",'21 (1)'!$I7+'21 (2)'!H8) -> 0.1065714203 | M9: =IF(E9="n/a","n/a",IF(E9<$E$64,"nmf",IF(E9>$E$65,"nmf",E9))) -> 0.1165714203 | N9: =IF(G9="n/a","n/a",IF(G9<$E$64,"nmf",IF(G9>$E$65,"nmf",G9))) -> 0.06557142034 | O9: =IF(I9="n/a","n/a",IF(I9<$E$64,"nmf",IF(I9>$E$65,"nmf",I9))) -> 0.1065714203
A10: 3 | B10: ='21 (1)'!B8 -> Amgen | E10: =IF('21 (2)'!D9="n/a","n/a",'21 (1)'!$I8+'21 (2)'!D9) -> 0.09214206236 | G10: =IF('21 (2)'!F9="n/a","n/a",'21 (1)'!$I8+'21 (2)'!F9) -> 0.09584206236 | I10: =IF('21 (2)'!H9="n/a","n/a",'21 (1)'!$I8+'21 (2)'!H9) -> 0.1024420624 | M10: =IF(E10="n/a","n/a",IF(E10<$E$64,"nmf",IF(E10>$E$65,"nmf",E10))) -> 0.09214206236 | N10: =IF(G10="n/a","n/a",IF(G10<$E$64,"nmf",IF(G10>$E$65,"nmf",G10))) -> 0.09584206236 | O10: =IF(I10="n/a","n/a",IF(I10<$E$64,"nmf",IF(I10>$E$65,"nmf",I10))) -> 0.1024420624
A11: 4 | B11: ='21 (1)'!B9 -> Amphenol Corp. | E11: =IF('21 (2)'!D10="n/a","n/a",'21 (1)'!$I9+'21 (2)'!D10) -> 0.0994614242 | G11: =IF('21 (2)'!F10="n/a","n/a",'21 (1)'!$I9+'21 (2)'!F10) -> 0.0394614242 | I11: =IF('21 (2)'!H10="n/a","n/a",'21 (1)'!$I9+'21 (2)'!H10) -> 0.0845614242 | M11: 0.0994614242 | N11: nmf | O11: 0.0845614242
A12: 5 | B12: ='21 (1)'!B10 -> Apple Inc. | E12: =IF('21 (2)'!D11="n/a","n/a",'21 (1)'!$I10+'21 (2)'!D11) -> 0.1479185538 | G12: =IF('21 (2)'!F11="n/a","n/a",'21 (1)'!$I10+'21 (2)'!F11) -> 0.1325185538 | I12: =IF('21 (2)'!H11="n/a","n/a",'21 (1)'!$I10+'21 (2)'!H11) -> 0.1146185538 | M12: nmf | N12: nmf | O12: 0.1146185538
A13: 6 | B13: ='21 (1)'!B11 -> AT&T Inc. | E13: =IF('21 (2)'!D12="n/a","n/a",'21 (1)'!$I11+'21 (2)'!D12) -> 0.1252842608 | G13: =IF('21 (2)'!F12="n/a","n/a",'21 (1)'!$I11+'21 (2)'!F12) -> 0.07318426079 | I13: =IF('21 (2)'!H12="n/a","n/a",'21 (1)'!$I11+'21 (2)'!H12) -> 0.1255842608 | M13: 0.1252842608 | N13: 0.07318426079 | O13: 0.1255842608
A14: 7 | B14: ='21 (1)'!B12 -> Baxter Int'l Inc. | E14: =IF('21 (2)'!D13="n/a","n/a",'21 (1)'!$I12+'21 (2)'!D13) -> 0.1015069394 | G14: =IF('21 (2)'!F13="n/a","n/a",'21 (1)'!$I12+'21 (2)'!F13) -> 0.1115069394 | I14: =IF('21 (2)'!H13="n/a","n/a",'21 (1)'!$I12+'21 (2)'!H13) -> 0.1090069394 | M14: 0.1015069394 | N14: 0.1115069394 | O14: 0.1090069394
A15: 8 | B15: ='21 (1)'!B13 -> Bristol-Myers Squibb | E15: =IF('21 (2)'!D14="n/a","n/a",'21 (1)'!$I13+'21 (2)'!D14) -> 0.154746166 | G15: =IF('21 (2)'!F14="n/a","n/a",'21 (1)'!$I13+'21 (2)'!F14) -> 0.213746166 | I15: =IF('21 (2)'!H14="n/a","n/a",'21 (1)'!$I13+'21 (2)'!H14) -> 0.116046166 | M15: nmf | N15: nmf | O15: 0.116046166
A16: 9 | B16: ='21 (1)'!B14 -> Brown & Brown | E16: =IF('21 (2)'!D15="n/a","n/a",'21 (1)'!$I14+'21 (2)'!D15) -> 0.1125683938 | G16: =IF('21 (2)'!F15="n/a","n/a",'21 (1)'!$I14+'21 (2)'!F15) -> 0.09686839379 | I16: =IF('21 (2)'!H15="n/a","n/a",'21 (1)'!$I14+'21 (2)'!H15) -> n/a | M16: 0.1125683938 | N16: 0.09686839379 | O16: n/a
A17: 10 | B17: ='21 (1)'!B15 -> Brown-Forman 'B' | E17: =IF('21 (2)'!D16="n/a","n/a",'21 (1)'!$I15+'21 (2)'!D16) -> 0.1204377576 | G17: =IF('21 (2)'!F16="n/a","n/a",'21 (1)'!$I15+'21 (2)'!F16) -> 0.04373775762 | I17: =IF('21 (2)'!H16="n/a","n/a",'21 (1)'!$I15+'21 (2)'!H16) -> n/a | M17: 0.1204377576 | N17: nmf | O17: n/a
A18: 11 | B18: ='21 (1)'!B16 -> Church & Dwight | E18: =IF('21 (2)'!D17="n/a","n/a",'21 (1)'!$I16+'21 (2)'!D17) -> 0.09056624817 | G18: =IF('21 (2)'!F17="n/a","n/a",'21 (1)'!$I16+'21 (2)'!F17) -> 0.1053662482 | I18: =IF('21 (2)'!H17="n/a","n/a",'21 (1)'!$I16+'21 (2)'!H17) -> 0.09916624817 | M18: 0.09056624817 | N18: 0.1053662482 | O18: 0.09916624817
A19: 12 | B19: ='21 (1)'!B17 -> Cisco Systems | E19: =IF('21 (2)'!D18="n/a","n/a",'21 (1)'!$I17+'21 (2)'!D18) -> 0.1014035649 | G19: =IF('21 (2)'!F18="n/a","n/a",'21 (1)'!$I17+'21 (2)'!F18) -> 0.09320356489 | I19: =IF('21 (2)'!H18="n/a","n/a",'21 (1)'!$I17+'21 (2)'!H18) -> 0.08540356489 | M19: 0.1014035649 | N19: 0.09320356489 | O19: 0.08540356489
A20: 13 | B20: ='21 (1)'!B18 -> Coca-Cola | E20: =IF('21 (2)'!D19="n/a","n/a",'21 (1)'!$I18+'21 (2)'!D19) -> 0.1004007164 | G20: =IF('21 (2)'!F19="n/a","n/a",'21 (1)'!$I18+'21 (2)'!F19) -> 0.06480071644 | I20: =IF('21 (2)'!H19="n/a","n/a",'21 (1)'!$I18+'21 (2)'!H19) -> 0.08350071644 | M20: 0.1004007164 | N20: 0.06480071644 | O20: 0.08350071644
A21: 14 | B21: ='21 (1)'!B19 -> Colgate-Palmolive | E21: =IF('21 (2)'!D20="n/a","n/a",'21 (1)'!$I19+'21 (2)'!D20) -> 0.07315799631 | G21: =IF('21 (2)'!F20="n/a","n/a",'21 (1)'!$I19+'21 (2)'!F20) -> 0.08225799631 | I21: =IF('21 (2)'!H20="n/a","n/a",'21 (1)'!$I19+'21 (2)'!H20) -> 0.08205799631 | M21: 0.07315799631 | N21: 0.08225799631 | O21: 0.08205799631
A22: 15 | B22: ='21 (1)'!B20 -> Comcast Corp. | E22: =IF('21 (2)'!D21="n/a","n/a",'21 (1)'!$I20+'21 (2)'!D21) -> 0.1564724165 | G22: =IF('21 (2)'!F21="n/a","n/a",'21 (1)'!$I20+'21 (2)'!F21) -> 0.0709724165 | I22: =IF('21 (2)'!H21="n/a","n/a",'21 (1)'!$I20+'21 (2)'!H21) -> 0.1184724165 | M22: nmf | N22: 0.0709724165 | O22: 0.1184724165
A23: 16 | B23: ='21 (1)'!B21 -> Commerce Bancshs. | E23: =IF('21 (2)'!D22="n/a","n/a",'21 (1)'!$I21+'21 (2)'!D22) -> 0.06850107066 | G23: =IF('21 (2)'!F22="n/a","n/a",'21 (1)'!$I21+'21 (2)'!F22) -> -0.06849892934 | I23: =IF('21 (2)'!H22="n/a","n/a",'21 (1)'!$I21+'21 (2)'!H22) -> n/a | M23: 0.06850107066 | N23: nmf | O23: n/a
A24: 17 | B24: ='21 (1)'!B22 -> Costco Wholesale | E24: =IF('21 (2)'!D23="n/a","n/a",'21 (1)'!$I22+'21 (2)'!D23) -> 0.09841992153 | G24: =IF('21 (2)'!F23="n/a","n/a",'21 (1)'!$I22+'21 (2)'!F23) -> 0.07991992153 | I24: =IF('21 (2)'!H23="n/a","n/a",'21 (1)'!$I22+'21 (2)'!H23) -> 0.09241992153 | M24: 0.09841992153 | N24: 0.07991992153 | O24: 0.09241992153
A25: 18 | B25: ='21 (1)'!B23 -> CVS Health | E25: =IF('21 (2)'!D24="n/a","n/a",'21 (1)'!$I23+'21 (2)'!D24) -> 0.09110000726 | G25: =IF('21 (2)'!F24="n/a","n/a",'21 (1)'!$I23+'21 (2)'!F24) -> 0.09450000726 | I25: =IF('21 (2)'!H24="n/a","n/a",'21 (1)'!$I23+'21 (2)'!H24) -> 0.08700000726 | M25: 0.09110000726 | N25: 0.09450000726 | O25: 0.08700000726
A26: 19 | B26: ='21 (1)'!B24 -> Danaher Corp. | E26: =IF('21 (2)'!D25="n/a","n/a",'21 (1)'!$I24+'21 (2)'!D25) -> 0.1535983867 | G26: =IF('21 (2)'!F25="n/a","n/a",'21 (1)'!$I24+'21 (2)'!F25) -> 0.1337983867 | I26: =IF('21 (2)'!H25="n/a","n/a",'21 (1)'!$I24+'21 (2)'!H25) -> 0.1199983867 | M26: nmf | N26: nmf | O26: 0.1199983867
A27: 20 | B27: ='21 (1)'!B25 -> Gen'l Mills | E27: =IF('21 (2)'!D26="n/a","n/a",'21 (1)'!$I25+'21 (2)'!D26) -> 0.06055243796 | G27: =IF('21 (2)'!F26="n/a","n/a",'21 (1)'!$I25+'21 (2)'!F26) -> 0.07955243796 | I27: =IF('21 (2)'!H26="n/a","n/a",'21 (1)'!$I25+'21 (2)'!H26) -> 0.105552438 | M27: 0.06055243796 | N27: 0.07955243796 | O27: 0.105552438
A28: 21 | B28: ='21 (1)'!B26 -> Hormel Foods | E28: =IF('21 (2)'!D27="n/a","n/a",'21 (1)'!$I26+'21 (2)'!D27) -> 0.1046440498 | G28: =IF('21 (2)'!F27="n/a","n/a",'21 (1)'!$I26+'21 (2)'!F27) -> 0.04864404982 | I28: =IF('21 (2)'!H27="n/a","n/a",'21 (1)'!$I26+'21 (2)'!H27) -> 0.09464404982 | M28: 0.1046440498 | N28: nmf | O28: 0.09464404982
A29: 22 | B29: ='21 (1)'!B27 -> Intel Corp. | E29: =IF('21 (2)'!D28="n/a","n/a",'21 (1)'!$I27+'21 (2)'!D28) -> 0.09532649433 | G29: =IF('21 (2)'!F28="n/a","n/a",'21 (1)'!$I27+'21 (2)'!F28) -> 0.1115264943 | I29: =IF('21 (2)'!H28="n/a","n/a",'21 (1)'!$I27+'21 (2)'!H28) -> 0.1003264943 | M29: 0.09532649433 | N29: 0.1115264943 | O29: 0.1003264943
A30: 23 | B30: ='21 (1)'!B28 -> Int'l Flavors & Frag. | E30: =IF('21 (2)'!D29="n/a","n/a",'21 (1)'!$I28+'21 (2)'!D29) -> 0.1047216177 | G30: =IF('21 (2)'!F29="n/a","n/a",'21 (1)'!$I28+'21 (2)'!F29) -> 0.02852161768 | I30: =IF('21 (2)'!H29="n/a","n/a",'21 (1)'!$I28+'21 (2)'!H29) -> n/a | M30: 0.1047216177 | N30: nmf | O30: n/a
A31: 24 | B31: ='21 (1)'!B29 -> Johnson & Johnson | E31: =IF('21 (2)'!D30="n/a","n/a",'21 (1)'!$I29+'21 (2)'!D30) -> 0.1272121673 | G31: =IF('21 (2)'!F30="n/a","n/a",'21 (1)'!$I29+'21 (2)'!F30) -> 0.07801216734 | I31: =IF('21 (2)'!H30="n/a","n/a",'21 (1)'!$I29+'21 (2)'!H30) -> 0.08471216734 | M31: 0.1272121673 | N31: 0.07801216734 | O31: 0.08471216734
A32: 25 | B32: ='21 (1)'!B30 -> Kellogg | E32: =IF('21 (2)'!D31="n/a","n/a",'21 (1)'!$I30+'21 (2)'!D31) -> 0.06334557615 | G32: =IF('21 (2)'!F31="n/a","n/a",'21 (1)'!$I30+'21 (2)'!F31) -> 0.05084557615 | I32: =IF('21 (2)'!H31="n/a","n/a",'21 (1)'!$I30+'21 (2)'!H31) -> 0.09334557615 | M32: 0.06334557615 | N32: nmf | O32: 0.09334557615
A33: 26 | B33: ='21 (1)'!B31 -> Kimberly-Clark | E33: =IF('21 (2)'!D32="n/a","n/a",'21 (1)'!$I31+'21 (2)'!D32) -> 0.09820973631 | G33: =IF('21 (2)'!F32="n/a","n/a",'21 (1)'!$I31+'21 (2)'!F32) -> 0.09020973631 | I33: =IF('21 (2)'!H32="n/a","n/a",'21 (1)'!$I31+'21 (2)'!H32) -> 0.08270973631 | M33: 0.09820973631 | N33: 0.09020973631 | O33: 0.08270973631
A34: 27 | B34: ='21 (1)'!B32 -> Lilly (Eli) | E34: =IF('21 (2)'!D33="n/a","n/a",'21 (1)'!$I32+'21 (2)'!D33) -> 0.1188499013 | G34: =IF('21 (2)'!F33="n/a","n/a",'21 (1)'!$I32+'21 (2)'!F33) -> 0.1505499013 | I34: =IF('21 (2)'!H33="n/a","n/a",'21 (1)'!$I32+'21 (2)'!H33) -> 0.1753499013 | M34: 0.1188499013 | N34: nmf | O34: nmf
A35: 28 | B35: ='21 (1)'!B33 -> Lockheed Martin | E35: =IF('21 (2)'!D34="n/a","n/a",'21 (1)'!$I33+'21 (2)'!D34) -> 0.1112284763 | G35: =IF('21 (2)'!F34="n/a","n/a",'21 (1)'!$I33+'21 (2)'!F34) -> 0.1173284763 | I35: =IF('21 (2)'!H34="n/a","n/a",'21 (1)'!$I33+'21 (2)'!H34) -> 0.09552847626 | M35: 0.1112284763 | N35: 0.1173284763 | O35: 0.09552847626
A36: 29 | B36: ='21 (1)'!B34 -> Marsh & McLennan | E36: =IF('21 (2)'!D35="n/a","n/a",'21 (1)'!$I34+'21 (2)'!D35) -> 0.1061359818 | G36: =IF('21 (2)'!F35="n/a","n/a",'21 (1)'!$I34+'21 (2)'!F35) -> 0.06483598179 | I36: =IF('21 (2)'!H35="n/a","n/a",'21 (1)'!$I34+'21 (2)'!H35) -> 0.07613598179 | M36: 0.1061359818 | N36: 0.06483598179 | O36: 0.07613598179
A37: 30 | B37: ='21 (1)'!B35 -> McCormick & Co. | E37: =IF('21 (2)'!D36="n/a","n/a",'21 (1)'!$I35+'21 (2)'!D36) -> 0.07772655387 | G37: =IF('21 (2)'!F36="n/a","n/a",'21 (1)'!$I35+'21 (2)'!F36) -> 0.06272655387 | I37: =IF('21 (2)'!H36="n/a","n/a",'21 (1)'!$I35+'21 (2)'!H36) -> 0.07052655387 | M37: 0.07772655387 | N37: 0.06272655387 | O37: 0.07052655387
A38: 31 | B38: ='21 (1)'!B36 -> McDonald's Corp. | E38: =IF('21 (2)'!D37="n/a","n/a",'21 (1)'!$I36+'21 (2)'!D37) -> 0.1050330018 | G38: =IF('21 (2)'!F37="n/a","n/a",'21 (1)'!$I36+'21 (2)'!F37) -> 0.06383300184 | I38: =IF('21 (2)'!H37="n/a","n/a",'21 (1)'!$I36+'21 (2)'!H37) -> 0.1018330018 | M38: 0.1050330018 | N38: 0.06383300184 | O38: 0.1018330018
A39: 32 | B39: ='21 (1)'!B37 -> Merck & Co. | E39: =IF('21 (2)'!D38="n/a","n/a",'21 (1)'!$I37+'21 (2)'!D38) -> 0.1201538588 | G39: =IF('21 (2)'!F38="n/a","n/a",'21 (1)'!$I37+'21 (2)'!F38) -> 0.09265385883 | I39: =IF('21 (2)'!H38="n/a","n/a",'21 (1)'!$I37+'21 (2)'!H38) -> 0.09755385883 | M39: 0.1201538588 | N39: 0.09265385883 | O39: 0.09755385883
A40: 33 | B40: ='21 (1)'!B38 -> Microsoft Corp. | E40: =IF('21 (2)'!D39="n/a","n/a",'21 (1)'!$I38+'21 (2)'!D39) -> 0.1597855337 | G40: =IF('21 (2)'!F39="n/a","n/a",'21 (1)'!$I38+'21 (2)'!F39) -> 0.1597855337 | I40: =IF('21 (2)'!H39="n/a","n/a",'21 (1)'!$I38+'21 (2)'!H39) -> 0.1468855337 | M40: nmf | N40: nmf | O40: nmf
A41: 34 | B41: ='21 (1)'!B39 -> Northrop Grumman | E41: =IF('21 (2)'!D40="n/a","n/a",'21 (1)'!$I39+'21 (2)'!D40) -> 0.1230140447 | G41: =IF('21 (2)'!F40="n/a","n/a",'21 (1)'!$I39+'21 (2)'!F40) -> 0.1042140447 | I41: =IF('21 (2)'!H40="n/a","n/a",'21 (1)'!$I39+'21 (2)'!H40) -> n/a | M41: 0.1230140447 | N41: 0.1042140447 | O41: n/a
A42: 35 | B42: ='21 (1)'!B40 -> Oracle Corp. | E42: =IF('21 (2)'!D41="n/a","n/a",'21 (1)'!$I40+'21 (2)'!D41) -> 0.1223203912 | G42: =IF('21 (2)'!F41="n/a","n/a",'21 (1)'!$I40+'21 (2)'!F41) -> 0.1077203912 | I42: =IF('21 (2)'!H41="n/a","n/a",'21 (1)'!$I40+'21 (2)'!H41) -> 0.1273203912 | M42: 0.1223203912 | N42: 0.1077203912 | O42: 0.1273203912
A43: 36 | B43: ='21 (1)'!B41 -> PepsiCo, Inc. | E43: =IF('21 (2)'!D42="n/a","n/a",'21 (1)'!$I41+'21 (2)'!D42) -> 0.08999325335 | G43: =IF('21 (2)'!F42="n/a","n/a",'21 (1)'!$I41+'21 (2)'!F42) -> 0.08479325335 | I43: =IF('21 (2)'!H42="n/a","n/a",'21 (1)'!$I41+'21 (2)'!H42) -> 0.08609325335 | M43: 0.08999325335 | N43: 0.08479325335 | O43: 0.08609325335
A44: 37 | B44: ='21 (1)'!B42 -> Pfizer, Inc. | E44: =IF('21 (2)'!D43="n/a","n/a",'21 (1)'!$I42+'21 (2)'!D43) -> 0.1252084491 | G44: =IF('21 (2)'!F43="n/a","n/a",'21 (1)'!$I42+'21 (2)'!F43) -> 0.09390844906 | I44: =IF('21 (2)'!H43="n/a","n/a",'21 (1)'!$I42+'21 (2)'!H43) -> 0.08310844906 | M44: 0.1252084491 | N44: 0.09390844906 | O44: 0.08310844906
A45: 38 | B45: ='21 (1)'!B43 -> Procter & Gamble | E45: =IF('21 (2)'!D44="n/a","n/a",'21 (1)'!$I43+'21 (2)'!D44) -> 0.1091949686 | G45: =IF('21 (2)'!F44="n/a","n/a",'21 (1)'!$I43+'21 (2)'!F44) -> 0.1013949686 | I45: =IF('21 (2)'!H44="n/a","n/a",'21 (1)'!$I43+'21 (2)'!H44) -> 0.09829496857 | M45: 0.1091949686 | N45: 0.1013949686 | O45: 0.09829496857
A46: 39 | B46: ='21 (1)'!B44 -> Public Storage | E46: =IF('21 (2)'!D45="n/a","n/a",'21 (1)'!$I44+'21 (2)'!D45) -> n/a | G46: =IF('21 (2)'!F45="n/a","n/a",'21 (1)'!$I44+'21 (2)'!F45) -> 0.2109240654 | I46: =IF('21 (2)'!H45="n/a","n/a",'21 (1)'!$I44+'21 (2)'!H45) -> 0.0754240654 | M46: n/a | N46: nmf | O46: 0.0754240654
A47: 40 | B47: ='21 (1)'!B45 -> Texas Instruments | E47: =IF('21 (2)'!D46="n/a","n/a",'21 (1)'!$I45+'21 (2)'!D46) -> 0.05190830993 | G47: =IF('21 (2)'!F46="n/a","n/a",'21 (1)'!$I45+'21 (2)'!F46) -> 0.1269083099 | I47: =IF('21 (2)'!H46="n/a","n/a",'21 (1)'!$I45+'21 (2)'!H46) -> 0.1202083099 | M47: nmf | N47: 0.1269083099 | O47: 0.1202083099
A48: 41 | B48: ='21 (1)'!B46 -> Travelers Cos. | E48: =IF('21 (2)'!D47="n/a","n/a",'21 (1)'!$I46+'21 (2)'!D47) -> 0.1240878396 | G48: =IF('21 (2)'!F47="n/a","n/a",'21 (1)'!$I46+'21 (2)'!F47) -> 0.05958783957 | I48: =IF('21 (2)'!H47="n/a","n/a",'21 (1)'!$I46+'21 (2)'!H47) -> 0.09568783957 | M48: 0.1240878396 | N48: 0.05958783957 | O48: 0.09568783957
A49: 42 | B49: ='21 (1)'!B47 -> United Parcel Serv. | E49: =IF('21 (2)'!D48="n/a","n/a",'21 (1)'!$I47+'21 (2)'!D48) -> 0.08917290482 | G49: =IF('21 (2)'!F48="n/a","n/a",'21 (1)'!$I47+'21 (2)'!F48) -> 0.08817290482 | I49: =IF('21 (2)'!H48="n/a","n/a",'21 (1)'!$I47+'21 (2)'!H48) -> 0.1068729048 | M49: 0.08917290482 | N49: 0.08817290482 | O49: 0.1068729048
A50: 43 | B50: ='21 (1)'!B48 -> Verizon Communic. | E50: =IF('21 (2)'!D49="n/a","n/a",'21 (1)'!$I48+'21 (2)'!D49) -> 0.08340020567 | G50: =IF('21 (2)'!F49="n/a","n/a",'21 (1)'!$I48+'21 (2)'!F49) -> 0.05570020567 | I50: =IF('21 (2)'!H49="n/a","n/a",'21 (1)'!$I48+'21 (2)'!H49) -> 0.07750020567 | M50: 0.08340020567 | N50: 0.05570020567 | O50: 0.07750020567
A51: 44 | B51: ='21 (1)'!B49 -> Walmart Inc. | E51: =IF('21 (2)'!D50="n/a","n/a",'21 (1)'!$I49+'21 (2)'!D50) -> 0.09158467312 | G51: =IF('21 (2)'!F50="n/a","n/a",'21 (1)'!$I49+'21 (2)'!F50) -> 0.08068467312 | I51: =IF('21 (2)'!H50="n/a","n/a",'21 (1)'!$I49+'21 (2)'!H50) -> 0.07288467312 | M51: 0.09158467312 | N51: 0.08068467312 | O51: 0.07288467312
A52: 45 | B52: ='21 (1)'!B50 -> Waste Management | E52: =IF('21 (2)'!D51="n/a","n/a",'21 (1)'!$I50+'21 (2)'!D51) -> 0.07496099365 | G52: =IF('21 (2)'!F51="n/a","n/a",'21 (1)'!$I50+'21 (2)'!F51) -> 0.007360993655 | I52: =IF('21 (2)'!H51="n/a","n/a",'21 (1)'!$I50+'21 (2)'!H51) -> 0.08286099365 | M52: 0.07496099365 | N52: nmf | O52: 0.08286099365
B54: Average (b) | E54: =AVERAGE(M8:M52) -> 0.1004756584 | G54: =AVERAGE(N8:N52) -> 0.08811780818 | I54: =AVERAGE(O8:O52) -> 0.09637859576 | K54: =AVERAGE(E54:I54) -> 0.09499068745 | L54: Min | M54: =MIN(M8:M52) -> 0.06055243796 | N54: =MIN(N8:N52) -> 0.05570020567 | O54: =MIN(O8:O52) -> 0.07052655387
B55: Midpoint (b,c) | E55: =AVERAGE(M54:M55) -> 0.09388230265 | G55: =AVERAGE(N54:N55) -> 0.0913042578 | I55: =AVERAGE(O54:O55) -> 0.09892347251 | K55: =AVERAGE(E55:I55) -> 0.09470334432 | L55: Max | M55: =MAX(M8:M52) -> 0.1272121673 | N55: =MAX(N8:N52) -> 0.1269083099 | O55: =MAX(O8:O52) -> 0.1273203912
A57: (a) | B57: ="Sum of dividend yield (" & '21 (3)'!J1 & ", p. 1) and respective growth rate (" & J1 & ", p. 2)." -> Sum of dividend yield (Exh. AMM-21, p. 1) and respective growth rate (Exh. AMM-21, p. 2).
A58: (b) | B58: Excludes highlighted figures.
A59: (c) | B59: Average of low and high values.
B64: Criteria Min | E64: ='15 (3)'!E42 -> 0.054
B65: Criteria Max | E65: ='15 (3)'!E43 -> 0.13

Sheet Allowed ROEs
A1: STATE ALLOWED ROEs
A3: RRA INTEGRATED ELECTRIC UTILITIES
F5: Allowed
B6: Company | C6: State | D6: Date | F6: ROE
A7: 1 | B7: Indianapolis Power & Light | C7: IN | D7: 2018-10-31 | F7: 0.0999
A8: =A7+1 -> 2 | B8: Kansas City Power & Light | C8: KS | D8: 2018-12-13 | F8: 0.093
A9: 3 | B9: Portland General Electric Co. | C9: OR | D9: 2018-12-14 | F9: 0.095
A10: 4 | B10: Consumers Energy Co. | C10: MI | D10: 2019-01-09 | F10: 0.1
A11: 5 | B11: Appalachian Power Co. | C11: WV | D11: 2019-02-27 | F11: 0.0975
A12: 6 | B12: Public Svc Company of Oklahoma | C12: OK | D12: 2019-03-14 | F12: 0.094
A13: 7 | B13: Kentucky Utilities Co. | C13: KY | D13: 2019-04-30 | F13: 0.0973
A14: 8 | B14: Louisville Gas and Electric Co. | C14: KY | D14: 2019-04-30 | F14: 0.0973
A15: 9 | B15: Duke Energy Carolinas | C15: SC | D15: 2019-05-01 | F15: 0.095
A16: 10 | B16: DTE Electric Co. | C16: MI | D16: 2019-05-02 | F16: 0.1
A17: 11 | B17: Duke Energy Progress | C17: SC | D17: 2019-05-08 | F17: 0.095
A18: 12 | B18: Otter Tail Power Co. | C18: SD | D18: 2019-05-14 | F18: 0.0875
A19: 13 | B19: Maui Electric Co. | C19: HI | D19: 2019-05-16 | F19: 0.095
A20: 14 | B20: Upper Peninsula Power Co. | C20: MI | D20: 2019-05-23 | F20: 0.099
A21: 15 | B21: Green Mountain Power Corp. | C21: VT | D21: 2019-08-29 | F21: 0.0906
A22: 16 | B22: Northern States Power - WI | C22: WI | D22: 2019-09-04 | F22: 0.1
A23: 17 | B23: Wisconsin Electric Power Co. | C23: WI | D23: 2019-10-31 | F23: 0.1
A24: 18 | B24: Wisconsin Public Service Corp. | C24: WI | D24: 2019-10-31 | F24: 0.1
A25: 19 | B25: Entergy New Orleans LLC | C25: LA | D25: 2019-11-07 | F25: 0.0935
A26: 20 | B26: Avista Corp. | C26: ID | D26: 2019-11-29 | F26: 0.095
A27: 21 | B27: Northern Indiana Public Service Co. | C27: IN | D27: 2019-12-04 | F27: 0.0975
A28: 22 | B28: Georgia Power Co. | C28: GA | D28: 2019-12-17 | F28: 0.105
A29: 23 | B29: Pacific Gas and Electric Co. | C29: CA | D29: 2019-12-19 | F29: 0.1025
A30: 24 | B30: San Diego Gas & Electric Co. | C30: CA | D30: 2019-12-19 | F30: 0.102
A31: 25 | B31: Southern California Edison Co. | C31: CA | D31: 2019-12-19 | F31: 0.103
A32: 26 | B32: NorthWestern Corp. | C32: MT | D32: 2019-10-29 | F32: 0.0965
A33: 27 | B33: Southwestern Electric Power Co. | C33: AR | D33: 2019-12-20 | F33: 0.0945
A34: 28 | B34: Sierra Pacific Power Co. | C34: NV | D34: 2019-12-24 | F34: 0.095
A35: 29 | B35: Interstate Power and Light | C35: IA | D35: 2020-01-08 | F35: 0.1002
A36: 30 | B36: Indiana Michigan Power Co. | C36: MI | D36: 2020-01-23 | F36: 0.0986
A37: 31 | B37: PacifiCorp | C37: CA | D37: 2020-02-06 | F37: 0.1
A38: 32 | B38: Public Service Co. of Colorado | C38: CO | D38: 2020-02-11 | F38: 0.093
A39: 33 | B39: Virginia Electric and Power Co. | C39: NC | D39: 2020-02-24 | F39: 0.0975
A40: 34 | B40: Indiana Michigan Power Co. | C40: IN | D40: 2020-03-11 | F40: 0.097
A41: 35 | B41: Avista Corp. | C41: WA | D41: 2020-03-25 | F41: 0.094
A42: 36 | B42: Duke Energy Kentucky, Inc. | C42: KY | D42: 2020-04-27 | F42: 0.0925
A43: 37 | B43: DTE Electric Co. | C43: MI | D43: 2020-05-08 | F43: 0.099
A44: 38 | B44: Southwestern Public Service Co. | C44: NM | D44: 2020-05-20 | F44: 0.0945
A45: 39 | B45: Duke Energy Indiana, LLC | C45: IN | D45: 2020-06-29 | F45: 0.097
A46: 40 | B46: Empire District Electric Co. | C46: MO | D46: 2020-07-01 | F46: 0.0925
A47: 41 | B47: Puget Sound Energy, Inc. | C47: WA | D47: 2020-07-08 | F47: 0.094
A48: 42 | B48: Hawaii Electric Light Co., Inc. | C48: HI | D48: 2020-07-28 | F48: 0.095
A49: 43 | B49: Green Mountain Power Corp. | C49: VT | D49: 2020-08-27 | F49: 0.082
A50: 44 | B50: Liberty Utilities (CalPeco Electric) LLC | C50: CA | D50: 2020-08-27 | F50: 0.1
A51: 45 | B51: Southwestern Public Service Co. | C51: TX | D51: 2020-08-27 | F51: 0.0945
B53: Range of Reasonableness | E53: =MIN(F7:F51) -> 0.082 | F53: -- | G53: =MAX(F7:F51) -> 0.105
B54: Midpoint | F54: =AVERAGE(E53,G53) -> 0.0935
B55: Average | F55: =AVERAGE(F7:F51) -> 0.09648666667
A57: Source: Regulatory Research Associates, "Major Rate Case Decisions," Regulatory Focus (Jan. 31, 2019; Jan. 31, 2020; Oct. 20, 2020).

Sheet Stock Price (Utility)
C1: 1 | D1: =C1+1 -> 2 | E1: =D1+1 -> 3 | F1: 4 | G1: 5 | H1: 6 | I1: 7 | J1: 8 | K1: 9 | L1: 10 | M1: 11 | N1: =M1+1 -> 12 | O1: =N1+1 -> 13 | P1: =O1+1 -> 14 | Q1: =P1+1 -> 15 | R1: =Q1+1 -> 16 | S1: =R1+1 -> 17 | T1: =S1+1 -> 18 | U1: =T1+1 -> 19 | V1: =U1+1 -> 20 | W1: =V1+1 -> 21
B2: Date | C2: =TRANSPOSE('Utility Group'!B3:B23) -> LNT | D2: AEE | E2: AEP | F2: AGR | G2: BKH | H2: CMS | I2: ED | J2: DTE | K2: DUK | L2: ETR | M2: EVRG | N2: ES | O2: EXC | P2: FTS | Q2: NEE | R2: OGE | S2: PEG | T2: SRE | U2: SO | V2: WEC | W2: XEL
A3: =A2+1 -> 1 | B3: 2020-10-02 | C3: 53.09 | D3: 79.81 | E3: 85.3 | F3: 52.38 | G3: 55.34 | H3: 61.66 | I3: 79.77 | J3: 114.16 | K3: 91.58 | L3: 103.65 | M3: 51.98 | N3: 87.050003 | O3: 35.94 | P3: 41.25 | Q3: 281.17 | R3: 31.06 | S3: 55.95 | T3: 120.5 | U3: 56.26 | V3: 97.71 | W3: 70.48
A4: 2 | B4: 2020-10-01 | C4: 52.33 | D4: 79.86 | E4: 83.06 | F4: 51.21 | G4: 53.95 | H4: 61.68 | I4: 79.04 | J4: 113.44 | K4: 90.05 | L4: 101.28 | M4: 50.82 | N4: 85.449997 | O4: 35.83 | P4: 41.05 | Q4: 282.76 | R4: 30.2 | S4: 55.07 | T4: 119.13 | U4: 54.62 | V4: 98.25 | W4: 70.38
A5: 3 | B5: 2020-09-30 | C5: 51.65 | D5: 79.08 | E5: 81.73 | F5: 50.46 | G5: 53.49 | H5: 61.41 | I5: 77.8 | J5: 115.04 | K5: 88.56 | L5: 98.53 | M5: 50.82 | N5: 83.550003 | O5: 35.76 | P5: 40.86 | Q5: 277.56 | R5: 29.99 | S5: 54.91 | T5: 118.36 | U5: 54.22 | V5: 96.9 | W5: 69.01
A6: 4 | B6: 2020-09-29 | C6: 51.08 | D6: 79.02 | E6: 80.97 | F6: 49.26 | G6: 53.11 | H6: 61.11 | I6: 76.98 | J6: 114.4 | K6: 82.41 | L6: 95.78 | M6: 50.15 | N6: 83.010002 | O6: 35.32 | P6: 40.83 | Q6: 283.12 | R6: 29.67 | S6: 54.8 | T6: 116.18 | U6: 53.7 | V6: 96.66 | W6: 68.645
A7: 5 | B7: 2020-09-28 | C7: 51.49 | D7: 78.42 | E7: 80.65 | F7: 49.35 | G7: 53.92 | H7: 61.4 | I7: 76.32 | J7: 114.81 | K7: 82.87 | L7: 96.68 | M7: 50.34 | N7: 82.650002 | O7: 35.74 | P7: 40.76 | Q7: 284.14 | R7: 29.66 | S7: 54.35 | T7: 116.71 | U7: 53.71 | V7: 96.48 | W7: 68.85
A8: 6 | B8: 2020-09-25 | C8: 51.35 | D8: 78.21 | E8: 80.65 | F8: 49.15 | G8: 53.31 | H8: 61.34 | I8: 75.77 | J8: 114.72 | K8: 82.47 | L8: 96.98 | M8: 50.29 | N8: 82.480003 | O8: 35.52 | P8: 40.2 | Q8: 281.82 | R8: 29.31 | S8: 54.13 | T8: 117.61 | U8: 53.81 | V8: 96.31 | W8: 68.5
A9: 7 | B9: 2020-09-24 | C9: 49.93 | D9: 76.7 | E9: 80.49 | F9: 48.88 | G9: 52.82 | H9: 59.58 | I9: 73.93 | J9: 112.99 | K9: 81.67 | L9: 95.78 | M9: 49.18 | N9: 79.949997 | O9: 34.81 | P9: 39.85 | Q9: 277.54 | R9: 29.09 | S9: 53.47 | T9: 115.74 | U9: 53.05 | V9: 94 | W9: 67.07
A10: 8 | B10: 2020-09-23 | C10: 49.83 | D10: 75.61 | E10: 79.18 | F10: 48.95 | G10: 52.42 | H10: 59.57 | I10: 73.32 | J10: 111.9 | K10: 81.28 | L10: 95.17 | M10: 49.12 | N10: 78.290001 | O10: 34.48 | P10: 39.42 | Q10: 273.31 | R10: 29.06 | S10: 51.92 | T10: 114.5 | U10: 52.53 | V10: 93.06 | W10: 66.19
A11: 9 | B11: 2020-09-22 | C11: 50.01 | D11: 77.06 | E11: 79.85 | F11: 49.47 | G11: 53.34 | H11: 60.69 | I11: 73.7 | J11: 112.01 | K11: 82.69 | L11: 97.28 | M11: 50.47 | N11: 78.980003 | O11: 35.21 | P11: 39.76 | Q11: 278.06 | R11: 28.96 | S11: 52.47 | T11: 119.05 | U11: 53.12 | V11: 95.4 | W11: 66.87
A12: 10 | B12: 2020-09-21 | C12: 49.83 | D12: 76.62 | E12: 79.36 | F12: 48.14 | G12: 54 | H12: 59.99 | I12: 72.84 | J12: 111.3 | K12: 82.57 | L12: 94.83 | M12: 50.01 | N12: 78.019997 | O12: 34.75 | P12: 39.29 | Q12: 276.2 | R12: 28.69 | S12: 51.17 | T12: 116.66 | U12: 53.03 | V12: 94.86 | W12: 66.64
A13: 11 | B13: 2020-09-18 | C13: 50.98 | D13: 76.86 | E13: 78.78 | F13: 49.25 | G13: 54.32 | H13: 61.1 | I13: 73.88 | J13: 112.03 | K13: 82.95 | L13: 95.43 | M13: 50.94 | N13: 78.860001 | O13: 35.07 | P13: 39.42 | Q13: 276.92 | R13: 28.85 | S13: 51.33 | T13: 119.98 | U13: 52.81 | V13: 94.87 | W13: 66.9
A14: 12 | B14: 2020-09-17 | C14: 52.18 | D14: 77.62 | E14: 80.04 | F14: 49.43 | G14: 55.36 | H14: 61.34 | I14: 75.93 | J14: 116.86 | K14: 84.6 | L14: 97.63 | M14: 52.2 | N14: 81.93 | O14: 35.93 | P14: 39.74 | Q14: 279.52 | R14: 29.38 | S14: 52.24 | T14: 121.03 | U14: 53.52 | V14: 96.11 | W14: 68.44
A15: 13 | B15: 2020-09-16 | C15: 53.06 | D15: 77.94 | E15: 80.46 | F15: 50.08 | G15: 54.95 | H15: 61.94 | I15: 75.68 | J15: 119.04 | K15: 84.84 | L15: 96.84 | M15: 52.63 | N15: 83.360001 | O15: 36.26 | P15: 39.74 | Q15: 280.35 | R15: 29.73 | S15: 53 | T15: 120.84 | U15: 53.29 | V15: 98.78 | W15: 70.92
A16: 14 | B16: 2020-09-15 | C16: 52.76 | D16: 77.5 | E16: 80 | F16: 49.91 | G16: 54.45 | H16: 61.11 | I16: 74.47 | J16: 118.56 | K16: 84.45 | L16: 96.54 | M16: 52.37 | N16: 83.970001 | O16: 36.165 | P16: 40.13 | Q16: 295.7 | R16: 29.48 | S16: 51.65 | T16: 117.63 | U16: 53.01 | V16: 99.15 | W16: 70.41
A17: 15 | B17: 2020-09-14 | C17: 52.33 | D17: 76.98 | E17: 80.34 | F17: 48.74 | G17: 54.49 | H17: 61.42 | I17: 74.22 | J17: 120.38 | K17: 84.38 | L17: 96.72 | M17: 52.79 | N17: 82.910004 | O17: 36.26 | P17: 40.12 | Q17: 281.92 | R17: 30.23 | S17: 52.48 | T17: 119.15 | U17: 52.86 | V17: 97.18 | W17: 69.54
A18: 16 | B18: 2020-09-11 | C18: 51.86 | D18: 76.6 | E18: 79.15 | F18: 47.94 | G18: 53.22 | H18: 60.91 | I18: 72.74 | J18: 118.44 | K18: 83.03 | L18: 95.45 | M18: 51.94 | N18: 82.160004 | O18: 35.83 | P18: 40.24 | Q18: 278.15 | R18: 30.16 | S18: 52.39 | T18: 117.8 | U18: 51.76 | V18: 95.96 | W18: 68.855
A19: 17 | B19: 2020-09-10 | C19: 52.08 | D19: 76.46 | E19: 78.52 | F19: 48.12 | G19: 53.33 | H19: 60.8 | I19: 72.77 | J19: 117.92 | K19: 82 | L19: 95.85 | M19: 52.06 | N19: 83.339996 | O19: 35.84 | P19: 40.23 | Q19: 276.91 | R19: 30.37 | S19: 52.3 | T19: 118.12 | U19: 51.56 | V19: 95.97 | W19: 69.13
A20: 18 | B20: 2020-09-09 | C20: 53.78 | D20: 78.38 | E20: 79.91 | F20: 49.05 | G20: 54.85 | H20: 61.69 | I20: 72.91 | J20: 119.71 | K20: 82.59 | L20: 98.37 | M20: 52.7 | N20: 85.790001 | O20: 36.67 | P20: 41 | Q20: 282.37 | R20: 31.08 | S20: 53.43 | T20: 120.95 | U20: 52.85 | V20: 97.77 | W20: 70.59
A21: 19 | B21: 2020-09-08 | C21: 52.65 | D21: 77.4 | E21: 78.98 | F21: 48.45 | G21: 54.6 | H21: 60.5 | I21: 72.8 | J21: 118.08 | K21: 80.73 | L21: 97.95 | M21: 52.11 | N21: 85.260002 | O21: 36.42 | P21: 40.24 | Q21: 277.91 | R21: 30.85 | S21: 52 | T21: 119.09 | U21: 52.85 | V21: 95.59 | W21: 69.11
A22: 20 | B22: 2020-09-04 | C22: 53.29 | D22: 78.96 | E22: 79.05 | F22: 48.67 | G22: 55.98 | H22: 61.66 | I22: 73.04 | J22: 118.81 | K22: 80.97 | L22: 97.9 | M22: 51.87 | N22: 86.080002 | O22: 37.09 | P22: 39.85 | Q22: 277.32 | R22: 31.54 | S22: 52.52 | T22: 120.89 | U22: 52.29 | V22: 96.49 | W22: 70.02
A23: 21 | B23: 2020-09-03 | C23: 53.97 | D23: 79.1 | E23: 79.56 | F23: 48.4 | G23: 56.02 | H23: 61.91 | I23: 72.4 | J23: 119.12 | K23: 81.14 | L23: 98 | M23: 52.44 | N23: 86.080002 | O23: 37.29 | P23: 40 | Q23: 280.59 | R23: 31.81 | S23: 52.03 | T23: 122.72 | U23: 52.6 | V23: 96.36 | W23: 70.65
A24: 22 | B24: 2020-09-02 | C24: 54.66 | D24: 80.23 | E24: 80.31 | F24: 48.44 | G24: 56.15 | H24: 61.76 | I24: 72.23 | J24: 120.46 | K24: 81.47 | L24: 100.48 | M24: 53.27 | N24: 86.470001 | O24: 38.03 | P24: 40.69 | Q24: 288.26 | R24: 32.33 | S24: 52.92 | T24: 124.55 | U24: 53.21 | V24: 97.41 | W24: 71.55
A25: 23 | B25: 2020-09-01 | C25: 53.48 | D25: 78.48 | E25: 77.82 | F25: 47.52 | G25: 55.13 | H25: 60.22 | I25: 69.65 | J25: 117.79 | K25: 79.21 | L25: 97.69 | M25: 52.66 | N25: 83.660004 | O25: 36.33 | P25: 39.68 | Q25: 277.13 | R25: 31.39 | S25: 51 | T25: 122.25 | U25: 51.81 | V25: 93.59 | W25: 68.55
A26: 24 | B26: 2020-08-31 | C26: 54.15 | D26: 79.11 | E26: 78.83 | F26: 48.04 | G26: 56.08 | H26: 60.49 | I26: 71.34 | J26: 118.67 | K26: 80.34 | L26: 99.14 | M26: 53.22 | N26: 85.709999 | O26: 36.91 | P26: 40.04 | Q26: 279.17 | R26: 31.86 | S26: 52.24 | T26: 123.65 | U26: 52.18 | V26: 94.08 | W26: 69.475
A27: 25 | B27: 2020-08-28 | C27: 54.32 | D27: 78.66 | E27: 78.35 | F27: 48.57 | G27: 56.59 | H27: 60.05 | I27: 70.92 | J27: 117.86 | K27: 79.71 | L27: 98.96 | M27: 52.98 | N27: 84.769997 | O27: 37.04 | P27: 39.8 | Q27: 279.55 | R27: 31.79 | S27: 52.16 | T27: 122.32 | U27: 52.42 | V27: 93.62 | W27: 68.65
A28: 26 | B28: 2020-08-27 | C28: 54 | D28: 78.93 | E28: 78.37 | F28: 48.81 | G28: 55.21 | H28: 59.72 | I28: 71.07 | J28: 117.02 | K28: 79.55 | L28: 97.26 | M28: 52.92 | N28: 84.279999 | O28: 36.89 | P28: 40.21 | Q28: 278.88 | R28: 31.54 | S28: 52.29 | T28: 123.59 | U28: 52.2 | V28: 92.35 | W28: 68.63
A29: 27 | B29: 2020-08-26 | C29: 54.04 | D29: 78.44 | E29: 78.61 | F29: 48.74 | G29: 54.28 | H29: 59.4 | I29: 70.78 | J29: 115.74 | K29: 79.55 | L29: 96.25 | M29: 50.52 | N29: 84.010002 | O29: 37.275 | P29: 40.52 | Q29: 279 | R29: 31.27 | S29: 52.45 | T29: 122.34 | U29: 51.72 | V29: 92.04 | W29: 68.13
A30: 28 | B30: 2020-08-25 | C30: 54.25 | D30: 79.6 | E30: 79.77 | F30: 49.48 | G30: 55.98 | H30: 60.21 | I30: 73.01 | J30: 117 | K30: 80.85 | L30: 97.82 | M30: 51.21 | N30: 84.93 | O30: 37.13 | P30: 40.23 | Q30: 281.31 | R30: 32.17 | S30: 53.6 | T30: 125.51 | U30: 52.41 | V30: 92.28 | W30: 68.97
A31: 29 | B31: 2020-08-24 | C31: 54.65 | D31: 81.25 | E31: 80.78 | F31: 49.9 | G31: 57.5 | H31: 60.84 | I31: 74.32 | J31: 117.97 | K31: 81.47 | L31: 98.64 | M31: 50.74 | N31: 85.879997 | O31: 37.69 | P31: 40.25 | Q31: 282.63 | R31: 32.5 | S31: 53.9 | T31: 127.37 | U31: 52.86 | V31: 92.24 | W31: 70.41
A32: 30 | B32: 2020-08-21 | C32: 54.08 | D32: 80.72 | E32: 79.08 | F32: 49.47 | G32: 56.68 | H32: 60.39 | I32: 72.2 | J32: 115.83 | K32: 81 | L32: 98.13 | M32: 50.41 | N32: 86.540001 | O32: 36.52 | P32: 40.38 | Q32: 282.41 | R32: 31.98 | S32: 53.28 | T32: 125.48 | U32: 52.37 | V32: 91.99 | W32: 69.61
B34: Average | C34: =AVERAGE(C3:C32) -> 52.572 | D34: =AVERAGE(D3:D32) -> 78.32033333 | E34: 79.93166667 | F34: 49.142 | G34: 54.69566667 | H34: =AVERAGE(H3:H32) -> 60.863 | I34: 73.861 | J34: 116.402 | K34: 82.69933333 | L34: 97.567 | M34: 51.50533333 | N34: 83.51400073 | O34: 36.2 | P34: 40.19266667 | Q34: 280.3893333 | R34: 30.53333333 | S34: 52.915 | T34: 120.3233333 | U34: 52.95433333 | V34: 95.44866667 | W34: 69.03916667
A37: (a) | B37: Average of closing prices for 30 trading days ended Oct. 2, 2020.
B69: 2019-01-21 | C69: 44.860001 | D69: Emera on MLK Day

Sheet Stock Price (Non-Utility)
C1: 1 | D1: 2 | E1: 3 | F1: 4 | G1: 5 | H1: 6 | I1: 7 | J1: 8 | K1: 9 | L1: 10 | M1: 11 | N1: 12 | O1: 13 | P1: 14 | Q1: 15 | R1: 16 | S1: 17 | T1: 18 | U1: 19 | V1: 20 | W1: 21 | X1: 22 | Y1: 23 | Z1: 24 | AA1: 25 | AB1: 26 | AC1: 27 | AD1: 28 | AE1: 29 | AF1: 30 | AG1: 31 | AH1: 32 | AI1: 33 | AJ1: 34 | AK1: 35 | AL1: 36 | AM1: 37 | AN1: 38 | AO1: 39 | AP1: 40 | AQ1: 41 | AR1: 42 | AS1: 43 | AT1: 44 | AU1: 45
B2: Date | C2: =TRANSPOSE('Proxy Group Risk Measures'!T44:T88) -> APD | D2: DOX | E2: AMGN | F2: APH | G2: AAPL | H2: T | I2: BAX | J2: BMY | K2: BRO | L2: BF/B | M2: CHD | N2: CSCO | O2: KO | P2: CL | Q2: CMCSA | R2: CBSH | S2: COST | T2: CVS | U2: DHR | V2: GIS | W2: HRL | X2: INTC | Y2: IFF | Z2: JNJ | AA2: K | AB2: KMB | AC2: LLY | AD2: LMT | AE2: MMC | AF2: MKC | AG2: MCD | AH2: MRK | AI2: MSFT | AJ2: NOC | AK2: ORCL | AL2: PEP | AM2: PFE | AN2: PG | AO2: PSA | AP2: TXN | AQ2: TRV | AR2: UPS | AS2: VZ | AT2: WMT | AU2: WM
A3: 1 | B3: 2020-08-21 | C3: 286.44 | D3: 59.66 | E3: 237.64 | F3: 108.24 | G3: 497.48 | H3: 29.69 | I3: 83.09 | J3: 62.19 | K3: 45.52 | L3: 72.08 | M3: 96.5 | N3: 42.25 | O3: 47.28 | P3: 78.69 | Q3: 43.07 | R3: 58.49 | S3: 344.61 | T3: 63.94 | U3: 207.8 | V3: 64.02 | W3: 52.68 | X3: 49.28 | Y3: 120.55 | Z3: 152.76 | AA3: 68.89 | AB3: 157.3 | AC3: 149.26 | AD3: 389.57 | AE3: 113.47 | AF3: 203.15 | AG3: 211.57 | AH3: 84.98 | AI3: 213.02 | AJ3: 337.86 | AK3: 55.19 | AL3: 136.46 | AM3: 38.88 | AN3: 137.44 | AO3: 206.55 | AP3: 140.33 | AQ3: 111.83 | AR3: 159.03 | AS3: 58.99 | AT3: 131.63 | AU3: 111.16
A4: 2 | B4: 2020-08-20 | C4: 286.07 | D4: 59.99 | E4: 238.73 | F4: 107.3 | G4: 473.1 | H4: 29.67 | I4: 82.89 | J4: 62.22 | K4: 45.79 | L4: 72.3 | M4: 96.54 | N4: 42.31 | O4: 47.35 | P4: 78.25 | Q4: 43.27 | R4: 58.79 | S4: 340.87 | T4: 63.72 | U4: 205.66 | V4: 64.21 | W4: 52.55 | X4: 49.17 | Y4: 120.69 | Z4: 151.42 | AA4: 68.74 | AB4: 157.57 | AC4: 151.34 | AD4: 387.88 | AE4: 116.05 | AF4: 202.89 | AG4: 209.88 | AH4: 85.03 | AI4: 214.58 | AJ4: 336.67 | AK4: 55.26 | AL4: 136.72 | AM4: 38.72 | AN4: 136.85 | AO4: 203.26 | AP4: 138.57 | AQ4: 112.53 | AR4: 159.55 | AS4: 58.96 | AT4: 130.57 | AU4: 110.15
A5: 3 | B5: 2020-08-19 | C5: 286.95 | D5: 60.65 | E5: 240.49 | F5: 109.14 | G5: 462.83 | H5: 29.73 | I5: 82.89 | J5: 63.09 | K5: 45.96 | L5: 72.73 | M5: 96.29 | N5: 41.87 | O5: 47.37 | P5: 77.95 | Q5: 43.32 | R5: 59.57 | S5: 340.9 | T5: 65.28 | U5: 205.93 | V5: 64.46 | W5: 52.43 | X5: 48.33 | Y5: 121.98 | Z5: 150.39 | AA5: 68.85 | AB5: 157.35 | AC5: 152.29 | AD5: 390.05 | AE5: 116.1 | AF5: 202.52 | AG5: 209.51 | AH5: 85.03 | AI5: 209.7 | AJ5: 337.91 | AK5: 56.2 | AL5: 136.45 | AM5: 38.26 | AN5: 135.77 | AO5: 197.43 | AP5: 138.48 | AQ5: 113.2 | AR5: 160.34 | AS5: 59.05 | AT5: 132.41 | AU5: 110.56
A6: 4 | B6: 2020-08-18 | C6: 286.35 | D6: 60.99 | E6: 241.5 | F6: 109.15 | G6: 462.25 | H6: 29.79 | I6: 84.27 | J6: 63.03 | K6: 46.09 | L6: 72.48 | M6: 96.46 | N6: 41.98 | O6: 48.42 | P6: 77.65 | Q6: 43.54 | R6: 59.52 | S6: 340.75 | T6: 65.18 | U6: 207.68 | V6: 64.63 | W6: 52.71 | X6: 48.65 | Y6: 122.62 | Z6: 150.09 | AA6: 70.11 | AB6: 157.62 | AC6: 153.11 | AD6: 390.26 | AE6: 116.93 | AF6: 202.49 | AG6: 210.32 | AH6: 84.56 | AI6: 211.49 | AJ6: 337.6 | AK6: 55.18 | AL6: 138.11 | AM6: 38.36 | AN6: 136.51 | AO6: 200.94 | AP6: 139.31 | AQ6: 114.93 | AR6: 159.99 | AS6: 59.18 | AT6: 134.71 | AU6: 111.01
A7: 5 | B7: 2020-08-17 | C7: 289.56 | D7: 61.52 | E7: 243.01 | F7: 109.89 | G7: 458.43 | H7: 29.85 | I7: 83.7 | J7: 63.62 | K7: 46 | L7: 72.04 | M7: 95.79 | N7: 42.09 | O7: 48.21 | P7: 77.21 | Q7: 43.53 | R7: 60.79 | S7: 339.96 | T7: 64.9 | U7: 205.57 | V7: 64.28 | W7: 52.42 | X7: 48.93 | Y7: 123.29 | Z7: 148.99 | AA7: 69.68 | AB7: 157.81 | AC7: 151.53 | AD7: 388.96 | AE7: 116.51 | AF7: 202.3 | AG7: 208.67 | AH7: 84.76 | AI7: 210.28 | AJ7: 339.76 | AK7: 53.99 | AL7: 137.92 | AM7: 38.35 | AN7: 135.5 | AO7: 200.02 | AP7: 138.28 | AQ7: 115.91 | AR7: 160.3 | AS7: 58.78 | AT7: 135.6 | AU7: 110.87
A8: 6 | B8: 2020-08-14 | C8: 289.82 | D8: 61.8 | E8: 239.71 | F8: 109.78 | G8: 459.63 | H8: 30.01 | I8: 83.5 | J8: 63.16 | K8: 45.82 | L8: 71.13 | M8: 94.26 | N8: 42.5 | O8: 48.45 | P8: 77.05 | Q8: 43.77 | R8: 60.97 | S8: 336.28 | T8: 65.67 | U8: 204.86 | V8: 63.27 | W8: 52.23 | X8: 48.89 | Y8: 123.17 | Z8: 148.24 | AA8: 69.1 | AB8: 158.23 | AC8: 150.09 | AD8: 391.42 | AE8: 116.61 | AF8: 201.55 | AG8: 207.03 | AH8: 83.48 | AI8: 208.9 | AJ8: 342.06 | AK8: 54.2 | AL8: 137.56 | AM8: 38.06 | AN8: 135.1 | AO8: 200.24 | AP8: 137.35 | AQ8: 118.6 | AR8: 160.74 | AS8: 58.79 | AT8: 132.6 | AU8: 111.47
A9: 7 | B9: 2020-08-13 | C9: 288.31 | D9: 61.005 | E9: 240.46 | F9: 110.57 | G9: 460.04 | H9: 29.91 | I9: 84.64 | J9: 63.24 | K9: 45.82 | L9: 71.48 | M9: 94.75 | N9: 42.72 | O9: 48.38 | P9: 76.98 | Q9: 43.39 | R9: 60.65 | S9: 335.7 | T9: 64.7 | U9: 207.19 | V9: 62.97 | W9: 52.12 | X9: 48.56 | Y9: 123.81 | Z9: 148 | AA9: 69.02 | AB9: 158.46 | AC9: 150.46 | AD9: 389.24 | AE9: 117.15 | AF9: 202.04 | AG9: 206.49 | AH9: 83.54 | AI9: 208.7 | AJ9: 338.62 | AK9: 54.02 | AL9: 138.1 | AM9: 38.17 | AN9: 135.78 | AO9: 197.3 | AP9: 137.15 | AQ9: 119.27 | AR9: 159.29 | AS9: 58.52 | AT9: 131.85 | AU9: 111.34
A10: 8 | B10: 2020-08-12 | C10: 285.4 | D10: 61.12 | E10: 241.72 | F10: 109.79 | G10: 452.04 | H10: 30.18 | I10: 83.48 | J10: 63.64 | K10: 45.8 | L10: 71.21 | M10: 94.83 | N10: 48.1 | O10: 48.43 | P10: 77.24 | Q10: 43.34 | R10: 61.11 | S10: 336.76 | T10: 64.99 | U10: 205.92 | V10: 63.06 | W10: 52.03 | X10: 49.19 | Y10: 127 | Z10: 149.66 | AA10: 69.28 | AB10: 158.84 | AC10: 152.55 | AD10: 392.44 | AE10: 116.65 | AF10: 201.66 | AG10: 206.02 | AH10: 82.68 | AI10: 209.19 | AJ10: 339.4 | AK10: 54.17 | AL10: 137.8 | AM10: 38.33 | AN10: 135.46 | AO10: 198.38 | AP10: 138.64 | AQ10: 118.86 | AR10: 157.79 | AS10: 58.6 | AT10: 131.89 | AU10: 112.25
A11: 9 | B11: 2020-08-11 | C11: 281.6 | D11: 61.29 | E11: 234.65 | F11: 108.81 | G11: 437.5 | H11: 30.2 | I11: 82.94 | J11: 63.13 | K11: 45.66 | L11: 69.61 | M11: 92.71 | N11: 47.19 | O11: 47.93 | P11: 75.96 | Q11: 42.99 | R11: 61.05 | S11: 332.43 | T11: 65.26 | U11: 200.01 | V11: 62.14 | W11: 51.41 | X11: 48.19 | Y11: 125.29 | Z11: 146.97 | AA11: 68.13 | AB11: 155.79 | AC11: 150.63 | AD11: 391.96 | AE11: 116.98 | AF11: 197.77 | AG11: 205 | AH11: 80.91 | AI11: 203.38 | AJ11: 341.85 | AK11: 54.27 | AL11: 135.12 | AM11: 37.79 | AN11: 133.23 | AO11: 198.99 | AP11: 136.04 | AQ11: 119.92 | AR11: 155.85 | AS11: 58.51 | AT11: 130.2 | AU11: 111.59
A12: 10 | B12: 2020-08-10 | C12: 281.24 | D12: 62.45 | E12: 238.17 | F12: 108.12 | G12: 450.91 | H12: 30.2 | I12: 83.1 | J12: 61.82 | K12: 45.93 | L12: 69.4 | M12: 94.78 | N12: 47.73 | O12: 47.72 | P12: 76.65 | Q12: 43.02 | R12: 60.01 | S12: 340 | T12: 65.71 | U12: 202.05 | V12: 63.75 | W12: 51.98 | X12: 49.22 | Y12: 130.55 | Z12: 148.03 | AA12: 69.02 | AB12: 158.09 | AC12: 153 | AD12: 389.26 | AE12: 116.41 | AF12: 201.82 | AG12: 204.12 | AH12: 80.91 | AI12: 208.25 | AJ12: 335.73 | AK12: 54.94 | AL12: 135.98 | AM12: 38.39 | AN12: 134.1 | AO12: 202.49 | AP12: 135.41 | AQ12: 119.12 | AR12: 159.59 | AS12: 58.99 | AT12: 131.88 | AU12: 111.61
A13: 11 | B13: 2020-08-07 | C13: 281.69 | D13: 61.89 | E13: 240.69 | F13: 107.96 | G13: 444.45 | H13: 30.02 | I13: 80.73 | J13: 61.02 | K13: 46.06 | L13: 68.72 | M13: 94.96 | N13: 47.43 | O13: 47.8 | P13: 76.24 | Q13: 42.81 | R13: 59.94 | S13: 340.91 | T13: 64.96 | U13: 205.4 | V13: 64.35 | W13: 51.62 | X13: 48.03 | Y13: 126.8 | Z13: 148.6 | AA13: 69.52 | AB13: 157.26 | AC13: 152.93 | AD13: 385.62 | AE13: 117.74 | AF13: 201.55 | AG13: 204.6 | AH13: 81.02 | AI13: 212.48 | AJ13: 329.27 | AK13: 55.23 | AL13: 136.74 | AM13: 38.45 | AN13: 133.55 | AO13: 199.25 | AP13: 133.56 | AQ13: 117.36 | AR13: 156.9 | AS13: 58.53 | AT13: 129.97 | AU13: 112.72
A14: 12 | B14: 2020-08-06 | C14: 282.99 | D14: 61.88 | E14: 241.55 | F14: 108.35 | G14: 455.61 | H14: 29.84 | I14: 80.37 | J14: 61.33 | K14: 45.62 | L14: 67.63 | M14: 95.12 | N14: 47.77 | O14: 47.48 | P14: 75.86 | Q14: 42.87 | R14: 58.41 | S14: 343.31 | T14: 64.12 | U14: 205.69 | V14: 64.18 | W14: 51.18 | X14: 48.57 | Y14: 125.38 | Z14: 147.55 | AA14: 69.23 | AB14: 156.47 | AC14: 152.88 | AD14: 379.74 | AE14: 118.77 | AF14: 199.05 | AG14: 203.18 | AH14: 81.05 | AI14: 216.35 | AJ14: 326.34 | AK14: 55.28 | AL14: 135.86 | AM14: 38.27 | AN14: 132.71 | AO14: 196.08 | AP14: 133.74 | AQ14: 113.74 | AR14: 145.47 | AS14: 57.83 | AT14: 129.35 | AU14: 110.37
A15: 13 | B15: 2020-08-05 | C15: 284.62 | D15: 61.91 | E15: 241.47 | F15: 108.65 | G15: 440.25 | H15: 29.85 | I15: 80.46 | J15: 59.69 | K15: 45.63 | L15: 67.53 | M15: 95.83 | N15: 47.33 | O15: 47.22 | P15: 76.18 | Q15: 42.29 | R15: 58.86 | S15: 339.97 | T15: 64.4 | U15: 205.54 | V15: 64.42 | W15: 50.86 | X15: 48.92 | Y15: 126.42 | Z15: 148.4 | AA15: 69.26 | AB15: 155.84 | AC15: 154.34 | AD15: 383.5 | AE15: 118.43 | AF15: 197.25 | AG15: 199.26 | AH15: 81.64 | AI15: 212.94 | AJ15: 329.71 | AK15: 55.5 | AL15: 136.25 | AM15: 38.45 | AN15: 133.44 | AO15: 196.97 | AP15: 132.7 | AQ15: 115.08 | AR15: 145.08 | AS15: 57.54 | AT15: 129.81 | AU15: 109.18
A16: 14 | B16: 2020-08-04 | C16: 279.58 | D16: 62.05 | E16: 243.59 | F16: 108.42 | G16: 438.66 | H16: 30.01 | I16: 81.08 | J16: 59.47 | K16: 45.46 | L16: 68.38 | M16: 96.05 | N16: 47.67 | O16: 46.69 | P16: 76.77 | Q16: 43.21 | R16: 57.45 | S16: 339.79 | T16: 64.98 | U16: 206.07 | V16: 65.74 | W16: 51.13 | X16: 49.13 | Y16: 125.89 | Z16: 147.22 | AA16: 69.71 | AB16: 156.3 | AC16: 154.85 | AD16: 377.99 | AE16: 117.39 | AF16: 198.26 | AG16: 199.36 | AH16: 81.67 | AI16: 213.29 | AJ16: 325.01 | AK16: 56 | AL16: 137.47 | AM16: 38.39 | AN16: 133.79 | AO16: 201.38 | AP16: 132.23 | AQ16: 113.1 | AR16: 144.72 | AS16: 57.91 | AT16: 131.64 | AU16: 108.82
A17: 15 | B17: 2020-08-03 | C17: 278.41 | D17: 62.58 | E17: 247.36 | F17: 107.39 | G17: 435.75 | H17: 29.62 | I17: 83.16 | J17: 59.1 | K17: 45.53 | L17: 69.06 | M17: 93.41 | N17: 47.16 | O17: 46.3 | P17: 76.57 | Q17: 42.88 | R17: 57.51 | S17: 329.32 | T17: 63.86 | U17: 206.83 | V17: 64.6 | W17: 50.8 | X17: 48.3 | Y17: 124.54 | Z17: 147.35 | AA17: 69.35 | AB17: 151.6 | AC17: 152.84 | AD17: 377.1 | AE17: 115.82 | AF17: 196.29 | AG17: 194.4 | AH17: 82.54 | AI17: 216.54 | AJ17: 323.59 | AK17: 55.98 | AL17: 136.7 | AM17: 38.35 | AN17: 131.29 | AO17: 195.84 | AP17: 129.32 | AQ17: 114.4 | AR17: 142.18 | AS17: 57.24 | AT17: 129.3 | AU17: 108.98
A18: 16 | B18: 2020-07-31 | C18: 286.63 | D18: 62.1 | E18: 244.67 | F18: 105.76 | G18: 425.04 | H18: 29.58 | I18: 86.38 | J18: 58.66 | K18: 45.47 | L18: 69.34 | M18: 96.33 | N18: 47.1 | O18: 47.24 | P18: 77.2 | Q18: 42.8 | R18: 57.26 | S18: 325.53 | T18: 62.94 | U18: 203.8 | V18: 63.27 | W18: 50.86 | X18: 47.73 | Y18: 125.95 | Z18: 145.76 | AA18: 68.99 | AB18: 152.04 | AC18: 150.29 | AD18: 378.97 | AE18: 116.6 | AF18: 194.9 | AG18: 194.28 | AH18: 80.24 | AI18: 205.01 | AJ18: 325.01 | AK18: 55.45 | AL18: 137.66 | AM18: 38.48 | AN18: 131.12 | AO18: 199.88 | AP18: 127.55 | AQ18: 114.42 | AR18: 142.76 | AS18: 57.48 | AT18: 129.4 | AU18: 109.6
A19: 17 | B19: 2020-07-30 | C19: 284.81 | D19: 60.87 | E19: 246.14 | F19: 105.17 | G19: 384.76 | H19: 29.57 | I19: 86.01 | J19: 58.87 | K19: 44.76 | L19: 69.21 | M19: 90.06 | N19: 46.44 | O19: 47.69 | P19: 76.87 | Q19: 43.67 | R19: 57.33 | S19: 324.82 | T19: 64 | U19: 202.14 | V19: 63.48 | W19: 50.75 | X19: 47.99 | Y19: 124.49 | Z19: 146.84 | AA19: 70.59 | AB19: 151.96 | AC19: 153 | AD19: 381.72 | AE19: 116.71 | AF19: 193.84 | AG19: 195.41 | AH19: 78.99 | AI19: 203.9 | AJ19: 326.01 | AK19: 55.25 | AL19: 137.69 | AM19: 38.74 | AN19: 131.42 | AO19: 197.71 | AP19: 128.89 | AQ19: 115.93 | AR19: 141.46 | AS19: 57.3 | AT19: 130.12 | AU19: 109.38
A20: 18 | B20: 2020-07-29 | C20: 288.85 | D20: 61.25 | E20: 248.85 | F20: 105.83 | G20: 380.16 | H20: 29.56 | I20: 90.73 | J20: 59.15 | K20: 44.96 | L20: 69.21 | M20: 89.31 | N20: 46.71 | O20: 48.02 | P20: 76.2 | Q20: 43.9 | R20: 58.12 | S20: 326.14 | T20: 64.22 | U20: 202.13 | V20: 64.37 | W20: 50.84 | X20: 48.07 | Y20: 128.24 | Z20: 146.54 | AA20: 70.94 | AB20: 152.04 | AC20: 161.75 | AD20: 387.3 | AE20: 115.58 | AF20: 194.34 | AG20: 196.21 | AH20: 79.35 | AI20: 204.06 | AJ20: 315.26 | AK20: 55.7 | AL20: 137.93 | AM20: 39.26 | AN20: 128.31 | AO20: 196.84 | AP20: 131.64 | AQ20: 116.85 | AR20: 123.68 | AS20: 57.45 | AT20: 130.69 | AU20: 109.65
A21: 19 | B21: 2020-07-28 | C21: 289.27 | D21: 60.02 | E21: 255.27 | F21: 104.21 | G21: 373.01 | H21: 29.69 | I21: 89.26 | J21: 59.43 | K21: 44.48 | L21: 68.31 | M21: 88.21 | N21: 46.28 | O21: 48.18 | P21: 75.71 | Q21: 43.21 | R21: 56.7 | S21: 327.57 | T21: 63.27 | U21: 199.01 | V21: 64.54 | W21: 50.56 | X21: 49.24 | Y21: 128.34 | Z21: 146.83 | AA21: 70.91 | AB21: 150.78 | AC21: 162.65 | AD21: 386.66 | AE21: 114.21 | AF21: 192.99 | AG21: 196.24 | AH21: 79.69 | AI21: 202.02 | AJ21: 312.87 | AK21: 55.35 | AL21: 137.38 | AM21: 39.02 | AN21: 127.88 | AO21: 193.87 | AP21: 130.13 | AQ21: 115.03 | AR21: 119.62 | AS21: 57.48 | AT21: 131.76 | AU21: 107.52
A22: 20 | B22: 2020-07-27 | C22: 294.71 | D22: 61.26 | E22: 253.65 | F22: 106.17 | G22: 379.24 | H22: 29.29 | I22: 89.29 | J22: 58.05 | K22: 45.49 | L22: 68.9 | M22: 87.17 | N22: 47.19 | O22: 48.48 | P22: 74.65 | Q22: 43.56 | R22: 56.89 | S22: 327.6 | T22: 62.57 | U22: 198.98 | V22: 64.08 | W22: 50.55 | X22: 49.57 | Y22: 128.79 | Z22: 147.18 | AA22: 69.97 | AB22: 147.38 | AC22: 160.5 | AD22: 382.09 | AE22: 114.61 | AF22: 196.02 | AG22: 201.25 | AH22: 78.93 | AI22: 203.85 | AJ22: 308.02 | AK22: 55.34 | AL22: 137.67 | AM22: 37.54 | AN22: 126.32 | AO22: 185.57 | AP22: 132.12 | AQ22: 116.63 | AR22: 121.01 | AS22: 56.87 | AT22: 131.21 | AU22: 107.07
A23: 21 | B23: 2020-07-24 | C23: 291.52 | D23: 60.52 | E23: 247.98 | F23: 104.39 | G23: 370.46 | H23: 29.57 | I23: 89.26 | J23: 57.85 | K23: 45.4 | L23: 68 | M23: 85.87 | N23: 46.4 | O23: 48.49 | P23: 74.32 | Q23: 43.35 | R23: 58.36 | S23: 325.78 | T23: 63.34 | U23: 195.27 | V23: 64.23 | W23: 50.27 | X23: 50.59 | Y23: 126.82 | Z23: 148.12 | AA23: 68.68 | AB23: 147.34 | AC23: 159.54 | AD23: 386.21 | AE23: 114.62 | AF23: 193.52 | AG23: 198.72 | AH23: 77.1 | AI23: 201.3 | AJ23: 312.69 | AK23: 55.65 | AL23: 136.06 | AM23: 37.66 | AN23: 125.96 | AO23: 185.36 | AP23: 129.63 | AQ23: 118.28 | AR23: 118.35 | AS23: 56.85 | AT23: 131.24 | AU23: 107.28
A24: 22 | B24: 2020-07-23 | C24: 293.25 | D24: 60.61 | E24: 252.24 | F24: 105.6 | G24: 371.38 | H24: 29.9 | I24: 89.49 | J24: 59.87 | K24: 45.11 | L24: 68.46 | M24: 86.22 | N24: 47.41 | O24: 48.28 | P24: 74.23 | Q24: 42.49 | R24: 58.85 | S24: 326.11 | T24: 63.79 | U24: 199.22 | V24: 64.99 | W24: 50.55 | X24: 60.4 | Y24: 128.49 | Z24: 149.61 | AA24: 68.41 | AB24: 147.33 | AC24: 161.52 | AD24: 387.62 | AE24: 115.28 | AF24: 195.89 | AG24: 197.55 | AH24: 78.06 | AI24: 202.54 | AJ24: 313.06 | AK24: 55.76 | AL24: 137.08 | AM24: 38.41 | AN24: 126.16 | AO24: 187.02 | AP24: 129.04 | AQ24: 118.61 | AR24: 118.14 | AS24: 55.85 | AT24: 131.64 | AU24: 108.03
A25: 23 | B25: 2020-07-22 | C25: 295.51 | D25: 59.89 | E25: 256.98 | F25: 103.27 | G25: 389.09 | H25: 30.16 | I25: 89.2 | J25: 59.85 | K25: 44.96 | L25: 67.54 | M25: 85.14 | N25: 46.9 | O25: 48.48 | P25: 74.14 | Q25: 42.57 | R25: 57.23 | S25: 328.3 | T25: 63.78 | U25: 195.61 | V25: 64.72 | W25: 49.78 | X25: 61.05 | Y25: 128.55 | Z25: 150.01 | AA25: 67.46 | AB25: 144.3 | AC25: 164.84 | AD25: 394.08 | AE25: 115.51 | AF25: 193.82 | AG25: 198.62 | AH25: 78.78 | AI25: 211.75 | AJ25: 316 | AK25: 56.01 | AL25: 136.01 | AM25: 38.56 | AN25: 126.14 | AO25: 188.31 | AP25: 132.53 | AQ25: 122.24 | AR25: 118.72 | AS25: 55.75 | AT25: 132.66 | AU25: 108.21
A26: 24 | B26: 2020-07-21 | C26: 290.39 | D26: 59.14 | E26: 257.91 | F26: 102.1 | G26: 388 | H26: 30.25 | I26: 88.67 | J26: 59.8 | K26: 44.29 | L26: 67.11 | M26: 84.5 | N26: 47.02 | O26: 47.2 | P26: 74.04 | Q26: 42.57 | R26: 58.36 | S26: 327.74 | T26: 64.52 | U26: 195 | V26: 64.5 | W26: 49.75 | X26: 60.7 | Y26: 127.94 | Z26: 149.74 | AA26: 67.67 | AB26: 143.8 | AC26: 165.3 | AD26: 375.12 | AE26: 114.4 | AF26: 193.58 | AG26: 192.98 | AH26: 78.89 | AI26: 208.75 | AJ26: 308.19 | AK26: 55.91 | AL26: 134.43 | AM26: 36.69 | AN26: 125.07 | AO26: 186.84 | AP26: 135.48 | AQ26: 120.42 | AR26: 119.04 | AS26: 55.84 | AT26: 132.33 | AU26: 107.52
A27: 25 | B27: 2020-07-20 | C27: 290.87 | D27: 59.99 | E27: 260.95 | F27: 101.48 | G27: 393.43 | H27: 29.85 | I27: 87.82 | J27: 59.46 | K27: 43.76 | L27: 66.22 | M27: 84.29 | N27: 46.97 | O27: 46.12 | P27: 74.2 | Q27: 41.95 | R27: 55.99 | S27: 326.51 | T27: 63.91 | U27: 193.37 | V27: 63.64 | W27: 49.7 | X27: 61.15 | Y27: 128.72 | Z27: 149.6 | AA27: 67.42 | AB27: 142.69 | AC27: 167.04 | AD27: 365.53 | AE27: 113.48 | AF27: 191.56 | AG27: 191.61 | AH27: 79.41 | AI27: 211.6 | AJ27: 301.49 | AK27: 55.4 | AL27: 133.11 | AM27: 36.5 | AN27: 125.24 | AO27: 187.79 | AP27: 136.58 | AQ27: 118.77 | AR27: 118.35 | AS27: 55.87 | AT27: 131.47 | AU27: 106.57
A28: 26 | B28: 2020-07-17 | C28: 294 | D28: 59.57 | E28: 258.46 | F28: 102.02 | G28: 385.31 | H28: 30.25 | I28: 87.56 | J28: 60.39 | K28: 43.7 | L28: 67.45 | M28: 84.87 | N28: 46.75 | O28: 46.82 | P28: 75.2 | Q28: 42.18 | R28: 56.46 | S28: 324.79 | T28: 65.36 | U28: 190.95 | V28: 64.64 | W28: 49.92 | X28: 60 | Y28: 130.99 | Z28: 149.35 | AA28: 68.63 | AB28: 144.37 | AC28: 165.96 | AD28: 368.5 | AE28: 113.69 | AF28: 190.89 | AG28: 191.48 | AH28: 79.87 | AI28: 202.88 | AJ28: 306.84 | AK28: 54.9 | AL28: 134.66 | AM28: 36.25 | AN28: 125.63 | AO28: 192.3 | AP28: 133.89 | AQ28: 119.16 | AR28: 118.55 | AS28: 56.3 | AT28: 131.74 | AU28: 108.7
A29: 27 | B29: 2020-07-16 | C29: 287.19 | D29: 59.23 | E29: 255.2 | F29: 100.91 | G29: 386.09 | H29: 30.39 | I29: 85.81 | J29: 59.32 | K29: 43.43 | L29: 66.72 | M29: 84.2 | N29: 45.78 | O29: 46.15 | P29: 74.98 | Q29: 42.14 | R29: 57.84 | S29: 326.27 | T29: 64.99 | U29: 188.81 | V29: 64.69 | W29: 49.53 | X29: 59.14 | Y29: 129.61 | Z29: 149.25 | AA29: 68.24 | AB29: 143.68 | AC29: 165 | AD29: 365.88 | AE29: 111.83 | AF29: 189.72 | AG29: 190.92 | AH29: 79.4 | AI29: 203.92 | AJ29: 303.65 | AK29: 55.82 | AL29: 133.88 | AM29: 35.6 | AN29: 124.76 | AO29: 188.38 | AP29: 132.18 | AQ29: 120.5 | AR29: 119.74 | AS29: 55.78 | AT29: 132.2 | AU29: 107.46
A30: 28 | B30: 2020-07-15 | C30: 281.97 | D30: 59.1 | E30: 253.31 | F30: 100.44 | G30: 390.9 | H30: 30.01 | I30: 87.09 | J30: 59.27 | K30: 42.31 | L30: 66.26 | M30: 84.6 | N30: 46.4 | O30: 46.4 | P30: 74.69 | Q30: 41.96 | R30: 57.17 | S30: 326.7 | T30: 64.58 | U30: 188.34 | V30: 64.6 | W30: 48.82 | X30: 59.03 | Y30: 129.72 | Z30: 148.26 | AA30: 68.09 | AB30: 143.28 | AC30: 165.45 | AD30: 364.56 | AE30: 111.58 | AF30: 189.2 | AG30: 191.77 | AH30: 79.44 | AI30: 208.04 | AJ30: 300.76 | AK30: 56.62 | AL30: 133.69 | AM30: 35.72 | AN30: 124.5 | AO30: 192.8 | AP30: 132.15 | AQ30: 119.14 | AR30: 119.21 | AS30: 55.06 | AT30: 132 | AU30: 106.79
A31: 29 | B31: 2020-07-14 | C31: 280.99 | D31: 58.85 | E31: 253.09 | F31: 97.4 | G31: 388.23 | H31: 29.96 | I31: 84.65 | J31: 57.89 | K31: 41.95 | L31: 66.22 | M31: 84.48 | N31: 46.26 | O31: 45.87 | P31: 74.85 | Q31: 41.18 | R31: 55.46 | S31: 328 | T31: 63.7 | U31: 185.45 | V31: 65.17 | W31: 49.09 | X31: 58.98 | Y31: 127.01 | Z31: 147.92 | AA31: 68.4 | AB31: 143.96 | AC31: 163.88 | AD31: 355.66 | AE31: 110.24 | AF31: 189.42 | AG31: 190.72 | AH31: 78.25 | AI31: 208.35 | AJ31: 295.55 | AK31: 57.2 | AL31: 135.52 | AM31: 35.23 | AN31: 125.09 | AO31: 193.84 | AP31: 131.89 | AQ31: 118.55 | AR31: 115.33 | AS31: 55.44 | AT31: 132.01 | AU31: 106.2
A32: 30 | B32: 2020-07-13 | C32: 274.35 | D32: 58.67 | E32: 250.04 | F32: 94.46 | G32: 381.91 | H32: 29.76 | I32: 83.46 | J32: 57.75 | K32: 40.95 | L32: 64.68 | M32: 82.13 | N32: 45.93 | O32: 45.25 | P32: 73.46 | Q32: 40.54 | R32: 56.11 | S32: 322.92 | T32: 62.62 | U32: 182.41 | V32: 63.56 | W32: 48.06 | X32: 58.58 | Y32: 124.52 | Z32: 145.21 | AA32: 66.95 | AB32: 142.14 | AC32: 162.08 | AD32: 353.06 | AE32: 108.76 | AF32: 182.91 | AG32: 184.92 | AH32: 77.35 | AI32: 207.07 | AJ32: 292.35 | AK32: 57.01 | AL32: 134.91 | AM32: 35.21 | AN32: 124.05 | AO32: 192.89 | AP32: 128.82 | AQ32: 114.24 | AR32: 113.76 | AS32: 54.45 | AT32: 129.52 | AU32: 104.33
B34: Average | C34: =AVERAGE(C3:C32) -> 286.4446667 | D34: =AVERAGE(D3:D32) -> 60.7285 | E34: 246.8493333 | F34: 105.6923333 | G34: 420.5313333 | H34: 29.87866667 | I34: 85.166 | J34: 60.512 | K34: 44.92366667 | L34: 68.98033333 | M34: 90.85533333 | N34: 45.85466667 | O34: 47.45666667 | P34: 75.99966667 | Q34: 42.84566667 | R34: 58.375 | S34: 332.5446667 | T34: 64.30866667 | U34: 200.0896667 | V34: 64.152 | W34: 50.906 | X34: 52.11933333 | Y34: 126.2053333 | Z34: 148.463 | AA34: 68.97466667 | AB34: 151.7206667 | AC34: 157.03 | AD34: 381.265 | AE34: 115.2703333 | AF34: 196.4396667 | AG34: 199.7363333 | AH34: 80.91833333 | AI34: 208.471 | AJ34: 321.971 | AK34: 55.426 | AL34: 136.364 | AM34: 37.803 | AN34: 130.6056667 | AO34: 195.484 | AP34: 133.7876667 | AQ34: 116.8873333 | AR34: 138.4846667 | AS34: 57.373 | AT34: 131.4466667 | AU34: 109.213
A37: (a) | B37: Average of closing prices for 30 trading days ended Aug. 21, 2020.

Sheet 2020 10 Market DCF
E1: EPS Growth Rates | H1: Market | I1: Weighted | K1: Weighted | N1: Weighted | Q1: Weighted
D2: Dividend | E2: IBES | F2: Zacks | G2: VL | H2: Cap | I2: Dividend Yield | K2: IBES | N2: Zacks | Q2: Value Line | U2: IBES | W2: Value
B3: Company | C3: Ticker | D3: Yield | E3: Screened | F3: Screened | G3: Screened | H3: ($Millions) | I3: Weight | J3: Product | K3: Mkt. Cap. | L3: Weight | M3: Product | N3: Mkt. Cap. | O3: Weight | P3: Product | Q3: Mkt. Cap. | R3: Weight | S3: Product | U3: Yahoo | V3: Zacks | W3: Line
B4: (a) | D4: (b) | E4: (c) | F4: (d) | G4: (b) | H4: (b) | U4: (c) | W4: (b)
A5: 1 | B5: Agilent Technologies, Inc. | C5: A | D5: 0.0074 | E5: =IF(AND(U5>=$D$398,U5<=$D$399),U5,"NMF") -> 0.094 | F5: =IF(AND(V5>=$D$398,V5<=$D$399),V5,"NMF") -> 0.1 | G5: =IF(AND(W5>=$D$398,W5<=$D$399),W5,"NMF") -> 0.1 | H5: 29.90429 | I5: =H5/H$384 -> 0.001427222503 | J5: =D5*I5 -> 1.056144653e-05 | K5: =IF(E5="n/a","--",IF(E5="NMF","--",$H5)) -> 29.90429 | L5: =IF(K5="--","--",K5/K$384) -> 0.001651494947 | M5: =IF(L5="--","--",E5*L5) -> 0.000155240525 | N5: =IF(F5="n/a","--",IF(F5="NMF","--",$H5)) -> 29.90429 | O5: =IF(N5="--","--",N5/N$384) -> 0.001513124662 | P5: =IF(O5="--","--",F5*O5) -> 0.0001513124662 | Q5: =IF(G5="n/a","--",IF(G5="NMF","--",$H5)) -> 29.90429 | R5: =IF(Q5="--","--",Q5/Q$384) -> 0.001493799127 | S5: =IF(R5="--","--",G5*R5) -> 0.0001493799127 | U5: 0.094 | V5: 0.1 | W5: 0.1
A6: 2 | B6: Advance Auto Parts, Inc. | C6: AAP | D6: 0.0068 | E6: 0.119 | F6: 0.1293 | G6: 0.11 | H6: 10.12541 | I6: 0.0004832488251 | J6: 3.286092011e-06 | K6: 10.12541 | L6: 0.000559186105 | M6: 6.654314649e-05 | N6: =IF(F6="n/a","--",IF(F6="NMF","--",$H6)) -> 10.12541 | O6: 0.0005123347715 | P6: =IF(O6="--","--",F6*O6) -> 6.624488596e-05 | Q6: 10.12541 | R6: 0.0005057912633 | S6: 5.563703896e-05 | U6: 0.119 | V6: 0.1293 | W6: 0.11
A7: 3 | B7: Apple Inc. | C7: AAPL | D7: 0.0079 | E7: 0.1246 | F7: 0.11 | G7: 0.155 | H7: 1835.582 | I7: 0.08760562238 | J7: 0.0006920844168 | K7: 1835.582 | L7: 0.10137189 | M7: 0.0126309375 | N7: 1835.582 | O7: 0.0928784597 | P7: 0.01021663057 | Q7: 1835.582 | R7: 0.09169222171 | S7: 0.01421229437 | U7: 0.1246 | V7: 0.11 | W7: 0.155
A8: 4 | B8: AbbVie Inc. | C8: ABBV | D8: 0.0542 | E8: 0.0795 | F8: 0.0596 | G8: 0.105 | H8: 153.7396 | I8: 0.007337429405 | J8: 0.0003976886738 | K8: 153.7396 | L8: 0.008490426373 | M8: 0.0006749888967 | N8: 153.7396 | O8: 0.007779057129 | P8: 0.0004636318049 | Q8: 153.7396 | R8: 0.007679703489 | S8: 0.0008063688663 | U8: 0.0795 | V8: 0.0596 | W8: 0.105
A9: 5 | B9: AmerisourceBergen Corporation | C9: ABC | D9: 0.0179 | E9: 0.0817 | F9: 0.0748 | G9: 0.07 | H9: 19.20089 | I9: 0.0009163883273 | J9: 1.640335106e-05 | K9: 19.20089 | L9: 0.001060388754 | M9: 8.663376118e-05 | N9: 19.20089 | O9: 0.000971544223 | P9: 7.267150788e-05 | Q9: 19.20089 | R9: 0.0009591357199 | S9: 6.713950039e-05 | U9: 0.0817 | V9: 0.0748 | W9: 0.07
A10: 6 | B10: Abbott Laboratories | C10: ABT | D10: 0.014 | E10: 0.149 | F10: 0.1098 | G10: 0.105 | H10: 181.8865 | I10: 0.008680778105 | J10: 0.0001215308935 | K10: 181.8865 | L10: 0.01004486766 | M10: 0.001496685282 | N10: 181.8865 | O10: 0.009203259762 | P10: 0.001010517922 | Q10: 181.8865 | R10: 0.009085716293 | S10: 0.0009540002108 | U10: 0.149 | V10: 0.1098 | W10: 0.105
A11: 7 | B11: Accenture PLC | C11: ACN | D11: 0.0143 | E11: 0.0951 | F11: 0.1 | G11: 0.075 | H11: 146.8207 | I11: 0.007007215587 | J11: 0.0001002031829 | K11: 146.8207 | L11: 0.008108323057 | M11: 0.0007711015227 | N11: 146.8207 | O11: 0.007428968288 | P11: 0.0007428968288 | Q11: 146.8207 | R11: 0.007334085961 | S11: 0.0005500564471 | U11: 0.0951 | V11: 0.1 | W11: 0.075
A12: 8 | B12: Analog Devices, Inc. | C12: ADI | D12: 0.022 | E12: 0.0844 | F12: 0.1 | G12: 0.07 | H12: 41.53118 | I12: 0.001982131483 | J12: 4.360689263e-05 | K12: 41.53118 | L12: 0.002293601818 | M12: 0.0001935799934 | N12: 41.53118 | O12: 0.002101432694 | P12: 0.0002101432694 | Q12: 41.53118 | R12: 0.002074593325 | S12: 0.0001452215327 | U12: 0.0844 | V12: 0.1 | W12: 0.07
A13: 9 | B13: Archer Daniels Midland Company | C13: ADM | D13: 0.0319 | E13: NMF | F13: NMF | G13: 0.09 | H13: 25.10896 | I13: 0.001198358923 | J13: 3.822764963e-05 | K13: -- | L13: -- | M13: -- | N13: -- | O13: -- | P13: -- | Q13: 25.10896 | R13: 0.00125425959 | S13: 0.0001128833631 | U13: -0.088 | V13: n/a | W13: 0.09
A14: 10 | B14: Automatic Data Processing, Inc. | C14: ADP | D14: 0.0287 | E14: 0.1057 | F14: 0.12 | G14: 0.11 | H14: 55.32386 | I14: 0.002640405707 | J14: 7.577964378e-05 | K14: 55.32386 | L14: 0.003055316652 | M14: 0.0003229469702 | N14: 55.32386 | O14: 0.002799327353 | P14: 0.0003359192824 | Q14: 55.32386 | R14: 0.002763574516 | S14: 0.0003039931968 | U14: 0.1057 | V14: 0.12 | W14: 0.11
A15: 11 | B15: Ameren Corporation | C15: AEE | D15: 0.0275 | E15: 0.06 | F15: 0.0689 | G15: 0.06 | H15: 18.68323 | I15: 0.0008916823069 | J15: 2.452126344e-05 | K15: 18.68323 | L15: 0.001031800452 | M15: 6.19080271e-05 | N15: 18.68323 | O15: 0.0009453511881 | P15: 6.513469686e-05 | Q15: 18.68323 | R15: 0.0009332772208 | S15: 5.599663325e-05 | U15: 0.06 | V15: 0.0689 | W15: 0.06
A16: 12 | B16: American Electric Power Company, Inc. | C16: AEP | D16: 0.0374 | E16: 0.0563 | F16: 0.0559 | G16: 0.06 | H16: 39.27415 | I16: 0.001874411687 | J16: 7.010299711e-05 | K16: 39.27415 | L16: 0.002168955031 | M16: 0.0001221121683 | N16: 39.27415 | O16: 0.001987229423 | P16: 0.0001110861247 | Q16: 39.27415 | R16: 0.00196184865 | S16: 0.000117710919 | U16: 0.0563 | V16: 0.0559 | W16: 0.06
A17: 13 | B17: The AES Corporation | C17: AES | D17: 0.0321 | E17: 0.0765 | F17: 0.0801 | G17: NMF | H17: 11.80926 | I17: 0.0005636128335 | J17: 1.809197195e-05 | K17: 11.80926 | L17: 0.0006521784404 | M17: 4.989165069e-05 | N17: 11.80926 | O17: 0.0005975357565 | P17: 4.786261409e-05 | Q17: -- | R17: -- | S17: -- | U17: 0.0765 | V17: 0.0801 | W17: 0.24
A18: 14 | B18: Aflac Incorporated | C18: AFL | D18: 0.0323 | E18: 0.016 | F18: 0.05 | G18: 0.085 | H18: 25.4294 | I18: 0.001213652353 | J18: 3.920097101e-05 | K18: 25.4294 | L18: 0.001404364578 | M18: 2.246983324e-05 | N18: 25.4294 | O18: 0.001286700078 | P18: 6.433500391e-05 | Q18: 25.4294 | R18: 0.001270266424 | S18: 0.000107972646 | U18: 0.016 | V18: 0.05 | W18: 0.085
A19: 15 | B19: American International Group, Inc. | C19: AIG | D19: 0.0484 | E19: 0.0396 | F19: 0.1 | G19: NMF | H19: 22.7677 | I19: 0.001086619137 | J19: 5.259236623e-05 | K19: 22.7677 | L19: 0.001257369478 | M19: 4.979183131e-05 | N19: 22.7677 | O19: 0.001152020943 | P19: 0.0001152020943 | Q19: -- | R19: -- | S19: -- | U19: 0.0396 | V19: 0.1 | W19: 0.285
A20: 16 | B20: Apartment Investment and Management Company | C20: AIV | D20: 0.049 | E20: 0.071 | F20: NMF | G20: NMF | H20: 5.10444 | I20: 0.0002436162716 | J20: 1.193719731e-05 | K20: 5.10444 | L20: 0.0002818979105 | M20: 2.001475164e-05 | N20: -- | O20: -- | P20: -- | Q20: -- | R20: -- | S20: -- | U20: 0.071 | V20: n/a | W20: -0.015
A21: 17 | B21: Assurant, Inc. | C21: AIZ | D21: 0.0212 | E21: 0.194 | F21: NMF | G21: 0.115 | H21: 7.07298 | I21: 0.0003375674936 | J21: 7.156430863e-06 | K21: 7.07298 | L21: 0.0003906125418 | M21: 7.577883311e-05 | N21: -- | O21: -- | P21: -- | Q21: 7.07298 | R21: 0.0003533142351 | S21: 4.063113704e-05 | U21: 0.194 | V21: n/a | W21: 0.115
A22: 18 | B22: Arthur J. Gallagher Co. | C22: AJG | D22: 0.0176 | E22: 0.1152 | F22: 0.0841 | G22: 0.13 | H22: 19.60194 | I22: 0.0009355289786 | J22: 1.646531002e-05 | K22: 19.60194 | L22: 0.001082537149 | M22: 0.0001247082796 | N22: 19.60194 | O22: 0.0009918369183 | P22: 8.341348483e-05 | Q22: 19.60194 | R22: 0.0009791692381 | S22: 0.000127292001 | U22: 0.1152 | V22: 0.0841 | W22: 0.13
A23: 19 | B23: Albemarle Corporation | C23: ALB | D23: 0.0192 | E23: 0.15 | F23: 0.0866 | G23: 0.04 | H23: 8.55162 | I23: 0.0004081375784 | J23: 7.836241505e-06 | K23: 8.55162 | L23: 0.0004722719454 | M23: 7.084079181e-05 | N23: 8.55162 | O23: 0.0004327027033 | P23: 3.74720541e-05 | Q23: 8.55162 | R23: 0.0004271762509 | S23: 1.708705004e-05 | U23: 0.15 | V23: 0.0866 | W23: 0.04
A24: 20 | B24: The Allstate Corporation | C24: ALL | D24: 0.0241 | E24: 0.0635 | F24: 0.075 | G24: 0.06 | H24: 28.05106 | I24: 0.001338774606 | J24: 3.226446802e-05 | K24: 28.05106 | L24: 0.001549148428 | M24: 9.837092516e-05 | N24: 28.05106 | O24: 0.001419353233 | P24: 0.0001064514925 | Q24: 28.05106 | R24: 0.00140122534 | S24: 8.407352042e-05 | U24: 0.0635 | V24: 0.075 | W24: 0.06
A25: 21 | B25: Allegion PLC | C25: ALLE | D25: 0.0134 | E25: NMF | F25: 0.061 | G25: 0.09 | H25: 8.79626 | I25: 0.0004198133518 | J25: 5.625498914e-06 | K25: -- | L25: -- | M25: -- | N25: 8.79626 | O25: 0.0004450812221 | P25: 2.714995455e-05 | Q25: 8.79626 | R25: 0.0004393966721 | S25: 3.954570049e-05 | U25: -0.004 | V25: 0.061 | W25: 0.09
A26: 22 | B26: Applied Materials, Inc. | C26: AMAT | D26: 0.0156 | E26: NMF | F26: 0.1266 | G26: 0.075 | H26: 52.28545 | I26: 0.002495393498 | J26: 3.892813857e-05 | K26: -- | L26: -- | M26: -- | N26: 52.28545 | O26: 0.0026455871 | P26: 0.0003349313269 | Q26: 52.28545 | R26: 0.002611797824 | S26: 0.0001958848368 | U26: 0.2008 | V26: 0.1266 | W26: 0.075
A27: 23 | B27: Amcor PLC | C27: AMCR | D27: 0.052 | E27: 0.0544 | F27: 0.0727 | G27: NMF | H27: 17.12902 | I27: 0.000817505542 | J27: 4.251028818e-05 | K27: 17.12902 | L27: 0.0009459676177 | M27: 5.14606384e-05 | N27: 17.12902 | O27: 0.0008667098466 | P27: 6.300980585e-05 | Q27: -- | R27: -- | S27: -- | U27: 0.0544 | V27: 0.0727 | W27: n/a
A28: 24 | B28: AMETEK, Inc. | C28: AME | D28: 0.0076 | E28: NMF | F28: 0.0711 | G28: 0.125 | H28: 21.88833 | I28: 0.00104465002 | J28: 7.93934015e-06 | K28: -- | L28: -- | M28: -- | N28: 21.88833 | O28: 0.001107525774 | P28: 7.874508255e-05 | Q28: 21.88833 | R28: 0.001093380523 | S28: 0.0001366725654 | U28: -0.012 | V28: 0.0711 | W28: 0.125
A29: 25 | B29: Amgen Inc. | C29: AMGN | D29: 0.0282 | E29: 0.0687 | F29: 0.0723 | G29: 0.065 | H29: 142.2548 | I29: 0.006789301862 | J29: 0.0001914583125 | K29: 142.2548 | L29: 0.007856166568 | M29: 0.0005397186432 | N29: 142.2548 | O29: 0.007197938696 | P29: 0.0005204109678 | Q29: 142.2548 | R29: 0.007106007065 | S29: 0.0004618904593 | U29: 0.0687 | V29: 0.0723 | W29: 0.065
A30: 26 | B30: Ameriprise Financial, Inc. | C30: AMP | D30: 0.0286 | E30: 0.0777 | F30: NMF | G30: 0.11 | H30: 17.53037 | I30: 0.0008366605111 | J30: 2.392849062e-05 | K30: 17.53037 | L30: 0.0009681325812 | M30: 7.522390156e-05 | N30: -- | O30: -- | P30: -- | Q30: 17.53037 | R30: 0.0008756887858 | S30: 9.632576643e-05 | U30: 0.0777 | V30: n/a | W30: 0.11
A31: 27 | B31: American Tower Corporation REIT | C31: AMT | D31: 0.0204 | E31: 0.1487 | F31: 0.1478 | G31: 0.09 | H31: 104.5518 | I31: 0.004989875424 | J31: 0.0001017934586 | K31: 104.5518 | L31: 0.005773979899 | M31: 0.000858590811 | N31: 104.5518 | O31: 0.005290207761 | P31: 0.0007818927071 | Q31: 104.5518 | R31: 0.005222641552 | S31: 0.0004700377397 | U31: 0.1487 | V31: 0.1478 | W31: 0.09
A32: 28 | B32: Anthem, Inc. | C32: ANTM | D32: 0.0167 | E32: 0.1452 | F32: 0.1464 | G32: 0.14 | H32: 61.95394 | I32: 0.002956835201 | J32: 4.937914786e-05 | K32: 61.95394 | L32: 0.003421469589 | M32: 0.0004967973844 | N32: 61.95394 | O32: 0.003134802215 | P32: 0.0004589350443 | Q32: 61.95394 | R32: 0.003094764714 | S32: 0.0004332670599 | U32: 0.1452 | V32: 0.1464 | W32: 0.14
A33: 29 | B33: Aon plc | C33: AON | D33: 0.009 | E33: 0.0677 | F33: NMF | G33: 0.075 | H33: 46.39491 | I33: 0.002214259546 | J33: 1.992833591e-05 | K33: 46.39491 | L33: 0.002562206272 | M33: 0.0001734613646 | N33: -- | O33: -- | P33: -- | Q33: 46.39491 | R33: 0.002317549624 | S33: 0.0001738162218 | U33: 0.0677 | V33: n/a | W33: 0.075
A34: 30 | B34: A. O. Smith Corporation | C34: AOS | D34: 0.0185 | E34: 0.08 | F34: 0.08 | G34: 0.05 | H34: 8.36119 | I34: 0.0003990490503 | J34: 7.38240743e-06 | K34: 8.36119 | L34: 0.0004617552543 | M34: 3.694042034e-05 | N34: 8.36119 | O34: 0.0004230671517 | P34: 3.384537213e-05 | Q34: 8.36119 | R34: 0.000417663764 | S34: 2.08831882e-05 | U34: 0.08 | V34: 0.08 | W34: 0.05
A35: 31 | B35: Apache Corporation | C35: APA | D35: 0.009 | E35: NMF | F35: NMF | G35: 0.03 | H35: 4.18978 | I35: 0.0001999628916 | J35: 1.799666025e-06 | K35: -- | L35: -- | M35: -- | N35: -- | O35: -- | P35: -- | Q35: 4.18978 | R35: 0.0002092906973 | S35: 6.278720918e-06 | U35: -0.24 | V35: n/a | W35: 0.03
A36: 32 | B36: Air Products and Chemicals, Inc. | C36: APD | D36: 0.0188 | E36: 0.1033 | F36: 0.0877 | G36: 0.12 | H36: 63.04977 | I36: 0.003009135163 | J36: 5.657174107e-05 | K36: 63.04977 | L36: 0.00348198792 | M36: 0.0003596893521 | N36: 63.04977 | O36: 0.003190250025 | P36: 0.0002797849272 | Q36: 63.04977 | R36: 0.003149504348 | S36: 0.0003779405217 | U36: 0.1033 | V36: 0.0877 | W36: 0.12
A37: 33 | B37: Amphenol Corporation | C37: APH | D37: 0.0097 | E37: 0.03 | F37: 0.0751 | G37: 0.105 | H37: 30.8114 | I37: 0.001470515549 | J37: 1.426400083e-05 | K37: 30.8114 | L37: 0.001701591022 | M37: 5.104773067e-05 | N37: 30.8114 | O37: 0.001559023445 | P37: 0.0001170826607 | Q37: 30.8114 | R37: 0.001539111693 | S37: 0.0001616067278 | U37: 0.03 | V37: 0.0751 | W37: 0.105
A38: 34 | B38: Alexandria Real Estate Equities, Inc. | C38: ARE | D38: 0.0271 | E38: 0.001 | F38: 0.0499 | G38: 0.165 | H38: 17.37671 | I38: 0.0008293268808 | J38: 2.247475847e-05 | K38: 17.37671 | L38: 0.0009596465508 | M38: 9.596465508e-07 | N38: 17.37671 | O38: 0.0008792426922 | P38: 4.387421034e-05 | Q38: 17.37671 | R38: 0.0008680130585 | S38: 0.0001432221547 | U38: 0.001 | V38: 0.0499 | W38: 0.165
A39: 35 | B39: Atmos Energy Corporation | C39: ATO | D39: 0.0265 | E39: 0.0725 | F39: 0.0726 | G39: 0.07 | H39: 11.45561 | I39: 0.0005467344111 | J39: 1.448846189e-05 | K39: 11.45561 | L39: 0.0006326477581 | M39: 4.586696246e-05 | N39: 11.45561 | O39: 0.0005796414498 | P39: 4.208196925e-05 | Q39: 11.45561 | R39: 0.0005722383048 | S39: 4.005668133e-05 | U39: 0.0725 | V39: 0.0726 | W39: 0.07
A40: 36 | B40: Activision Blizzard, Inc | C40: ATVI | D40: 0.0056 | E40: NMF | F40: 0.1597 | G40: 0.11 | H40: 61.8368 | I40: 0.002951244537 | J40: 1.652696941e-05 | K40: -- | L40: -- | M40: -- | N40: 61.8368 | O40: 0.003128875058 | P40: 0.0004996813467 | Q40: 61.8368 | R40: 0.003088913258 | S40: 0.0003397804584 | U40: 0.2441 | V40: 0.1597 | W40: 0.11
A41: 37 | B41: AvalonBay Communities, Inc. | C41: AVB | D41: 0.0443 | E41: 0.0254 | F41: 0.0115 | G41: 0.015 | H41: 20.68311 | I41: 0.0009871292725 | J41: 4.372982677e-05 | K41: 20.68311 | L41: 0.001142245867 | M41: 2.901304501e-05 | N41: 20.68311 | O41: 0.001046542949 | P41: 1.203524391e-05 | Q41: 20.68311 | R41: 0.001033176566 | S41: 1.549764849e-05 | U41: 0.0254 | V41: 0.0115 | W41: 0.015
A42: 38 | B42: Broadcom Inc. | C42: AVGO | D42: 0.037 | E42: 0.079 | F42: 0.1262 | G42: 0.17 | H42: 142.0424 | I42: 0.006779164786 | J42: 0.0002508290971 | K42: 142.0424 | L42: 0.007844436561 | M42: 0.0006197104883 | N42: 142.0424 | O42: 0.007187191487 | P42: 0.0009070235656 | Q42: 142.0424 | R42: 0.007095397118 | S42: 0.00120621751 | U42: 0.079 | V42: 0.1262 | W42: 0.17
A43: 39 | B43: Avery Dennison Corporation | C43: AVY | D43: 0.0201 | E43: 0.0784 | F43: 0.0615 | G43: 0.11 | H43: 9.90611 | I43: 0.0004727824373 | J43: 9.50292699e-06 | K43: 9.90611 | L43: 0.0005470750386 | M43: 4.289068302e-05 | N43: 9.90611 | O43: 0.0005012384292 | P43: 3.08261634e-05 | Q43: 9.90611 | R43: 0.0004948366428 | S43: 5.443203071e-05 | U43: 0.0784 | V43: 0.0615 | W43: 0.11
A44: 40 | B44: American Water Works Company, Inc. | C44: AWK | D44: 0.0163 | E44: 0.083 | F44: 0.0808 | G44: 0.085 | H44: 25.0148 | I44: 0.00119386501 | J44: 1.945999966e-05 | K44: 25.0148 | L44: 0.001381467869 | M44: 0.0001146618332 | N44: 25.0148 | O44: 0.001265721768 | P44: 0.0001022703188 | Q44: 25.0148 | R44: 0.001249556047 | S44: 0.000106212264 | U44: 0.083 | V44: 0.0808 | W44: 0.085
A45: 41 | B45: American Express Company | C45: AXP | D45: 0.018 | E45: 0.0935 | F45: 0.0893 | G45: 0.06 | H45: 76.9258 | I45: 0.003671387378 | J45: 6.60849728e-05 | K45: 76.9258 | L45: 0.004248305844 | M45: 0.0003972165964 | N45: 76.9258 | O45: 0.003892362104 | P45: 0.0003475879359 | Q45: 76.9258 | R45: 0.003842649094 | S45: 0.0002305589456 | U45: 0.0935 | V45: 0.0893 | W45: 0.06
A46: 42 | B46: Bank of America Corporation | C46: BAC | D46: 0.031 | E46: 0.0236 | F46: 0.07 | G46: 0.05 | H46: 201.5265 | I46: 0.009618123548 | J46: 0.00029816183 | K46: 201.5265 | L46: 0.01112950671 | M46: 0.0002626563585 | N46: 201.5265 | O46: 0.01019702247 | P46: 0.0007137915732 | Q46: 201.5265 | R46: 0.01006678673 | S46: 0.0005033393365 | U46: 0.0236 | V46: 0.07 | W46: 0.05
A47: 43 | B47: Baxter International Inc. | C47: BAX | D47: 0.0125 | E47: 0.1 | F47: 0.0975 | G47: 0.09 | H47: 39.96256 | I47: 0.001907266982 | J47: 2.384083727e-05 | K47: 39.96256 | L47: 0.002206973176 | M47: 0.0002206973176 | N47: 39.96256 | O47: 0.002022062222 | P47: 0.0001971510667 | Q47: 39.96256 | R47: 0.001996236568 | S47: 0.0001796612911 | U47: 0.1 | V47: 0.0975 | W47: 0.09
A48: 44 | B48: Best Buy Co., Inc. | C48: BBY | D48: 0.0207 | E48: 0.074 | F48: 0.0676 | G48: 0.08 | H48: 27.47442 | I48: 0.001311253686 | J48: 2.71429513e-05 | K48: 27.47442 | L48: 0.001517302895 | M48: 0.0001122804142 | N48: 27.47442 | O48: 0.001390175874 | P48: 9.397588906e-05 | Q48: 27.47442 | R48: 0.001372420633 | S48: 0.0001097936506 | U48: 0.074 | V48: 0.0676 | W48: 0.08
A49: 45 | B49: Becton, Dickinson and Company | C49: BDX | D49: 0.0143 | E49: 0.064 | F49: 0.0795 | G49: 0.09 | H49: 65.39155 | I49: 0.003120899767 | J49: 4.462886667e-05 | K49: 65.39155 | L49: 0.003611315111 | M49: 0.0002311241671 | N49: 65.39155 | O49: 0.003308741555 | P49: 0.0002630449536 | Q49: 65.39155 | R49: 0.003266482511 | S49: 0.000293983426 | U49: 0.064 | V49: 0.0795 | W49: 0.09
A50: 46 | B50: Franklin Resources, Inc. | C50: BEN | D50: 0.0567 | E50: NMF | F50: NMF | G50: 0.065 | H50: 9.69935 | I50: 0.000462914538 | J50: 2.62472543e-05 | K50: -- | L50: -- | M50: -- | N50: -- | O50: -- | P50: -- | Q50: 9.69935 | R50: 0.0004845084287 | S50: 3.149304787e-05 | U50: -0.0566 | V50: n/a | W50: 0.065
A51: 47 | B51: BrownForman Corporation | C51: BF.B | D51: 0.0096 | E51: 0.0685 | F51: NMF | G51: 0.12 | H51: 36.04589 | I51: 0.001720338632 | J51: 1.651525087e-05 | K51: 36.04589 | L51: 0.001990671077 | M51: 0.0001363609688 | N51: -- | O51: -- | P51: -- | Q51: 36.04589 | R51: 0.001800588444 | S51: 0.0002160706133 | U51: 0.0685 | V51: n/a | W51: 0.12
A52: 48 | B52: The Bank of New York Mellon Corporation | C52: BK | D52: 0.0373 | E52: 0.028 | F52: 0.08 | G52: 0.03 | H52: 29.45491 | I52: 0.001405775238 | J52: 5.243541637e-05 | K52: 29.45491 | L52: 0.001626677477 | M52: 4.554696936e-05 | N52: 29.45491 | O52: 0.001490386521 | P52: 0.0001192309217 | Q52: 29.45491 | R52: 0.001471351396 | S52: 4.414054188e-05 | U52: 0.028 | V52: 0.08 | W52: 0.03
A53: 49 | B53: Baker Hughes Company | C53: BKR | D53: 0.0532 | E53: 0.0247 | F53: 0.0981 | G53: NMF | H53: 8.86215 | I53: 0.0004229580407 | J53: 2.250136777e-05 | K53: 8.86215 | L53: 0.0004894212817 | M53: 1.208870566e-05 | N53: 8.86215 | O53: 0.0004484151847 | P53: 4.398952962e-05 | Q53: -- | R53: -- | S53: -- | U53: 0.0247 | V53: 0.0981 | W53: 0.345
